Workbook

Sheet ProjectInformation
A1: CPN DATA
A2: INFORMATION ADDED BY DESIGNER
A3: Section Engineer | B3: Flattery
A4: Design Team | B4: Johnson
A6: County | B6: TAMA
A7: Project Number | B7: NHSX-030-6(189)--3H-86
A8: English or Metric | B8: ENGLISH
A9: Revised
A10: Bridge Block
A11: File No.

Sheet PrintSheets
EF75: HYDRAULIC DESIGN
ET77: I hereby certify that this engineering document was prepared
ET78: by me or under my direct personal supervision and that I
ET79: am a duly licensed Professional Engineer under the laws of
ET80: the State of Iowa.
FQ81: 2017-09-27
ET83: Signature | FQ83: Date
ET84: David R. Claman
ET86: Printed or Typed Name
ET87: My license renewal date is December 31, 20 | FL87: 18
EG89: Pages or sheets covered by this seal: | EY89: CD.1-CD.9
B94: FILE NO. | I94: =IF(ProjectInformation!$B$11<>"",ProjectInformation!$B$11,"") ->  | P94: =UPPER(ProjectInformation!B8) -> ENGLISH | W94: DESIGN TEAM | AF94: =IF(AND(ProjectInformation!$B$3<>"",ProjectInformation!$B$4<>"",ProjectInformation!$B$5<>""),ProjectInformation!$B$3&"\"&ProjectInformation!$B$4&"\"&ProjectInformation!$B$5,IF(AND(ProjectInformation!$B$3<>"",ProjectInformation!$B$4<>""),ProjectInformation!$B$3&"\"&ProjectInformation!$B$4,IF(ProjectInformation!$B$3<>"",ProjectInformation!$B$3,""))) -> Flattery\Johnson | BN94: =IF(ProjectInformation!$B$6<>"",ProjectInformation!$B$6,"") -> TAMA | CX94: COUNTY | DD94: PROJECT NUMBER | DP94: =IF(ProjectInformation!$B$7<>"",ProjectInformation!$B$7,"") -> NHSX-030-6(189)--3H-86 | ET94: SHEET NUMBER | FD94: CD.1 | FJ94: =IF(FP94<>"","REVISED","") ->  | FP94: =IF(ProjectInformation!$B$9<>"",ProjectInformation!$B$9,"") -> 
B95: 9/27/2017 2:07:55 PM ajohns1 c:\pw_work\pwmain\ajohns1\d0569206\86030189_CD1.xlsm
B189: FILE NO. | I189: =IF(ProjectInformation!$B$11<>"",ProjectInformation!$B$11,"") ->  | P189: =UPPER(ProjectInformation!B8) -> ENGLISH | W189: DESIGN TEAM | AF189: =IF(AND(ProjectInformation!$B$3<>"",ProjectInformation!$B$4<>"",ProjectInformation!$B$5<>""),ProjectInformation!$B$3&"\"&ProjectInformation!$B$4&"\"&ProjectInformation!$B$5,IF(AND(ProjectInformation!$B$3<>"",ProjectInformation!$B$4<>""),ProjectInformation!$B$3&"\"&ProjectInformation!$B$4,IF(ProjectInformation!$B$3<>"",ProjectInformation!$B$3,""))) -> Flattery\Johnson | BN189: =IF(ProjectInformation!$B$6<>"",ProjectInformation!$B$6,"") -> TAMA | CX189: COUNTY | DD189: PROJECT NUMBER | DP189: =IF(ProjectInformation!$B$7<>"",ProjectInformation!$B$7,"") -> NHSX-030-6(189)--3H-86 | ET189: SHEET NUMBER | FD189: =IF($FD$94<>"","CD."& MID(OFFSET($FD$189,-95,0),4,LEN(OFFSET($FD$189,-95,0))-2)+1,"") -> CD.2 | FJ189: =IF(FP189<>"","REVISED","") ->  | FP189: =IF(ProjectInformation!$B$9<>"",ProjectInformation!$B$9,"") -> 
B190: 9/27/2017 2:07:55 PM ajohns1 c:\pw_work\pwmain\ajohns1\d0569206\86030189_CD1.xlsm
B284: FILE NO. | I284: =IF(ProjectInformation!$B$11<>"",ProjectInformation!$B$11,"") ->  | P284: =UPPER(ProjectInformation!B8) -> ENGLISH | W284: DESIGN TEAM | AF284: =IF(AND(ProjectInformation!$B$3<>"",ProjectInformation!$B$4<>"",ProjectInformation!$B$5<>""),ProjectInformation!$B$3&"\"&ProjectInformation!$B$4&"\"&ProjectInformation!$B$5,IF(AND(ProjectInformation!$B$3<>"",ProjectInformation!$B$4<>""),ProjectInformation!$B$3&"\"&ProjectInformation!$B$4,IF(ProjectInformation!$B$3<>"",ProjectInformation!$B$3,""))) -> Flattery\Johnson | BN284: =IF(ProjectInformation!$B$6<>"",ProjectInformation!$B$6,"") -> TAMA | CX284: COUNTY | DD284: PROJECT NUMBER | DP284: =IF(ProjectInformation!$B$7<>"",ProjectInformation!$B$7,"") -> NHSX-030-6(189)--3H-86 | ET284: SHEET NUMBER | FD284: =IF($FD$189<>"","CD."& MID(OFFSET($FD$284,-95,0),4,LEN(OFFSET($FD$284,-95,0))-2)+1,"") -> CD.3 | FJ284: =IF(FP284<>"","REVISED","") ->  | FP284: =IF(ProjectInformation!$B$9<>"",ProjectInformation!$B$9,"") -> 
B285: 9/27/2017 2:07:56 PM ajohns1 c:\pw_work\pwmain\ajohns1\d0569206\86030189_CD1.xlsm
B379: FILE NO. | I379: =IF(ProjectInformation!$B$11<>"",ProjectInformation!$B$11,"") ->  | P379: =UPPER(ProjectInformation!B8) -> ENGLISH | W379: DESIGN TEAM | AF379: =IF(AND(ProjectInformation!$B$3<>"",ProjectInformation!$B$4<>"",ProjectInformation!$B$5<>""),ProjectInformation!$B$3&"\"&ProjectInformation!$B$4&"\"&ProjectInformation!$B$5,IF(AND(ProjectInformation!$B$3<>"",ProjectInformation!$B$4<>""),ProjectInformation!$B$3&"\"&ProjectInformation!$B$4,IF(ProjectInformation!$B$3<>"",ProjectInformation!$B$3,""))) -> Flattery\Johnson | BN379: =IF(ProjectInformation!$B$6<>"",ProjectInformation!$B$6,"") -> TAMA | CX379: COUNTY | DD379: PROJECT NUMBER | DP379: =IF(ProjectInformation!$B$7<>"",ProjectInformation!$B$7,"") -> NHSX-030-6(189)--3H-86 | ET379: SHEET NUMBER | FD379: =IF($FD$284<>"","CD."& MID(OFFSET($FD$379,-95,0),4,LEN(OFFSET($FD$379,-95,0))-2)+1,"") -> CD.4 | FJ379: =IF(FP379<>"","REVISED","") ->  | FP379: =IF(ProjectInformation!$B$9<>"",ProjectInformation!$B$9,"") -> 
B380: 9/27/2017 2:07:57 PM ajohns1 c:\pw_work\pwmain\ajohns1\d0569206\86030189_CD1.xlsm
B474: FILE NO. | I474: =IF(ProjectInformation!$B$11<>"",ProjectInformation!$B$11,"") ->  | P474: =UPPER(ProjectInformation!B8) -> ENGLISH | W474: DESIGN TEAM | AF474: =IF(AND(ProjectInformation!$B$3<>"",ProjectInformation!$B$4<>"",ProjectInformation!$B$5<>""),ProjectInformation!$B$3&"\"&ProjectInformation!$B$4&"\"&ProjectInformation!$B$5,IF(AND(ProjectInformation!$B$3<>"",ProjectInformation!$B$4<>""),ProjectInformation!$B$3&"\"&ProjectInformation!$B$4,IF(ProjectInformation!$B$3<>"",ProjectInformation!$B$3,""))) -> Flattery\Johnson | BN474: =IF(ProjectInformation!$B$6<>"",ProjectInformation!$B$6,"") -> TAMA | CX474: COUNTY | DD474: PROJECT NUMBER | DP474: =IF(ProjectInformation!$B$7<>"",ProjectInformation!$B$7,"") -> NHSX-030-6(189)--3H-86 | ET474: SHEET NUMBER | FD474: =IF($FD$379<>"","CD."& MID(OFFSET($FD$474,-95,0),4,LEN(OFFSET($FD$474,-95,0))-2)+1,"") -> CD.5 | FJ474: =IF(FP474<>"","REVISED","") ->  | FP474: =IF(ProjectInformation!$B$9<>"",ProjectInformation!$B$9,"") -> 
B475: 9/27/2017 2:07:58 PM ajohns1 c:\pw_work\pwmain\ajohns1\d0569206\86030189_CD1.xlsm
B569: FILE NO. | I569: =IF(ProjectInformation!$B$11<>"",ProjectInformation!$B$11,"") ->  | P569: =UPPER(ProjectInformation!B8) -> ENGLISH | W569: DESIGN TEAM | AF569: =IF(AND(ProjectInformation!$B$3<>"",ProjectInformation!$B$4<>"",ProjectInformation!$B$5<>""),ProjectInformation!$B$3&"\"&ProjectInformation!$B$4&"\"&ProjectInformation!$B$5,IF(AND(ProjectInformation!$B$3<>"",ProjectInformation!$B$4<>""),ProjectInformation!$B$3&"\"&ProjectInformation!$B$4,IF(ProjectInformation!$B$3<>"",ProjectInformation!$B$3,""))) -> Flattery\Johnson | BN569: =IF(ProjectInformation!$B$6<>"",ProjectInformation!$B$6,"") -> TAMA | CX569: COUNTY | DD569: PROJECT NUMBER | DP569: =IF(ProjectInformation!$B$7<>"",ProjectInformation!$B$7,"") -> NHSX-030-6(189)--3H-86 | ET569: SHEET NUMBER | FD569: =IF($FD$474<>"","CD."& MID(OFFSET($FD$569,-95,0),4,LEN(OFFSET($FD$569,-95,0))-2)+1,"") -> CD.6 | FJ569: =IF(FP569<>"","REVISED","") ->  | FP569: =IF(ProjectInformation!$B$9<>"",ProjectInformation!$B$9,"") -> 
B570: 9/27/2017 2:07:58 PM ajohns1 c:\pw_work\pwmain\ajohns1\d0569206\86030189_CD1.xlsm
B664: FILE NO. | I664: =IF(ProjectInformation!$B$11<>"",ProjectInformation!$B$11,"") ->  | P664: =UPPER(ProjectInformation!B8) -> ENGLISH | W664: DESIGN TEAM | AF664: =IF(AND(ProjectInformation!$B$3<>"",ProjectInformation!$B$4<>"",ProjectInformation!$B$5<>""),ProjectInformation!$B$3&"\"&ProjectInformation!$B$4&"\"&ProjectInformation!$B$5,IF(AND(ProjectInformation!$B$3<>"",ProjectInformation!$B$4<>""),ProjectInformation!$B$3&"\"&ProjectInformation!$B$4,IF(ProjectInformation!$B$3<>"",ProjectInformation!$B$3,""))) -> Flattery\Johnson | BN664: =IF(ProjectInformation!$B$6<>"",ProjectInformation!$B$6,"") -> TAMA | CX664: COUNTY | DD664: PROJECT NUMBER | DP664: =IF(ProjectInformation!$B$7<>"",ProjectInformation!$B$7,"") -> NHSX-030-6(189)--3H-86 | ET664: SHEET NUMBER | FD664: =IF($FD$569<>"","CD."& MID(OFFSET($FD$664,-95,0),4,LEN(OFFSET($FD$664,-95,0))-2)+1,"") -> CD.7 | FJ664: =IF(FP664<>"","REVISED","") ->  | FP664: =IF(ProjectInformation!$B$9<>"",ProjectInformation!$B$9,"") -> 
B665: 9/27/2017 2:07:59 PM ajohns1 c:\pw_work\pwmain\ajohns1\d0569206\86030189_CD1.xlsm
B759: FILE NO. | I759: =IF(ProjectInformation!$B$11<>"",ProjectInformation!$B$11,"") ->  | P759: =UPPER(ProjectInformation!B8) -> ENGLISH | W759: DESIGN TEAM | AF759: =IF(AND(ProjectInformation!$B$3<>"",ProjectInformation!$B$4<>"",ProjectInformation!$B$5<>""),ProjectInformation!$B$3&"\"&ProjectInformation!$B$4&"\"&ProjectInformation!$B$5,IF(AND(ProjectInformation!$B$3<>"",ProjectInformation!$B$4<>""),ProjectInformation!$B$3&"\"&ProjectInformation!$B$4,IF(ProjectInformation!$B$3<>"",ProjectInformation!$B$3,""))) -> Flattery\Johnson | BN759: =IF(ProjectInformation!$B$6<>"",ProjectInformation!$B$6,"") -> TAMA | CX759: COUNTY | DD759: PROJECT NUMBER | DP759: =IF(ProjectInformation!$B$7<>"",ProjectInformation!$B$7,"") -> NHSX-030-6(189)--3H-86 | ET759: SHEET NUMBER | FD759: =IF($FD$664<>"","CD."& MID(OFFSET($FD$759,-95,0),4,LEN(OFFSET($FD$759,-95,0))-2)+1,"") -> CD.8 | FJ759: =IF(FP759<>"","REVISED","") ->  | FP759: =IF(ProjectInformation!$B$9<>"",ProjectInformation!$B$9,"") -> 
B760: 9/27/2017 2:08:00 PM ajohns1 c:\pw_work\pwmain\ajohns1\d0569206\86030189_CD1.xlsm
B854: FILE NO. | I854: =IF(ProjectInformation!$B$11<>"",ProjectInformation!$B$11,"") ->  | P854: =UPPER(ProjectInformation!B8) -> ENGLISH | W854: DESIGN TEAM | AF854: =IF(AND(ProjectInformation!$B$3<>"",ProjectInformation!$B$4<>"",ProjectInformation!$B$5<>""),ProjectInformation!$B$3&"\"&ProjectInformation!$B$4&"\"&ProjectInformation!$B$5,IF(AND(ProjectInformation!$B$3<>"",ProjectInformation!$B$4<>""),ProjectInformation!$B$3&"\"&ProjectInformation!$B$4,IF(ProjectInformation!$B$3<>"",ProjectInformation!$B$3,""))) -> Flattery\Johnson | BN854: =IF(ProjectInformation!$B$6<>"",ProjectInformation!$B$6,"") -> TAMA | CX854: COUNTY | DD854: PROJECT NUMBER | DP854: =IF(ProjectInformation!$B$7<>"",ProjectInformation!$B$7,"") -> NHSX-030-6(189)--3H-86 | ET854: SHEET NUMBER | FD854: =IF($FD$759<>"","CD."& MID(OFFSET($FD$854,-95,0),4,LEN(OFFSET($FD$854,-95,0))-2)+1,"") -> CD.9 | FJ854: =IF(FP854<>"","REVISED","") ->  | FP854: =IF(ProjectInformation!$B$9<>"",ProjectInformation!$B$9,"") -> 
B855: 9/27/2017 2:08:00 PM ajohns1 c:\pw_work\pwmain\ajohns1\d0569206\86030189_CD1.xlsm

Sheet DE104_3
A1: TabTitle | B1: =C16 -> DRAINAGE STRUCTURE BY ROAD CONTRACTOR
A2: Number of Tab Columns | B2: 41
A3: DE Starter Row Number | B3: 35
A4: TabSheet Starter Row Number | B4: 21
A5: TabSheet Header Row Count | B5: 20
A6: Top Header Cell | B6: AS15
A7: Bottom Header Cell | B7: CG34
A8: DESheet Row Count | B8: 519
A9: Fixed Empty Rows | B9: 0
A10: Usable Empty Rows | B10: 20
A11: Total Rows Placed | B11: 539 | C11: xlRight | D11: xlRight | E11: xlRight | F11: xlRight | G11: xlRight | H11: xlRight | I11: xlRight | J11: xlRight | K11: xlRight | L11: xlRight | M11: xlRight | N11: xlRight | O11: xlRight | P11: xlRight | Q11: xlRight | R11: xlRight | S11: xlRight | T11: xlLeft | U11: xlRight | V11: xlLeft | W11: xlRight | X11: xlRight | Y11: xlRight | Z11: xlRight | AA11: xlRight | AB11: xlRight | AC11: xlRight | AD11: xlRight | AE11: xlRight | AF11: xlRight | AG11: xlRight | AH11: xlCenter | AI11: xlRight | AJ11: xlRight | AK11: xlRight | AL11: xlRight | AM11: xlRight | AN11: xlRight | AO11: xlRight | AP11: xlRight | AQ11: xlLeft | AS11: =C11 -> xlRight | AT11: xlRight | AU11: xlRight | AV11: xlRight | AW11: xlRight | AX11: xlRight | AY11: xlRight | AZ11: xlRight | BA11: xlRight | BB11: xlRight | BC11: xlRight | BD11: xlRight | BE11: xlRight | BF11: xlRight | BG11: xlRight | BH11: xlRight | BI11: =S11 -> xlRight | BJ11: xlLeft | BK11: xlRight | BL11: xlLeft | BM11: xlRight | BN11: xlRight | BO11: xlRight | BP11: xlRight | BQ11: xlRight | BR11: xlRight | BS11: xlRight | BT11: xlRight | BU11: xlRight | BV11: xlRight | BW11: xlRight | BX11: xlCenter | BY11: =AI11 -> xlRight | BZ11: xlRight | CA11: xlRight | CB11: xlRight | CC11: xlRight | CD11: xlRight | CE11: xlRight | CF11: xlRight | CG11: xlLeft
A12: Total Rows Needed | B12: =SUM(B8:B10) -> 539 | C12: 0.0 | D12: #+00.00 | E12: General | F12: 0 | G12: General | H12: 0 | I12: General | J12: 0.0 | K12: 0.00 | L12: General | M12: General | N12: 0 | O12: 0 | P12: 0 | Q12: 0 | R12: 0 | S12: 0 | T12: General | U12: 0 | V12: General | W12: 0 | X12: 0.00 | Y12: 0.00 | Z12: 0.00 | AA12: 0.00 | AB12: 0.0 | AC12: 0.0 | AD12: 0.0 | AE12: 0.0 | AF12: 0 | AG12: 0 | AH12: General | AI12: #+00.00 | AJ12: 0.00 | AK12: General | AL12: 0.0 | AM12: 0.0 | AN12: 0.0 | AO12: 0.0 | AP12: 0.0 | AQ12: General | AS12: 0.0 | AT12: #+00.00 | AU12: General | AV12: 0 | AW12: General | AX12: 0 | AY12: General | AZ12: 0.0 | BA12: 0.00 | BB12: General | BC12: General | BD12: 0 | BE12: 0 | BF12: 0 | BG12: 0 | BH12: 0 | BI12: 0 | BJ12: General | BK12: 0 | BL12: General | BM12: 0 | BN12: 0.00 | BO12: 0.00 | BP12: 0.00 | BQ12: 0.00 | BR12: 0.0 | BS12: 0.0 | BT12: 0.0 | BU12: 0.0 | BV12: 0 | BW12: 0 | BX12: General | BY12: #+00.00 | BZ12: 0.00 | CA12: General | CB12: 0.0 | CC12: 0.0 | CD12: 0.0 | CE12: 0.0 | CF12: 0.0 | CG12: General
A13: Last Tab DE Starter Row | B13: 525 | C13: =CELL("width",C13) -> 6 | D13: 25 | E13: 8 | F13: 5 | G13: 6 | H13: 6 | I13: 5 | J13: 6 | K13: 5 | L13: 5 | M13: 5 | N13: 5 | O13: 5 | P13: 5 | Q13: 5 | R13: 5 | S13: 5 | T13: 6 | U13: 5 | V13: 8 | W13: 7 | X13: 10 | Y13: 10 | Z13: 10 | AA13: 10 | AB13: 7 | AC13: 7 | AD13: 7 | AE13: 7 | AF13: 5 | AG13: 5 | AH13: 5 | AI13: 14 | AJ13: 11 | AK13: 5 | AL13: 8 | AM13: 7 | AN13: 8 | AO13: 7 | AP13: 8 | AQ13: 6 | AS13: =CELL("width",AS13) -> 0 | AT13: 0 | AU13: 0 | AV13: 0 | AW13: 0 | AX13: 0 | AY13: 0 | AZ13: 0 | BA13: 0 | BB13: 0 | BC13: 0 | BD13: 0 | BE13: 0 | BF13: 0 | BG13: 0 | BH13: 0 | BI13: 0 | BJ13: 0 | BK13: 0 | BL13: 0 | BM13: 0 | BN13: 0 | BO13: 0 | BP13: 0 | BQ13: 0 | BR13: 0 | BS13: 0 | BT13: 0 | BU13: 0 | BV13: 0 | BW13: 0 | BX13: 0 | BY13: 0 | BZ13: 0 | CA13: 0 | CB13: 0 | CC13: 0 | CD13: 0 | CE13: 0 | CF13: 0 | CG13: 0
A14: Last Tab Tabsheet Starter Row | B14: 651 | C14: A | D14: B | E14: C | F14: D | G14: E | H14: F | I14: G | J14: H | K14: I | L14: J | M14: K | N14: L | O14: M | P14: N | Q14: O | R14: P | S14: Q | T14: R | U14: S | V14: T | W14: U | X14: V | Y14: W | Z14: X | AA14: Y | AB14: Z | AC14: AA | AD14: AB | AE14: AC | AF14: AD | AG14: AE | AH14: AF | AI14: AG | AJ14: AH | AK14: AI | AL14: AJ | AM14: AK | AN14: AL | AO14: AM | AP14: AN | AQ14: AO | AS14: =LOWER(C14) -> a | AT14: b | AU14: c | AV14: d | AW14: e | AX14: f | AY14: g | AZ14: h | BA14: i | BB14: j | BC14: k | BD14: l | BE14: m | BF14: n | BG14: o | BH14: p | BI14: q | BJ14: r | BK14: s | BL14: t | BM14: u | BN14: v | BO14: w | BP14: x | BQ14: y | BR14: z | BS14: aa | BT14: ab | BU14: ac | BV14: ad | BW14: ae | BX14: af | BY14: ag | BZ14: ah | CA14: ai | CB14: aj | CC14: ak | CD14: al | CE14: am | CF14: an | CG14: ao
A15: Last Copy Starter Row | B15: 631 | AK15: Totals: | AL15: =SUBTOTAL(9,AL35:AL6011) -> 69783.85587 | AM15: =SUBTOTAL(9,AM35:AM6011) -> 1147.949778 | AN15: =SUBTOTAL(9,AN35:AN6011) -> 29665.42362 | AO15: =SUBTOTAL(9,AO35:AO6011) -> 2196.906333 | AP15: =SUBTOTAL(9,AP35:AP6011) -> 31862.32996 | AS15: 104-3M | CI15: =G25 -> Kind Of Pipe | CJ15: Pipe Type | CK15: =T25 -> Type 'C' Connections* (DR-122) | CL15: =V25 -> Connected Pipe Joint* (DR-121)
A16: Tab Loop Number | B16: 9 | C16: DRAINAGE STRUCTURE BY ROAD CONTRACTOR | AS16: =B17 -> Modified | CI16: CMP | CJ16: Reinforced Concrete Pipe. | CK16: C-1 | CL16: Type 1
A17: Revision Date | B17: Modified | AS17: =C16 -> DRAINAGE STRUCTURE BY ROAD CONTRACTOR | CI17: LCP | CJ17: Corrugated Metal Pipe. | CK17: C-2 | CL17: Type 2
A18: Tabulation Width | B18: 4 | CI18: RCP | CK18: C-3 | CL18: Type 3
A19: Horizontal Grid Lines | B19: Yes | C19: Length of unclassified pipe calculated is based on using | L19: Reinforced Concrete Pipe. | CI19: SARC | CK19: C-4
C20: * Not a bid item | AS20: =C19 -> Length of unclassified pipe calculated is based on using | BB20: =L19 -> Reinforced Concrete Pipe. | CI20: UNCL
C21: Diameter or equivalent diameter | AS21: =C20 -> * Not a bid item
C22: UNCL = Unclassified Pipe CMP = Corrugated Metal Pipe RCP = Reinforced Concrete Pipe LCP = Arch or Elliptical Low Clearance Pipe SARC = Steel Arch Pipe | AS22: =C21 -> Diameter or equivalent diameter
C23: Backfill according to DR-101 | AS23: =C22 -> UNCL = Unclassified Pipe CMP = Corrugated Metal Pipe RCP = Reinforced Concrete Pipe LCP = Arch or Elliptical Low Clearance Pipe SARC = Steel Arch Pipe
C24: ="This Data Entry Sheet fills Tab "&AS15&" effective "&TEXT(B17,"mm-dd-yy") -> This Data Entry Sheet fills Tab 104-3M effective Modified | AS24: =C23 -> Backfill according to DR-101
C25: Drainage Area | D25: Location | E25: Type | F25: Size | G25: Kind Of Pipe | H25: Length New Const. | I25: Bedding Class | J25: Design Cover (H) | K25: Camber* (DR-102) | L25: Apron No. | N25: Apron Guard* (DR-213) | O25: Elbow* (DR-141) | P25: Diaphragm* (DR-501) | Q25: Tee Section* (DR-142) | R25: "D" Section* (DR-141) | S25: Reducer* | T25: Type 'C' Connections* (DR-122) | V25: Connected Pipe Joint* (DR-121) | W25: DR-205 Inlet Apron Top | X25: Flow Line Elevations | AB25: Dimensions Lin. Ft. | AF25: Skew Ahead Degrees | AH25: Dike | AL25: Class 20 | AM25: Flowable Mortar | AN25: Floodable* Backfill | AO25: Porous* Backfill | AP25: Flooded Backfill | AQ25: Remarks | AS25: =C25 -> Drainage Area | AT25: Location | AU25: Type | AV25: Size | AW25: Kind Of Pipe | AX25: Length New Const. | AY25: Bedding Class | AZ25: Design Cover (H) | BA25: Camber* (DR-102) | BB25: Apron No. | BD25: =N25 -> Apron Guard* (DR-213) | BE25: Elbow* (DR-141) | BF25: Diaphragm* (DR-501) | BG25: Tee Section* (DR-142) | BH25: "D" Section* (DR-141) | BI25: Reducer* | BJ25: Type 'C' Connections* (DR-122) | BL25: =V25 -> Connected Pipe Joint* (DR-121) | BM25: =W25 -> DR-205 Inlet Apron Top | BN25: =X25 -> Flow Line Elevations | BR25: =AB25 -> Dimensions Lin. Ft. | BV25: =AF25 -> Skew Ahead Degrees | BX25: =AH25 -> Dike | CB25: =AL25 -> Class 20 | CC25: Flowable Mortar | CD25: Floodable* Backfill | CE25: Porous* Backfill | CF25: Flooded Backfill | CG25: Remarks
AH32: Rt. | AI32: Location Station | AJ32: Top Elevation | AK32: Type | BX32: =AH32 -> Rt. | BY32: =AI32 -> Location Station | BZ32: =AJ32 -> Top Elevation | CA32: =AK32 -> Type
AB33: Total | AD33: Extensions | AN33: (A) | AO33: (B) | AP33: (A+B) | BR33: =AB33 -> Total | BT33: =AD33 -> Extensions | CD33: =AN33 -> (A) | CE33: (B) | CF33: (A+B)
C34: ACRE | F34: IN | H34: LF | J34: FT | K34: FT | L34: IN | M34: OUT | N34: No. | O34: No. | P34: No. | Q34: No. | R34: No. | S34: No. | T34: Type | U34: No. | V34: Type | W34: Elev. | X34: Lt. | Y34: Rt. | Z34: Other | AA34: Other | AB34: Lt. | AC34: Rt. | AD34: Lt. | AE34: Rt. | AF34: Lt. | AG34: Rt. | AH34: Lt. | AL34: CY | AM34: CY | AN34: CY | AO34: CY | AP34: CY | AS34: =C34 -> ACRE | AV34: =F34 -> IN | AX34: =H34 -> LF | AZ34: =J34 -> FT | BA34: FT | BB34: IN | BC34: OUT | BD34: No. | BE34: No. | BF34: No. | BG34: No. | BH34: No. | BI34: No. | BJ34: Type | BK34: No. | BL34: Type | BM34: Elev. | BN34: Lt. | BO34: Rt. | BP34: Other | BQ34: Other | BR34: =AB34 -> Lt. | BS34: =AC34 -> Rt. | BT34: =AD34 -> Lt. | BU34: =AE34 -> Rt. | BV34: =AF34 -> Lt. | BW34: =AG34 -> Rt. | BX34: =AH34 -> Lt. | CB34: =AL34 -> CY | CC34: =AM34 -> CY | CD34: CY | CE34: CY | CF34: CY
D35: MAINLINE
D36: 109+40.96, 60.51' Lt | E36: Existing | AQ36: -1
D37: 110+23.24, 12.01' Lt | E37: Existing | AQ37: -2
D38: 111+61.43, 8.93' Lt | E38: Existing | AQ38: -3
C39: MED | D39: 11150 | E39: 611 | F39: 24 | G39: RCP | H39: 86 | J39: 4 | L39: 1 | M39: 1 | N39: 1 | W39: 838.38 | X39: 834.77 | Y39: 838.38 | Z39: 836.67 | AB39: 55.9 | AC39: 42.3 | AL39: =71.1*98.29/27 -> 258.8303333 | AM39: =8.26*42.5/27 -> 13.00185185 | AN39: =48.19*37/27 -> 66.03814815 | AO39: =2.11*96.3/27 -> 7.525666667 | AP39: =SUM(AN39:AO39) -> 73.56381481 | AQ39: -4
C40: MED | D40: 12100 | E40: 611 | F40: 24 | G40: RCP | H40: 76 | J40: 2.5 | L40: 1 | M40: 1 | N40: 1 | X40: 865.47 | Y40: 866.51 | Z40: 865.7 | AB40: 50 | AC40: 38.16 | AL40: =45.76*88.29/27 -> 149.6352 | AM40: =6.73*39.47/27 -> 9.838262963 | AN40: =26.01*35.49/27 -> 34.1887 | AO40: =2.11*86.29/27 -> 6.743403704 | AP40: =SUM(AN40:AO40) -> 40.9321037 | AQ40: -5
C41: MED | D41: 13400 | E41: 611 | F41: 24 | G41: RCP | H41: 76 | J41: 2.5 | L41: 1 | M41: 1 | N41: 1 | X41: 912.6 | Y41: 914.46 | Z41: 913.58 | AB41: 50 | AC41: 38.16 | AL41: =51.06*88.29/27 -> 166.9662 | AM41: =6.57*40.28/27 -> 9.801466667 | AN41: =23.93*35.94/27 -> 31.85348889 | AO41: =2.11*86.29/27 -> 6.743403704 | AP41: =SUM(AN41:AO41) -> 38.59689259 | AQ41: -6
C42: 10 H | D42: 13985 | E42: 601 | F42: 36 | G42: RCP | H42: 378 | J42: 25 | L42: 1 | X42: 916.22 | Y42: 902.21 | AB42: 101 | AC42: 284.75 | AL42: =((83.01*101.03)+(60*96.91))/27 -> 525.9666778 | AM42: N/A | AN42: =(140.61+130.71)*41.04/27 -> 412.4064 | AO42: =2.44*(99.03+96.91)/27 -> 17.70717037 | AP42: =SUM(AN42:AO42) -> 430.1135704 | AQ42: -7
D43: 140+06.10, 181.46' Rt | E43: Existing | AQ43: -8
C44: 11 H | D44: 14430 | E44: 601 | F44: 36 | G44: RCP | H44: 392 | J44: 25 | L44: 1 | X44: 910.73 | Y44: 895.21 | AB44: 102.76 | AC44: 296.94 | AH44: Lt | AI44: 14500 | AJ44: 915 | AK44: G | AL44: =((32.64*102.86)+(65.19*105.14))/27 -> 378.201 | AM44: N/A | AN44: =130.86*41.32*2/27 -> 400.5285333 | AO44: =2.44*(100.86+105.14)/27 -> 18.6162963 | AP44: =SUM(AN44:AO44) -> 419.1448296 | AQ44: -9
D45: 144+50.02, 188.94' Rt | E45: Existing | AQ45: -10
C46: MED | D46: 15000 | E46: 611 | F46: 24 | G46: RCP | H46: 76 | J46: 2.5 | L46: 1 | M46: 1 | N46: 1 | X46: 899.87 | Y46: 900.91 | Z46: 900.09 | AB46: 50 | AC46: 38.16 | AH46: Med | AI46: 15025 | AJ46: 902.55 | AK46: M | AL46: =40.98*88.29/27 -> 134.0046 | AM46: =6.73*39.49/27 -> 9.843248148 | AN46: =26.01*35.49/27 -> 34.1887 | AO46: =2.11*86.29/27 -> 6.743403704 | AP46: =SUM(AN46:AO46) -> 40.9321037 | AQ46: -11
C47: MED | D47: 15550 | E47: 611 | F47: 18 | G47: RCP | H47: 82 | J47: 2.5 | L47: 1 | M47: 1 | N47: 1 | W47: 888.2 | X47: 884.5 | Y47: 888.2 | Z47: 886.52 | AB47: 52.9 | AC47: 41.2 | AL47: =1.26*89.64/27 -> 4.1832 | AM47: =6.96*45.21/27 -> 11.65413333 | AN47: =32.66*40.76/27 -> 49.3045037 | AO47: =1.94*92.23/27 -> 6.626896296 | AP47: =SUM(AN47:AO47) -> 55.9314 | AQ47: -12
C48: 104R-H | D48: 15915 | E48: 601 | F48: 88x54 | G48: LCP | H48: 198 | J48: 6 | L48: 1 | M48: 1 | X48: 878.5 | Y48: 875.2 | AB48: 101.5 | AC48: 113 | AL48: =((231.18*101.5)+(124.55*113))/27 -> 1390.33037 | AM48: N/A | AN48: =((167.19*51.08)+(216.71*43))/27 -> 661.4294519 | AO48: =(3.88*(99.5+113))/27 -> 30.53703704 | AP48: =SUM(AN48:AO48) -> 691.9664889 | AQ48: -13
D49: 159+16.55, 191.52' Rt | E49: Existing | AQ49: -14
C50: MED | D50: 15925 | E50: 611 | F50: 24 | G50: RCP | H50: 98 | J50: 3.8 | L50: 1 | M50: 1 | N50: 1 | W50: 884.6 | X50: 878.68 | Y50: 884.6 | Z50: 882.77 | AB50: 62.57 | AC50: 47.5 | AL50: =65.82*104.29/27 -> 254.2358444 | AM50: =8.62*51.35/27 -> 16.39396296 | AN50: =54.09*45.52/27 -> 91.19173333 | AO50: =2.11*102.29/27 -> 7.993774074 | AP50: =SUM(AN50:AO50) -> 99.18550741 | AQ50: -15
D51: 167+67.70, 188.61' Rt | E51: Existing | AQ51: -16
C52: 24R-H | D52: 17426 | E52: 601 | F52: 36 | G52: RCP | H52: 348 | J52: 12 | L52: 1 | X52: 880 | Y52: 869.55 | AB52: 114.9 | AC52: 240.95 | AH52: Lt | AI52: 17600 | AJ52: 884.7 | AK52: G | AL52: =((22.21*114.96)+(40.02*149.04))/27 -> 315.4756444 | AM52: N/A | AN52: =130.86*41.71*2/27 -> 404.3089333 | AO52: =2.44*(112.96+149.04)/27 -> 23.67703704 | AP52: =SUM(AN52:AO52) -> 427.9859704 | AQ52: -17
D53: 175+05.25, 186.37' Rt | E53: Existing | AQ53: -18
C54: MED | D54: 17800 | E54: 611 | F54: 24 | G54: RCP | H54: 76 | J54: 2.5 | L54: 1 | M54: 1 | N54: 1 | X54: 878.99 | Y54: 881.36 | Z54: 880.44 | AB54: 50 | AC54: 38.2 | AH54: Med | AI54: 17825 | AJ54: 883.33 | AK54: M | AL54: =61.56*88.29/27 -> 201.3012 | AM54: =7.3*40.66/27 -> 10.99325926 | AN54: =33.73*36.08/27 -> 45.07327407 | AO54: =2.11*86.29/27 -> 6.743403704 | AP54: =SUM(AN54:AO54) -> 51.81667778 | AQ54: -19
C55: MED | D55: 18150 | E55: 611 | F55: 18 | G55: RCP | H55: 84 | J55: 3.8 | L55: 1 | M55: 1 | N55: 1 | W55: 876.75 | X55: 872.69 | Y55: 876.75 | Z55: 875.05 | AB55: 56.07 | AC55: 39.98 | AL55: =52.97*96.23/27 -> 188.7890037 | AM55: =7.39*43.16/27 -> 11.81305185 | AN55: =38.62*38.29/27 -> 54.76888148 | AO55: =1.94*94.23/27 -> 6.7706 | AP55: =SUM(AN55:AO55) -> 61.53948148 | AQ55: -20
D56: 184+86.38, 183.52' Rt | E56: Existing | AQ56: -21
C57: 23 H | D57: 18500 | E57: 601 | F57: 42 | G57: RCP | H57: 208 | J57: 5 | L57: 1 | M57: 1 | X57: 865 | Y57: 860.5 | AB57: 105 | AC57: 119 | AH57: Lt | AI57: 18650 | AJ57: 869.2 | AK57: G | AL57: =((155.46*105.03)+(101.07*119.01))/27 -> 1050.2335 | AM57: N/A | AN57: =(158.95*53.49+144.91*41.49)/27 -> 537.5759778 | AO57: =2.61*(103.03+119.01)/27 -> 21.46386667 | AP57: =SUM(AN57:AO57) -> 559.0398444 | AQ57: -22
AH58: Rt | AI58: 18650 | AJ58: 864.2 | AK58: G
C59: MED | D59: 19200 | E59: 611 | F59: 24 | G59: RCP | H59: 76 | J59: 2.5 | L59: 1 | M59: 1 | N59: 1 | X59: 859.32 | Y59: 860.36 | Z59: 859.54 | AB59: 50 | AC59: 38.16 | AH59: Med | AI59: 19225 | AJ59: 862.33 | AK59: M | AL59: =39.44*88.29/27 -> 128.9688 | AM59: =6.75*39.5/27 -> 9.875 | AN59: =26.27*29.5/27 -> 28.70240741 | AO59: =2.11*86.29/27 -> 6.743403704 | AP59: =SUM(AN59:AO59) -> 35.44581111 | AQ59: -23
C60: MED | D60: 19500 | E60: 611 | F60: 18 | G60: RCP | H60: 76 | J60: 3.5 | L60: 1 | M60: 1 | N60: 1 | W60: 856.37 | X60: 854 | Y60: 856.37 | Z60: 854.78 | AB60: 48.9 | AC60: 39.2 | AL60: =35.36*181.93/27 -> 238.2609185 | AM60: =7.27*40.4/27 -> 10.87807407 | AN60: =36.92*35.95/27 -> 49.1582963 | AO60: =1.94*86.23/27 -> 6.195785185 | AP60: =SUM(AN60:AO60) -> 55.35408148 | AQ60: -24
D61: 20175.15 | E61: 622 | F61: 24 | G61: UNCL | H61: 406 | T61: C-3 | U61: 1 | X61: 812.76 | Z61: 826.47 | AB61: 308.4 | AC61: 97.4 | AD61: 406 | AF61: 51 | AL61: =((29.44*308.52)+(57.42*94.48))/27 -> 537.3285333 | AM61: N/A | AN61: =92.52*55.05*2/27 -> 377.276 | AO61: =2.11*(308.52+97.48)/27 -> 31.72814815 | AP61: =SUM(AN61:AO61) -> 409.0041481 | AQ61: -25
D62: 212+52.71, 175.48' Rt | E62: Existing | AQ62: -26
C63: 65 F | D63: 21225 | E63: 601 | F63: 42 | G63: RCP | H63: 290 | J63: 25 | L63: 1 | X63: 807 | Y63: 806.12 | AB63: 164.6 | AC63: 133.4 | AL63: =33.27*302/27 -> 372.1311111 | AM63: N/A | AN63: =144.91*41.48/27 -> 222.6246963 | AO63: =2.61*300/27 -> 29 | AP63: =SUM(AN63:AO63) -> 251.6246963 | AQ63: -27
D64: 212+25.00, 175.59' Rt | E64: 601 | F64: 42 | G64: RCP | H64: 74 | J64: 2.9 | X64: 806.1 | Y64: 805.88 | AB64: 34.2 | AC64: 39.8 | AL64: N/A | AM64: N/A | AN64: N/A | AO64: N/A | AP64: N/A | AQ64: -28
C65: MED | D65: 21800 | E65: 641 | F65: 24 | G65: RCP | H65: 68 | J65: 4 | L65: 1 | N65: 1 | T65: C-3 | U65: 1 | Y65: 821.36 | Z65: 819.5 | AC65: 39 | AH65: Med | AI65: 21825 | AJ65: 823.33 | AK65: M | AL65: N/A | AM65: N/A | AN65: N/A | AO65: N/A | AP65: N/A | AQ65: -29
E66: 641 | F66: 24 | G66: CMP | H66: 56 | M66: 1 | X66: 807 | Z66: 807.47 | AA66: 818.08 | AB66: 92.9 | AL66: =40*56/27 -> 82.96296296 | AM66: N/A | AN66: N/A | AO66: N/A | AP66: N/A
C67: MED | D67: 22075 | E67: 611 | F67: 18 | G67: RCP | H67: 106 | J67: 5 | L67: 1 | M67: 1 | N67: 1 | W67: 817.76 | X67: 807 | Y67: 817.76 | Z67: 807.62 | AB67: 78.44 | AC67: 39.2 | AL67: =39.36*74.21/27 -> 108.1816889 | AM67: N/A | AN67: N/A | AO67: =1.94*74.21/27 -> 5.332125926 | AP67: =SUM(AN67:AO67) -> 5.332125926 | AQ67: -30
D68: 220+97.99, 173.03' Rt | E68: Existing | AL68: N/A | AM68: N/A | AN68: N/A | AO68: N/A | AP68: N/A | AQ68: -31
C69: 8 F | D69: 22098 | E69: 601 | F69: 48 | G69: RCP | H69: 224 | J69: 10 | L69: 1 | M69: 1 | X69: 807 | Y69: 805.5 | AB69: 118 | AC69: 122 | AL69: =56.25*240/27 -> 500 | AM69: N/A | AN69: =163.7*(43.39+53.85)/27 -> 589.5625185 | AO69: =2.77*(116+122)/27 -> 24.41703704 | AP69: =SUM(AN69:AO69) -> 613.9795556 | AQ69: -32
C70: MED | D70: 23400 | E70: 611 | F70: 24 | G70: RCP | H70: 82 | J70: 3.5 | L70: 1 | M70: 1 | N70: 1 | X70: 804.6 | Y70: 808.59 | Z70: 807.58 | AB70: 55.9 | AC70: 38.2 | AH70: Med | AI70: 23425 | AJ70: 810.34 | AK70: G | AL70: =10.85*80.94/27 -> 32.52588889 | AM70: =7.94*41.18/27 -> 12.10997037 | AN70: =43.16*36.34/27 -> 58.09016296 | AO70: =2.11*92.29/27 -> 7.212292593 | AP70: =SUM(AN70:AO70) -> 65.30245556 | AQ70: -33
C71: 47 F | D71: 23425 | E71: 601 | F71: 48 | G71: RCP | H71: 178 | J71: 3 | L71: 1 | M71: 1 | X71: 804.52 | Y71: 804.4 | AB71: 96.5 | AC71: 97.5 | AL71: =31.61*194/27 -> 227.1237037 | AM71: =((10.96*45.93)+(11.34*46.02))/27 -> 37.97257778 | AN71: =((77.6*38.71)+(85.88*38.76))/27 -> 234.5409185 | AO71: =2.78*(94.5+97.5)/27 -> 19.76888889 | AP71: =SUM(AN71:AO71) -> 254.3098074 | AQ71: -34
D72: 235+22.93, 168.89' Rt | E72: Existing | AQ72: -35
D73: 235+33.75, 168.85' Rt | E73: Existing | AQ73: -36
C74: MED | D74: 24600 | E74: 611 | F74: 24 | G74: RCP | H74: 80 | J74: 3 | L74: 1 | M74: 1 | N74: 1 | X74: 802.73 | Y74: 805.76 | Z74: 804.81 | AB74: 53.95 | AC74: 38.16 | AL74: =17.11*92.29/27 -> 58.48451481 | AM74: =7.58*41.16/27 -> 11.55528889 | AN74: =37.76*36.33/27 -> 50.80817778 | AO74: =2.11*90.29/27 -> 7.055996296 | AP74: =SUM(AN74:AO74) -> 57.86417407 | AQ74: -37
D75: 254+12.77, 163.40' Rt | E75: Existing | AQ75: -38
C76: MED | D76: 25800 | E76: 611 | F76: 24 | G76: RCP | H76: 96 | J76: 3 | L76: 1 | M76: 1 | N76: 1 | X76: 800.92 | Y76: 808.71 | Z76: 801.08 | AB76: 69.6 | AC76: 38.16 | AL76: =89.01*108.22/27 -> 356.7652667 | AM76: N/A | AN76: =80.08*38.77/27 -> 114.9889481 | AO76: =2.11*106.22/27 -> 8.300896296 | AP76: =SUM(AN76:AO76) -> 123.2898444 | AQ76: -39
D77: 26325 | E77: 601 | F77: 24 | G77: UNCL | H77: 226 | X77: 800.17 | Y77: 802.98 | AB77: 126 | AC77: 100 | AL77: =44.58*226/27 -> 373.1511111 | AM77: N/A | AN77: =92.52*39.34*2/27 -> 269.6101333 | AO77: =2.11*(126+98)/27 -> 17.50518519 | AP77: =SUM(AN77:AO77) -> 287.1153185 | AQ77: -40
D78: 27800 | E78: 601 | F78: 24 | G78: UNCL | H78: 216 | X78: 802.28 | Y78: 803.68 | AB78: 110 | AC78: 106 | AL78: =((22.92*216)-(9*22.92))/27 -> 175.72 | AM78: N/A | AN78: =92.46*39.33*2/27 -> 269.3668 | AO78: =2.11*216/27 -> 16.88 | AP78: =SUM(AN78:AO78) -> 286.2468 | AQ78: -41
C79: MED | D79: 28050 | E79: 611 | F79: 18 | G79: RCP | H79: 90 | J79: 3 | L79: 1 | M79: 1 | N79: 1 | W79: 808.49 | X79: 802.75 | Y79: 808.49 | Z79: 806.7 | AB79: 62.75 | AC79: 39.2 | AL79: =14.06*100.2/27 -> 52.17822222 | AM79: =8.22*42.9/27 -> 13.06066667 | AN79: =54.06*37.2/27 -> 74.48266667 | AO79: =1.94*100.2/27 -> 7.199555556 | AP79: =SUM(AN79:AO79) -> 81.68222222 | AQ79: -42
C80: MED | D80: 28400 | E80: 611 | F80: 18 | G80: RCP | H80: 82 | J80: 3 | L80: 1 | M80: 1 | N80: 1 | X80: 805.65 | Y80: 807.6 | Z80: 806.73 | AB80: 49.36 | AC80: 44.7 | AL80: =39.36*94.2/27 -> 137.3226667 | AM80: =6.13*48.97/27 -> 11.1180037 | AN80: =22.21*45.43/27 -> 37.37038148 | AO80: =1.94*92.2/27 -> 6.624740741 | AP80: =SUM(AN80:AO80) -> 43.99512222 | AQ80: -43
D81: 288+72.16, 153.34' Rt | E81: Existing | AQ81: -44
D82: 28900 | E82: 601 | F82: 30 | G82: RCP | H82: 176 | J82: 3 | L82: 1 | M82: 1 | X82: 807.69 | Y82: 806.7 | AB82: 93.2 | AC82: 95.1 | AH82: Lt | AI82: 28860 | AJ82: 810.85 | AK82: M | AL82: =((66*93.1)+(51.1*95.1))/27 -> 407.5633333 | AM82: =(7.33*40.25+7.83*41.17)/27 -> 22.86642963 | AN82: =(29.88*35.88+37.21*36.34)/27 -> 89.7891037 | AO82: =2.28*(93.2+89)/27 -> 15.38577778 | AP82: =SUM(AN82:AO82) -> 105.1748815 | AQ82: -45
C83: MED | D83: 28925 | E83: 611 | F83: 24 | G83: RCP | H83: 76 | J83: 2.5 | L83: 1 | M83: 1 | N83: 1 | X83: 808.83 | Y83: 807.3 | Z83: 807.98 | AB83: 38.2 | AC83: 50 | AH83: Med | AI83: 28900 | AJ83: 811.05 | AK83: M | AL83: =31.32*88.29/27 -> 102.4164 | AM83: =6.94*39.89/27 -> 10.25320741 | AN83: =28.78*35.7/27 -> 38.05355556 | AO83: =2.11*86.29/27 -> 6.743403704 | AP83: =SUM(AN83:AO83) -> 44.79695926 | AQ83: -46
D84: 301+36.07, 149.67' Rt | E84: Existing | AQ84: -47
C85: MED | D85: 30300 | E85: 611 | F85: 24 | G85: RCP | H85: 104 | J85: 5 | L85: 1 | M85: 1 | N85: 1 | W85: 823.61 | X85: 814.7 | Y85: 822.82 | Z85: 814.98 | AB85: 73.56 | AC85: 42.23 | AH85: Med | AI85: 30229 | AJ85: 824.46 | AK85: G | AL85: =104.21*38.93/27 -> 150.2553815 | AM85: N/A | AN85: =106.15*40.02/27 -> 157.3378889 | AO85: =2.11*114.22/27 -> 8.926081481 | AP85: =SUM(AN85:AO85) -> 166.2639704 | AQ85: -48
C86: MED | D86: 30700 | E86: 611 | F86: 24 | G86: RCP | H86: 88 | J86: 3.5 | L86: 1 | M86: 1 | N86: 1 | X86: 828.07 | Y86: 833.66 | Z86: 828.35 | AB86: 61.84 | AC86: 38.16 | AH86: Med | AI86: 30675 | AJ86: 835.29 | AK86: G | AL86: =33.9*98.27/27 -> 123.3834444 | AM86: =8.43*42.74/27 -> 13.34437778 | AN86: =50.94*37.12/27 -> 70.03306667 | AO86: =2.11*98.27/27 -> 7.679618519 | AP86: =SUM(AN86:AO86) -> 77.71268519 | AQ86: -49
C87: MED | D87: 31550 | E87: 611 | F87: 18 | G87: RCP | H87: 92 | J87: 3.2 | L87: 1 | M87: 1 | N87: 1 | W87: 864.81 | X87: 860.27 | Y87: 864.07 | Z87: 863.1 | AB87: 57 | AC87: 47 | AL87: =51.42*104.2/27 -> 198.4431111 | AM87: =7.06*52.59/27 -> 13.75131111 | AN87: =34.02*48.06/27 -> 60.5556 | AO87: =1.94*102.2/27 -> 7.343259259 | AP87: =SUM(AN87:AO87) -> 67.89885926 | AQ87: -50
C88: MED | D88: 31850 | E88: 611 | F88: 24 | G88: RCP | H88: 94 | J88: 3 | L88: 1 | M88: 1 | N88: 1 | X88: 868.67 | Y88: 875.96 | Z88: 869 | AB88: 67.67 | AC88: 38.16 | AH88: Med | AI88: 31825 | AJ88: 877.3 | AK88: G | AL88: =112.66*106.28/27 -> 443.4631407 | AM88: N/A | AN88: =83.04*38.92/27 -> 119.7006222 | AO88: =2.11*104.28/27 -> 8.149288889 | AP88: =SUM(AN88:AO88) -> 127.8499111 | AQ88: -51
D89: 324+64.08, 160.41' Rt | E89: Existing | AQ89: -52
D90: 330+70.65, 165.80' Rt | E90: Existing | AQ90: -53
C91: MED | D91: 33800 | E91: 641 | F91: 24 | G91: RCP | H91: 68 | J91: 4 | L91: 1 | N91: 1 | T91: C-3 | U91: 1 | Y91: 887.86 | Z91: 886.02 | AC91: 39 | AH91: Med | AI91: 33825 | AJ91: 889.7 | AK91: G | AL91: N/A | AM91: N/A | AN91: N/A | AO91: N/A | AP91: N/A | AQ91: -54
E92: 641 | F92: 24 | G92: CMP | H92: 60 | M92: 1 | X92: 872.64 | Z92: 873.07 | AA92: 884.73 | AB92: 96.77 | AL92: =40*60/27 -> 88.88888889 | AM92: N/A | AN92: N/A | AO92: N/A | AP92: N/A
D93: 338+93.44, 170.16' Rt | E93: Existing | AQ93: -55
C94: 35 H | D94: 33893.67 | E94: 611 | F94: 48 | G94: RCP | H94: 256 | J94: 23 | L94: 1 | T94: C-2 | U94: 1 | X94: 870.19 | Y94: N/A | Z94: 865.85 | AA94: 862.42 | AB94: 139.7 | AC94: 123.9 | AL94: =71.05*262/27 -> 689.4481481 | AM94: N/A | AN94: =163.7*(42.2)/27 -> 255.857037 | AO94: =2.77*(138.15+123.9)/27 -> 26.88438889 | AP94: =SUM(AN94:AO94) -> 282.7414259 | AQ94: -56
C95: MED | D95: 34525 | E95: 611 | F95: 24 | G95: RCP | H95: 76 | J95: 2.5 | L95: 1 | M95: 1 | N95: 1 | X95: 872.26 | Y95: 873.3 | Z95: 872.47 | AB95: 50 | AC95: 38.16 | AH95: Med | AI95: 34554 | AJ95: 875.08 | AK95: G | AL95: =29.44*88.29/27 -> 96.2688 | AM95: =6.73*26.01/27 -> 6.483233333 | AN95: =26.01*35.5/27 -> 34.19833333 | AO95: =2.11*86.29/27 -> 6.743403704 | AP95: =SUM(AN95:AO95) -> 40.94173704 | AQ95: -57
C96: 15 H | D96: 34554 | E96: 601 | F96: 36 | G96: RCP | H96: 192 | J96: 3.7 | L96: 1 | M96: 1 | X96: 870.45 | Y96: 864.93 | AB96: 95.54 | AC96: 112.4 | AL96: =(92.5*95.6+65.2*112.4)/27 -> 598.9437037 | AM96: =9.98*45/27 -> 16.63333333 | AN96: =(69.52*38.2+126.92*40.73)/27 -> 289.8190963 | AO96: =(2.44*(93.6+112.4))/27 -> 18.6162963 | AP96: =SUM(AN96:AO96) -> 308.4353926 | AQ96: -58
D97: 345+54.46, 173.01' Rt | E97: Existing | AQ97: -59
C98: 3 H | D98: 347+75, 174' Rt | E98: 601 | F98: 24 | G98: RCP | H98: 108 | J98: 7 | X98: 862.49 | Y98: 861.49 | AB98: 58 | AC98: 50 | AQ98: -60
D99: 347+98.04, 174.06' Rt | E99: Existing | AQ99: -61
C100: 3 H | D100: 34799 | E100: 611 | F100: 24 | G100: RCP | H100: 190 | J100: 5 | L100: 1 | M100: 1 | X100: 866.9 | Y100: 862.49 | Z100: 866 | AB100: 94.4 | AC100: 107.72 | AL100: =(91*94.6+125.6*107.7)/27 -> 819.8414815 | AM100: N/A | AN100: =(75.05*38.6+100.3*39.8)/27 -> 255.1433333 | AO100: =2.11*(92.6+107.7)/27 -> 15.65307407 | AP100: =SUM(AN100:AO100) -> 270.7964074 | AQ100: -62
C101: MED | D101: 35450 | E101: 611 | F101: 24 | G101: RCP | H101: 78 | J101: 2.5 | L101: 1 | M101: 1 | N101: 1 | X101: 861.6 | Y101: 864.25 | Z101: 863.32 | AB101: 52 | AC101: 38.16 | AL101: =11.2*43/27 -> 17.83703704 | AM101: N/A | AN101: N/A | AO101: N/A | AP101: N/A | AQ101: -63
C102: 46 H | D102: 35508 | E102: 601 | F102: 48 | G102: RCP | H102: 206 | J102: 5 | L102: 1 | X102: 860.03 | Y102: 852.89 | AB102: 98.65 | AC102: 115.2 | AG102: 2 | AL102: =(23.7*98.73+31.6*115.3)/27 -> 221.6067037 | AM102: N/A | AN102: =(137.9*41.2+163.7*42.2)/27 -> 466.2822222 | AO102: =2.77*(96.73+115.3)/27 -> 21.75270741 | AP102: =SUM(AN102:AO102) -> 488.0349296 | AQ102: -64
D103: 355+39.68, 177.26' Rt | E103: Existing | AQ103: -65
D104: 364+47.12, 181.17' Rt | E104: Existing | AQ104: -66
C105: 57 H | D105: 36463 | E105: 601 | F105: 54 | G105: RCP | H105: 408 | J105: 22 | L105: 1 | X105: 860.16 | Y105: 841.55 | AB105: 139.58 | AC105: 276.01 | AF105: 16 | AL105: =62.04*264/27 -> 606.6133333 | AM105: N/A | AN105: =180.4*(43.9+54.1)/27 -> 654.7851852 | AO105: =2.94*(137.8+126.2)/27 -> 28.74666667 | AP105: =SUM(AN105:AO105) -> 683.5318519 | AQ105: -67
C106: MED | D106: 36825 | E106: 611 | F106: 18 | G106: RCP | H106: 98 | J106: 4 | L106: 1 | M106: 1 | N106: 1 | W106: 878.78 | X106: 872.46 | Y106: 878.04 | Z106: 876.98 | AB106: 62.18 | AC106: 47.8 | AH106: Med | AI106: 37100 | AJ106: 880.97 | AK106: G | AL106: =74.34*110.2/27 -> 303.4173333 | AM106: =7.83*54.1/27 -> 15.689 | AN106: =45.1*48.82/27 -> 81.54748148 | AO106: =1.94*108.2/27 -> 7.77437037 | AP106: =SUM(AN106:AO106) -> 89.32185185 | AQ106: -68
C107: 7 VH | D107: 37100 | E107: 601 | F107: 30 | G107: RCP | H107: 180 | J107: 3 | L107: 1 | M107: 1 | X107: 876.59 | Y107: 875.03 | AB107: 94.71 | AC107: 97.59 | AH107: Lt | AI107: 37050 | AJ107: 880.93 | AK107: G | AL107: =(75*94.7+88.27*97.6)/27 -> 582.1352593 | AM107: =8.52*42.5/27 -> 13.41111111 | AN107: =48.2*37/27 -> 66.05185185 | AO107: =2.27*92.7/27 -> 7.793666667 | AP107: =SUM(AN107:AO107) -> 73.84551852 | AQ107: -69
AH108: Lt | AI108: 37400 | AJ108: 879.46 | AK108: G
C109: 7 VH | D109: 371+00, 184' Rt | E109: 601 | F109: 30 | G109: RCP | H109: 162 | J109: 18 | X109: 874.7 | Y109: 872 | AB109: 79 | AC109: 83 | AL109: =(75*94.7+88.2*97.6)/27 -> 581.8822222 | AM109: =8.52*42.5/27 -> 13.41111111 | AN109: =(48.2*37+64*38.25)/27 -> 156.7185185 | AO109: =2.27*(92.7+97.6)/27 -> 15.9992963 | AP109: =SUM(AN109:AO109) -> 172.7178148 | AQ109: -70
D110: 371+50.86, 184.20' Rt | E110: Existing | AQ110: -71
C111: MED | D111: 38075 | E111: 641 | F111: 24 | G111: RCP | H111: 68 | J111: 4 | L111: 1 | N111: 1 | T111: C-3 | U111: 1 | Y111: 866.05 | Z111: 864.2 | AC111: 39 | AH111: Med | AI111: 38100 | AJ111: 867.77 | AK111: G | AL111: N/A | AM111: N/A | AN111: N/A | AO111: N/A | AP111: N/A | AQ111: -72
E112: 641 | F112: 24 | G112: CMP | H112: 166 | J112: 14 | M112: 1 | X112: 827.04 | Z112: 828.43 | AA112: 862.53 | AB112: 199.64 | AL112: =40*168/27 -> 248.8888889 | AM112: N/A | AN112: N/A | AO112: N/A | AP112: N/A
D113: 384+89.17, 189.97' Rt | E113: Existing | AQ113: -73
C114: MED | D114: 38800 | E114: 611 | F114: 24 | G114: RCP | H114: 80 | J114: 3.5 | L114: 1 | M114: 1 | N114: 1 | X114: 848.96 | Y114: 852.2 | Z114: 851.23 | AB114: 53.9 | AC114: 38.16 | AL114: N/A | AM114: N/A | AN114: N/A | AO114: N/A | AP114: N/A | AQ114: -74
D115: 389+13.54, 191.80' Rt | E115: Existing | AQ115: -75
C116: 127 H | D116: 38914 | E116: 611 | F116: 72 | G116: RCP | H116: 202 | J116: 5 | L116: 1 | X116: 845.63 | Y116: 842.67 | Z116: 844.96 | AB116: 105.17 | AC116: 105 | AL116: =(73.6*105.3+63.7*105)/27 -> 534.7622222 | AM116: N/A | AN116: =((198.1*43.4)+(231.7*44.3))/27 -> 698.587037 | AO116: =((3.44*103.3+3.44*105))/27 -> 26.53896296 | AP116: =SUM(AN116:AO116) -> 725.126 | AQ116: -76
C117: MED | D117: 39350 | E117: 641 | F117: 24 | G117: RCP | H117: 68 | J117: 4 | L117: 1 | N117: 1 | T117: C-3 | U117: 1 | Y117: 860.57 | Z117: 858.72 | AC117: 39 | AL117: N/A | AM117: N/A | AN117: N/A | AO117: N/A | AP117: N/A | AQ117: -77
E118: 641 | F118: 24 | G118: CMP | H118: 43 | M118: 1 | X118: 849.88 | Z118: 850.32 | AA118: 857.33 | AB118: 80.42 | AL118: =40*41/27 -> 60.74074074 | AM118: N/A | AN118: N/A | AO118: N/A | AP118: N/A
D119: 393+63.16, 193.74' Rt | E119: Existing | AQ119: -78
D120: 399+09.11, 189.72' Rt | E120: Existing | AQ120: -79
C121: MED | D121: 40100 | E121: 641 | F121: 24 | G121: RCP | H121: 68 | J121: 4 | L121: 1 | N121: 1 | T121: C-3 | U121: 1 | Y121: 889.91 | Z121: 888.05 | AC121: 39 | AH121: Med | AI121: 40075 | AJ121: 891.25 | AK121: G | AL121: N/A | AM121: N/A | AN121: N/A | AO121: N/A | AP121: N/A | AQ121: -80
E122: 641 | F122: 24 | G122: CMP | H122: 98 | M122: 1 | X122: 864.26 | Z122: 864.78 | AA122: 886.62 | AB122: 133.3 | AL122: =40*98/27 -> 145.1851852 | AM122: N/A | AN122: N/A | AO122: N/A | AP122: N/A
C123: 4 H | D123: 40376.16 | E123: 622 | F123: 30 | G123: UNCL | H123: 280 | J123: 20 | T123: C-2 | U123: 1 | X123: 872 | Z123: 882.94 | AB123: 195.3 | AC123: 84.7 | AD123: 280 | AG123: 22 | AL123: =35*280.2/27 -> 363.2222222 | AM123: N/A | AN123: =105.1*42*2/27 -> 326.9777778 | AO123: =2.28*278.2/27 -> 23.49244444 | AP123: =SUM(AN123:AO123) -> 350.4702222 | AQ123: -81
D124: 404+60.49, 183.54' Rt | E124: Existing | AQ124: -82
C125: MED | D125: 40900 | E125: 611 | F125: 24 | G125: RCP | H125: 76 | J125: 2.5 | L125: 1 | M125: 1 | N125: 1 | X125: 919.07 | Y125: 920.11 | Z125: 919.29 | AB125: 50 | AC125: 38.16 | AH125: Med | AI125: 40875 | AJ125: 921.72 | AK125: G | AL125: =45.76*88.3/27 -> 149.6521481 | AM125: =6.78*39.5/27 -> 9.918888889 | AN125: =26.26*35.5/27 -> 34.52703704 | AO125: =2.11*86.3/27 -> 6.744185185 | AP125: =SUM(AN125:AO125) -> 41.27122222 | AQ125: -83
D126: 427+65.01, 165.26' Rt | E126: Existing | AQ126: -84
C127: MED | D127: 42800 | E127: 641 | F127: 24 | G127: RCP | H127: 68 | J127: 4 | L127: 1 | N127: 1 | Y127: 915.84 | Z127: 913.98 | AC127: 39 | AH127: Med | AI127: 42825 | AJ127: 917.76 | AK127: G | AL127: N/A | AM127: N/A | AN127: N/A | AO127: N/A | AP127: N/A | AQ127: -85
E128: 641 | F128: 24 | G128: CMP | H128: 240 | J128: 15 | M128: 1 | X128: 875.25 | Z128: 878.25 | AA128: 912.33 | AB128: 272.8 | AL128: =40*240/27 -> 355.5555556 | AM128: N/A | AN128: N/A | AO128: N/A | AP128: N/A
D129: 430+75, 163.53' Rt | E129: 601 | F129: 24 | G129: RCP | H129: 84 | X129: 896.31 | Y129: 894.63 | AB129: 39 | AC129: 45 | AL129: N/A | AM129: N/A | AN129: N/A | AO129: N/A | AP129: N/A | AQ129: -86
C130: MED | D130: 43100 | E130: 641 | F130: 24 | G130: RCP | H130: 66 | J130: 4 | L130: 1 | N130: 1 | T130: C-3 | U130: 1 | Y130: 912.89 | Z130: 911.01 | AC130: 39 | AL130: N/A | AM130: N/A | AN130: N/A | AO130: N/A | AP130: N/A | AQ130: -87
E131: 641 | F131: 24 | G131: CMP | H131: 68 | M131: 1 | X131: 893.45 | Z131: 893.81 | AA131: 909.55 | AB131: 102.15 | AL131: =40*68/27 -> 100.7407407 | AM131: N/A | AN131: N/A | AO131: N/A | AP131: N/A
D132: 435+94.10, 160.63' Rt | E132: Existing | AQ132: -88
D133: 43638.56 | E133: 622 | F133: 48 | G133: UNCL | H133: 216 | J133: 16 | T133: C-2 | U133: 1 | X133: 912.11 | Z133: 901.63 | AB133: 119.2 | AC133: 96.6 | AD133: 216 | AL133: =(246.4*119.3+27.6*96.7)/27 -> 1187.571852 | AM133: N/A | AN133: =155.33*47.8*2/27 -> 549.9832593 | AO133: =2.77*(119.3+96.7)/27 -> 22.16 | AP133: =SUM(AN133:AO133) -> 572.1432593 | AQ133: -89
C134: 30 H | D134: 43700 | E134: 601 | F134: 48 | G134: RCP | H134: 206 | J134: 6 | X134: 911.27 | Y134: 906.51 | AB134: 106 | AC134: 100 | AL134: =(92.16*75.6+92.16*30.6)/27 -> 362.496 | AM134: N/A | AN134: =163.7*42.2/27 -> 255.857037 | AO134: =2.77*(104+100)/27 -> 20.92888889 | AP134: =SUM(AN134:AO134) -> 276.7859259 | AQ134: -90
C135: MED | D135: 44050 | E135: 611 | F135: 24 | G135: RCP | H135: 92 | J135: 4 | L135: 1 | M135: 1 | N135: 1 | X135: 924.75 | Y135: 931.59 | Z135: 924.99 | AB135: 65.75 | AC135: 38.16 | AH135: Med | AI135: 44025 | AJ135: 933.05 | AK135: G | AL135: =83.16*104.72/27 -> 322.5376 | AM135: =9*43.83/27 -> 14.61 | AN135: =60.6*37.72/27 -> 84.66044444 | AO135: =2.11*102.72/27 -> 8.027377778 | AP135: =SUM(AN135:AO135) -> 92.68782222 | AQ135: -91
D136: 453+84.52, 162.69' Rt | E136: Existing | AQ136: -92
C137: 51 H | D137: 45409 | E137: 611 | F137: 54 | G137: UNCL | H137: 614 | J137: 56 | L137: 1 | M137: 1 | X137: 915.46 | Y137: 895.39 | Z137: 900.91 | AB137: 251.25 | AC137: 361 | AG137: 23 | AL137: =132*266/27 -> 1300.444444 | AM137: N/A | AN137: =161.4*44/27 -> 263.0222222 | AO137: =2.94*264/27 -> 28.74666667 | AP137: =SUM(AN137:AO137) -> 291.7688889 | AQ137: -93
C138: 28 H | D138: 45897.99 | E138: 601 | F138: 42 | G138: RCP | H138: 452 | J138: 30 | L138: 1 | X138: 924 | Y138: 919.4 | AB138: 202.4 | AC138: 257.6 | AF138: 32.7051 | AL138: N/A | AM138: N/A | AN138: N/A | AO138: N/A | AP138: N/A | AQ138: -94
D139: 459+60.87, 168.59' Rt | E139: Existing | AQ139: -95
D140: 461+00, 170.01' Rt | E140: 601 | F140: 24 | G140: RCP | H140: 106 | X140: 931.14 | Y140: 929.02 | AB140: 49 | AC140: 57 | AL140: N/A | AM140: N/A | AN140: N/A | AO140: N/A | AP140: N/A | AQ140: -96
C141: MED | D141: 46200 | E141: 641 | F141: 24 | G141: RCP | H141: 68 | J141: 4 | L141: 1 | N141: 1 | T141: C-3 | U141: 1 | Y141: 943.83 | Z141: 941.94 | AC141: 39 | AH141: Med | AI141: 46225 | AJ141: 945.55 | AK141: G | AL141: N/A | AM141: N/A | AN141: N/A | AO141: N/A | AP141: N/A | AQ141: -97
E142: 641 | F142: 24 | G142: CMP | H142: 46 | M142: 1 | X142: 932.45 | Z142: 933.03 | AA142: 940.35 | AB142: 83.35 | AL142: =40*46/27 -> 68.14814815 | AM142: N/A | AN142: N/A | AO142: N/A | AP142: N/A
C143: MED | D143: 46900 | E143: 611 | F143: 24 | G143: RCP | H143: 76 | J143: 2.5 | L143: 1 | M143: 1 | N143: 1 | X143: 925.29 | Y143: 926.33 | Z143: 925.51 | AB143: 50 | AC143: 38.16 | AH143: Med | AI143: 46925 | AJ143: 928.05 | AK143: G | AL143: =45.76*88.3/27 -> 149.6521481 | AM143: =6.73*39.5/27 -> 9.845740741 | AN143: =26*35.5/27 -> 34.18518519 | AO143: =2.11*86.3/27 -> 6.744185185 | AP143: =SUM(AN143:AO143) -> 40.92937037 | AQ143: -98
C144: 8 H | D144: 47200 | E144: 601 | F144: 30 | G144: RCP | H144: 386 | J144: 32 | L144: 1 | X144: 904.89 | Y144: 894.52 | AB144: 136.07 | AC144: 255.9 | AL144: N/A | AM144: N/A | AN144: N/A | AO144: N/A | AP144: N/A | AQ144: -99
C145: MED | D145: 472+25.00 | E145: 641 | F145: 24 | G145: RCP | H145: 68 | J145: 4.5 | L145: 1 | N145: 1 | T145: C-3 | U145: 1 | W145: 919 | Y145: 918.22 | Z145: 916.37 | AC145: 40.9 | AL145: =(36.14*38.22+29.61*31.68)/27 -> 85.90057778 | AM145: =8.28*46.35/27 -> 14.214 | AN145: =47.58*40.96/27 -> 72.18062222 | AO145: =2.19*100.32/27 -> 8.137066667 | AP145: =SUM(AN145:AO145) -> 80.31768889 | AQ145: -100
E146: 641 | F146: 24 | G146: CMP | H146: 54 | M146: 1 | X146: 906.11 | Z146: 906.41 | AA146: 914.85 | AB146: 89.4 | AL146: =41*52/27 -> 78.96296296 | AM146: N/A | AN146: N/A | AO146: N/A | AP146: N/A
D147: 472+89.25, 42.97' Rt | E147: Existing | AQ147: -101
D148: 475+31.53, 157.92' Rt | E148: Existing | AQ148: -102
C149: MED | D149: 47700 | E149: 611 | F149: 24 | G149: RCP | H149: 76 | J149: 2.5 | L149: 1 | M149: 1 | N149: 1 | X149: 905.29 | Y149: 906.34 | Z149: 905.51 | AB149: 50 | AC149: 38.16 | AH149: Med | AI149: 47725 | AJ149: 908.05 | AK149: G | AL149: =34.6*79.4/27 -> 101.7496296 | AM149: =6.73*39.5/27 -> 9.845740741 | AN149: =26*35.5/27 -> 34.18518519 | AO149: =2.11*86.3/27 -> 6.744185185 | AP149: =SUM(AN149:AO149) -> 40.92937037 | AQ149: -103
D150: 481+86.54, 156.10' Rt | E150: Existing | AQ150: -104
D151: 482+25, 156.00' Rt | E151: 601 | F151: 24 | G151: RCP | H151: 78 | X151: 876.93 | Y151: 875.37 | AB151: 37 | AC151: 41 | AL151: N/A | AM151: N/A | AN151: N/A | AO151: N/A | AP151: N/A | AQ151: -105
C152: MED | D152: 48450 | E152: 641 | F152: 24 | G152: RCP | H152: 68 | J152: 4 | L152: 1 | N152: 1 | T152: C-3 | U152: 1 | Y152: 894.39 | Z152: 892.52 | AC152: 39 | AL152: =36.7*76/27 -> 103.3037037 | AM152: =8.31*42.61/27 -> 13.11441111 | AN152: =48.99*37.06/27 -> 67.24331111 | AO152: =2.11*96.26/27 -> 7.522540741 | AP152: =SUM(AN152:AO152) -> 74.76585185 | AQ152: -106
E153: 641 | F153: 24 | G153: CMP | H153: 52 | M153: 1 | X153: 881 | Z153: 881.49 | AA153: 891.02 | AB153: 89.05 | AL153: =40*102/27 -> 151.1111111 | AM153: N/A | AN153: N/A | AO153: N/A | AP153: N/A
C154: MED | D154: 48950 | E154: 611 | F154: 24 | G154: RCP | H154: 76 | J154: 2.5 | L154: 1 | M154: 1 | N154: 1 | X154: 898.29 | Y154: 899.84 | Z154: 899.02 | AB154: 50 | AC154: 38.16 | AH154: Med | AI154: 48925 | AJ154: 901.68 | AK154: G | AL154: =48.8*88.3/27 -> 159.5940741 | AM154: =7.88*40/27 -> 11.67407407 | AN154: =42.2*36/27 -> 56.26666667 | AO154: =2.11*86.3/27 -> 6.744185185 | AP154: =SUM(AN154:AO154) -> 63.01085185 | AQ154: -107
D155: 492+00, 153.30' Rt | E155: 601 | F155: 24 | G155: RCP | H155: 102 | X155: 896.13 | Y155: 894.09 | AB155: 49 | AC155: 53 | AL155: N/A | AM155: N/A | AN155: N/A | AO155: N/A | AP155: N/A | AQ155: -108
D156: 493+95.50, 152.76' Rt | E156: Existing | AQ156: -109
C157: 82 VH | D157: 49440 | E157: 601 | F157: 66 | G157: RCP | H157: 538 | J157: 30 | L157: 1 | M157: 1 | X157: 883 | Y157: 870.93 | AB157: 224 | AC157: 329.87 | AF157: 35 | AL157: =40.64*268/27 -> 403.3896296 | AM157: N/A | AN157: =(216*49.5+216*27.7)/27 -> 617.6 | AO157: =3.27*(216.1+51.9)/27 -> 32.45777778 | AP157: =SUM(AN157:AO157) -> 650.0577778 | AQ157: -110
D158: 497+75.15, 151.70' Rt | E158: Existing | AQ158: -111
C159: MED | D159: 50100 | E159: 611 | F159: 24 | G159: RCP | H159: 76 | J159: 2.5 | L159: 1 | M159: 1 | N159: 1 | X159: 921.8 | Y159: 922.84 | Z159: 922.01 | AB159: 50 | AC159: 38.16 | AH159: Med | AI159: 50075 | AJ159: 924.68 | AK159: G | AL159: =45.76*88.3/27 -> 149.6521481 | AM159: =6.73*39.5/27 -> 9.845740741 | AN159: =26.01*35.5/27 -> 34.19833333 | AO159: =2.11*86.3/27 -> 6.744185185 | AP159: =SUM(AN159:AO159) -> 40.94251852 | AQ159: -112
D160: 509+19.93, 148.53' Rt | E160: Existing | AQ160: -113
D161: 511+30.61, 147.95' Rt | E161: Existing | AQ161: -114
C162: MED | D162: 512+00.00 | E162: 641 | F162: 24 | G162: RCP | H162: 86 | J162: 4 | L162: 1 | T162: C-3 | U162: 1 | W162: 945.35 | Y162: 944.57 | Z162: 942.72 | AC162: 49 | AL162: N/A | AM162: N/A | AN162: N/A | AO162: N/A | AP162: N/A | AQ162: -115
E163: 641 | F163: 24 | G163: CMP | H163: 156 | J163: 7 | M163: 1 | X163: 905 | Z163: 905.72 | AA163: 940.94 | AB163: 197.35 | AL163: N/A | AM163: N/A | AN163: N/A | AO163: N/A | AP163: N/A
C164: 63 H | D164: 51250 | E164: 601 | F164: 54 | G164: RCP | H164: 530 | J164: 44 | L164: 1 | M164: 1 | X164: 904 | Y164: 896.76 | AB164: 245.4 | AC164: 300.54 | AF164: 11 | AL164: =(269.24*262)/27 -> 2612.625185 | AM164: N/A | AN164: =(181.04*64.21)/27 -> 430.5399407 | AO164: =(2.94*260)/27 -> 28.31111111 | AP164: =SUM(AN164:AO164) -> 458.8510519 | AQ164: -116
D165: 518+97.85, 139.70' Rt | E165: Existing | AQ165: -117
C166: MED | D166: 52625 | E166: 611 | F166: 24 | G166: RCP | H166: 102 | J166: 2.5 | L166: 1 | M166: 1 | N166: 1 | X166: 939.89 | Y166: 949.59 | Z166: 940.82 | AB166: 75.56 | AC166: 38.16 | AL166: N/A | AM166: N/A | AN166: N/A | AO166: N/A | AP166: N/A | AQ166: -118
D167: 531+45.64, 134.84' Rt | E167: Existing | AQ167: -119
C168: MED | D168: 53175 | E168: 611 | F168: 24 | G168: RCP | H168: 80 | J168: 3 | L168: 1 | M168: 1 | N168: 1 | X168: 936.31 | Y168: 939.82 | Z168: 938.83 | AB168: 53.94 | AC168: 38.16 | AH168: Med | AI168: 53210 | AJ168: 941.68 | AK168: G | AL168: =61.56*92.26/27 -> 210.3528 | AM168: =8.26*41.5/27 -> 12.69592593 | AN168: =48.19*36.5/27 -> 65.14574074 | AO168: =2.11*90.29/27 -> 7.055996296 | AP168: =SUM(AN168:AO168) -> 72.20173704 | AQ168: -120
C169: 34 H | D169: 53210 | E169: 601 | F169: 48 | G169: RCP | H169: 280 | J169: 3 | L169: 1 | X169: 936 | Y169: 933.12 | AB169: 97.04 | AC169: 190.9 | AG169: 6 | AL169: =(118.56*97.06+49.61*84.9)/27 -> 582.1971333 | AM169: =(11.19*(45.85+47.3))/27 -> 38.6055 | AN169: =(82.58*38.75+90.13*39.5)/27 -> 250.3744444 | AO169: =2.77*(95.06+84.9)/27 -> 18.46256296 | AP169: =SUM(AN169:AO169) -> 268.8370074 | AQ169: -121
C170: MED | D170: 53475 | E170: 611 | F170: 24 | G170: RCP | H170: 76 | J170: 2.5 | L170: 1 | M170: 1 | N170: 1 | X170: 936.59 | Y170: 937.63 | Z170: 936.8 | AB170: 50 | AC170: 38.16 | AL170: =45.8*88.6/27 -> 150.2918519 | AM170: =6.73*39.5/27 -> 9.845740741 | AN170: =26.01*35.5/27 -> 34.19833333 | AO170: =2.11*86.3/27 -> 6.744185185 | AP170: =SUM(AN170:AO170) -> 40.94251852 | AQ170: -122
D171: 538+25, 138.44' Rt | E171: 601 | F171: 24 | G171: RCP | H171: 74 | X171: 924.94 | Y171: 923.46 | AB171: 35 | AC171: 39 | AL171: N/A | AM171: N/A | AN171: N/A | AO171: N/A | AP171: N/A | AQ171: -123
C172: 113 H | D172: 53850 | E172: 601 | F172: 66 | G172: RCP | H172: 410 | J172: 34 | L172: 1 | M172: 1 | X172: 910.5 | Y172: 901.54 | AB172: 187 | AC172: 238.91 | AL172: =(30*110+120.24*75.1+138.7*67)/27 -> 800.849037 | AM172: N/A | AN172: =216*44/27 -> 352 | AO172: =3.27*185/27 -> 22.40555556 | AP172: =SUM(AN172:AO172) -> 374.4055556 | AQ172: -124
D173: 538+86.05, 138.76' Rt | E173: Existing | AQ173: -125
C174: MED | D174: 54475 | E174: 611 | F174: 24 | G174: RCP | H174: 76 | J174: 2.5 | L174: 1 | M174: 1 | N174: 1 | X174: 950.33 | Y174: 952.54 | Z174: 951.64 | AB174: 50 | AC174: 38.16 | AL174: =53.41*88.3/27 -> 174.6704815 | AM174: =7.58*41.5/27 -> 11.65074074 | AN174: =41.5*37.76/27 -> 58.03851852 | AO174: =2.11*86.3/27 -> 6.744185185 | AP174: =SUM(AN174:AO174) -> 64.7827037 | AQ174: -126
D175: 547+05.33, 143.03' Rt | E175: Existing | AQ175: -127
D176: 554+57.18, 145.52' Rt | E176: Existing | AQ176: -128
C177: MED | D177: 55650 | E177: 611 | F177: 24 | G177: RCP | H177: 104 | J177: 5 | L177: 1 | M177: 1 | N177: 1 | W177: 946.21 | X177: 937.09 | Y177: 945.42 | Z177: 937.44 | AB177: 73.6 | AC177: 42.23 | AL177: =120.28*114.27/27 -> 509.0516889 | AM177: N/A | AN177: =107.93*40.1/27 -> 160.296037 | AO177: =2.11*114.27/27 -> 8.929988889 | AP177: =SUM(AN177:AO177) -> 169.2260259 | AQ177: -129
D178: 556+89.66, 146.29' Rt | E178: Existing | AQ178: -130
D179: 558+77.37, 146.91' Rt | E179: Existing | AQ179: -131
C180: MED | D180: 56450 | E180: 641 | F180: 24 | G180: RCP | H180: 68 | J180: 3 | L180: 1 | N180: 1 | T180: C-3 | U180: 1 | Y180: 922.84 | Z180: 920.96 | AC180: 39 | AH180: Med | AI180: 56475 | AJ180: 924.43 | AK180: M | AL180: N/A | AM180: N/A | AN180: N/A | AO180: N/A | AP180: N/A | AQ180: -132
E181: 641 | F181: 24 | G181: CMP | H181: 76 | M181: 1 | X181: 903 | Z181: 903.58 | AA181: 919.41 | AB181: 112.14 | AL181: =40*75/27 -> 111.1111111 | AM181: N/A | AN181: N/A | AO181: N/A | AP181: N/A
C182: 48 H | D182: 56578 | E182: 601 | F182: 54 | G182: RCP | H182: 428 | J182: 30 | L182: 1 | M182: 1 | X182: 896.36 | Y182: 880.76 | AB182: 186.44 | AC182: 257.29 | AG182: 24 | AL182: =9.5*274/27 -> 96.40740741 | AM182: N/A | AN182: N/A | AO182: N/A | AP182: N/A | AQ182: -133
D183: 566+82.25, 149.58' Rt | E183: Existing | AQ183: -134
C184: MED | D184: 57250 | E184: 611 | F184: 24 | G184: RCP | H184: 76 | J184: 2.5 | L184: 1 | M184: 1 | N184: 1 | X184: 907.77 | Y184: 909.79 | Z184: 908.89 | AB184: 50 | AC184: 38.16 | AL184: =52.15*88.3/27 -> 170.5498148 | AM184: =7.18*40.3/27 -> 10.71681481 | AN184: =32.04*35.9/27 -> 42.60133333 | AO184: =2.11*86.3/27 -> 6.744185185 | AP184: =SUM(AN184:AO184) -> 49.34551852 | AQ184: -135
D185: 574+95, 152.62' Rt | E185: 601 | F185: 24 | G185: RCP | H185: 144 | X185: 895.33 | Y185: 892.45 | AB185: 65 | AC185: 79 | AG185: 43 | AL185: N/A | AM185: N/A | AN185: N/A | AO185: N/A | AP185: N/A | AQ185: -136
D186: 577+31.18, 153.06' Rt | E186: Existing | AQ186: -137
C187: 157VH-H | D187: 57800 | E187: 601 | F187: 78 | G187: UNCL | H187: 576 | J187: 50 | L187: 1 | M187: 1 | X187: 866.47 | Y187: 862.24 | AB187: 276 | AC187: 300 | AL187: =161.5*245.7/27 -> 1469.65 | AM187: N/A | AN187: =227.5*44.9/27 -> 378.3240741 | AO187: =3.61*286/27 -> 38.23925926 | AP187: =SUM(AN187:AO187) -> 416.5633333 | AQ187: -138
C188: MED | D188: 58450 | E188: 611 | F188: 24 | G188: RCP | H188: 90 | J188: 3 | L188: 1 | M188: 1 | N188: 1 | W188: 929.81 | X188: 925.93 | Y188: 929.07 | Z188: 928.13 | AB188: 54.3 | AC188: 47.8 | AL188: =60.9*102/27 -> 230.0666667 | AM188: =7.2*52.38/27 -> 13.968 | AN188: =32.33*47.95/27 -> 57.41568519 | AO188: =2.11*100/27 -> 7.814814815 | AP188: =SUM(AN188:AO188) -> 65.2305 | AQ188: -139
C189: 45 H | D189: 59325 | E189: 601 | F189: 48 | G189: UNCL | H189: 588 | J189: 54 | L189: 1 | M189: 1 | X189: 893.78 | Y189: 871.32 | AB189: 236.9 | AC189: 350.67 | AL189: =80.04*244/27 -> 723.3244444 | AM189: N/A | AN189: =146.4*41.2/27 -> 223.3955556 | AO189: =2.77*242/27 -> 24.82740741 | AP189: =SUM(AN189:AO189) -> 248.222963 | AQ189: -140
D190: 593+45.94, 158.41' Rt | E190: Existing | AQ190: -141
D191: 597+29.02, 159.68' Rt | E191: Existing | AQ191: -142
C192: MED | D192: 60100 | E192: 611 | F192: 24 | G192: RCP | H192: 76 | J192: 2.5 | L192: 1 | M192: 1 | N192: 1 | X192: 928.8 | Y192: 929.84 | Z192: 929.01 | AB192: 50 | AC192: 38.16 | AH192: Med | AI192: 60125 | AJ192: 931.93 | AK192: G | AL192: =45.76*88.3/27 -> 149.6521481 | AM192: =5.74*39.5/27 -> 8.397407407 | AN192: =26.01*35.5/27 -> 34.19833333 | AO192: =2.11*86.3/27 -> 6.744185185 | AP192: =SUM(AN192:AO192) -> 40.94251852 | AQ192: -143
C193: MED | D193: 61000 | E193: 641 | F193: 24 | G193: RCP | H193: 68 | J193: 4 | L193: 1 | N193: 1 | T193: C-3 | U193: 1 | Y193: 920.95 | Z193: 919.09 | AC193: 39 | AH193: Med | AI193: 61025 | AJ193: 923.11 | AK193: G | AL193: N/A | AM193: N/A | AN193: N/A | AO193: N/A | AP193: N/A | AQ193: -144
E194: 641 | F194: 24 | G194: CMP | H194: 92 | M194: 1 | X194: 896.99 | Z194: 897.51 | AA194: 917.66 | AB194: 127.54 | AL194: =40*92/27 -> 136.2962963 | AM194: N/A | AN194: N/A | AO194: N/A | AP194: N/A
D195: 611+75, 158.80' Rt | E195: 601 | F195: 24 | G195: RCP | H195: 96 | X195: 913.44 | Y195: 911.52 | AB195: 45 | AC195: 51 | AL195: N/A | AM195: N/A | AN195: N/A | AO195: N/A | AP195: N/A | AQ195: -145
C196: 91 H | D196: 61200 | E196: 601 | F196: 60 | G196: UNCL | H196: 566 | J196: 47 | L196: 1 | M196: 1 | X196: 882 | Y196: 862.6 | AB196: 219.71 | AC196: 345.96 | AL196: =70*226/27 -> 585.9259259 | AM196: N/A | AN196: =187*42.25/27 -> 292.6203704 | AO196: =3.11*224/27 -> 25.80148148 | AP196: =SUM(AN196:AO196) -> 318.4218519 | AQ196: -146
D197: 612+43.88, 158.62' Rt | E197: Existing | AQ197: -147
C198: MED | D198: 61350 | E198: 641 | F198: 24 | G198: RCP | H198: 68 | J198: 4 | L198: 1 | N198: 1 | T198: C-3 | U198: 1 | Y198: 919.66 | Z198: 917.82 | AC198: 39 | AL198: N/A | AM198: N/A | AN198: N/A | AO198: N/A | AP198: N/A | AQ198: -148
E199: 641 | F199: 24 | G199: CMP | H199: 122 | M199: 1 | X199: 887.06 | Z199: 887.51 | AA199: 916.49 | AB199: 156.3 | AL199: =40*122/27 -> 180.7407407 | AM199: N/A | AN199: N/A | AO199: N/A | AP199: N/A
C200: MED | D200: 62375 | E200: 641 | F200: 24 | G200: RCP | H200: 78 | J200: 4 | L200: 1 | N200: 1 | T200: C-3 | U200: 1 | W200: 930.21 | Y200: 929.43 | Z200: 927.56 | AC200: 49 | AL200: =48.15*82.13/27 -> 146.4651667 | AM200: =8.14*54.25/27 -> 16.35537037 | AN200: =46.28*48.88/27 -> 83.78394074 | AO200: =2.11*107.65/27 -> 8.412648148 | AP200: =SUM(AN200:AO200) -> 92.19658889 | AQ200: -149
E201: 641 | F201: 24 | G201: CMP | H201: 40 | M201: 1 | X201: 919.12 | Z201: 919.63 | AA201: 925.79 | AB201: 77.48 | AL201: =40*40/27 -> 59.25925926 | AM201: N/A | AN201: N/A | AO201: N/A | AP201: N/A
D202: 625+07, 155.36' Rt | E202: 601 | F202: 24 | G202: RCP | H202: 110 | X202: 923.06 | Y202: 920.86 | AB202: 49 | AC202: 61 | AG202: 39 | AL202: N/A | AM202: N/A | AN202: N/A | AO202: N/A | AP202: N/A | AQ202: -150
C203: 43 H | D203: 62618 | E203: 601 | F203: 48 | G203: UNCL | H203: 534 | J203: 44 | L203: 1 | M203: 1 | X203: 897.5 | Y203: 880.68 | AB203: 211.71 | AC203: 322.02 | AG203: 15 | AL203: =35.84*238/27 -> 315.922963 | AM203: N/A | AN203: =146.4*42.3/27 -> 229.36 | AO203: =2.77*236/27 -> 24.21185185 | AP203: =SUM(AN203:AO203) -> 253.5718519 | AQ203: -151
D204: 626+42.71, 155.01' Rt | E204: Existing | AQ204: -152
C205: MED | D205: 62700 | E205: 641 | F205: 24 | G205: RCP | H205: 68 | J205: 4 | L205: 1 | N205: 1 | T205: C-3 | U205: 1 | Y205: 933.73 | Z205: 931.88 | AC205: 39 | AH205: Med | AI205: 62675 | AJ205: 935.75 | AK205: G | AL205: N/A | AM205: N/A | AN205: N/A | AO205: N/A | AP205: N/A | AQ205: -153
E206: 641 | F206: 24 | G206: CMP | H206: 112 | M206: 1 | X206: 904.24 | Z206: 904.75 | AA206: 930.48 | AB206: 146.7 | AL206: =40*112/27 -> 165.9259259 | AM206: N/A | AN206: N/A | AO206: N/A | AP206: N/A
... 328 more rows

Sheet DE104_4
A1: TabTitle | B1: =C16 -> ROADWAY ITEMS FOR DRAINAGE STRUCTURES INSTALLED BY CULVERT CONTRACTOR
A2: Number of Tab Columns | B2: 21
A3: DE Starter Row Number | B3: 27
A4: TabSheet Starter Row Number | B4: 13
A5: TabSheet Header Row Count | B5: 12
A6: Top Header Cell | B6: AB15
A7: Bottom Header Cell | B7: AV26
A8: DESheet Row Count | B8: 10
A9: Fixed Empty Rows | B9: 0
A10: Usable Empty Rows | B10: 10
A11: Total Rows Placed | B11: 20 | C11: xlRight(1) | D11: xlRight(1) | E11: xlRight(1) | F11: xlRight(1) | G11: xlCenter | H11: xlCenter | I11: xlRight(1) | J11: xlRight(1) | K11: xlCenter | L11: xlRight(1) | M11: xlRight(1) | N11: xlRight(1) | O11: xlRight(1) | P11: xlRight(1) | Q11: xlRight(1) | R11: xlLeft(1) | S11: xlRight(1) | T11: xlLeft(1) | U11: xlRight(1) | V11: xlRight(1) | W11: xlLeft(1) | AB11: =C11 -> xlRight(1) | AC11: xlRight(1) | AD11: xlRight(1) | AE11: xlRight(1) | AF11: xlCenter | AG11: xlCenter | AH11: xlRight(1) | AI11: xlRight(1) | AJ11: xlCenter | AK11: xlRight(1) | AL11: xlRight(1) | AM11: xlRight(1) | AN11: xlRight(1) | AO11: xlRight(1) | AP11: xlRight(1) | AQ11: xlLeft(1) | AR11: xlRight(1) | AS11: xlLeft(1) | AT11: xlRight(1) | AU11: xlRight(1) | AV11: xlLeft(1)
A12: Total Rows Needed | B12: =SUM(B8:B10) -> 20 | C12: #+00.00 | D12: General | E12: General | F12: General | G12: General | H12: General | I12: #+00.0 | J12: 0.00 | K12: General | L12: 0.0 | M12: 0.0 | N12: 0.0 | O12: 0.0 | P12: 0.0 | Q12: 0.0 | R12: General | S12: 0.0 | T12: General | U12: 0.000 | V12: 0.0 | W12: General | AB12: =IF(C12<>"",C12,"") -> #+00.00 | AC12: General | AD12: General | AE12: General | AF12: General | AG12: General | AH12: #+00.0 | AI12: 0.00 | AJ12: General | AK12: 0.0 | AL12: 0.0 | AM12: 0.0 | AN12: 0.0 | AO12: 0.0 | AP12: 0.0 | AQ12: General | AR12: 0.0 | AS12: General | AT12: 0.000 | AU12: 0.0 | AV12: General
A13: Last Tab DE Starter Row | B13: 27 | C13: =CELL("width",C13) -> 16 | D13: =CELL("width",D13) -> 13 | E13: 18 | F13: 20 | G13: 5 | H13: 5 | I13: 16 | J13: 11 | K13: 6 | L13: 14 | M13: 14 | N13: 14 | O13: 14 | P13: 14 | Q13: =CELL("width",Q13) -> 14 | R13: =CELL("width",R13) -> 50 | S13: 11 | T13: 11 | U13: 11 | V13: 13 | W13: =CELL("width",W13) -> 20 | AB13: =CELL("width",AB13) -> 0 | AC13: =CELL("width",AC13) -> 0 | AD13: 0 | AE13: 0 | AF13: 0 | AG13: 0 | AH13: 0 | AI13: 0 | AJ13: 0 | AK13: 0 | AL13: 0 | AM13: 0 | AN13: 0 | AO13: 0 | AP13: 0 | AQ13: 0 | AR13: 0 | AS13: 0 | AT13: 0 | AU13: 0 | AV13: 0
A14: Last Tab Tabsheet Starter Row | B14: 13 | C14: A | D14: B | E14: C | F14: D | G14: E | H14: F | I14: G | J14: H | K14: I | L14: J | M14: K | N14: L | O14: M | P14: N | Q14: O | R14: P | S14: Q | T14: R | U14: S | V14: T | W14: U | AB14: =LOWER(C14) -> a | AC14: b | AD14: c | AE14: d | AF14: e | AG14: f | AH14: g | AI14: h | AJ14: i | AK14: j | AL14: k | AM14: l | AN14: m | AO14: n | AP14: o | AQ14: p | AR14: q | AS14: r | AT14: s | AU14: t | AV14: u
A15: Last Copy Starter Row | B15: 1 | K15: Totals: | L15: =SUBTOTAL(9,L27:L6001) -> 159039.1987 | M15: =SUBTOTAL(9,M27:M6001) -> 0 | N15: =SUBTOTAL(9,N27:N6001) -> 0 | Q15: =SUBTOTAL(9,Q27:Q6001) -> 1020.683433 | V15: =SUBTOTAL(9,V27:V6001) -> 0 | Y15: Excavation Type | Z15: Quantity, CY | AB15: 104-4 | AX15: =F21 -> Kind | AY15: =R21 -> Excavation | AZ15: =T21 -> Revetment
A16: Tab Loop Number | B16: 2 | C16: ROADWAY ITEMS FOR DRAINAGE STRUCTURES INSTALLED BY CULVERT CONTRACTOR | Y16: =AY16 -> Class 10, Roadway and Borrow | Z16: =SUMIF(R27:R6001,Y16,S27:S6001) -> 0 | AB16: =B17 -> 2017-10-17 | AX16: RCB | AY16: Class 10, Roadway and Borrow | AZ16: Class D
A17: Revision Date | B17: 2017-10-17 | Y17: Class 10, Unsuitable or Unstable Material | Z17: =SUMIF(R27:R6001,Y17,S27:S6001) -> 0 | AB17: =C16 -> ROADWAY ITEMS FOR DRAINAGE STRUCTURES INSTALLED BY CULVERT CONTRACTOR | AX17: Flume | AY17: Class 10, Unsuitable or Unstable Material | AZ17: Class E
A18: Tabulation Width | B18: 4 | C18: * Not a Bid Item | Y18: Class 10, Waste | Z18: =SUMIF(R27:R6001,Y18,S27:S6001) -> 0 | AX18: Drop Inlet | AY18: Class 10, Waste
A19: Horizontal Grid Lines | B19: Yes | C19: Backfill according to DR-111 | Y19: Class 12, Bounders or Rock Fragments | Z19: =SUMIF(R27:R6001,Y19,S27:S6001) -> 0 | AB19: =C18 -> * Not a Bid Item | AX19: 3-sided Arch | AY19: Class 12, Bounders or Rock Fragments
C20: ="This Data Entry Sheet fills Tab "&AB15&" effective "&TEXT(B17,"mm-dd-yy") -> This Data Entry Sheet fills Tab 104-4 effective 10-17-17 | Y20: Class 10, Channel | Z20: =SUMIF(R27:R6001,Y20,S27:S6001) -> 0 | AB20: =C19 -> Backfill according to DR-111 | AY20: Class 10, Channel
C21: Location | D21: Design Number | E21: Size | F21: Kind | G21: By Road Contractor | O21: Floodable* Backfill | P21: Porous* Backfill | Q21: Flooded Backfill | R21: Excavation | T21: Revetment | V21: Engineering Fabric | W21: Remarks | Y21: Class 12, Channel | Z21: =SUMIF(R27:R6001,Y21,S27:S6001) -> 0 | AB21: =C21 -> Location | AC21: =D21 -> Design Number | AD21: =E21 -> Size | AE21: =F21 -> Kind | AF21: =G21 -> By Road Contractor | AN21: =O21 -> Floodable* Backfill | AO21: =P21 -> Porous* Backfill | AP21: =Q21 -> Flooded Backfill | AQ21: =R21 -> Excavation | AS21: =T21 -> Revetment | AU21: =V21 -> Engineering Fabric | AV21: =W21 -> Remarks | AY21: Class 12, Channel
G22: Dike | L22: Compacting Backfill Adjacent | M22: Compaction w/Moisture Control | N22: Compaction w/Moisture and Density | Y22: Class 13, Channel | Z22: =SUMIF(R27:R6001,Y22,S27:S6001) -> 0 | AF22: =G22 -> Dike | AK22: =L22 -> Compacting Backfill Adjacent | AL22: =M22 -> Compaction w/Moisture Control | AM22: Compaction w/Moisture and Density | AY22: Class 13, Channel
H24: Rt. | I24: Location Station | J24: Top. Elev. | K24: Type | Y24: Revetment Type | Z24: Quantity, TONS | AF24: =G24 ->  | AG24: =H24 -> Rt. | AH24: Location Station | AI24: Top. Elev. | AJ24: =K24 -> Type
O25: (A) | P25: (B) | Q25: (A+B) | R25: Type | S25: Quantity | T25: Type | U25: Quantity | Y25: =AZ16 -> Class D | Z25: =SUMIF(T27:T6001,Y25,U27:U6001) -> 0 | AN25: =O25 -> (A) | AO25: (B) | AP25: (A+B) | AQ25: =R25 -> Type | AR25: =S25 -> Quantity | AS25: =T25 -> Type | AT25: =U25 -> Quantity
G26: Lt. | L26: CY | M26: CY | N26: CY | O26: CY | P26: CY | Q26: CY | S26: CY | U26: TONS | V26: SY | Y26: =AZ17 -> Class E | Z26: =SUMIF(T27:T6001,Y26,U27:U6001) -> 0 | AF26: =G26 -> Lt. | AK26: =L26 -> CY | AL26: =M26 -> CY | AM26: CY | AN26: CY | AO26: CY | AP26: CY | AR26: =S26 -> CY | AT26: =U26 -> TONS | AU26: =V26 -> SY
C27: MAINLINE
C28: 30229 | D28: 217 | E28: 10x8 | F28: RCB | L28: =(194.84*92+209.29*86.65)/27 -> 1335.56513 | O28: =35.3*39.05*2/27 -> 102.1085185 | P28: =0.594*(91.06+97.95)/27 -> 4.15822 | Q28: =SUM(O28:P28) -> 106.2667385
C29: 38356.91 | D29: 317 | E29: 10x10 | F29: RCB | L29: =(1815.9*126.74+976.11*84.26+325.68*78.21+1478.29*153)/27 -> 20890.51842 | O29: =(32.54*47.61+32.54*47.61)/27 -> 114.7577333 | P29: =0.594*(289.65+153)/27 -> 9.7383 | Q29: =SUM(O29:P29) -> 124.4960333
C30: 42752.11 | D30: 417 | E30: 12x12 | F30: RCB | L30: =(757.97*61.55+1809.73*73+2843.6*150.6+2793.9*77.69+1968.47*41.07-759.99*32.09)/27 -> 32612.02142 | O30: =22.84*2*37.72*2/27 -> 127.6333037 | P30: =0.594*301.55/27 -> 6.6341 | Q30: =SUM(O30:P30) -> 134.2674037
C31: 48152.8 | D31: 517 | E31: 10x10 | F31: RCB | L31: =(511.04*118.95+1405.94*85.62+2505.12*87.68+2493*83.54+1513.58*42.85-506.3*19.29)/27 -> 24598.86327 | O31: =22.91*2*(41.07+39.41)/27 -> 136.5775407 | P31: =0.594*(292+105)/27 -> 8.734 | Q31: =SUM(O31:P31) -> 145.3115407
C33: SIDE ROADS
C34: 528350 | D34: 617 | E34: 8x4 | F34: RCB | L34: =(69.72*32)/27 -> 82.63111111 | W34: P Ave. N
C36: TOTALS: | L36: =SUM(L28:L35) -> 79519.59936 | O36: =SUM(O28:O35) -> 481.0770963 | P36: 29.26462 | Q36: 510.3417163

Sheet 104_3
A1: 104-3M
A2: Modified
A3: DRAINAGE STRUCTURE BY ROAD CONTRACTOR
A6: Length of unclassified pipe calculated is based on using | J6: Reinforced Concrete Pipe.
A7: * Not a bid item
A8: Diameter or equivalent diameter
A9: UNCL = Unclassified Pipe CMP = Corrugated Metal Pipe RCP = Reinforced Concrete Pipe LCP = Arch or Elliptical Low Clearance Pipe SARC = Steel Arch Pipe
A10: Backfill according to DR-101
A11: Drainage Area | B11: Location | C11: Type | D11: Size | E11: Kind Of Pipe | F11: Length New Const. | G11: Bedding Class | H11: Design Cover (H) | I11: Camber* (DR-102) | J11: Apron No. | L11: Apron Guard* (DR-213) | M11: Elbow* (DR-141) | N11: Diaphragm* (DR-501) | O11: Tee Section* (DR-142) | P11: "D" Section* (DR-141) | Q11: Reducer* | R11: Type 'C' Connections* (DR-122) | T11: Connected Pipe Joint* (DR-121) | U11: DR-205 Inlet Apron Top | V11: Flow Line Elevations | Z11: Dimensions Lin. Ft. | AD11: Skew Ahead Degrees | AF11: Dike | AJ11: Class 20 | AK11: Flowable Mortar | AL11: Floodable* Backfill | AM11: Porous* Backfill | AN11: Flooded Backfill | AO11: Remarks
AF18: Rt. | AG18: Location Station | AH18: Top Elevation | AI18: Type
Z19: Total | AB19: Extensions | AL19: (A) | AM19: (B) | AN19: (A+B)
A20: ACRE | D20: IN | F20: LF | H20: FT | I20: FT | J20: IN | K20: OUT | L20: No. | M20: No. | N20: No. | O20: No. | P20: No. | Q20: No. | R20: Type | S20: No. | T20: Type | U20: Elev. | V20: Lt. | W20: Rt. | X20: Other | Y20: Other | Z20: Lt. | AA20: Rt. | AB20: Lt. | AC20: Rt. | AD20: Lt. | AE20: Rt. | AF20: Lt. | AJ20: CY | AK20: CY | AL20: CY | AM20: CY | AN20: CY
A21: =IF(OFFSET(DE104_3!$C$35,ROWS($C$35:C35)-1,COLUMNS($C$35:C35)-1)<>"",OFFSET(DE104_3!$C$35,ROWS($C$35:C35)-1,COLUMNS($C$35:C35)-1),"") ->  | B21: =IF(OFFSET(DE104_3!$D$35,ROWS($D$35:D35)-1,COLUMNS($D$35:D35)-1)<>"",OFFSET(DE104_3!$D$35,ROWS($D$35:D35)-1,COLUMNS($D$35:D35)-1),"") -> MAINLINE | C21: =IF(OFFSET(DE104_3!$E$35,ROWS($E$35:E35)-1,COLUMNS($E$35:E35)-1)<>"",OFFSET(DE104_3!$E$35,ROWS($E$35:E35)-1,COLUMNS($E$35:E35)-1),"") ->  | D21: =IF(OFFSET(DE104_3!$F$35,ROWS($F$35:F35)-1,COLUMNS($F$35:F35)-1)<>"",OFFSET(DE104_3!$F$35,ROWS($F$35:F35)-1,COLUMNS($F$35:F35)-1),"") ->  | E21: =IF(OFFSET(DE104_3!$G$35,ROWS($G$35:G35)-1,COLUMNS($G$35:G35)-1)<>"",OFFSET(DE104_3!$G$35,ROWS($G$35:G35)-1,COLUMNS($G$35:G35)-1),"") ->  | F21: =IF(OFFSET(DE104_3!$H$35,ROWS($H$35:H35)-1,COLUMNS($H$35:H35)-1)<>"",OFFSET(DE104_3!$H$35,ROWS($H$35:H35)-1,COLUMNS($H$35:H35)-1),"") ->  | G21: =IF(OFFSET(DE104_3!$I$35,ROWS($I$35:I35)-1,COLUMNS($I$35:I35)-1)<>"",OFFSET(DE104_3!$I$35,ROWS($I$35:I35)-1,COLUMNS($I$35:I35)-1),"") ->  | H21: =IF(OFFSET(DE104_3!$J$35,ROWS($J$35:J35)-1,COLUMNS($J$35:J35)-1)<>"",OFFSET(DE104_3!$J$35,ROWS($J$35:J35)-1,COLUMNS($J$35:J35)-1),"") ->  | I21: =IF(OFFSET(DE104_3!$K$35,ROWS($K$35:K35)-1,COLUMNS($K$35:K35)-1)<>"",OFFSET(DE104_3!$K$35,ROWS($K$35:K35)-1,COLUMNS($K$35:K35)-1),"") ->  | J21: =IF(OFFSET(DE104_3!$L$35,ROWS($L$35:L35)-1,COLUMNS($L$35:L35)-1)<>"",OFFSET(DE104_3!$L$35,ROWS($L$35:L35)-1,COLUMNS($L$35:L35)-1),"") ->  | K21: =IF(OFFSET(DE104_3!$M$35,ROWS($M$35:M35)-1,COLUMNS($M$35:M35)-1)<>"",OFFSET(DE104_3!$M$35,ROWS($M$35:M35)-1,COLUMNS($M$35:M35)-1),"") ->  | L21: =IF(OFFSET(DE104_3!$N$35,ROWS($N$35:N35)-1,COLUMNS($N$35:N35)-1)<>"",OFFSET(DE104_3!$N$35,ROWS($N$35:N35)-1,COLUMNS($N$35:N35)-1),"") ->  | M21: =IF(OFFSET(DE104_3!$O$35,ROWS($O$35:O35)-1,COLUMNS($O$35:O35)-1)<>"",OFFSET(DE104_3!$O$35,ROWS($O$35:O35)-1,COLUMNS($O$35:O35)-1),"") ->  | N21: =IF(OFFSET(DE104_3!$P$35,ROWS($P$35:P35)-1,COLUMNS($P$35:P35)-1)<>"",OFFSET(DE104_3!$P$35,ROWS($P$35:P35)-1,COLUMNS($P$35:P35)-1),"") ->  | O21: =IF(OFFSET(DE104_3!$Q$35,ROWS($Q$35:Q35)-1,COLUMNS($Q$35:Q35)-1)<>"",OFFSET(DE104_3!$Q$35,ROWS($Q$35:Q35)-1,COLUMNS($Q$35:Q35)-1),"") ->  | P21: =IF(OFFSET(DE104_3!$R$35,ROWS($R$35:R35)-1,COLUMNS($R$35:R35)-1)<>"",OFFSET(DE104_3!$R$35,ROWS($R$35:R35)-1,COLUMNS($R$35:R35)-1),"") ->  | Q21: =IF(OFFSET(DE104_3!$S$35,ROWS($S$35:S35)-1,COLUMNS($S$35:S35)-1)<>"",OFFSET(DE104_3!$S$35,ROWS($S$35:S35)-1,COLUMNS($S$35:S35)-1),"") ->  | R21: =IF(OFFSET(DE104_3!$T$35,ROWS($T$35:T35)-1,COLUMNS($T$35:T35)-1)<>"",OFFSET(DE104_3!$T$35,ROWS($T$35:T35)-1,COLUMNS($T$35:T35)-1),"") ->  | S21: =IF(OFFSET(DE104_3!$U$35,ROWS($U$35:U35)-1,COLUMNS($U$35:U35)-1)<>"",OFFSET(DE104_3!$U$35,ROWS($U$35:U35)-1,COLUMNS($U$35:U35)-1),"") ->  | T21: =IF(OFFSET(DE104_3!$V$35,ROWS($V$35:V35)-1,COLUMNS($V$35:V35)-1)<>"",OFFSET(DE104_3!$V$35,ROWS($V$35:V35)-1,COLUMNS($V$35:V35)-1),"") ->  | U21: =IF(OFFSET(DE104_3!$W$35,ROWS($W$35:W35)-1,COLUMNS($W$35:W35)-1)<>"",OFFSET(DE104_3!$W$35,ROWS($W$35:W35)-1,COLUMNS($W$35:W35)-1),"") ->  | V21: =IF(OFFSET(DE104_3!$X$35,ROWS($X$35:X35)-1,COLUMNS($X$35:X35)-1)<>"",OFFSET(DE104_3!$X$35,ROWS($X$35:X35)-1,COLUMNS($X$35:X35)-1),"") ->  | W21: =IF(OFFSET(DE104_3!$Y$35,ROWS($Y$35:Y35)-1,COLUMNS($Y$35:Y35)-1)<>"",OFFSET(DE104_3!$Y$35,ROWS($Y$35:Y35)-1,COLUMNS($Y$35:Y35)-1),"") ->  | X21: =IF(OFFSET(DE104_3!$Z$35,ROWS($Z$35:Z35)-1,COLUMNS($Z$35:Z35)-1)<>"",OFFSET(DE104_3!$Z$35,ROWS($Z$35:Z35)-1,COLUMNS($Z$35:Z35)-1),"") ->  | Y21: =IF(OFFSET(DE104_3!$AA$35,ROWS($AA$35:AA35)-1,COLUMNS($AA$35:AA35)-1)<>"",OFFSET(DE104_3!$AA$35,ROWS($AA$35:AA35)-1,COLUMNS($AA$35:AA35)-1),"") ->  | Z21: =IF(OFFSET(DE104_3!$AB$35,ROWS($AB$35:AB35)-1,COLUMNS($AB$35:AB35)-1)<>"",OFFSET(DE104_3!$AB$35,ROWS($AB$35:AB35)-1,COLUMNS($AB$35:AB35)-1),"") ->  | AA21: =IF(OFFSET(DE104_3!$AC$35,ROWS($AC$35:AC35)-1,COLUMNS($AC$35:AC35)-1)<>"",OFFSET(DE104_3!$AC$35,ROWS($AC$35:AC35)-1,COLUMNS($AC$35:AC35)-1),"") ->  | AB21: =IF(OFFSET(DE104_3!$AD$35,ROWS($AD$35:AD35)-1,COLUMNS($AD$35:AD35)-1)<>"",OFFSET(DE104_3!$AD$35,ROWS($AD$35:AD35)-1,COLUMNS($AD$35:AD35)-1),"") ->  | AC21: =IF(OFFSET(DE104_3!$AE$35,ROWS($AE$35:AE35)-1,COLUMNS($AE$35:AE35)-1)<>"",OFFSET(DE104_3!$AE$35,ROWS($AE$35:AE35)-1,COLUMNS($AE$35:AE35)-1),"") ->  | AD21: =IF(OFFSET(DE104_3!$AF$35,ROWS($AF$35:AF35)-1,COLUMNS($AF$35:AF35)-1)<>"",OFFSET(DE104_3!$AF$35,ROWS($AF$35:AF35)-1,COLUMNS($AF$35:AF35)-1),"") ->  | AE21: =IF(OFFSET(DE104_3!$AG$35,ROWS($AG$35:AG35)-1,COLUMNS($AG$35:AG35)-1)<>"",OFFSET(DE104_3!$AG$35,ROWS($AG$35:AG35)-1,COLUMNS($AG$35:AG35)-1),"") ->  | AF21: =IF(OFFSET(DE104_3!$AH$35,ROWS($AH$35:AH35)-1,COLUMNS($AH$35:AH35)-1)<>"",OFFSET(DE104_3!$AH$35,ROWS($AH$35:AH35)-1,COLUMNS($AH$35:AH35)-1),"") ->  | AG21: =IF(OFFSET(DE104_3!$AI$35,ROWS($AI$35:AI35)-1,COLUMNS($AI$35:AI35)-1)<>"",OFFSET(DE104_3!$AI$35,ROWS($AI$35:AI35)-1,COLUMNS($AI$35:AI35)-1),"") ->  | AH21: =IF(OFFSET(DE104_3!$AJ$35,ROWS($AJ$35:AJ35)-1,COLUMNS($AJ$35:AJ35)-1)<>"",OFFSET(DE104_3!$AJ$35,ROWS($AJ$35:AJ35)-1,COLUMNS($AJ$35:AJ35)-1),"") ->  | AI21: =IF(OFFSET(DE104_3!$AK$35,ROWS($AK$35:AK35)-1,COLUMNS($AK$35:AK35)-1)<>"",OFFSET(DE104_3!$AK$35,ROWS($AK$35:AK35)-1,COLUMNS($AK$35:AK35)-1),"") ->  | AJ21: =IF(OFFSET(DE104_3!$AL$35,ROWS($AL$35:AL35)-1,COLUMNS($AL$35:AL35)-1)<>"",OFFSET(DE104_3!$AL$35,ROWS($AL$35:AL35)-1,COLUMNS($AL$35:AL35)-1),"") ->  | AK21: =IF(OFFSET(DE104_3!$AM$35,ROWS($AM$35:AM35)-1,COLUMNS($AM$35:AM35)-1)<>"",OFFSET(DE104_3!$AM$35,ROWS($AM$35:AM35)-1,COLUMNS($AM$35:AM35)-1),"") ->  | AL21: =IF(OFFSET(DE104_3!$AN$35,ROWS($AN$35:AN35)-1,COLUMNS($AN$35:AN35)-1)<>"",OFFSET(DE104_3!$AN$35,ROWS($AN$35:AN35)-1,COLUMNS($AN$35:AN35)-1),"") ->  | AM21: =IF(OFFSET(DE104_3!$AO$35,ROWS($AO$35:AO35)-1,COLUMNS($AO$35:AO35)-1)<>"",OFFSET(DE104_3!$AO$35,ROWS($AO$35:AO35)-1,COLUMNS($AO$35:AO35)-1),"") ->  | AN21: =IF(OFFSET(DE104_3!$AP$35,ROWS($AP$35:AP35)-1,COLUMNS($AP$35:AP35)-1)<>"",OFFSET(DE104_3!$AP$35,ROWS($AP$35:AP35)-1,COLUMNS($AP$35:AP35)-1),"") ->  | AO21: =IF(OFFSET(DE104_3!$AQ$35,ROWS($AQ$35:AQ35)-1,COLUMNS($AQ$35:AQ35)-1)<>"",OFFSET(DE104_3!$AQ$35,ROWS($AQ$35:AQ35)-1,COLUMNS($AQ$35:AQ35)-1),"") -> 
A22: =IF(OFFSET(DE104_3!$C$35,ROWS($C$35:C36)-1,COLUMNS($C$35:C36)-1)<>"",OFFSET(DE104_3!$C$35,ROWS($C$35:C36)-1,COLUMNS($C$35:C36)-1),"") ->  | B22: =IF(OFFSET(DE104_3!$D$35,ROWS($D$35:D36)-1,COLUMNS($D$35:D36)-1)<>"",OFFSET(DE104_3!$D$35,ROWS($D$35:D36)-1,COLUMNS($D$35:D36)-1),"") -> 109+40.96, 60.51' Lt | C22: =IF(OFFSET(DE104_3!$E$35,ROWS($E$35:E36)-1,COLUMNS($E$35:E36)-1)<>"",OFFSET(DE104_3!$E$35,ROWS($E$35:E36)-1,COLUMNS($E$35:E36)-1),"") -> Existing | D22: =IF(OFFSET(DE104_3!$F$35,ROWS($F$35:F36)-1,COLUMNS($F$35:F36)-1)<>"",OFFSET(DE104_3!$F$35,ROWS($F$35:F36)-1,COLUMNS($F$35:F36)-1),"") ->  | E22: =IF(OFFSET(DE104_3!$G$35,ROWS($G$35:G36)-1,COLUMNS($G$35:G36)-1)<>"",OFFSET(DE104_3!$G$35,ROWS($G$35:G36)-1,COLUMNS($G$35:G36)-1),"") ->  | F22: =IF(OFFSET(DE104_3!$H$35,ROWS($H$35:H36)-1,COLUMNS($H$35:H36)-1)<>"",OFFSET(DE104_3!$H$35,ROWS($H$35:H36)-1,COLUMNS($H$35:H36)-1),"") ->  | G22: =IF(OFFSET(DE104_3!$I$35,ROWS($I$35:I36)-1,COLUMNS($I$35:I36)-1)<>"",OFFSET(DE104_3!$I$35,ROWS($I$35:I36)-1,COLUMNS($I$35:I36)-1),"") ->  | H22: =IF(OFFSET(DE104_3!$J$35,ROWS($J$35:J36)-1,COLUMNS($J$35:J36)-1)<>"",OFFSET(DE104_3!$J$35,ROWS($J$35:J36)-1,COLUMNS($J$35:J36)-1),"") ->  | I22: =IF(OFFSET(DE104_3!$K$35,ROWS($K$35:K36)-1,COLUMNS($K$35:K36)-1)<>"",OFFSET(DE104_3!$K$35,ROWS($K$35:K36)-1,COLUMNS($K$35:K36)-1),"") ->  | J22: =IF(OFFSET(DE104_3!$L$35,ROWS($L$35:L36)-1,COLUMNS($L$35:L36)-1)<>"",OFFSET(DE104_3!$L$35,ROWS($L$35:L36)-1,COLUMNS($L$35:L36)-1),"") ->  | K22: =IF(OFFSET(DE104_3!$M$35,ROWS($M$35:M36)-1,COLUMNS($M$35:M36)-1)<>"",OFFSET(DE104_3!$M$35,ROWS($M$35:M36)-1,COLUMNS($M$35:M36)-1),"") ->  | L22: =IF(OFFSET(DE104_3!$N$35,ROWS($N$35:N36)-1,COLUMNS($N$35:N36)-1)<>"",OFFSET(DE104_3!$N$35,ROWS($N$35:N36)-1,COLUMNS($N$35:N36)-1),"") ->  | M22: =IF(OFFSET(DE104_3!$O$35,ROWS($O$35:O36)-1,COLUMNS($O$35:O36)-1)<>"",OFFSET(DE104_3!$O$35,ROWS($O$35:O36)-1,COLUMNS($O$35:O36)-1),"") ->  | N22: =IF(OFFSET(DE104_3!$P$35,ROWS($P$35:P36)-1,COLUMNS($P$35:P36)-1)<>"",OFFSET(DE104_3!$P$35,ROWS($P$35:P36)-1,COLUMNS($P$35:P36)-1),"") ->  | O22: =IF(OFFSET(DE104_3!$Q$35,ROWS($Q$35:Q36)-1,COLUMNS($Q$35:Q36)-1)<>"",OFFSET(DE104_3!$Q$35,ROWS($Q$35:Q36)-1,COLUMNS($Q$35:Q36)-1),"") ->  | P22: =IF(OFFSET(DE104_3!$R$35,ROWS($R$35:R36)-1,COLUMNS($R$35:R36)-1)<>"",OFFSET(DE104_3!$R$35,ROWS($R$35:R36)-1,COLUMNS($R$35:R36)-1),"") ->  | Q22: =IF(OFFSET(DE104_3!$S$35,ROWS($S$35:S36)-1,COLUMNS($S$35:S36)-1)<>"",OFFSET(DE104_3!$S$35,ROWS($S$35:S36)-1,COLUMNS($S$35:S36)-1),"") ->  | R22: =IF(OFFSET(DE104_3!$T$35,ROWS($T$35:T36)-1,COLUMNS($T$35:T36)-1)<>"",OFFSET(DE104_3!$T$35,ROWS($T$35:T36)-1,COLUMNS($T$35:T36)-1),"") ->  | S22: =IF(OFFSET(DE104_3!$U$35,ROWS($U$35:U36)-1,COLUMNS($U$35:U36)-1)<>"",OFFSET(DE104_3!$U$35,ROWS($U$35:U36)-1,COLUMNS($U$35:U36)-1),"") ->  | T22: =IF(OFFSET(DE104_3!$V$35,ROWS($V$35:V36)-1,COLUMNS($V$35:V36)-1)<>"",OFFSET(DE104_3!$V$35,ROWS($V$35:V36)-1,COLUMNS($V$35:V36)-1),"") ->  | U22: =IF(OFFSET(DE104_3!$W$35,ROWS($W$35:W36)-1,COLUMNS($W$35:W36)-1)<>"",OFFSET(DE104_3!$W$35,ROWS($W$35:W36)-1,COLUMNS($W$35:W36)-1),"") ->  | V22: =IF(OFFSET(DE104_3!$X$35,ROWS($X$35:X36)-1,COLUMNS($X$35:X36)-1)<>"",OFFSET(DE104_3!$X$35,ROWS($X$35:X36)-1,COLUMNS($X$35:X36)-1),"") ->  | W22: =IF(OFFSET(DE104_3!$Y$35,ROWS($Y$35:Y36)-1,COLUMNS($Y$35:Y36)-1)<>"",OFFSET(DE104_3!$Y$35,ROWS($Y$35:Y36)-1,COLUMNS($Y$35:Y36)-1),"") ->  | X22: =IF(OFFSET(DE104_3!$Z$35,ROWS($Z$35:Z36)-1,COLUMNS($Z$35:Z36)-1)<>"",OFFSET(DE104_3!$Z$35,ROWS($Z$35:Z36)-1,COLUMNS($Z$35:Z36)-1),"") ->  | Y22: =IF(OFFSET(DE104_3!$AA$35,ROWS($AA$35:AA36)-1,COLUMNS($AA$35:AA36)-1)<>"",OFFSET(DE104_3!$AA$35,ROWS($AA$35:AA36)-1,COLUMNS($AA$35:AA36)-1),"") ->  | Z22: =IF(OFFSET(DE104_3!$AB$35,ROWS($AB$35:AB36)-1,COLUMNS($AB$35:AB36)-1)<>"",OFFSET(DE104_3!$AB$35,ROWS($AB$35:AB36)-1,COLUMNS($AB$35:AB36)-1),"") ->  | AA22: =IF(OFFSET(DE104_3!$AC$35,ROWS($AC$35:AC36)-1,COLUMNS($AC$35:AC36)-1)<>"",OFFSET(DE104_3!$AC$35,ROWS($AC$35:AC36)-1,COLUMNS($AC$35:AC36)-1),"") ->  | AB22: =IF(OFFSET(DE104_3!$AD$35,ROWS($AD$35:AD36)-1,COLUMNS($AD$35:AD36)-1)<>"",OFFSET(DE104_3!$AD$35,ROWS($AD$35:AD36)-1,COLUMNS($AD$35:AD36)-1),"") ->  | AC22: =IF(OFFSET(DE104_3!$AE$35,ROWS($AE$35:AE36)-1,COLUMNS($AE$35:AE36)-1)<>"",OFFSET(DE104_3!$AE$35,ROWS($AE$35:AE36)-1,COLUMNS($AE$35:AE36)-1),"") ->  | AD22: =IF(OFFSET(DE104_3!$AF$35,ROWS($AF$35:AF36)-1,COLUMNS($AF$35:AF36)-1)<>"",OFFSET(DE104_3!$AF$35,ROWS($AF$35:AF36)-1,COLUMNS($AF$35:AF36)-1),"") ->  | AE22: =IF(OFFSET(DE104_3!$AG$35,ROWS($AG$35:AG36)-1,COLUMNS($AG$35:AG36)-1)<>"",OFFSET(DE104_3!$AG$35,ROWS($AG$35:AG36)-1,COLUMNS($AG$35:AG36)-1),"") ->  | AF22: =IF(OFFSET(DE104_3!$AH$35,ROWS($AH$35:AH36)-1,COLUMNS($AH$35:AH36)-1)<>"",OFFSET(DE104_3!$AH$35,ROWS($AH$35:AH36)-1,COLUMNS($AH$35:AH36)-1),"") ->  | AG22: =IF(OFFSET(DE104_3!$AI$35,ROWS($AI$35:AI36)-1,COLUMNS($AI$35:AI36)-1)<>"",OFFSET(DE104_3!$AI$35,ROWS($AI$35:AI36)-1,COLUMNS($AI$35:AI36)-1),"") ->  | AH22: =IF(OFFSET(DE104_3!$AJ$35,ROWS($AJ$35:AJ36)-1,COLUMNS($AJ$35:AJ36)-1)<>"",OFFSET(DE104_3!$AJ$35,ROWS($AJ$35:AJ36)-1,COLUMNS($AJ$35:AJ36)-1),"") ->  | AI22: =IF(OFFSET(DE104_3!$AK$35,ROWS($AK$35:AK36)-1,COLUMNS($AK$35:AK36)-1)<>"",OFFSET(DE104_3!$AK$35,ROWS($AK$35:AK36)-1,COLUMNS($AK$35:AK36)-1),"") ->  | AJ22: =IF(OFFSET(DE104_3!$AL$35,ROWS($AL$35:AL36)-1,COLUMNS($AL$35:AL36)-1)<>"",OFFSET(DE104_3!$AL$35,ROWS($AL$35:AL36)-1,COLUMNS($AL$35:AL36)-1),"") ->  | AK22: =IF(OFFSET(DE104_3!$AM$35,ROWS($AM$35:AM36)-1,COLUMNS($AM$35:AM36)-1)<>"",OFFSET(DE104_3!$AM$35,ROWS($AM$35:AM36)-1,COLUMNS($AM$35:AM36)-1),"") ->  | AL22: =IF(OFFSET(DE104_3!$AN$35,ROWS($AN$35:AN36)-1,COLUMNS($AN$35:AN36)-1)<>"",OFFSET(DE104_3!$AN$35,ROWS($AN$35:AN36)-1,COLUMNS($AN$35:AN36)-1),"") ->  | AM22: =IF(OFFSET(DE104_3!$AO$35,ROWS($AO$35:AO36)-1,COLUMNS($AO$35:AO36)-1)<>"",OFFSET(DE104_3!$AO$35,ROWS($AO$35:AO36)-1,COLUMNS($AO$35:AO36)-1),"") ->  | AN22: =IF(OFFSET(DE104_3!$AP$35,ROWS($AP$35:AP36)-1,COLUMNS($AP$35:AP36)-1)<>"",OFFSET(DE104_3!$AP$35,ROWS($AP$35:AP36)-1,COLUMNS($AP$35:AP36)-1),"") ->  | AO22: =IF(OFFSET(DE104_3!$AQ$35,ROWS($AQ$35:AQ36)-1,COLUMNS($AQ$35:AQ36)-1)<>"",OFFSET(DE104_3!$AQ$35,ROWS($AQ$35:AQ36)-1,COLUMNS($AQ$35:AQ36)-1),"") -> -1
A23: =IF(OFFSET(DE104_3!$C$35,ROWS($C$35:C37)-1,COLUMNS($C$35:C37)-1)<>"",OFFSET(DE104_3!$C$35,ROWS($C$35:C37)-1,COLUMNS($C$35:C37)-1),"") ->  | B23: =IF(OFFSET(DE104_3!$D$35,ROWS($D$35:D37)-1,COLUMNS($D$35:D37)-1)<>"",OFFSET(DE104_3!$D$35,ROWS($D$35:D37)-1,COLUMNS($D$35:D37)-1),"") -> 110+23.24, 12.01' Lt | C23: =IF(OFFSET(DE104_3!$E$35,ROWS($E$35:E37)-1,COLUMNS($E$35:E37)-1)<>"",OFFSET(DE104_3!$E$35,ROWS($E$35:E37)-1,COLUMNS($E$35:E37)-1),"") -> Existing | D23: =IF(OFFSET(DE104_3!$F$35,ROWS($F$35:F37)-1,COLUMNS($F$35:F37)-1)<>"",OFFSET(DE104_3!$F$35,ROWS($F$35:F37)-1,COLUMNS($F$35:F37)-1),"") ->  | E23: =IF(OFFSET(DE104_3!$G$35,ROWS($G$35:G37)-1,COLUMNS($G$35:G37)-1)<>"",OFFSET(DE104_3!$G$35,ROWS($G$35:G37)-1,COLUMNS($G$35:G37)-1),"") ->  | F23: =IF(OFFSET(DE104_3!$H$35,ROWS($H$35:H37)-1,COLUMNS($H$35:H37)-1)<>"",OFFSET(DE104_3!$H$35,ROWS($H$35:H37)-1,COLUMNS($H$35:H37)-1),"") ->  | G23: =IF(OFFSET(DE104_3!$I$35,ROWS($I$35:I37)-1,COLUMNS($I$35:I37)-1)<>"",OFFSET(DE104_3!$I$35,ROWS($I$35:I37)-1,COLUMNS($I$35:I37)-1),"") ->  | H23: =IF(OFFSET(DE104_3!$J$35,ROWS($J$35:J37)-1,COLUMNS($J$35:J37)-1)<>"",OFFSET(DE104_3!$J$35,ROWS($J$35:J37)-1,COLUMNS($J$35:J37)-1),"") ->  | I23: =IF(OFFSET(DE104_3!$K$35,ROWS($K$35:K37)-1,COLUMNS($K$35:K37)-1)<>"",OFFSET(DE104_3!$K$35,ROWS($K$35:K37)-1,COLUMNS($K$35:K37)-1),"") ->  | J23: =IF(OFFSET(DE104_3!$L$35,ROWS($L$35:L37)-1,COLUMNS($L$35:L37)-1)<>"",OFFSET(DE104_3!$L$35,ROWS($L$35:L37)-1,COLUMNS($L$35:L37)-1),"") ->  | K23: =IF(OFFSET(DE104_3!$M$35,ROWS($M$35:M37)-1,COLUMNS($M$35:M37)-1)<>"",OFFSET(DE104_3!$M$35,ROWS($M$35:M37)-1,COLUMNS($M$35:M37)-1),"") ->  | L23: =IF(OFFSET(DE104_3!$N$35,ROWS($N$35:N37)-1,COLUMNS($N$35:N37)-1)<>"",OFFSET(DE104_3!$N$35,ROWS($N$35:N37)-1,COLUMNS($N$35:N37)-1),"") ->  | M23: =IF(OFFSET(DE104_3!$O$35,ROWS($O$35:O37)-1,COLUMNS($O$35:O37)-1)<>"",OFFSET(DE104_3!$O$35,ROWS($O$35:O37)-1,COLUMNS($O$35:O37)-1),"") ->  | N23: =IF(OFFSET(DE104_3!$P$35,ROWS($P$35:P37)-1,COLUMNS($P$35:P37)-1)<>"",OFFSET(DE104_3!$P$35,ROWS($P$35:P37)-1,COLUMNS($P$35:P37)-1),"") ->  | O23: =IF(OFFSET(DE104_3!$Q$35,ROWS($Q$35:Q37)-1,COLUMNS($Q$35:Q37)-1)<>"",OFFSET(DE104_3!$Q$35,ROWS($Q$35:Q37)-1,COLUMNS($Q$35:Q37)-1),"") ->  | P23: =IF(OFFSET(DE104_3!$R$35,ROWS($R$35:R37)-1,COLUMNS($R$35:R37)-1)<>"",OFFSET(DE104_3!$R$35,ROWS($R$35:R37)-1,COLUMNS($R$35:R37)-1),"") ->  | Q23: =IF(OFFSET(DE104_3!$S$35,ROWS($S$35:S37)-1,COLUMNS($S$35:S37)-1)<>"",OFFSET(DE104_3!$S$35,ROWS($S$35:S37)-1,COLUMNS($S$35:S37)-1),"") ->  | R23: =IF(OFFSET(DE104_3!$T$35,ROWS($T$35:T37)-1,COLUMNS($T$35:T37)-1)<>"",OFFSET(DE104_3!$T$35,ROWS($T$35:T37)-1,COLUMNS($T$35:T37)-1),"") ->  | S23: =IF(OFFSET(DE104_3!$U$35,ROWS($U$35:U37)-1,COLUMNS($U$35:U37)-1)<>"",OFFSET(DE104_3!$U$35,ROWS($U$35:U37)-1,COLUMNS($U$35:U37)-1),"") ->  | T23: =IF(OFFSET(DE104_3!$V$35,ROWS($V$35:V37)-1,COLUMNS($V$35:V37)-1)<>"",OFFSET(DE104_3!$V$35,ROWS($V$35:V37)-1,COLUMNS($V$35:V37)-1),"") ->  | U23: =IF(OFFSET(DE104_3!$W$35,ROWS($W$35:W37)-1,COLUMNS($W$35:W37)-1)<>"",OFFSET(DE104_3!$W$35,ROWS($W$35:W37)-1,COLUMNS($W$35:W37)-1),"") ->  | V23: =IF(OFFSET(DE104_3!$X$35,ROWS($X$35:X37)-1,COLUMNS($X$35:X37)-1)<>"",OFFSET(DE104_3!$X$35,ROWS($X$35:X37)-1,COLUMNS($X$35:X37)-1),"") ->  | W23: =IF(OFFSET(DE104_3!$Y$35,ROWS($Y$35:Y37)-1,COLUMNS($Y$35:Y37)-1)<>"",OFFSET(DE104_3!$Y$35,ROWS($Y$35:Y37)-1,COLUMNS($Y$35:Y37)-1),"") ->  | X23: =IF(OFFSET(DE104_3!$Z$35,ROWS($Z$35:Z37)-1,COLUMNS($Z$35:Z37)-1)<>"",OFFSET(DE104_3!$Z$35,ROWS($Z$35:Z37)-1,COLUMNS($Z$35:Z37)-1),"") ->  | Y23: =IF(OFFSET(DE104_3!$AA$35,ROWS($AA$35:AA37)-1,COLUMNS($AA$35:AA37)-1)<>"",OFFSET(DE104_3!$AA$35,ROWS($AA$35:AA37)-1,COLUMNS($AA$35:AA37)-1),"") ->  | Z23: =IF(OFFSET(DE104_3!$AB$35,ROWS($AB$35:AB37)-1,COLUMNS($AB$35:AB37)-1)<>"",OFFSET(DE104_3!$AB$35,ROWS($AB$35:AB37)-1,COLUMNS($AB$35:AB37)-1),"") ->  | AA23: =IF(OFFSET(DE104_3!$AC$35,ROWS($AC$35:AC37)-1,COLUMNS($AC$35:AC37)-1)<>"",OFFSET(DE104_3!$AC$35,ROWS($AC$35:AC37)-1,COLUMNS($AC$35:AC37)-1),"") ->  | AB23: =IF(OFFSET(DE104_3!$AD$35,ROWS($AD$35:AD37)-1,COLUMNS($AD$35:AD37)-1)<>"",OFFSET(DE104_3!$AD$35,ROWS($AD$35:AD37)-1,COLUMNS($AD$35:AD37)-1),"") ->  | AC23: =IF(OFFSET(DE104_3!$AE$35,ROWS($AE$35:AE37)-1,COLUMNS($AE$35:AE37)-1)<>"",OFFSET(DE104_3!$AE$35,ROWS($AE$35:AE37)-1,COLUMNS($AE$35:AE37)-1),"") ->  | AD23: =IF(OFFSET(DE104_3!$AF$35,ROWS($AF$35:AF37)-1,COLUMNS($AF$35:AF37)-1)<>"",OFFSET(DE104_3!$AF$35,ROWS($AF$35:AF37)-1,COLUMNS($AF$35:AF37)-1),"") ->  | AE23: =IF(OFFSET(DE104_3!$AG$35,ROWS($AG$35:AG37)-1,COLUMNS($AG$35:AG37)-1)<>"",OFFSET(DE104_3!$AG$35,ROWS($AG$35:AG37)-1,COLUMNS($AG$35:AG37)-1),"") ->  | AF23: =IF(OFFSET(DE104_3!$AH$35,ROWS($AH$35:AH37)-1,COLUMNS($AH$35:AH37)-1)<>"",OFFSET(DE104_3!$AH$35,ROWS($AH$35:AH37)-1,COLUMNS($AH$35:AH37)-1),"") ->  | AG23: =IF(OFFSET(DE104_3!$AI$35,ROWS($AI$35:AI37)-1,COLUMNS($AI$35:AI37)-1)<>"",OFFSET(DE104_3!$AI$35,ROWS($AI$35:AI37)-1,COLUMNS($AI$35:AI37)-1),"") ->  | AH23: =IF(OFFSET(DE104_3!$AJ$35,ROWS($AJ$35:AJ37)-1,COLUMNS($AJ$35:AJ37)-1)<>"",OFFSET(DE104_3!$AJ$35,ROWS($AJ$35:AJ37)-1,COLUMNS($AJ$35:AJ37)-1),"") ->  | AI23: =IF(OFFSET(DE104_3!$AK$35,ROWS($AK$35:AK37)-1,COLUMNS($AK$35:AK37)-1)<>"",OFFSET(DE104_3!$AK$35,ROWS($AK$35:AK37)-1,COLUMNS($AK$35:AK37)-1),"") ->  | AJ23: =IF(OFFSET(DE104_3!$AL$35,ROWS($AL$35:AL37)-1,COLUMNS($AL$35:AL37)-1)<>"",OFFSET(DE104_3!$AL$35,ROWS($AL$35:AL37)-1,COLUMNS($AL$35:AL37)-1),"") ->  | AK23: =IF(OFFSET(DE104_3!$AM$35,ROWS($AM$35:AM37)-1,COLUMNS($AM$35:AM37)-1)<>"",OFFSET(DE104_3!$AM$35,ROWS($AM$35:AM37)-1,COLUMNS($AM$35:AM37)-1),"") ->  | AL23: =IF(OFFSET(DE104_3!$AN$35,ROWS($AN$35:AN37)-1,COLUMNS($AN$35:AN37)-1)<>"",OFFSET(DE104_3!$AN$35,ROWS($AN$35:AN37)-1,COLUMNS($AN$35:AN37)-1),"") ->  | AM23: =IF(OFFSET(DE104_3!$AO$35,ROWS($AO$35:AO37)-1,COLUMNS($AO$35:AO37)-1)<>"",OFFSET(DE104_3!$AO$35,ROWS($AO$35:AO37)-1,COLUMNS($AO$35:AO37)-1),"") ->  | AN23: =IF(OFFSET(DE104_3!$AP$35,ROWS($AP$35:AP37)-1,COLUMNS($AP$35:AP37)-1)<>"",OFFSET(DE104_3!$AP$35,ROWS($AP$35:AP37)-1,COLUMNS($AP$35:AP37)-1),"") ->  | AO23: =IF(OFFSET(DE104_3!$AQ$35,ROWS($AQ$35:AQ37)-1,COLUMNS($AQ$35:AQ37)-1)<>"",OFFSET(DE104_3!$AQ$35,ROWS($AQ$35:AQ37)-1,COLUMNS($AQ$35:AQ37)-1),"") -> -2
A24: =IF(OFFSET(DE104_3!$C$35,ROWS($C$35:C38)-1,COLUMNS($C$35:C38)-1)<>"",OFFSET(DE104_3!$C$35,ROWS($C$35:C38)-1,COLUMNS($C$35:C38)-1),"") ->  | B24: =IF(OFFSET(DE104_3!$D$35,ROWS($D$35:D38)-1,COLUMNS($D$35:D38)-1)<>"",OFFSET(DE104_3!$D$35,ROWS($D$35:D38)-1,COLUMNS($D$35:D38)-1),"") -> 111+61.43, 8.93' Lt | C24: =IF(OFFSET(DE104_3!$E$35,ROWS($E$35:E38)-1,COLUMNS($E$35:E38)-1)<>"",OFFSET(DE104_3!$E$35,ROWS($E$35:E38)-1,COLUMNS($E$35:E38)-1),"") -> Existing | D24: =IF(OFFSET(DE104_3!$F$35,ROWS($F$35:F38)-1,COLUMNS($F$35:F38)-1)<>"",OFFSET(DE104_3!$F$35,ROWS($F$35:F38)-1,COLUMNS($F$35:F38)-1),"") ->  | E24: =IF(OFFSET(DE104_3!$G$35,ROWS($G$35:G38)-1,COLUMNS($G$35:G38)-1)<>"",OFFSET(DE104_3!$G$35,ROWS($G$35:G38)-1,COLUMNS($G$35:G38)-1),"") ->  | F24: =IF(OFFSET(DE104_3!$H$35,ROWS($H$35:H38)-1,COLUMNS($H$35:H38)-1)<>"",OFFSET(DE104_3!$H$35,ROWS($H$35:H38)-1,COLUMNS($H$35:H38)-1),"") ->  | G24: =IF(OFFSET(DE104_3!$I$35,ROWS($I$35:I38)-1,COLUMNS($I$35:I38)-1)<>"",OFFSET(DE104_3!$I$35,ROWS($I$35:I38)-1,COLUMNS($I$35:I38)-1),"") ->  | H24: =IF(OFFSET(DE104_3!$J$35,ROWS($J$35:J38)-1,COLUMNS($J$35:J38)-1)<>"",OFFSET(DE104_3!$J$35,ROWS($J$35:J38)-1,COLUMNS($J$35:J38)-1),"") ->  | I24: =IF(OFFSET(DE104_3!$K$35,ROWS($K$35:K38)-1,COLUMNS($K$35:K38)-1)<>"",OFFSET(DE104_3!$K$35,ROWS($K$35:K38)-1,COLUMNS($K$35:K38)-1),"") ->  | J24: =IF(OFFSET(DE104_3!$L$35,ROWS($L$35:L38)-1,COLUMNS($L$35:L38)-1)<>"",OFFSET(DE104_3!$L$35,ROWS($L$35:L38)-1,COLUMNS($L$35:L38)-1),"") ->  | K24: =IF(OFFSET(DE104_3!$M$35,ROWS($M$35:M38)-1,COLUMNS($M$35:M38)-1)<>"",OFFSET(DE104_3!$M$35,ROWS($M$35:M38)-1,COLUMNS($M$35:M38)-1),"") ->  | L24: =IF(OFFSET(DE104_3!$N$35,ROWS($N$35:N38)-1,COLUMNS($N$35:N38)-1)<>"",OFFSET(DE104_3!$N$35,ROWS($N$35:N38)-1,COLUMNS($N$35:N38)-1),"") ->  | M24: =IF(OFFSET(DE104_3!$O$35,ROWS($O$35:O38)-1,COLUMNS($O$35:O38)-1)<>"",OFFSET(DE104_3!$O$35,ROWS($O$35:O38)-1,COLUMNS($O$35:O38)-1),"") ->  | N24: =IF(OFFSET(DE104_3!$P$35,ROWS($P$35:P38)-1,COLUMNS($P$35:P38)-1)<>"",OFFSET(DE104_3!$P$35,ROWS($P$35:P38)-1,COLUMNS($P$35:P38)-1),"") ->  | O24: =IF(OFFSET(DE104_3!$Q$35,ROWS($Q$35:Q38)-1,COLUMNS($Q$35:Q38)-1)<>"",OFFSET(DE104_3!$Q$35,ROWS($Q$35:Q38)-1,COLUMNS($Q$35:Q38)-1),"") ->  | P24: =IF(OFFSET(DE104_3!$R$35,ROWS($R$35:R38)-1,COLUMNS($R$35:R38)-1)<>"",OFFSET(DE104_3!$R$35,ROWS($R$35:R38)-1,COLUMNS($R$35:R38)-1),"") ->  | Q24: =IF(OFFSET(DE104_3!$S$35,ROWS($S$35:S38)-1,COLUMNS($S$35:S38)-1)<>"",OFFSET(DE104_3!$S$35,ROWS($S$35:S38)-1,COLUMNS($S$35:S38)-1),"") ->  | R24: =IF(OFFSET(DE104_3!$T$35,ROWS($T$35:T38)-1,COLUMNS($T$35:T38)-1)<>"",OFFSET(DE104_3!$T$35,ROWS($T$35:T38)-1,COLUMNS($T$35:T38)-1),"") ->  | S24: =IF(OFFSET(DE104_3!$U$35,ROWS($U$35:U38)-1,COLUMNS($U$35:U38)-1)<>"",OFFSET(DE104_3!$U$35,ROWS($U$35:U38)-1,COLUMNS($U$35:U38)-1),"") ->  | T24: =IF(OFFSET(DE104_3!$V$35,ROWS($V$35:V38)-1,COLUMNS($V$35:V38)-1)<>"",OFFSET(DE104_3!$V$35,ROWS($V$35:V38)-1,COLUMNS($V$35:V38)-1),"") ->  | U24: =IF(OFFSET(DE104_3!$W$35,ROWS($W$35:W38)-1,COLUMNS($W$35:W38)-1)<>"",OFFSET(DE104_3!$W$35,ROWS($W$35:W38)-1,COLUMNS($W$35:W38)-1),"") ->  | V24: =IF(OFFSET(DE104_3!$X$35,ROWS($X$35:X38)-1,COLUMNS($X$35:X38)-1)<>"",OFFSET(DE104_3!$X$35,ROWS($X$35:X38)-1,COLUMNS($X$35:X38)-1),"") ->  | W24: =IF(OFFSET(DE104_3!$Y$35,ROWS($Y$35:Y38)-1,COLUMNS($Y$35:Y38)-1)<>"",OFFSET(DE104_3!$Y$35,ROWS($Y$35:Y38)-1,COLUMNS($Y$35:Y38)-1),"") ->  | X24: =IF(OFFSET(DE104_3!$Z$35,ROWS($Z$35:Z38)-1,COLUMNS($Z$35:Z38)-1)<>"",OFFSET(DE104_3!$Z$35,ROWS($Z$35:Z38)-1,COLUMNS($Z$35:Z38)-1),"") ->  | Y24: =IF(OFFSET(DE104_3!$AA$35,ROWS($AA$35:AA38)-1,COLUMNS($AA$35:AA38)-1)<>"",OFFSET(DE104_3!$AA$35,ROWS($AA$35:AA38)-1,COLUMNS($AA$35:AA38)-1),"") ->  | Z24: =IF(OFFSET(DE104_3!$AB$35,ROWS($AB$35:AB38)-1,COLUMNS($AB$35:AB38)-1)<>"",OFFSET(DE104_3!$AB$35,ROWS($AB$35:AB38)-1,COLUMNS($AB$35:AB38)-1),"") ->  | AA24: =IF(OFFSET(DE104_3!$AC$35,ROWS($AC$35:AC38)-1,COLUMNS($AC$35:AC38)-1)<>"",OFFSET(DE104_3!$AC$35,ROWS($AC$35:AC38)-1,COLUMNS($AC$35:AC38)-1),"") ->  | AB24: =IF(OFFSET(DE104_3!$AD$35,ROWS($AD$35:AD38)-1,COLUMNS($AD$35:AD38)-1)<>"",OFFSET(DE104_3!$AD$35,ROWS($AD$35:AD38)-1,COLUMNS($AD$35:AD38)-1),"") ->  | AC24: =IF(OFFSET(DE104_3!$AE$35,ROWS($AE$35:AE38)-1,COLUMNS($AE$35:AE38)-1)<>"",OFFSET(DE104_3!$AE$35,ROWS($AE$35:AE38)-1,COLUMNS($AE$35:AE38)-1),"") ->  | AD24: =IF(OFFSET(DE104_3!$AF$35,ROWS($AF$35:AF38)-1,COLUMNS($AF$35:AF38)-1)<>"",OFFSET(DE104_3!$AF$35,ROWS($AF$35:AF38)-1,COLUMNS($AF$35:AF38)-1),"") ->  | AE24: =IF(OFFSET(DE104_3!$AG$35,ROWS($AG$35:AG38)-1,COLUMNS($AG$35:AG38)-1)<>"",OFFSET(DE104_3!$AG$35,ROWS($AG$35:AG38)-1,COLUMNS($AG$35:AG38)-1),"") ->  | AF24: =IF(OFFSET(DE104_3!$AH$35,ROWS($AH$35:AH38)-1,COLUMNS($AH$35:AH38)-1)<>"",OFFSET(DE104_3!$AH$35,ROWS($AH$35:AH38)-1,COLUMNS($AH$35:AH38)-1),"") ->  | AG24: =IF(OFFSET(DE104_3!$AI$35,ROWS($AI$35:AI38)-1,COLUMNS($AI$35:AI38)-1)<>"",OFFSET(DE104_3!$AI$35,ROWS($AI$35:AI38)-1,COLUMNS($AI$35:AI38)-1),"") ->  | AH24: =IF(OFFSET(DE104_3!$AJ$35,ROWS($AJ$35:AJ38)-1,COLUMNS($AJ$35:AJ38)-1)<>"",OFFSET(DE104_3!$AJ$35,ROWS($AJ$35:AJ38)-1,COLUMNS($AJ$35:AJ38)-1),"") ->  | AI24: =IF(OFFSET(DE104_3!$AK$35,ROWS($AK$35:AK38)-1,COLUMNS($AK$35:AK38)-1)<>"",OFFSET(DE104_3!$AK$35,ROWS($AK$35:AK38)-1,COLUMNS($AK$35:AK38)-1),"") ->  | AJ24: =IF(OFFSET(DE104_3!$AL$35,ROWS($AL$35:AL38)-1,COLUMNS($AL$35:AL38)-1)<>"",OFFSET(DE104_3!$AL$35,ROWS($AL$35:AL38)-1,COLUMNS($AL$35:AL38)-1),"") ->  | AK24: =IF(OFFSET(DE104_3!$AM$35,ROWS($AM$35:AM38)-1,COLUMNS($AM$35:AM38)-1)<>"",OFFSET(DE104_3!$AM$35,ROWS($AM$35:AM38)-1,COLUMNS($AM$35:AM38)-1),"") ->  | AL24: =IF(OFFSET(DE104_3!$AN$35,ROWS($AN$35:AN38)-1,COLUMNS($AN$35:AN38)-1)<>"",OFFSET(DE104_3!$AN$35,ROWS($AN$35:AN38)-1,COLUMNS($AN$35:AN38)-1),"") ->  | AM24: =IF(OFFSET(DE104_3!$AO$35,ROWS($AO$35:AO38)-1,COLUMNS($AO$35:AO38)-1)<>"",OFFSET(DE104_3!$AO$35,ROWS($AO$35:AO38)-1,COLUMNS($AO$35:AO38)-1),"") ->  | AN24: =IF(OFFSET(DE104_3!$AP$35,ROWS($AP$35:AP38)-1,COLUMNS($AP$35:AP38)-1)<>"",OFFSET(DE104_3!$AP$35,ROWS($AP$35:AP38)-1,COLUMNS($AP$35:AP38)-1),"") ->  | AO24: =IF(OFFSET(DE104_3!$AQ$35,ROWS($AQ$35:AQ38)-1,COLUMNS($AQ$35:AQ38)-1)<>"",OFFSET(DE104_3!$AQ$35,ROWS($AQ$35:AQ38)-1,COLUMNS($AQ$35:AQ38)-1),"") -> -3
A25: =IF(OFFSET(DE104_3!$C$35,ROWS($C$35:C39)-1,COLUMNS($C$35:C39)-1)<>"",OFFSET(DE104_3!$C$35,ROWS($C$35:C39)-1,COLUMNS($C$35:C39)-1),"") -> MED | B25: =IF(OFFSET(DE104_3!$D$35,ROWS($D$35:D39)-1,COLUMNS($D$35:D39)-1)<>"",OFFSET(DE104_3!$D$35,ROWS($D$35:D39)-1,COLUMNS($D$35:D39)-1),"") -> 11150 | C25: =IF(OFFSET(DE104_3!$E$35,ROWS($E$35:E39)-1,COLUMNS($E$35:E39)-1)<>"",OFFSET(DE104_3!$E$35,ROWS($E$35:E39)-1,COLUMNS($E$35:E39)-1),"") -> 611 | D25: =IF(OFFSET(DE104_3!$F$35,ROWS($F$35:F39)-1,COLUMNS($F$35:F39)-1)<>"",OFFSET(DE104_3!$F$35,ROWS($F$35:F39)-1,COLUMNS($F$35:F39)-1),"") -> 24 | E25: =IF(OFFSET(DE104_3!$G$35,ROWS($G$35:G39)-1,COLUMNS($G$35:G39)-1)<>"",OFFSET(DE104_3!$G$35,ROWS($G$35:G39)-1,COLUMNS($G$35:G39)-1),"") -> RCP | F25: =IF(OFFSET(DE104_3!$H$35,ROWS($H$35:H39)-1,COLUMNS($H$35:H39)-1)<>"",OFFSET(DE104_3!$H$35,ROWS($H$35:H39)-1,COLUMNS($H$35:H39)-1),"") -> 86 | G25: =IF(OFFSET(DE104_3!$I$35,ROWS($I$35:I39)-1,COLUMNS($I$35:I39)-1)<>"",OFFSET(DE104_3!$I$35,ROWS($I$35:I39)-1,COLUMNS($I$35:I39)-1),"") ->  | H25: =IF(OFFSET(DE104_3!$J$35,ROWS($J$35:J39)-1,COLUMNS($J$35:J39)-1)<>"",OFFSET(DE104_3!$J$35,ROWS($J$35:J39)-1,COLUMNS($J$35:J39)-1),"") -> 4 | I25: =IF(OFFSET(DE104_3!$K$35,ROWS($K$35:K39)-1,COLUMNS($K$35:K39)-1)<>"",OFFSET(DE104_3!$K$35,ROWS($K$35:K39)-1,COLUMNS($K$35:K39)-1),"") ->  | J25: =IF(OFFSET(DE104_3!$L$35,ROWS($L$35:L39)-1,COLUMNS($L$35:L39)-1)<>"",OFFSET(DE104_3!$L$35,ROWS($L$35:L39)-1,COLUMNS($L$35:L39)-1),"") -> 1 | K25: =IF(OFFSET(DE104_3!$M$35,ROWS($M$35:M39)-1,COLUMNS($M$35:M39)-1)<>"",OFFSET(DE104_3!$M$35,ROWS($M$35:M39)-1,COLUMNS($M$35:M39)-1),"") -> 1 | L25: =IF(OFFSET(DE104_3!$N$35,ROWS($N$35:N39)-1,COLUMNS($N$35:N39)-1)<>"",OFFSET(DE104_3!$N$35,ROWS($N$35:N39)-1,COLUMNS($N$35:N39)-1),"") -> 1 | M25: =IF(OFFSET(DE104_3!$O$35,ROWS($O$35:O39)-1,COLUMNS($O$35:O39)-1)<>"",OFFSET(DE104_3!$O$35,ROWS($O$35:O39)-1,COLUMNS($O$35:O39)-1),"") ->  | N25: =IF(OFFSET(DE104_3!$P$35,ROWS($P$35:P39)-1,COLUMNS($P$35:P39)-1)<>"",OFFSET(DE104_3!$P$35,ROWS($P$35:P39)-1,COLUMNS($P$35:P39)-1),"") ->  | O25: =IF(OFFSET(DE104_3!$Q$35,ROWS($Q$35:Q39)-1,COLUMNS($Q$35:Q39)-1)<>"",OFFSET(DE104_3!$Q$35,ROWS($Q$35:Q39)-1,COLUMNS($Q$35:Q39)-1),"") ->  | P25: =IF(OFFSET(DE104_3!$R$35,ROWS($R$35:R39)-1,COLUMNS($R$35:R39)-1)<>"",OFFSET(DE104_3!$R$35,ROWS($R$35:R39)-1,COLUMNS($R$35:R39)-1),"") ->  | Q25: =IF(OFFSET(DE104_3!$S$35,ROWS($S$35:S39)-1,COLUMNS($S$35:S39)-1)<>"",OFFSET(DE104_3!$S$35,ROWS($S$35:S39)-1,COLUMNS($S$35:S39)-1),"") ->  | R25: =IF(OFFSET(DE104_3!$T$35,ROWS($T$35:T39)-1,COLUMNS($T$35:T39)-1)<>"",OFFSET(DE104_3!$T$35,ROWS($T$35:T39)-1,COLUMNS($T$35:T39)-1),"") ->  | S25: =IF(OFFSET(DE104_3!$U$35,ROWS($U$35:U39)-1,COLUMNS($U$35:U39)-1)<>"",OFFSET(DE104_3!$U$35,ROWS($U$35:U39)-1,COLUMNS($U$35:U39)-1),"") ->  | T25: =IF(OFFSET(DE104_3!$V$35,ROWS($V$35:V39)-1,COLUMNS($V$35:V39)-1)<>"",OFFSET(DE104_3!$V$35,ROWS($V$35:V39)-1,COLUMNS($V$35:V39)-1),"") ->  | U25: =IF(OFFSET(DE104_3!$W$35,ROWS($W$35:W39)-1,COLUMNS($W$35:W39)-1)<>"",OFFSET(DE104_3!$W$35,ROWS($W$35:W39)-1,COLUMNS($W$35:W39)-1),"") -> 838.38 | V25: =IF(OFFSET(DE104_3!$X$35,ROWS($X$35:X39)-1,COLUMNS($X$35:X39)-1)<>"",OFFSET(DE104_3!$X$35,ROWS($X$35:X39)-1,COLUMNS($X$35:X39)-1),"") -> 834.77 | W25: =IF(OFFSET(DE104_3!$Y$35,ROWS($Y$35:Y39)-1,COLUMNS($Y$35:Y39)-1)<>"",OFFSET(DE104_3!$Y$35,ROWS($Y$35:Y39)-1,COLUMNS($Y$35:Y39)-1),"") -> 838.38 | X25: =IF(OFFSET(DE104_3!$Z$35,ROWS($Z$35:Z39)-1,COLUMNS($Z$35:Z39)-1)<>"",OFFSET(DE104_3!$Z$35,ROWS($Z$35:Z39)-1,COLUMNS($Z$35:Z39)-1),"") -> 836.67 | Y25: =IF(OFFSET(DE104_3!$AA$35,ROWS($AA$35:AA39)-1,COLUMNS($AA$35:AA39)-1)<>"",OFFSET(DE104_3!$AA$35,ROWS($AA$35:AA39)-1,COLUMNS($AA$35:AA39)-1),"") ->  | Z25: =IF(OFFSET(DE104_3!$AB$35,ROWS($AB$35:AB39)-1,COLUMNS($AB$35:AB39)-1)<>"",OFFSET(DE104_3!$AB$35,ROWS($AB$35:AB39)-1,COLUMNS($AB$35:AB39)-1),"") -> 55.9 | AA25: =IF(OFFSET(DE104_3!$AC$35,ROWS($AC$35:AC39)-1,COLUMNS($AC$35:AC39)-1)<>"",OFFSET(DE104_3!$AC$35,ROWS($AC$35:AC39)-1,COLUMNS($AC$35:AC39)-1),"") -> 42.3 | AB25: =IF(OFFSET(DE104_3!$AD$35,ROWS($AD$35:AD39)-1,COLUMNS($AD$35:AD39)-1)<>"",OFFSET(DE104_3!$AD$35,ROWS($AD$35:AD39)-1,COLUMNS($AD$35:AD39)-1),"") ->  | AC25: =IF(OFFSET(DE104_3!$AE$35,ROWS($AE$35:AE39)-1,COLUMNS($AE$35:AE39)-1)<>"",OFFSET(DE104_3!$AE$35,ROWS($AE$35:AE39)-1,COLUMNS($AE$35:AE39)-1),"") ->  | AD25: =IF(OFFSET(DE104_3!$AF$35,ROWS($AF$35:AF39)-1,COLUMNS($AF$35:AF39)-1)<>"",OFFSET(DE104_3!$AF$35,ROWS($AF$35:AF39)-1,COLUMNS($AF$35:AF39)-1),"") ->  | AE25: =IF(OFFSET(DE104_3!$AG$35,ROWS($AG$35:AG39)-1,COLUMNS($AG$35:AG39)-1)<>"",OFFSET(DE104_3!$AG$35,ROWS($AG$35:AG39)-1,COLUMNS($AG$35:AG39)-1),"") ->  | AF25: =IF(OFFSET(DE104_3!$AH$35,ROWS($AH$35:AH39)-1,COLUMNS($AH$35:AH39)-1)<>"",OFFSET(DE104_3!$AH$35,ROWS($AH$35:AH39)-1,COLUMNS($AH$35:AH39)-1),"") ->  | AG25: =IF(OFFSET(DE104_3!$AI$35,ROWS($AI$35:AI39)-1,COLUMNS($AI$35:AI39)-1)<>"",OFFSET(DE104_3!$AI$35,ROWS($AI$35:AI39)-1,COLUMNS($AI$35:AI39)-1),"") ->  | AH25: =IF(OFFSET(DE104_3!$AJ$35,ROWS($AJ$35:AJ39)-1,COLUMNS($AJ$35:AJ39)-1)<>"",OFFSET(DE104_3!$AJ$35,ROWS($AJ$35:AJ39)-1,COLUMNS($AJ$35:AJ39)-1),"") ->  | AI25: =IF(OFFSET(DE104_3!$AK$35,ROWS($AK$35:AK39)-1,COLUMNS($AK$35:AK39)-1)<>"",OFFSET(DE104_3!$AK$35,ROWS($AK$35:AK39)-1,COLUMNS($AK$35:AK39)-1),"") ->  | AJ25: =IF(OFFSET(DE104_3!$AL$35,ROWS($AL$35:AL39)-1,COLUMNS($AL$35:AL39)-1)<>"",OFFSET(DE104_3!$AL$35,ROWS($AL$35:AL39)-1,COLUMNS($AL$35:AL39)-1),"") -> 258.8303333 | AK25: =IF(OFFSET(DE104_3!$AM$35,ROWS($AM$35:AM39)-1,COLUMNS($AM$35:AM39)-1)<>"",OFFSET(DE104_3!$AM$35,ROWS($AM$35:AM39)-1,COLUMNS($AM$35:AM39)-1),"") -> 13.00185185 | AL25: =IF(OFFSET(DE104_3!$AN$35,ROWS($AN$35:AN39)-1,COLUMNS($AN$35:AN39)-1)<>"",OFFSET(DE104_3!$AN$35,ROWS($AN$35:AN39)-1,COLUMNS($AN$35:AN39)-1),"") -> 66.03814815 | AM25: =IF(OFFSET(DE104_3!$AO$35,ROWS($AO$35:AO39)-1,COLUMNS($AO$35:AO39)-1)<>"",OFFSET(DE104_3!$AO$35,ROWS($AO$35:AO39)-1,COLUMNS($AO$35:AO39)-1),"") -> 7.525666667 | AN25: =IF(OFFSET(DE104_3!$AP$35,ROWS($AP$35:AP39)-1,COLUMNS($AP$35:AP39)-1)<>"",OFFSET(DE104_3!$AP$35,ROWS($AP$35:AP39)-1,COLUMNS($AP$35:AP39)-1),"") -> 73.56381481 | AO25: =IF(OFFSET(DE104_3!$AQ$35,ROWS($AQ$35:AQ39)-1,COLUMNS($AQ$35:AQ39)-1)<>"",OFFSET(DE104_3!$AQ$35,ROWS($AQ$35:AQ39)-1,COLUMNS($AQ$35:AQ39)-1),"") -> -4
A26: =IF(OFFSET(DE104_3!$C$35,ROWS($C$35:C40)-1,COLUMNS($C$35:C40)-1)<>"",OFFSET(DE104_3!$C$35,ROWS($C$35:C40)-1,COLUMNS($C$35:C40)-1),"") -> MED | B26: =IF(OFFSET(DE104_3!$D$35,ROWS($D$35:D40)-1,COLUMNS($D$35:D40)-1)<>"",OFFSET(DE104_3!$D$35,ROWS($D$35:D40)-1,COLUMNS($D$35:D40)-1),"") -> 12100 | C26: =IF(OFFSET(DE104_3!$E$35,ROWS($E$35:E40)-1,COLUMNS($E$35:E40)-1)<>"",OFFSET(DE104_3!$E$35,ROWS($E$35:E40)-1,COLUMNS($E$35:E40)-1),"") -> 611 | D26: =IF(OFFSET(DE104_3!$F$35,ROWS($F$35:F40)-1,COLUMNS($F$35:F40)-1)<>"",OFFSET(DE104_3!$F$35,ROWS($F$35:F40)-1,COLUMNS($F$35:F40)-1),"") -> 24 | E26: =IF(OFFSET(DE104_3!$G$35,ROWS($G$35:G40)-1,COLUMNS($G$35:G40)-1)<>"",OFFSET(DE104_3!$G$35,ROWS($G$35:G40)-1,COLUMNS($G$35:G40)-1),"") -> RCP | F26: =IF(OFFSET(DE104_3!$H$35,ROWS($H$35:H40)-1,COLUMNS($H$35:H40)-1)<>"",OFFSET(DE104_3!$H$35,ROWS($H$35:H40)-1,COLUMNS($H$35:H40)-1),"") -> 76 | G26: =IF(OFFSET(DE104_3!$I$35,ROWS($I$35:I40)-1,COLUMNS($I$35:I40)-1)<>"",OFFSET(DE104_3!$I$35,ROWS($I$35:I40)-1,COLUMNS($I$35:I40)-1),"") ->  | H26: =IF(OFFSET(DE104_3!$J$35,ROWS($J$35:J40)-1,COLUMNS($J$35:J40)-1)<>"",OFFSET(DE104_3!$J$35,ROWS($J$35:J40)-1,COLUMNS($J$35:J40)-1),"") -> 2.5 | I26: =IF(OFFSET(DE104_3!$K$35,ROWS($K$35:K40)-1,COLUMNS($K$35:K40)-1)<>"",OFFSET(DE104_3!$K$35,ROWS($K$35:K40)-1,COLUMNS($K$35:K40)-1),"") ->  | J26: =IF(OFFSET(DE104_3!$L$35,ROWS($L$35:L40)-1,COLUMNS($L$35:L40)-1)<>"",OFFSET(DE104_3!$L$35,ROWS($L$35:L40)-1,COLUMNS($L$35:L40)-1),"") -> 1 | K26: =IF(OFFSET(DE104_3!$M$35,ROWS($M$35:M40)-1,COLUMNS($M$35:M40)-1)<>"",OFFSET(DE104_3!$M$35,ROWS($M$35:M40)-1,COLUMNS($M$35:M40)-1),"") -> 1 | L26: =IF(OFFSET(DE104_3!$N$35,ROWS($N$35:N40)-1,COLUMNS($N$35:N40)-1)<>"",OFFSET(DE104_3!$N$35,ROWS($N$35:N40)-1,COLUMNS($N$35:N40)-1),"") -> 1 | M26: =IF(OFFSET(DE104_3!$O$35,ROWS($O$35:O40)-1,COLUMNS($O$35:O40)-1)<>"",OFFSET(DE104_3!$O$35,ROWS($O$35:O40)-1,COLUMNS($O$35:O40)-1),"") ->  | N26: =IF(OFFSET(DE104_3!$P$35,ROWS($P$35:P40)-1,COLUMNS($P$35:P40)-1)<>"",OFFSET(DE104_3!$P$35,ROWS($P$35:P40)-1,COLUMNS($P$35:P40)-1),"") ->  | O26: =IF(OFFSET(DE104_3!$Q$35,ROWS($Q$35:Q40)-1,COLUMNS($Q$35:Q40)-1)<>"",OFFSET(DE104_3!$Q$35,ROWS($Q$35:Q40)-1,COLUMNS($Q$35:Q40)-1),"") ->  | P26: =IF(OFFSET(DE104_3!$R$35,ROWS($R$35:R40)-1,COLUMNS($R$35:R40)-1)<>"",OFFSET(DE104_3!$R$35,ROWS($R$35:R40)-1,COLUMNS($R$35:R40)-1),"") ->  | Q26: =IF(OFFSET(DE104_3!$S$35,ROWS($S$35:S40)-1,COLUMNS($S$35:S40)-1)<>"",OFFSET(DE104_3!$S$35,ROWS($S$35:S40)-1,COLUMNS($S$35:S40)-1),"") ->  | R26: =IF(OFFSET(DE104_3!$T$35,ROWS($T$35:T40)-1,COLUMNS($T$35:T40)-1)<>"",OFFSET(DE104_3!$T$35,ROWS($T$35:T40)-1,COLUMNS($T$35:T40)-1),"") ->  | S26: =IF(OFFSET(DE104_3!$U$35,ROWS($U$35:U40)-1,COLUMNS($U$35:U40)-1)<>"",OFFSET(DE104_3!$U$35,ROWS($U$35:U40)-1,COLUMNS($U$35:U40)-1),"") ->  | T26: =IF(OFFSET(DE104_3!$V$35,ROWS($V$35:V40)-1,COLUMNS($V$35:V40)-1)<>"",OFFSET(DE104_3!$V$35,ROWS($V$35:V40)-1,COLUMNS($V$35:V40)-1),"") ->  | U26: =IF(OFFSET(DE104_3!$W$35,ROWS($W$35:W40)-1,COLUMNS($W$35:W40)-1)<>"",OFFSET(DE104_3!$W$35,ROWS($W$35:W40)-1,COLUMNS($W$35:W40)-1),"") ->  | V26: =IF(OFFSET(DE104_3!$X$35,ROWS($X$35:X40)-1,COLUMNS($X$35:X40)-1)<>"",OFFSET(DE104_3!$X$35,ROWS($X$35:X40)-1,COLUMNS($X$35:X40)-1),"") -> 865.47 | W26: =IF(OFFSET(DE104_3!$Y$35,ROWS($Y$35:Y40)-1,COLUMNS($Y$35:Y40)-1)<>"",OFFSET(DE104_3!$Y$35,ROWS($Y$35:Y40)-1,COLUMNS($Y$35:Y40)-1),"") -> 866.51 | X26: =IF(OFFSET(DE104_3!$Z$35,ROWS($Z$35:Z40)-1,COLUMNS($Z$35:Z40)-1)<>"",OFFSET(DE104_3!$Z$35,ROWS($Z$35:Z40)-1,COLUMNS($Z$35:Z40)-1),"") -> 865.7 | Y26: =IF(OFFSET(DE104_3!$AA$35,ROWS($AA$35:AA40)-1,COLUMNS($AA$35:AA40)-1)<>"",OFFSET(DE104_3!$AA$35,ROWS($AA$35:AA40)-1,COLUMNS($AA$35:AA40)-1),"") ->  | Z26: =IF(OFFSET(DE104_3!$AB$35,ROWS($AB$35:AB40)-1,COLUMNS($AB$35:AB40)-1)<>"",OFFSET(DE104_3!$AB$35,ROWS($AB$35:AB40)-1,COLUMNS($AB$35:AB40)-1),"") -> 50 | AA26: =IF(OFFSET(DE104_3!$AC$35,ROWS($AC$35:AC40)-1,COLUMNS($AC$35:AC40)-1)<>"",OFFSET(DE104_3!$AC$35,ROWS($AC$35:AC40)-1,COLUMNS($AC$35:AC40)-1),"") -> 38.16 | AB26: =IF(OFFSET(DE104_3!$AD$35,ROWS($AD$35:AD40)-1,COLUMNS($AD$35:AD40)-1)<>"",OFFSET(DE104_3!$AD$35,ROWS($AD$35:AD40)-1,COLUMNS($AD$35:AD40)-1),"") ->  | AC26: =IF(OFFSET(DE104_3!$AE$35,ROWS($AE$35:AE40)-1,COLUMNS($AE$35:AE40)-1)<>"",OFFSET(DE104_3!$AE$35,ROWS($AE$35:AE40)-1,COLUMNS($AE$35:AE40)-1),"") ->  | AD26: =IF(OFFSET(DE104_3!$AF$35,ROWS($AF$35:AF40)-1,COLUMNS($AF$35:AF40)-1)<>"",OFFSET(DE104_3!$AF$35,ROWS($AF$35:AF40)-1,COLUMNS($AF$35:AF40)-1),"") ->  | AE26: =IF(OFFSET(DE104_3!$AG$35,ROWS($AG$35:AG40)-1,COLUMNS($AG$35:AG40)-1)<>"",OFFSET(DE104_3!$AG$35,ROWS($AG$35:AG40)-1,COLUMNS($AG$35:AG40)-1),"") ->  | AF26: =IF(OFFSET(DE104_3!$AH$35,ROWS($AH$35:AH40)-1,COLUMNS($AH$35:AH40)-1)<>"",OFFSET(DE104_3!$AH$35,ROWS($AH$35:AH40)-1,COLUMNS($AH$35:AH40)-1),"") ->  | AG26: =IF(OFFSET(DE104_3!$AI$35,ROWS($AI$35:AI40)-1,COLUMNS($AI$35:AI40)-1)<>"",OFFSET(DE104_3!$AI$35,ROWS($AI$35:AI40)-1,COLUMNS($AI$35:AI40)-1),"") ->  | AH26: =IF(OFFSET(DE104_3!$AJ$35,ROWS($AJ$35:AJ40)-1,COLUMNS($AJ$35:AJ40)-1)<>"",OFFSET(DE104_3!$AJ$35,ROWS($AJ$35:AJ40)-1,COLUMNS($AJ$35:AJ40)-1),"") ->  | AI26: =IF(OFFSET(DE104_3!$AK$35,ROWS($AK$35:AK40)-1,COLUMNS($AK$35:AK40)-1)<>"",OFFSET(DE104_3!$AK$35,ROWS($AK$35:AK40)-1,COLUMNS($AK$35:AK40)-1),"") ->  | AJ26: =IF(OFFSET(DE104_3!$AL$35,ROWS($AL$35:AL40)-1,COLUMNS($AL$35:AL40)-1)<>"",OFFSET(DE104_3!$AL$35,ROWS($AL$35:AL40)-1,COLUMNS($AL$35:AL40)-1),"") -> 149.6352 | AK26: =IF(OFFSET(DE104_3!$AM$35,ROWS($AM$35:AM40)-1,COLUMNS($AM$35:AM40)-1)<>"",OFFSET(DE104_3!$AM$35,ROWS($AM$35:AM40)-1,COLUMNS($AM$35:AM40)-1),"") -> 9.838262963 | AL26: =IF(OFFSET(DE104_3!$AN$35,ROWS($AN$35:AN40)-1,COLUMNS($AN$35:AN40)-1)<>"",OFFSET(DE104_3!$AN$35,ROWS($AN$35:AN40)-1,COLUMNS($AN$35:AN40)-1),"") -> 34.1887 | AM26: =IF(OFFSET(DE104_3!$AO$35,ROWS($AO$35:AO40)-1,COLUMNS($AO$35:AO40)-1)<>"",OFFSET(DE104_3!$AO$35,ROWS($AO$35:AO40)-1,COLUMNS($AO$35:AO40)-1),"") -> 6.743403704 | AN26: =IF(OFFSET(DE104_3!$AP$35,ROWS($AP$35:AP40)-1,COLUMNS($AP$35:AP40)-1)<>"",OFFSET(DE104_3!$AP$35,ROWS($AP$35:AP40)-1,COLUMNS($AP$35:AP40)-1),"") -> 40.9321037 | AO26: =IF(OFFSET(DE104_3!$AQ$35,ROWS($AQ$35:AQ40)-1,COLUMNS($AQ$35:AQ40)-1)<>"",OFFSET(DE104_3!$AQ$35,ROWS($AQ$35:AQ40)-1,COLUMNS($AQ$35:AQ40)-1),"") -> -5
A27: =IF(OFFSET(DE104_3!$C$35,ROWS($C$35:C41)-1,COLUMNS($C$35:C41)-1)<>"",OFFSET(DE104_3!$C$35,ROWS($C$35:C41)-1,COLUMNS($C$35:C41)-1),"") -> MED | B27: =IF(OFFSET(DE104_3!$D$35,ROWS($D$35:D41)-1,COLUMNS($D$35:D41)-1)<>"",OFFSET(DE104_3!$D$35,ROWS($D$35:D41)-1,COLUMNS($D$35:D41)-1),"") -> 13400 | C27: =IF(OFFSET(DE104_3!$E$35,ROWS($E$35:E41)-1,COLUMNS($E$35:E41)-1)<>"",OFFSET(DE104_3!$E$35,ROWS($E$35:E41)-1,COLUMNS($E$35:E41)-1),"") -> 611 | D27: =IF(OFFSET(DE104_3!$F$35,ROWS($F$35:F41)-1,COLUMNS($F$35:F41)-1)<>"",OFFSET(DE104_3!$F$35,ROWS($F$35:F41)-1,COLUMNS($F$35:F41)-1),"") -> 24 | E27: =IF(OFFSET(DE104_3!$G$35,ROWS($G$35:G41)-1,COLUMNS($G$35:G41)-1)<>"",OFFSET(DE104_3!$G$35,ROWS($G$35:G41)-1,COLUMNS($G$35:G41)-1),"") -> RCP | F27: =IF(OFFSET(DE104_3!$H$35,ROWS($H$35:H41)-1,COLUMNS($H$35:H41)-1)<>"",OFFSET(DE104_3!$H$35,ROWS($H$35:H41)-1,COLUMNS($H$35:H41)-1),"") -> 76 | G27: =IF(OFFSET(DE104_3!$I$35,ROWS($I$35:I41)-1,COLUMNS($I$35:I41)-1)<>"",OFFSET(DE104_3!$I$35,ROWS($I$35:I41)-1,COLUMNS($I$35:I41)-1),"") ->  | H27: =IF(OFFSET(DE104_3!$J$35,ROWS($J$35:J41)-1,COLUMNS($J$35:J41)-1)<>"",OFFSET(DE104_3!$J$35,ROWS($J$35:J41)-1,COLUMNS($J$35:J41)-1),"") -> 2.5 | I27: =IF(OFFSET(DE104_3!$K$35,ROWS($K$35:K41)-1,COLUMNS($K$35:K41)-1)<>"",OFFSET(DE104_3!$K$35,ROWS($K$35:K41)-1,COLUMNS($K$35:K41)-1),"") ->  | J27: =IF(OFFSET(DE104_3!$L$35,ROWS($L$35:L41)-1,COLUMNS($L$35:L41)-1)<>"",OFFSET(DE104_3!$L$35,ROWS($L$35:L41)-1,COLUMNS($L$35:L41)-1),"") -> 1 | K27: =IF(OFFSET(DE104_3!$M$35,ROWS($M$35:M41)-1,COLUMNS($M$35:M41)-1)<>"",OFFSET(DE104_3!$M$35,ROWS($M$35:M41)-1,COLUMNS($M$35:M41)-1),"") -> 1 | L27: =IF(OFFSET(DE104_3!$N$35,ROWS($N$35:N41)-1,COLUMNS($N$35:N41)-1)<>"",OFFSET(DE104_3!$N$35,ROWS($N$35:N41)-1,COLUMNS($N$35:N41)-1),"") -> 1 | M27: =IF(OFFSET(DE104_3!$O$35,ROWS($O$35:O41)-1,COLUMNS($O$35:O41)-1)<>"",OFFSET(DE104_3!$O$35,ROWS($O$35:O41)-1,COLUMNS($O$35:O41)-1),"") ->  | N27: =IF(OFFSET(DE104_3!$P$35,ROWS($P$35:P41)-1,COLUMNS($P$35:P41)-1)<>"",OFFSET(DE104_3!$P$35,ROWS($P$35:P41)-1,COLUMNS($P$35:P41)-1),"") ->  | O27: =IF(OFFSET(DE104_3!$Q$35,ROWS($Q$35:Q41)-1,COLUMNS($Q$35:Q41)-1)<>"",OFFSET(DE104_3!$Q$35,ROWS($Q$35:Q41)-1,COLUMNS($Q$35:Q41)-1),"") ->  | P27: =IF(OFFSET(DE104_3!$R$35,ROWS($R$35:R41)-1,COLUMNS($R$35:R41)-1)<>"",OFFSET(DE104_3!$R$35,ROWS($R$35:R41)-1,COLUMNS($R$35:R41)-1),"") ->  | Q27: =IF(OFFSET(DE104_3!$S$35,ROWS($S$35:S41)-1,COLUMNS($S$35:S41)-1)<>"",OFFSET(DE104_3!$S$35,ROWS($S$35:S41)-1,COLUMNS($S$35:S41)-1),"") ->  | R27: =IF(OFFSET(DE104_3!$T$35,ROWS($T$35:T41)-1,COLUMNS($T$35:T41)-1)<>"",OFFSET(DE104_3!$T$35,ROWS($T$35:T41)-1,COLUMNS($T$35:T41)-1),"") ->  | S27: =IF(OFFSET(DE104_3!$U$35,ROWS($U$35:U41)-1,COLUMNS($U$35:U41)-1)<>"",OFFSET(DE104_3!$U$35,ROWS($U$35:U41)-1,COLUMNS($U$35:U41)-1),"") ->  | T27: =IF(OFFSET(DE104_3!$V$35,ROWS($V$35:V41)-1,COLUMNS($V$35:V41)-1)<>"",OFFSET(DE104_3!$V$35,ROWS($V$35:V41)-1,COLUMNS($V$35:V41)-1),"") ->  | U27: =IF(OFFSET(DE104_3!$W$35,ROWS($W$35:W41)-1,COLUMNS($W$35:W41)-1)<>"",OFFSET(DE104_3!$W$35,ROWS($W$35:W41)-1,COLUMNS($W$35:W41)-1),"") ->  | V27: =IF(OFFSET(DE104_3!$X$35,ROWS($X$35:X41)-1,COLUMNS($X$35:X41)-1)<>"",OFFSET(DE104_3!$X$35,ROWS($X$35:X41)-1,COLUMNS($X$35:X41)-1),"") -> 912.6 | W27: =IF(OFFSET(DE104_3!$Y$35,ROWS($Y$35:Y41)-1,COLUMNS($Y$35:Y41)-1)<>"",OFFSET(DE104_3!$Y$35,ROWS($Y$35:Y41)-1,COLUMNS($Y$35:Y41)-1),"") -> 914.46 | X27: =IF(OFFSET(DE104_3!$Z$35,ROWS($Z$35:Z41)-1,COLUMNS($Z$35:Z41)-1)<>"",OFFSET(DE104_3!$Z$35,ROWS($Z$35:Z41)-1,COLUMNS($Z$35:Z41)-1),"") -> 913.58 | Y27: =IF(OFFSET(DE104_3!$AA$35,ROWS($AA$35:AA41)-1,COLUMNS($AA$35:AA41)-1)<>"",OFFSET(DE104_3!$AA$35,ROWS($AA$35:AA41)-1,COLUMNS($AA$35:AA41)-1),"") ->  | Z27: =IF(OFFSET(DE104_3!$AB$35,ROWS($AB$35:AB41)-1,COLUMNS($AB$35:AB41)-1)<>"",OFFSET(DE104_3!$AB$35,ROWS($AB$35:AB41)-1,COLUMNS($AB$35:AB41)-1),"") -> 50 | AA27: =IF(OFFSET(DE104_3!$AC$35,ROWS($AC$35:AC41)-1,COLUMNS($AC$35:AC41)-1)<>"",OFFSET(DE104_3!$AC$35,ROWS($AC$35:AC41)-1,COLUMNS($AC$35:AC41)-1),"") -> 38.16 | AB27: =IF(OFFSET(DE104_3!$AD$35,ROWS($AD$35:AD41)-1,COLUMNS($AD$35:AD41)-1)<>"",OFFSET(DE104_3!$AD$35,ROWS($AD$35:AD41)-1,COLUMNS($AD$35:AD41)-1),"") ->  | AC27: =IF(OFFSET(DE104_3!$AE$35,ROWS($AE$35:AE41)-1,COLUMNS($AE$35:AE41)-1)<>"",OFFSET(DE104_3!$AE$35,ROWS($AE$35:AE41)-1,COLUMNS($AE$35:AE41)-1),"") ->  | AD27: =IF(OFFSET(DE104_3!$AF$35,ROWS($AF$35:AF41)-1,COLUMNS($AF$35:AF41)-1)<>"",OFFSET(DE104_3!$AF$35,ROWS($AF$35:AF41)-1,COLUMNS($AF$35:AF41)-1),"") ->  | AE27: =IF(OFFSET(DE104_3!$AG$35,ROWS($AG$35:AG41)-1,COLUMNS($AG$35:AG41)-1)<>"",OFFSET(DE104_3!$AG$35,ROWS($AG$35:AG41)-1,COLUMNS($AG$35:AG41)-1),"") ->  | AF27: =IF(OFFSET(DE104_3!$AH$35,ROWS($AH$35:AH41)-1,COLUMNS($AH$35:AH41)-1)<>"",OFFSET(DE104_3!$AH$35,ROWS($AH$35:AH41)-1,COLUMNS($AH$35:AH41)-1),"") ->  | AG27: =IF(OFFSET(DE104_3!$AI$35,ROWS($AI$35:AI41)-1,COLUMNS($AI$35:AI41)-1)<>"",OFFSET(DE104_3!$AI$35,ROWS($AI$35:AI41)-1,COLUMNS($AI$35:AI41)-1),"") ->  | AH27: =IF(OFFSET(DE104_3!$AJ$35,ROWS($AJ$35:AJ41)-1,COLUMNS($AJ$35:AJ41)-1)<>"",OFFSET(DE104_3!$AJ$35,ROWS($AJ$35:AJ41)-1,COLUMNS($AJ$35:AJ41)-1),"") ->  | AI27: =IF(OFFSET(DE104_3!$AK$35,ROWS($AK$35:AK41)-1,COLUMNS($AK$35:AK41)-1)<>"",OFFSET(DE104_3!$AK$35,ROWS($AK$35:AK41)-1,COLUMNS($AK$35:AK41)-1),"") ->  | AJ27: =IF(OFFSET(DE104_3!$AL$35,ROWS($AL$35:AL41)-1,COLUMNS($AL$35:AL41)-1)<>"",OFFSET(DE104_3!$AL$35,ROWS($AL$35:AL41)-1,COLUMNS($AL$35:AL41)-1),"") -> 166.9662 | AK27: =IF(OFFSET(DE104_3!$AM$35,ROWS($AM$35:AM41)-1,COLUMNS($AM$35:AM41)-1)<>"",OFFSET(DE104_3!$AM$35,ROWS($AM$35:AM41)-1,COLUMNS($AM$35:AM41)-1),"") -> 9.801466667 | AL27: =IF(OFFSET(DE104_3!$AN$35,ROWS($AN$35:AN41)-1,COLUMNS($AN$35:AN41)-1)<>"",OFFSET(DE104_3!$AN$35,ROWS($AN$35:AN41)-1,COLUMNS($AN$35:AN41)-1),"") -> 31.85348889 | AM27: =IF(OFFSET(DE104_3!$AO$35,ROWS($AO$35:AO41)-1,COLUMNS($AO$35:AO41)-1)<>"",OFFSET(DE104_3!$AO$35,ROWS($AO$35:AO41)-1,COLUMNS($AO$35:AO41)-1),"") -> 6.743403704 | AN27: =IF(OFFSET(DE104_3!$AP$35,ROWS($AP$35:AP41)-1,COLUMNS($AP$35:AP41)-1)<>"",OFFSET(DE104_3!$AP$35,ROWS($AP$35:AP41)-1,COLUMNS($AP$35:AP41)-1),"") -> 38.59689259 | AO27: =IF(OFFSET(DE104_3!$AQ$35,ROWS($AQ$35:AQ41)-1,COLUMNS($AQ$35:AQ41)-1)<>"",OFFSET(DE104_3!$AQ$35,ROWS($AQ$35:AQ41)-1,COLUMNS($AQ$35:AQ41)-1),"") -> -6
A28: =IF(OFFSET(DE104_3!$C$35,ROWS($C$35:C42)-1,COLUMNS($C$35:C42)-1)<>"",OFFSET(DE104_3!$C$35,ROWS($C$35:C42)-1,COLUMNS($C$35:C42)-1),"") -> 10 H | B28: =IF(OFFSET(DE104_3!$D$35,ROWS($D$35:D42)-1,COLUMNS($D$35:D42)-1)<>"",OFFSET(DE104_3!$D$35,ROWS($D$35:D42)-1,COLUMNS($D$35:D42)-1),"") -> 13985 | C28: =IF(OFFSET(DE104_3!$E$35,ROWS($E$35:E42)-1,COLUMNS($E$35:E42)-1)<>"",OFFSET(DE104_3!$E$35,ROWS($E$35:E42)-1,COLUMNS($E$35:E42)-1),"") -> 601 | D28: =IF(OFFSET(DE104_3!$F$35,ROWS($F$35:F42)-1,COLUMNS($F$35:F42)-1)<>"",OFFSET(DE104_3!$F$35,ROWS($F$35:F42)-1,COLUMNS($F$35:F42)-1),"") -> 36 | E28: =IF(OFFSET(DE104_3!$G$35,ROWS($G$35:G42)-1,COLUMNS($G$35:G42)-1)<>"",OFFSET(DE104_3!$G$35,ROWS($G$35:G42)-1,COLUMNS($G$35:G42)-1),"") -> RCP | F28: =IF(OFFSET(DE104_3!$H$35,ROWS($H$35:H42)-1,COLUMNS($H$35:H42)-1)<>"",OFFSET(DE104_3!$H$35,ROWS($H$35:H42)-1,COLUMNS($H$35:H42)-1),"") -> 378 | G28: =IF(OFFSET(DE104_3!$I$35,ROWS($I$35:I42)-1,COLUMNS($I$35:I42)-1)<>"",OFFSET(DE104_3!$I$35,ROWS($I$35:I42)-1,COLUMNS($I$35:I42)-1),"") ->  | H28: =IF(OFFSET(DE104_3!$J$35,ROWS($J$35:J42)-1,COLUMNS($J$35:J42)-1)<>"",OFFSET(DE104_3!$J$35,ROWS($J$35:J42)-1,COLUMNS($J$35:J42)-1),"") -> 25 | I28: =IF(OFFSET(DE104_3!$K$35,ROWS($K$35:K42)-1,COLUMNS($K$35:K42)-1)<>"",OFFSET(DE104_3!$K$35,ROWS($K$35:K42)-1,COLUMNS($K$35:K42)-1),"") ->  | J28: =IF(OFFSET(DE104_3!$L$35,ROWS($L$35:L42)-1,COLUMNS($L$35:L42)-1)<>"",OFFSET(DE104_3!$L$35,ROWS($L$35:L42)-1,COLUMNS($L$35:L42)-1),"") -> 1 | K28: =IF(OFFSET(DE104_3!$M$35,ROWS($M$35:M42)-1,COLUMNS($M$35:M42)-1)<>"",OFFSET(DE104_3!$M$35,ROWS($M$35:M42)-1,COLUMNS($M$35:M42)-1),"") ->  | L28: =IF(OFFSET(DE104_3!$N$35,ROWS($N$35:N42)-1,COLUMNS($N$35:N42)-1)<>"",OFFSET(DE104_3!$N$35,ROWS($N$35:N42)-1,COLUMNS($N$35:N42)-1),"") ->  | M28: =IF(OFFSET(DE104_3!$O$35,ROWS($O$35:O42)-1,COLUMNS($O$35:O42)-1)<>"",OFFSET(DE104_3!$O$35,ROWS($O$35:O42)-1,COLUMNS($O$35:O42)-1),"") ->  | N28: =IF(OFFSET(DE104_3!$P$35,ROWS($P$35:P42)-1,COLUMNS($P$35:P42)-1)<>"",OFFSET(DE104_3!$P$35,ROWS($P$35:P42)-1,COLUMNS($P$35:P42)-1),"") ->  | O28: =IF(OFFSET(DE104_3!$Q$35,ROWS($Q$35:Q42)-1,COLUMNS($Q$35:Q42)-1)<>"",OFFSET(DE104_3!$Q$35,ROWS($Q$35:Q42)-1,COLUMNS($Q$35:Q42)-1),"") ->  | P28: =IF(OFFSET(DE104_3!$R$35,ROWS($R$35:R42)-1,COLUMNS($R$35:R42)-1)<>"",OFFSET(DE104_3!$R$35,ROWS($R$35:R42)-1,COLUMNS($R$35:R42)-1),"") ->  | Q28: =IF(OFFSET(DE104_3!$S$35,ROWS($S$35:S42)-1,COLUMNS($S$35:S42)-1)<>"",OFFSET(DE104_3!$S$35,ROWS($S$35:S42)-1,COLUMNS($S$35:S42)-1),"") ->  | R28: =IF(OFFSET(DE104_3!$T$35,ROWS($T$35:T42)-1,COLUMNS($T$35:T42)-1)<>"",OFFSET(DE104_3!$T$35,ROWS($T$35:T42)-1,COLUMNS($T$35:T42)-1),"") ->  | S28: =IF(OFFSET(DE104_3!$U$35,ROWS($U$35:U42)-1,COLUMNS($U$35:U42)-1)<>"",OFFSET(DE104_3!$U$35,ROWS($U$35:U42)-1,COLUMNS($U$35:U42)-1),"") ->  | T28: =IF(OFFSET(DE104_3!$V$35,ROWS($V$35:V42)-1,COLUMNS($V$35:V42)-1)<>"",OFFSET(DE104_3!$V$35,ROWS($V$35:V42)-1,COLUMNS($V$35:V42)-1),"") ->  | U28: =IF(OFFSET(DE104_3!$W$35,ROWS($W$35:W42)-1,COLUMNS($W$35:W42)-1)<>"",OFFSET(DE104_3!$W$35,ROWS($W$35:W42)-1,COLUMNS($W$35:W42)-1),"") ->  | V28: =IF(OFFSET(DE104_3!$X$35,ROWS($X$35:X42)-1,COLUMNS($X$35:X42)-1)<>"",OFFSET(DE104_3!$X$35,ROWS($X$35:X42)-1,COLUMNS($X$35:X42)-1),"") -> 916.22 | W28: =IF(OFFSET(DE104_3!$Y$35,ROWS($Y$35:Y42)-1,COLUMNS($Y$35:Y42)-1)<>"",OFFSET(DE104_3!$Y$35,ROWS($Y$35:Y42)-1,COLUMNS($Y$35:Y42)-1),"") -> 902.21 | X28: =IF(OFFSET(DE104_3!$Z$35,ROWS($Z$35:Z42)-1,COLUMNS($Z$35:Z42)-1)<>"",OFFSET(DE104_3!$Z$35,ROWS($Z$35:Z42)-1,COLUMNS($Z$35:Z42)-1),"") ->  | Y28: =IF(OFFSET(DE104_3!$AA$35,ROWS($AA$35:AA42)-1,COLUMNS($AA$35:AA42)-1)<>"",OFFSET(DE104_3!$AA$35,ROWS($AA$35:AA42)-1,COLUMNS($AA$35:AA42)-1),"") ->  | Z28: =IF(OFFSET(DE104_3!$AB$35,ROWS($AB$35:AB42)-1,COLUMNS($AB$35:AB42)-1)<>"",OFFSET(DE104_3!$AB$35,ROWS($AB$35:AB42)-1,COLUMNS($AB$35:AB42)-1),"") -> 101 | AA28: =IF(OFFSET(DE104_3!$AC$35,ROWS($AC$35:AC42)-1,COLUMNS($AC$35:AC42)-1)<>"",OFFSET(DE104_3!$AC$35,ROWS($AC$35:AC42)-1,COLUMNS($AC$35:AC42)-1),"") -> 284.75 | AB28: =IF(OFFSET(DE104_3!$AD$35,ROWS($AD$35:AD42)-1,COLUMNS($AD$35:AD42)-1)<>"",OFFSET(DE104_3!$AD$35,ROWS($AD$35:AD42)-1,COLUMNS($AD$35:AD42)-1),"") ->  | AC28: =IF(OFFSET(DE104_3!$AE$35,ROWS($AE$35:AE42)-1,COLUMNS($AE$35:AE42)-1)<>"",OFFSET(DE104_3!$AE$35,ROWS($AE$35:AE42)-1,COLUMNS($AE$35:AE42)-1),"") ->  | AD28: =IF(OFFSET(DE104_3!$AF$35,ROWS($AF$35:AF42)-1,COLUMNS($AF$35:AF42)-1)<>"",OFFSET(DE104_3!$AF$35,ROWS($AF$35:AF42)-1,COLUMNS($AF$35:AF42)-1),"") ->  | AE28: =IF(OFFSET(DE104_3!$AG$35,ROWS($AG$35:AG42)-1,COLUMNS($AG$35:AG42)-1)<>"",OFFSET(DE104_3!$AG$35,ROWS($AG$35:AG42)-1,COLUMNS($AG$35:AG42)-1),"") ->  | AF28: =IF(OFFSET(DE104_3!$AH$35,ROWS($AH$35:AH42)-1,COLUMNS($AH$35:AH42)-1)<>"",OFFSET(DE104_3!$AH$35,ROWS($AH$35:AH42)-1,COLUMNS($AH$35:AH42)-1),"") ->  | AG28: =IF(OFFSET(DE104_3!$AI$35,ROWS($AI$35:AI42)-1,COLUMNS($AI$35:AI42)-1)<>"",OFFSET(DE104_3!$AI$35,ROWS($AI$35:AI42)-1,COLUMNS($AI$35:AI42)-1),"") ->  | AH28: =IF(OFFSET(DE104_3!$AJ$35,ROWS($AJ$35:AJ42)-1,COLUMNS($AJ$35:AJ42)-1)<>"",OFFSET(DE104_3!$AJ$35,ROWS($AJ$35:AJ42)-1,COLUMNS($AJ$35:AJ42)-1),"") ->  | AI28: =IF(OFFSET(DE104_3!$AK$35,ROWS($AK$35:AK42)-1,COLUMNS($AK$35:AK42)-1)<>"",OFFSET(DE104_3!$AK$35,ROWS($AK$35:AK42)-1,COLUMNS($AK$35:AK42)-1),"") ->  | AJ28: =IF(OFFSET(DE104_3!$AL$35,ROWS($AL$35:AL42)-1,COLUMNS($AL$35:AL42)-1)<>"",OFFSET(DE104_3!$AL$35,ROWS($AL$35:AL42)-1,COLUMNS($AL$35:AL42)-1),"") -> 525.9666778 | AK28: =IF(OFFSET(DE104_3!$AM$35,ROWS($AM$35:AM42)-1,COLUMNS($AM$35:AM42)-1)<>"",OFFSET(DE104_3!$AM$35,ROWS($AM$35:AM42)-1,COLUMNS($AM$35:AM42)-1),"") -> N/A | AL28: =IF(OFFSET(DE104_3!$AN$35,ROWS($AN$35:AN42)-1,COLUMNS($AN$35:AN42)-1)<>"",OFFSET(DE104_3!$AN$35,ROWS($AN$35:AN42)-1,COLUMNS($AN$35:AN42)-1),"") -> 412.4064 | AM28: =IF(OFFSET(DE104_3!$AO$35,ROWS($AO$35:AO42)-1,COLUMNS($AO$35:AO42)-1)<>"",OFFSET(DE104_3!$AO$35,ROWS($AO$35:AO42)-1,COLUMNS($AO$35:AO42)-1),"") -> 17.70717037 | AN28: =IF(OFFSET(DE104_3!$AP$35,ROWS($AP$35:AP42)-1,COLUMNS($AP$35:AP42)-1)<>"",OFFSET(DE104_3!$AP$35,ROWS($AP$35:AP42)-1,COLUMNS($AP$35:AP42)-1),"") -> 430.1135704 | AO28: =IF(OFFSET(DE104_3!$AQ$35,ROWS($AQ$35:AQ42)-1,COLUMNS($AQ$35:AQ42)-1)<>"",OFFSET(DE104_3!$AQ$35,ROWS($AQ$35:AQ42)-1,COLUMNS($AQ$35:AQ42)-1),"") -> -7
A29: =IF(OFFSET(DE104_3!$C$35,ROWS($C$35:C43)-1,COLUMNS($C$35:C43)-1)<>"",OFFSET(DE104_3!$C$35,ROWS($C$35:C43)-1,COLUMNS($C$35:C43)-1),"") ->  | B29: =IF(OFFSET(DE104_3!$D$35,ROWS($D$35:D43)-1,COLUMNS($D$35:D43)-1)<>"",OFFSET(DE104_3!$D$35,ROWS($D$35:D43)-1,COLUMNS($D$35:D43)-1),"") -> 140+06.10, 181.46' Rt | C29: =IF(OFFSET(DE104_3!$E$35,ROWS($E$35:E43)-1,COLUMNS($E$35:E43)-1)<>"",OFFSET(DE104_3!$E$35,ROWS($E$35:E43)-1,COLUMNS($E$35:E43)-1),"") -> Existing | D29: =IF(OFFSET(DE104_3!$F$35,ROWS($F$35:F43)-1,COLUMNS($F$35:F43)-1)<>"",OFFSET(DE104_3!$F$35,ROWS($F$35:F43)-1,COLUMNS($F$35:F43)-1),"") ->  | E29: =IF(OFFSET(DE104_3!$G$35,ROWS($G$35:G43)-1,COLUMNS($G$35:G43)-1)<>"",OFFSET(DE104_3!$G$35,ROWS($G$35:G43)-1,COLUMNS($G$35:G43)-1),"") ->  | F29: =IF(OFFSET(DE104_3!$H$35,ROWS($H$35:H43)-1,COLUMNS($H$35:H43)-1)<>"",OFFSET(DE104_3!$H$35,ROWS($H$35:H43)-1,COLUMNS($H$35:H43)-1),"") ->  | G29: =IF(OFFSET(DE104_3!$I$35,ROWS($I$35:I43)-1,COLUMNS($I$35:I43)-1)<>"",OFFSET(DE104_3!$I$35,ROWS($I$35:I43)-1,COLUMNS($I$35:I43)-1),"") ->  | H29: =IF(OFFSET(DE104_3!$J$35,ROWS($J$35:J43)-1,COLUMNS($J$35:J43)-1)<>"",OFFSET(DE104_3!$J$35,ROWS($J$35:J43)-1,COLUMNS($J$35:J43)-1),"") ->  | I29: =IF(OFFSET(DE104_3!$K$35,ROWS($K$35:K43)-1,COLUMNS($K$35:K43)-1)<>"",OFFSET(DE104_3!$K$35,ROWS($K$35:K43)-1,COLUMNS($K$35:K43)-1),"") ->  | J29: =IF(OFFSET(DE104_3!$L$35,ROWS($L$35:L43)-1,COLUMNS($L$35:L43)-1)<>"",OFFSET(DE104_3!$L$35,ROWS($L$35:L43)-1,COLUMNS($L$35:L43)-1),"") ->  | K29: =IF(OFFSET(DE104_3!$M$35,ROWS($M$35:M43)-1,COLUMNS($M$35:M43)-1)<>"",OFFSET(DE104_3!$M$35,ROWS($M$35:M43)-1,COLUMNS($M$35:M43)-1),"") ->  | L29: =IF(OFFSET(DE104_3!$N$35,ROWS($N$35:N43)-1,COLUMNS($N$35:N43)-1)<>"",OFFSET(DE104_3!$N$35,ROWS($N$35:N43)-1,COLUMNS($N$35:N43)-1),"") ->  | M29: =IF(OFFSET(DE104_3!$O$35,ROWS($O$35:O43)-1,COLUMNS($O$35:O43)-1)<>"",OFFSET(DE104_3!$O$35,ROWS($O$35:O43)-1,COLUMNS($O$35:O43)-1),"") ->  | N29: =IF(OFFSET(DE104_3!$P$35,ROWS($P$35:P43)-1,COLUMNS($P$35:P43)-1)<>"",OFFSET(DE104_3!$P$35,ROWS($P$35:P43)-1,COLUMNS($P$35:P43)-1),"") ->  | O29: =IF(OFFSET(DE104_3!$Q$35,ROWS($Q$35:Q43)-1,COLUMNS($Q$35:Q43)-1)<>"",OFFSET(DE104_3!$Q$35,ROWS($Q$35:Q43)-1,COLUMNS($Q$35:Q43)-1),"") ->  | P29: =IF(OFFSET(DE104_3!$R$35,ROWS($R$35:R43)-1,COLUMNS($R$35:R43)-1)<>"",OFFSET(DE104_3!$R$35,ROWS($R$35:R43)-1,COLUMNS($R$35:R43)-1),"") ->  | Q29: =IF(OFFSET(DE104_3!$S$35,ROWS($S$35:S43)-1,COLUMNS($S$35:S43)-1)<>"",OFFSET(DE104_3!$S$35,ROWS($S$35:S43)-1,COLUMNS($S$35:S43)-1),"") ->  | R29: =IF(OFFSET(DE104_3!$T$35,ROWS($T$35:T43)-1,COLUMNS($T$35:T43)-1)<>"",OFFSET(DE104_3!$T$35,ROWS($T$35:T43)-1,COLUMNS($T$35:T43)-1),"") ->  | S29: =IF(OFFSET(DE104_3!$U$35,ROWS($U$35:U43)-1,COLUMNS($U$35:U43)-1)<>"",OFFSET(DE104_3!$U$35,ROWS($U$35:U43)-1,COLUMNS($U$35:U43)-1),"") ->  | T29: =IF(OFFSET(DE104_3!$V$35,ROWS($V$35:V43)-1,COLUMNS($V$35:V43)-1)<>"",OFFSET(DE104_3!$V$35,ROWS($V$35:V43)-1,COLUMNS($V$35:V43)-1),"") ->  | U29: =IF(OFFSET(DE104_3!$W$35,ROWS($W$35:W43)-1,COLUMNS($W$35:W43)-1)<>"",OFFSET(DE104_3!$W$35,ROWS($W$35:W43)-1,COLUMNS($W$35:W43)-1),"") ->  | V29: =IF(OFFSET(DE104_3!$X$35,ROWS($X$35:X43)-1,COLUMNS($X$35:X43)-1)<>"",OFFSET(DE104_3!$X$35,ROWS($X$35:X43)-1,COLUMNS($X$35:X43)-1),"") ->  | W29: =IF(OFFSET(DE104_3!$Y$35,ROWS($Y$35:Y43)-1,COLUMNS($Y$35:Y43)-1)<>"",OFFSET(DE104_3!$Y$35,ROWS($Y$35:Y43)-1,COLUMNS($Y$35:Y43)-1),"") ->  | X29: =IF(OFFSET(DE104_3!$Z$35,ROWS($Z$35:Z43)-1,COLUMNS($Z$35:Z43)-1)<>"",OFFSET(DE104_3!$Z$35,ROWS($Z$35:Z43)-1,COLUMNS($Z$35:Z43)-1),"") ->  | Y29: =IF(OFFSET(DE104_3!$AA$35,ROWS($AA$35:AA43)-1,COLUMNS($AA$35:AA43)-1)<>"",OFFSET(DE104_3!$AA$35,ROWS($AA$35:AA43)-1,COLUMNS($AA$35:AA43)-1),"") ->  | Z29: =IF(OFFSET(DE104_3!$AB$35,ROWS($AB$35:AB43)-1,COLUMNS($AB$35:AB43)-1)<>"",OFFSET(DE104_3!$AB$35,ROWS($AB$35:AB43)-1,COLUMNS($AB$35:AB43)-1),"") ->  | AA29: =IF(OFFSET(DE104_3!$AC$35,ROWS($AC$35:AC43)-1,COLUMNS($AC$35:AC43)-1)<>"",OFFSET(DE104_3!$AC$35,ROWS($AC$35:AC43)-1,COLUMNS($AC$35:AC43)-1),"") ->  | AB29: =IF(OFFSET(DE104_3!$AD$35,ROWS($AD$35:AD43)-1,COLUMNS($AD$35:AD43)-1)<>"",OFFSET(DE104_3!$AD$35,ROWS($AD$35:AD43)-1,COLUMNS($AD$35:AD43)-1),"") ->  | AC29: =IF(OFFSET(DE104_3!$AE$35,ROWS($AE$35:AE43)-1,COLUMNS($AE$35:AE43)-1)<>"",OFFSET(DE104_3!$AE$35,ROWS($AE$35:AE43)-1,COLUMNS($AE$35:AE43)-1),"") ->  | AD29: =IF(OFFSET(DE104_3!$AF$35,ROWS($AF$35:AF43)-1,COLUMNS($AF$35:AF43)-1)<>"",OFFSET(DE104_3!$AF$35,ROWS($AF$35:AF43)-1,COLUMNS($AF$35:AF43)-1),"") ->  | AE29: =IF(OFFSET(DE104_3!$AG$35,ROWS($AG$35:AG43)-1,COLUMNS($AG$35:AG43)-1)<>"",OFFSET(DE104_3!$AG$35,ROWS($AG$35:AG43)-1,COLUMNS($AG$35:AG43)-1),"") ->  | AF29: =IF(OFFSET(DE104_3!$AH$35,ROWS($AH$35:AH43)-1,COLUMNS($AH$35:AH43)-1)<>"",OFFSET(DE104_3!$AH$35,ROWS($AH$35:AH43)-1,COLUMNS($AH$35:AH43)-1),"") ->  | AG29: =IF(OFFSET(DE104_3!$AI$35,ROWS($AI$35:AI43)-1,COLUMNS($AI$35:AI43)-1)<>"",OFFSET(DE104_3!$AI$35,ROWS($AI$35:AI43)-1,COLUMNS($AI$35:AI43)-1),"") ->  | AH29: =IF(OFFSET(DE104_3!$AJ$35,ROWS($AJ$35:AJ43)-1,COLUMNS($AJ$35:AJ43)-1)<>"",OFFSET(DE104_3!$AJ$35,ROWS($AJ$35:AJ43)-1,COLUMNS($AJ$35:AJ43)-1),"") ->  | AI29: =IF(OFFSET(DE104_3!$AK$35,ROWS($AK$35:AK43)-1,COLUMNS($AK$35:AK43)-1)<>"",OFFSET(DE104_3!$AK$35,ROWS($AK$35:AK43)-1,COLUMNS($AK$35:AK43)-1),"") ->  | AJ29: =IF(OFFSET(DE104_3!$AL$35,ROWS($AL$35:AL43)-1,COLUMNS($AL$35:AL43)-1)<>"",OFFSET(DE104_3!$AL$35,ROWS($AL$35:AL43)-1,COLUMNS($AL$35:AL43)-1),"") ->  | AK29: =IF(OFFSET(DE104_3!$AM$35,ROWS($AM$35:AM43)-1,COLUMNS($AM$35:AM43)-1)<>"",OFFSET(DE104_3!$AM$35,ROWS($AM$35:AM43)-1,COLUMNS($AM$35:AM43)-1),"") ->  | AL29: =IF(OFFSET(DE104_3!$AN$35,ROWS($AN$35:AN43)-1,COLUMNS($AN$35:AN43)-1)<>"",OFFSET(DE104_3!$AN$35,ROWS($AN$35:AN43)-1,COLUMNS($AN$35:AN43)-1),"") ->  | AM29: =IF(OFFSET(DE104_3!$AO$35,ROWS($AO$35:AO43)-1,COLUMNS($AO$35:AO43)-1)<>"",OFFSET(DE104_3!$AO$35,ROWS($AO$35:AO43)-1,COLUMNS($AO$35:AO43)-1),"") ->  | AN29: =IF(OFFSET(DE104_3!$AP$35,ROWS($AP$35:AP43)-1,COLUMNS($AP$35:AP43)-1)<>"",OFFSET(DE104_3!$AP$35,ROWS($AP$35:AP43)-1,COLUMNS($AP$35:AP43)-1),"") ->  | AO29: =IF(OFFSET(DE104_3!$AQ$35,ROWS($AQ$35:AQ43)-1,COLUMNS($AQ$35:AQ43)-1)<>"",OFFSET(DE104_3!$AQ$35,ROWS($AQ$35:AQ43)-1,COLUMNS($AQ$35:AQ43)-1),"") -> -8
A30: =IF(OFFSET(DE104_3!$C$35,ROWS($C$35:C44)-1,COLUMNS($C$35:C44)-1)<>"",OFFSET(DE104_3!$C$35,ROWS($C$35:C44)-1,COLUMNS($C$35:C44)-1),"") -> 11 H | B30: =IF(OFFSET(DE104_3!$D$35,ROWS($D$35:D44)-1,COLUMNS($D$35:D44)-1)<>"",OFFSET(DE104_3!$D$35,ROWS($D$35:D44)-1,COLUMNS($D$35:D44)-1),"") -> 14430 | C30: =IF(OFFSET(DE104_3!$E$35,ROWS($E$35:E44)-1,COLUMNS($E$35:E44)-1)<>"",OFFSET(DE104_3!$E$35,ROWS($E$35:E44)-1,COLUMNS($E$35:E44)-1),"") -> 601 | D30: =IF(OFFSET(DE104_3!$F$35,ROWS($F$35:F44)-1,COLUMNS($F$35:F44)-1)<>"",OFFSET(DE104_3!$F$35,ROWS($F$35:F44)-1,COLUMNS($F$35:F44)-1),"") -> 36 | E30: =IF(OFFSET(DE104_3!$G$35,ROWS($G$35:G44)-1,COLUMNS($G$35:G44)-1)<>"",OFFSET(DE104_3!$G$35,ROWS($G$35:G44)-1,COLUMNS($G$35:G44)-1),"") -> RCP | F30: =IF(OFFSET(DE104_3!$H$35,ROWS($H$35:H44)-1,COLUMNS($H$35:H44)-1)<>"",OFFSET(DE104_3!$H$35,ROWS($H$35:H44)-1,COLUMNS($H$35:H44)-1),"") -> 392 | G30: =IF(OFFSET(DE104_3!$I$35,ROWS($I$35:I44)-1,COLUMNS($I$35:I44)-1)<>"",OFFSET(DE104_3!$I$35,ROWS($I$35:I44)-1,COLUMNS($I$35:I44)-1),"") ->  | H30: =IF(OFFSET(DE104_3!$J$35,ROWS($J$35:J44)-1,COLUMNS($J$35:J44)-1)<>"",OFFSET(DE104_3!$J$35,ROWS($J$35:J44)-1,COLUMNS($J$35:J44)-1),"") -> 25 | I30: =IF(OFFSET(DE104_3!$K$35,ROWS($K$35:K44)-1,COLUMNS($K$35:K44)-1)<>"",OFFSET(DE104_3!$K$35,ROWS($K$35:K44)-1,COLUMNS($K$35:K44)-1),"") ->  | J30: =IF(OFFSET(DE104_3!$L$35,ROWS($L$35:L44)-1,COLUMNS($L$35:L44)-1)<>"",OFFSET(DE104_3!$L$35,ROWS($L$35:L44)-1,COLUMNS($L$35:L44)-1),"") -> 1 | K30: =IF(OFFSET(DE104_3!$M$35,ROWS($M$35:M44)-1,COLUMNS($M$35:M44)-1)<>"",OFFSET(DE104_3!$M$35,ROWS($M$35:M44)-1,COLUMNS($M$35:M44)-1),"") ->  | L30: =IF(OFFSET(DE104_3!$N$35,ROWS($N$35:N44)-1,COLUMNS($N$35:N44)-1)<>"",OFFSET(DE104_3!$N$35,ROWS($N$35:N44)-1,COLUMNS($N$35:N44)-1),"") ->  | M30: =IF(OFFSET(DE104_3!$O$35,ROWS($O$35:O44)-1,COLUMNS($O$35:O44)-1)<>"",OFFSET(DE104_3!$O$35,ROWS($O$35:O44)-1,COLUMNS($O$35:O44)-1),"") ->  | N30: =IF(OFFSET(DE104_3!$P$35,ROWS($P$35:P44)-1,COLUMNS($P$35:P44)-1)<>"",OFFSET(DE104_3!$P$35,ROWS($P$35:P44)-1,COLUMNS($P$35:P44)-1),"") ->  | O30: =IF(OFFSET(DE104_3!$Q$35,ROWS($Q$35:Q44)-1,COLUMNS($Q$35:Q44)-1)<>"",OFFSET(DE104_3!$Q$35,ROWS($Q$35:Q44)-1,COLUMNS($Q$35:Q44)-1),"") ->  | P30: =IF(OFFSET(DE104_3!$R$35,ROWS($R$35:R44)-1,COLUMNS($R$35:R44)-1)<>"",OFFSET(DE104_3!$R$35,ROWS($R$35:R44)-1,COLUMNS($R$35:R44)-1),"") ->  | Q30: =IF(OFFSET(DE104_3!$S$35,ROWS($S$35:S44)-1,COLUMNS($S$35:S44)-1)<>"",OFFSET(DE104_3!$S$35,ROWS($S$35:S44)-1,COLUMNS($S$35:S44)-1),"") ->  | R30: =IF(OFFSET(DE104_3!$T$35,ROWS($T$35:T44)-1,COLUMNS($T$35:T44)-1)<>"",OFFSET(DE104_3!$T$35,ROWS($T$35:T44)-1,COLUMNS($T$35:T44)-1),"") ->  | S30: =IF(OFFSET(DE104_3!$U$35,ROWS($U$35:U44)-1,COLUMNS($U$35:U44)-1)<>"",OFFSET(DE104_3!$U$35,ROWS($U$35:U44)-1,COLUMNS($U$35:U44)-1),"") ->  | T30: =IF(OFFSET(DE104_3!$V$35,ROWS($V$35:V44)-1,COLUMNS($V$35:V44)-1)<>"",OFFSET(DE104_3!$V$35,ROWS($V$35:V44)-1,COLUMNS($V$35:V44)-1),"") ->  | U30: =IF(OFFSET(DE104_3!$W$35,ROWS($W$35:W44)-1,COLUMNS($W$35:W44)-1)<>"",OFFSET(DE104_3!$W$35,ROWS($W$35:W44)-1,COLUMNS($W$35:W44)-1),"") ->  | V30: =IF(OFFSET(DE104_3!$X$35,ROWS($X$35:X44)-1,COLUMNS($X$35:X44)-1)<>"",OFFSET(DE104_3!$X$35,ROWS($X$35:X44)-1,COLUMNS($X$35:X44)-1),"") -> 910.73 | W30: =IF(OFFSET(DE104_3!$Y$35,ROWS($Y$35:Y44)-1,COLUMNS($Y$35:Y44)-1)<>"",OFFSET(DE104_3!$Y$35,ROWS($Y$35:Y44)-1,COLUMNS($Y$35:Y44)-1),"") -> 895.21 | X30: =IF(OFFSET(DE104_3!$Z$35,ROWS($Z$35:Z44)-1,COLUMNS($Z$35:Z44)-1)<>"",OFFSET(DE104_3!$Z$35,ROWS($Z$35:Z44)-1,COLUMNS($Z$35:Z44)-1),"") ->  | Y30: =IF(OFFSET(DE104_3!$AA$35,ROWS($AA$35:AA44)-1,COLUMNS($AA$35:AA44)-1)<>"",OFFSET(DE104_3!$AA$35,ROWS($AA$35:AA44)-1,COLUMNS($AA$35:AA44)-1),"") ->  | Z30: =IF(OFFSET(DE104_3!$AB$35,ROWS($AB$35:AB44)-1,COLUMNS($AB$35:AB44)-1)<>"",OFFSET(DE104_3!$AB$35,ROWS($AB$35:AB44)-1,COLUMNS($AB$35:AB44)-1),"") -> 102.76 | AA30: =IF(OFFSET(DE104_3!$AC$35,ROWS($AC$35:AC44)-1,COLUMNS($AC$35:AC44)-1)<>"",OFFSET(DE104_3!$AC$35,ROWS($AC$35:AC44)-1,COLUMNS($AC$35:AC44)-1),"") -> 296.94 | AB30: =IF(OFFSET(DE104_3!$AD$35,ROWS($AD$35:AD44)-1,COLUMNS($AD$35:AD44)-1)<>"",OFFSET(DE104_3!$AD$35,ROWS($AD$35:AD44)-1,COLUMNS($AD$35:AD44)-1),"") ->  | AC30: =IF(OFFSET(DE104_3!$AE$35,ROWS($AE$35:AE44)-1,COLUMNS($AE$35:AE44)-1)<>"",OFFSET(DE104_3!$AE$35,ROWS($AE$35:AE44)-1,COLUMNS($AE$35:AE44)-1),"") ->  | AD30: =IF(OFFSET(DE104_3!$AF$35,ROWS($AF$35:AF44)-1,COLUMNS($AF$35:AF44)-1)<>"",OFFSET(DE104_3!$AF$35,ROWS($AF$35:AF44)-1,COLUMNS($AF$35:AF44)-1),"") ->  | AE30: =IF(OFFSET(DE104_3!$AG$35,ROWS($AG$35:AG44)-1,COLUMNS($AG$35:AG44)-1)<>"",OFFSET(DE104_3!$AG$35,ROWS($AG$35:AG44)-1,COLUMNS($AG$35:AG44)-1),"") ->  | AF30: =IF(OFFSET(DE104_3!$AH$35,ROWS($AH$35:AH44)-1,COLUMNS($AH$35:AH44)-1)<>"",OFFSET(DE104_3!$AH$35,ROWS($AH$35:AH44)-1,COLUMNS($AH$35:AH44)-1),"") -> Lt | AG30: =IF(OFFSET(DE104_3!$AI$35,ROWS($AI$35:AI44)-1,COLUMNS($AI$35:AI44)-1)<>"",OFFSET(DE104_3!$AI$35,ROWS($AI$35:AI44)-1,COLUMNS($AI$35:AI44)-1),"") -> 14500 | AH30: =IF(OFFSET(DE104_3!$AJ$35,ROWS($AJ$35:AJ44)-1,COLUMNS($AJ$35:AJ44)-1)<>"",OFFSET(DE104_3!$AJ$35,ROWS($AJ$35:AJ44)-1,COLUMNS($AJ$35:AJ44)-1),"") -> 915 | AI30: =IF(OFFSET(DE104_3!$AK$35,ROWS($AK$35:AK44)-1,COLUMNS($AK$35:AK44)-1)<>"",OFFSET(DE104_3!$AK$35,ROWS($AK$35:AK44)-1,COLUMNS($AK$35:AK44)-1),"") -> G | AJ30: =IF(OFFSET(DE104_3!$AL$35,ROWS($AL$35:AL44)-1,COLUMNS($AL$35:AL44)-1)<>"",OFFSET(DE104_3!$AL$35,ROWS($AL$35:AL44)-1,COLUMNS($AL$35:AL44)-1),"") -> 378.201 | AK30: =IF(OFFSET(DE104_3!$AM$35,ROWS($AM$35:AM44)-1,COLUMNS($AM$35:AM44)-1)<>"",OFFSET(DE104_3!$AM$35,ROWS($AM$35:AM44)-1,COLUMNS($AM$35:AM44)-1),"") -> N/A | AL30: =IF(OFFSET(DE104_3!$AN$35,ROWS($AN$35:AN44)-1,COLUMNS($AN$35:AN44)-1)<>"",OFFSET(DE104_3!$AN$35,ROWS($AN$35:AN44)-1,COLUMNS($AN$35:AN44)-1),"") -> 400.5285333 | AM30: =IF(OFFSET(DE104_3!$AO$35,ROWS($AO$35:AO44)-1,COLUMNS($AO$35:AO44)-1)<>"",OFFSET(DE104_3!$AO$35,ROWS($AO$35:AO44)-1,COLUMNS($AO$35:AO44)-1),"") -> 18.6162963 | AN30: =IF(OFFSET(DE104_3!$AP$35,ROWS($AP$35:AP44)-1,COLUMNS($AP$35:AP44)-1)<>"",OFFSET(DE104_3!$AP$35,ROWS($AP$35:AP44)-1,COLUMNS($AP$35:AP44)-1),"") -> 419.1448296 | AO30: =IF(OFFSET(DE104_3!$AQ$35,ROWS($AQ$35:AQ44)-1,COLUMNS($AQ$35:AQ44)-1)<>"",OFFSET(DE104_3!$AQ$35,ROWS($AQ$35:AQ44)-1,COLUMNS($AQ$35:AQ44)-1),"") -> -9
A31: =IF(OFFSET(DE104_3!$C$35,ROWS($C$35:C45)-1,COLUMNS($C$35:C45)-1)<>"",OFFSET(DE104_3!$C$35,ROWS($C$35:C45)-1,COLUMNS($C$35:C45)-1),"") ->  | B31: =IF(OFFSET(DE104_3!$D$35,ROWS($D$35:D45)-1,COLUMNS($D$35:D45)-1)<>"",OFFSET(DE104_3!$D$35,ROWS($D$35:D45)-1,COLUMNS($D$35:D45)-1),"") -> 144+50.02, 188.94' Rt | C31: =IF(OFFSET(DE104_3!$E$35,ROWS($E$35:E45)-1,COLUMNS($E$35:E45)-1)<>"",OFFSET(DE104_3!$E$35,ROWS($E$35:E45)-1,COLUMNS($E$35:E45)-1),"") -> Existing | D31: =IF(OFFSET(DE104_3!$F$35,ROWS($F$35:F45)-1,COLUMNS($F$35:F45)-1)<>"",OFFSET(DE104_3!$F$35,ROWS($F$35:F45)-1,COLUMNS($F$35:F45)-1),"") ->  | E31: =IF(OFFSET(DE104_3!$G$35,ROWS($G$35:G45)-1,COLUMNS($G$35:G45)-1)<>"",OFFSET(DE104_3!$G$35,ROWS($G$35:G45)-1,COLUMNS($G$35:G45)-1),"") ->  | F31: =IF(OFFSET(DE104_3!$H$35,ROWS($H$35:H45)-1,COLUMNS($H$35:H45)-1)<>"",OFFSET(DE104_3!$H$35,ROWS($H$35:H45)-1,COLUMNS($H$35:H45)-1),"") ->  | G31: =IF(OFFSET(DE104_3!$I$35,ROWS($I$35:I45)-1,COLUMNS($I$35:I45)-1)<>"",OFFSET(DE104_3!$I$35,ROWS($I$35:I45)-1,COLUMNS($I$35:I45)-1),"") ->  | H31: =IF(OFFSET(DE104_3!$J$35,ROWS($J$35:J45)-1,COLUMNS($J$35:J45)-1)<>"",OFFSET(DE104_3!$J$35,ROWS($J$35:J45)-1,COLUMNS($J$35:J45)-1),"") ->  | I31: =IF(OFFSET(DE104_3!$K$35,ROWS($K$35:K45)-1,COLUMNS($K$35:K45)-1)<>"",OFFSET(DE104_3!$K$35,ROWS($K$35:K45)-1,COLUMNS($K$35:K45)-1),"") ->  | J31: =IF(OFFSET(DE104_3!$L$35,ROWS($L$35:L45)-1,COLUMNS($L$35:L45)-1)<>"",OFFSET(DE104_3!$L$35,ROWS($L$35:L45)-1,COLUMNS($L$35:L45)-1),"") ->  | K31: =IF(OFFSET(DE104_3!$M$35,ROWS($M$35:M45)-1,COLUMNS($M$35:M45)-1)<>"",OFFSET(DE104_3!$M$35,ROWS($M$35:M45)-1,COLUMNS($M$35:M45)-1),"") ->  | L31: =IF(OFFSET(DE104_3!$N$35,ROWS($N$35:N45)-1,COLUMNS($N$35:N45)-1)<>"",OFFSET(DE104_3!$N$35,ROWS($N$35:N45)-1,COLUMNS($N$35:N45)-1),"") ->  | M31: =IF(OFFSET(DE104_3!$O$35,ROWS($O$35:O45)-1,COLUMNS($O$35:O45)-1)<>"",OFFSET(DE104_3!$O$35,ROWS($O$35:O45)-1,COLUMNS($O$35:O45)-1),"") ->  | N31: =IF(OFFSET(DE104_3!$P$35,ROWS($P$35:P45)-1,COLUMNS($P$35:P45)-1)<>"",OFFSET(DE104_3!$P$35,ROWS($P$35:P45)-1,COLUMNS($P$35:P45)-1),"") ->  | O31: =IF(OFFSET(DE104_3!$Q$35,ROWS($Q$35:Q45)-1,COLUMNS($Q$35:Q45)-1)<>"",OFFSET(DE104_3!$Q$35,ROWS($Q$35:Q45)-1,COLUMNS($Q$35:Q45)-1),"") ->  | P31: =IF(OFFSET(DE104_3!$R$35,ROWS($R$35:R45)-1,COLUMNS($R$35:R45)-1)<>"",OFFSET(DE104_3!$R$35,ROWS($R$35:R45)-1,COLUMNS($R$35:R45)-1),"") ->  | Q31: =IF(OFFSET(DE104_3!$S$35,ROWS($S$35:S45)-1,COLUMNS($S$35:S45)-1)<>"",OFFSET(DE104_3!$S$35,ROWS($S$35:S45)-1,COLUMNS($S$35:S45)-1),"") ->  | R31: =IF(OFFSET(DE104_3!$T$35,ROWS($T$35:T45)-1,COLUMNS($T$35:T45)-1)<>"",OFFSET(DE104_3!$T$35,ROWS($T$35:T45)-1,COLUMNS($T$35:T45)-1),"") ->  | S31: =IF(OFFSET(DE104_3!$U$35,ROWS($U$35:U45)-1,COLUMNS($U$35:U45)-1)<>"",OFFSET(DE104_3!$U$35,ROWS($U$35:U45)-1,COLUMNS($U$35:U45)-1),"") ->  | T31: =IF(OFFSET(DE104_3!$V$35,ROWS($V$35:V45)-1,COLUMNS($V$35:V45)-1)<>"",OFFSET(DE104_3!$V$35,ROWS($V$35:V45)-1,COLUMNS($V$35:V45)-1),"") ->  | U31: =IF(OFFSET(DE104_3!$W$35,ROWS($W$35:W45)-1,COLUMNS($W$35:W45)-1)<>"",OFFSET(DE104_3!$W$35,ROWS($W$35:W45)-1,COLUMNS($W$35:W45)-1),"") ->  | V31: =IF(OFFSET(DE104_3!$X$35,ROWS($X$35:X45)-1,COLUMNS($X$35:X45)-1)<>"",OFFSET(DE104_3!$X$35,ROWS($X$35:X45)-1,COLUMNS($X$35:X45)-1),"") ->  | W31: =IF(OFFSET(DE104_3!$Y$35,ROWS($Y$35:Y45)-1,COLUMNS($Y$35:Y45)-1)<>"",OFFSET(DE104_3!$Y$35,ROWS($Y$35:Y45)-1,COLUMNS($Y$35:Y45)-1),"") ->  | X31: =IF(OFFSET(DE104_3!$Z$35,ROWS($Z$35:Z45)-1,COLUMNS($Z$35:Z45)-1)<>"",OFFSET(DE104_3!$Z$35,ROWS($Z$35:Z45)-1,COLUMNS($Z$35:Z45)-1),"") ->  | Y31: =IF(OFFSET(DE104_3!$AA$35,ROWS($AA$35:AA45)-1,COLUMNS($AA$35:AA45)-1)<>"",OFFSET(DE104_3!$AA$35,ROWS($AA$35:AA45)-1,COLUMNS($AA$35:AA45)-1),"") ->  | Z31: =IF(OFFSET(DE104_3!$AB$35,ROWS($AB$35:AB45)-1,COLUMNS($AB$35:AB45)-1)<>"",OFFSET(DE104_3!$AB$35,ROWS($AB$35:AB45)-1,COLUMNS($AB$35:AB45)-1),"") ->  | AA31: =IF(OFFSET(DE104_3!$AC$35,ROWS($AC$35:AC45)-1,COLUMNS($AC$35:AC45)-1)<>"",OFFSET(DE104_3!$AC$35,ROWS($AC$35:AC45)-1,COLUMNS($AC$35:AC45)-1),"") ->  | AB31: =IF(OFFSET(DE104_3!$AD$35,ROWS($AD$35:AD45)-1,COLUMNS($AD$35:AD45)-1)<>"",OFFSET(DE104_3!$AD$35,ROWS($AD$35:AD45)-1,COLUMNS($AD$35:AD45)-1),"") ->  | AC31: =IF(OFFSET(DE104_3!$AE$35,ROWS($AE$35:AE45)-1,COLUMNS($AE$35:AE45)-1)<>"",OFFSET(DE104_3!$AE$35,ROWS($AE$35:AE45)-1,COLUMNS($AE$35:AE45)-1),"") ->  | AD31: =IF(OFFSET(DE104_3!$AF$35,ROWS($AF$35:AF45)-1,COLUMNS($AF$35:AF45)-1)<>"",OFFSET(DE104_3!$AF$35,ROWS($AF$35:AF45)-1,COLUMNS($AF$35:AF45)-1),"") ->  | AE31: =IF(OFFSET(DE104_3!$AG$35,ROWS($AG$35:AG45)-1,COLUMNS($AG$35:AG45)-1)<>"",OFFSET(DE104_3!$AG$35,ROWS($AG$35:AG45)-1,COLUMNS($AG$35:AG45)-1),"") ->  | AF31: =IF(OFFSET(DE104_3!$AH$35,ROWS($AH$35:AH45)-1,COLUMNS($AH$35:AH45)-1)<>"",OFFSET(DE104_3!$AH$35,ROWS($AH$35:AH45)-1,COLUMNS($AH$35:AH45)-1),"") ->  | AG31: =IF(OFFSET(DE104_3!$AI$35,ROWS($AI$35:AI45)-1,COLUMNS($AI$35:AI45)-1)<>"",OFFSET(DE104_3!$AI$35,ROWS($AI$35:AI45)-1,COLUMNS($AI$35:AI45)-1),"") ->  | AH31: =IF(OFFSET(DE104_3!$AJ$35,ROWS($AJ$35:AJ45)-1,COLUMNS($AJ$35:AJ45)-1)<>"",OFFSET(DE104_3!$AJ$35,ROWS($AJ$35:AJ45)-1,COLUMNS($AJ$35:AJ45)-1),"") ->  | AI31: =IF(OFFSET(DE104_3!$AK$35,ROWS($AK$35:AK45)-1,COLUMNS($AK$35:AK45)-1)<>"",OFFSET(DE104_3!$AK$35,ROWS($AK$35:AK45)-1,COLUMNS($AK$35:AK45)-1),"") ->  | AJ31: =IF(OFFSET(DE104_3!$AL$35,ROWS($AL$35:AL45)-1,COLUMNS($AL$35:AL45)-1)<>"",OFFSET(DE104_3!$AL$35,ROWS($AL$35:AL45)-1,COLUMNS($AL$35:AL45)-1),"") ->  | AK31: =IF(OFFSET(DE104_3!$AM$35,ROWS($AM$35:AM45)-1,COLUMNS($AM$35:AM45)-1)<>"",OFFSET(DE104_3!$AM$35,ROWS($AM$35:AM45)-1,COLUMNS($AM$35:AM45)-1),"") ->  | AL31: =IF(OFFSET(DE104_3!$AN$35,ROWS($AN$35:AN45)-1,COLUMNS($AN$35:AN45)-1)<>"",OFFSET(DE104_3!$AN$35,ROWS($AN$35:AN45)-1,COLUMNS($AN$35:AN45)-1),"") ->  | AM31: =IF(OFFSET(DE104_3!$AO$35,ROWS($AO$35:AO45)-1,COLUMNS($AO$35:AO45)-1)<>"",OFFSET(DE104_3!$AO$35,ROWS($AO$35:AO45)-1,COLUMNS($AO$35:AO45)-1),"") ->  | AN31: =IF(OFFSET(DE104_3!$AP$35,ROWS($AP$35:AP45)-1,COLUMNS($AP$35:AP45)-1)<>"",OFFSET(DE104_3!$AP$35,ROWS($AP$35:AP45)-1,COLUMNS($AP$35:AP45)-1),"") ->  | AO31: =IF(OFFSET(DE104_3!$AQ$35,ROWS($AQ$35:AQ45)-1,COLUMNS($AQ$35:AQ45)-1)<>"",OFFSET(DE104_3!$AQ$35,ROWS($AQ$35:AQ45)-1,COLUMNS($AQ$35:AQ45)-1),"") -> -10
A32: =IF(OFFSET(DE104_3!$C$35,ROWS($C$35:C46)-1,COLUMNS($C$35:C46)-1)<>"",OFFSET(DE104_3!$C$35,ROWS($C$35:C46)-1,COLUMNS($C$35:C46)-1),"") -> MED | B32: =IF(OFFSET(DE104_3!$D$35,ROWS($D$35:D46)-1,COLUMNS($D$35:D46)-1)<>"",OFFSET(DE104_3!$D$35,ROWS($D$35:D46)-1,COLUMNS($D$35:D46)-1),"") -> 15000 | C32: =IF(OFFSET(DE104_3!$E$35,ROWS($E$35:E46)-1,COLUMNS($E$35:E46)-1)<>"",OFFSET(DE104_3!$E$35,ROWS($E$35:E46)-1,COLUMNS($E$35:E46)-1),"") -> 611 | D32: =IF(OFFSET(DE104_3!$F$35,ROWS($F$35:F46)-1,COLUMNS($F$35:F46)-1)<>"",OFFSET(DE104_3!$F$35,ROWS($F$35:F46)-1,COLUMNS($F$35:F46)-1),"") -> 24 | E32: =IF(OFFSET(DE104_3!$G$35,ROWS($G$35:G46)-1,COLUMNS($G$35:G46)-1)<>"",OFFSET(DE104_3!$G$35,ROWS($G$35:G46)-1,COLUMNS($G$35:G46)-1),"") -> RCP | F32: =IF(OFFSET(DE104_3!$H$35,ROWS($H$35:H46)-1,COLUMNS($H$35:H46)-1)<>"",OFFSET(DE104_3!$H$35,ROWS($H$35:H46)-1,COLUMNS($H$35:H46)-1),"") -> 76 | G32: =IF(OFFSET(DE104_3!$I$35,ROWS($I$35:I46)-1,COLUMNS($I$35:I46)-1)<>"",OFFSET(DE104_3!$I$35,ROWS($I$35:I46)-1,COLUMNS($I$35:I46)-1),"") ->  | H32: =IF(OFFSET(DE104_3!$J$35,ROWS($J$35:J46)-1,COLUMNS($J$35:J46)-1)<>"",OFFSET(DE104_3!$J$35,ROWS($J$35:J46)-1,COLUMNS($J$35:J46)-1),"") -> 2.5 | I32: =IF(OFFSET(DE104_3!$K$35,ROWS($K$35:K46)-1,COLUMNS($K$35:K46)-1)<>"",OFFSET(DE104_3!$K$35,ROWS($K$35:K46)-1,COLUMNS($K$35:K46)-1),"") ->  | J32: =IF(OFFSET(DE104_3!$L$35,ROWS($L$35:L46)-1,COLUMNS($L$35:L46)-1)<>"",OFFSET(DE104_3!$L$35,ROWS($L$35:L46)-1,COLUMNS($L$35:L46)-1),"") -> 1 | K32: =IF(OFFSET(DE104_3!$M$35,ROWS($M$35:M46)-1,COLUMNS($M$35:M46)-1)<>"",OFFSET(DE104_3!$M$35,ROWS($M$35:M46)-1,COLUMNS($M$35:M46)-1),"") -> 1 | L32: =IF(OFFSET(DE104_3!$N$35,ROWS($N$35:N46)-1,COLUMNS($N$35:N46)-1)<>"",OFFSET(DE104_3!$N$35,ROWS($N$35:N46)-1,COLUMNS($N$35:N46)-1),"") -> 1 | M32: =IF(OFFSET(DE104_3!$O$35,ROWS($O$35:O46)-1,COLUMNS($O$35:O46)-1)<>"",OFFSET(DE104_3!$O$35,ROWS($O$35:O46)-1,COLUMNS($O$35:O46)-1),"") ->  | N32: =IF(OFFSET(DE104_3!$P$35,ROWS($P$35:P46)-1,COLUMNS($P$35:P46)-1)<>"",OFFSET(DE104_3!$P$35,ROWS($P$35:P46)-1,COLUMNS($P$35:P46)-1),"") ->  | O32: =IF(OFFSET(DE104_3!$Q$35,ROWS($Q$35:Q46)-1,COLUMNS($Q$35:Q46)-1)<>"",OFFSET(DE104_3!$Q$35,ROWS($Q$35:Q46)-1,COLUMNS($Q$35:Q46)-1),"") ->  | P32: =IF(OFFSET(DE104_3!$R$35,ROWS($R$35:R46)-1,COLUMNS($R$35:R46)-1)<>"",OFFSET(DE104_3!$R$35,ROWS($R$35:R46)-1,COLUMNS($R$35:R46)-1),"") ->  | Q32: =IF(OFFSET(DE104_3!$S$35,ROWS($S$35:S46)-1,COLUMNS($S$35:S46)-1)<>"",OFFSET(DE104_3!$S$35,ROWS($S$35:S46)-1,COLUMNS($S$35:S46)-1),"") ->  | R32: =IF(OFFSET(DE104_3!$T$35,ROWS($T$35:T46)-1,COLUMNS($T$35:T46)-1)<>"",OFFSET(DE104_3!$T$35,ROWS($T$35:T46)-1,COLUMNS($T$35:T46)-1),"") ->  | S32: =IF(OFFSET(DE104_3!$U$35,ROWS($U$35:U46)-1,COLUMNS($U$35:U46)-1)<>"",OFFSET(DE104_3!$U$35,ROWS($U$35:U46)-1,COLUMNS($U$35:U46)-1),"") ->  | T32: =IF(OFFSET(DE104_3!$V$35,ROWS($V$35:V46)-1,COLUMNS($V$35:V46)-1)<>"",OFFSET(DE104_3!$V$35,ROWS($V$35:V46)-1,COLUMNS($V$35:V46)-1),"") ->  | U32: =IF(OFFSET(DE104_3!$W$35,ROWS($W$35:W46)-1,COLUMNS($W$35:W46)-1)<>"",OFFSET(DE104_3!$W$35,ROWS($W$35:W46)-1,COLUMNS($W$35:W46)-1),"") ->  | V32: =IF(OFFSET(DE104_3!$X$35,ROWS($X$35:X46)-1,COLUMNS($X$35:X46)-1)<>"",OFFSET(DE104_3!$X$35,ROWS($X$35:X46)-1,COLUMNS($X$35:X46)-1),"") -> 899.87 | W32: =IF(OFFSET(DE104_3!$Y$35,ROWS($Y$35:Y46)-1,COLUMNS($Y$35:Y46)-1)<>"",OFFSET(DE104_3!$Y$35,ROWS($Y$35:Y46)-1,COLUMNS($Y$35:Y46)-1),"") -> 900.91 | X32: =IF(OFFSET(DE104_3!$Z$35,ROWS($Z$35:Z46)-1,COLUMNS($Z$35:Z46)-1)<>"",OFFSET(DE104_3!$Z$35,ROWS($Z$35:Z46)-1,COLUMNS($Z$35:Z46)-1),"") -> 900.09 | Y32: =IF(OFFSET(DE104_3!$AA$35,ROWS($AA$35:AA46)-1,COLUMNS($AA$35:AA46)-1)<>"",OFFSET(DE104_3!$AA$35,ROWS($AA$35:AA46)-1,COLUMNS($AA$35:AA46)-1),"") ->  | Z32: =IF(OFFSET(DE104_3!$AB$35,ROWS($AB$35:AB46)-1,COLUMNS($AB$35:AB46)-1)<>"",OFFSET(DE104_3!$AB$35,ROWS($AB$35:AB46)-1,COLUMNS($AB$35:AB46)-1),"") -> 50 | AA32: =IF(OFFSET(DE104_3!$AC$35,ROWS($AC$35:AC46)-1,COLUMNS($AC$35:AC46)-1)<>"",OFFSET(DE104_3!$AC$35,ROWS($AC$35:AC46)-1,COLUMNS($AC$35:AC46)-1),"") -> 38.16 | AB32: =IF(OFFSET(DE104_3!$AD$35,ROWS($AD$35:AD46)-1,COLUMNS($AD$35:AD46)-1)<>"",OFFSET(DE104_3!$AD$35,ROWS($AD$35:AD46)-1,COLUMNS($AD$35:AD46)-1),"") ->  | AC32: =IF(OFFSET(DE104_3!$AE$35,ROWS($AE$35:AE46)-1,COLUMNS($AE$35:AE46)-1)<>"",OFFSET(DE104_3!$AE$35,ROWS($AE$35:AE46)-1,COLUMNS($AE$35:AE46)-1),"") ->  | AD32: =IF(OFFSET(DE104_3!$AF$35,ROWS($AF$35:AF46)-1,COLUMNS($AF$35:AF46)-1)<>"",OFFSET(DE104_3!$AF$35,ROWS($AF$35:AF46)-1,COLUMNS($AF$35:AF46)-1),"") ->  | AE32: =IF(OFFSET(DE104_3!$AG$35,ROWS($AG$35:AG46)-1,COLUMNS($AG$35:AG46)-1)<>"",OFFSET(DE104_3!$AG$35,ROWS($AG$35:AG46)-1,COLUMNS($AG$35:AG46)-1),"") ->  | AF32: =IF(OFFSET(DE104_3!$AH$35,ROWS($AH$35:AH46)-1,COLUMNS($AH$35:AH46)-1)<>"",OFFSET(DE104_3!$AH$35,ROWS($AH$35:AH46)-1,COLUMNS($AH$35:AH46)-1),"") -> Med | AG32: =IF(OFFSET(DE104_3!$AI$35,ROWS($AI$35:AI46)-1,COLUMNS($AI$35:AI46)-1)<>"",OFFSET(DE104_3!$AI$35,ROWS($AI$35:AI46)-1,COLUMNS($AI$35:AI46)-1),"") -> 15025 | AH32: =IF(OFFSET(DE104_3!$AJ$35,ROWS($AJ$35:AJ46)-1,COLUMNS($AJ$35:AJ46)-1)<>"",OFFSET(DE104_3!$AJ$35,ROWS($AJ$35:AJ46)-1,COLUMNS($AJ$35:AJ46)-1),"") -> 902.55 | AI32: =IF(OFFSET(DE104_3!$AK$35,ROWS($AK$35:AK46)-1,COLUMNS($AK$35:AK46)-1)<>"",OFFSET(DE104_3!$AK$35,ROWS($AK$35:AK46)-1,COLUMNS($AK$35:AK46)-1),"") -> M | AJ32: =IF(OFFSET(DE104_3!$AL$35,ROWS($AL$35:AL46)-1,COLUMNS($AL$35:AL46)-1)<>"",OFFSET(DE104_3!$AL$35,ROWS($AL$35:AL46)-1,COLUMNS($AL$35:AL46)-1),"") -> 134.0046 | AK32: =IF(OFFSET(DE104_3!$AM$35,ROWS($AM$35:AM46)-1,COLUMNS($AM$35:AM46)-1)<>"",OFFSET(DE104_3!$AM$35,ROWS($AM$35:AM46)-1,COLUMNS($AM$35:AM46)-1),"") -> 9.843248148 | AL32: =IF(OFFSET(DE104_3!$AN$35,ROWS($AN$35:AN46)-1,COLUMNS($AN$35:AN46)-1)<>"",OFFSET(DE104_3!$AN$35,ROWS($AN$35:AN46)-1,COLUMNS($AN$35:AN46)-1),"") -> 34.1887 | AM32: =IF(OFFSET(DE104_3!$AO$35,ROWS($AO$35:AO46)-1,COLUMNS($AO$35:AO46)-1)<>"",OFFSET(DE104_3!$AO$35,ROWS($AO$35:AO46)-1,COLUMNS($AO$35:AO46)-1),"") -> 6.743403704 | AN32: =IF(OFFSET(DE104_3!$AP$35,ROWS($AP$35:AP46)-1,COLUMNS($AP$35:AP46)-1)<>"",OFFSET(DE104_3!$AP$35,ROWS($AP$35:AP46)-1,COLUMNS($AP$35:AP46)-1),"") -> 40.9321037 | AO32: =IF(OFFSET(DE104_3!$AQ$35,ROWS($AQ$35:AQ46)-1,COLUMNS($AQ$35:AQ46)-1)<>"",OFFSET(DE104_3!$AQ$35,ROWS($AQ$35:AQ46)-1,COLUMNS($AQ$35:AQ46)-1),"") -> -11
A33: =IF(OFFSET(DE104_3!$C$35,ROWS($C$35:C47)-1,COLUMNS($C$35:C47)-1)<>"",OFFSET(DE104_3!$C$35,ROWS($C$35:C47)-1,COLUMNS($C$35:C47)-1),"") -> MED | B33: =IF(OFFSET(DE104_3!$D$35,ROWS($D$35:D47)-1,COLUMNS($D$35:D47)-1)<>"",OFFSET(DE104_3!$D$35,ROWS($D$35:D47)-1,COLUMNS($D$35:D47)-1),"") -> 15550 | C33: =IF(OFFSET(DE104_3!$E$35,ROWS($E$35:E47)-1,COLUMNS($E$35:E47)-1)<>"",OFFSET(DE104_3!$E$35,ROWS($E$35:E47)-1,COLUMNS($E$35:E47)-1),"") -> 611 | D33: =IF(OFFSET(DE104_3!$F$35,ROWS($F$35:F47)-1,COLUMNS($F$35:F47)-1)<>"",OFFSET(DE104_3!$F$35,ROWS($F$35:F47)-1,COLUMNS($F$35:F47)-1),"") -> 18 | E33: =IF(OFFSET(DE104_3!$G$35,ROWS($G$35:G47)-1,COLUMNS($G$35:G47)-1)<>"",OFFSET(DE104_3!$G$35,ROWS($G$35:G47)-1,COLUMNS($G$35:G47)-1),"") -> RCP | F33: =IF(OFFSET(DE104_3!$H$35,ROWS($H$35:H47)-1,COLUMNS($H$35:H47)-1)<>"",OFFSET(DE104_3!$H$35,ROWS($H$35:H47)-1,COLUMNS($H$35:H47)-1),"") -> 82 | G33: =IF(OFFSET(DE104_3!$I$35,ROWS($I$35:I47)-1,COLUMNS($I$35:I47)-1)<>"",OFFSET(DE104_3!$I$35,ROWS($I$35:I47)-1,COLUMNS($I$35:I47)-1),"") ->  | H33: =IF(OFFSET(DE104_3!$J$35,ROWS($J$35:J47)-1,COLUMNS($J$35:J47)-1)<>"",OFFSET(DE104_3!$J$35,ROWS($J$35:J47)-1,COLUMNS($J$35:J47)-1),"") -> 2.5 | I33: =IF(OFFSET(DE104_3!$K$35,ROWS($K$35:K47)-1,COLUMNS($K$35:K47)-1)<>"",OFFSET(DE104_3!$K$35,ROWS($K$35:K47)-1,COLUMNS($K$35:K47)-1),"") ->  | J33: =IF(OFFSET(DE104_3!$L$35,ROWS($L$35:L47)-1,COLUMNS($L$35:L47)-1)<>"",OFFSET(DE104_3!$L$35,ROWS($L$35:L47)-1,COLUMNS($L$35:L47)-1),"") -> 1 | K33: =IF(OFFSET(DE104_3!$M$35,ROWS($M$35:M47)-1,COLUMNS($M$35:M47)-1)<>"",OFFSET(DE104_3!$M$35,ROWS($M$35:M47)-1,COLUMNS($M$35:M47)-1),"") -> 1 | L33: =IF(OFFSET(DE104_3!$N$35,ROWS($N$35:N47)-1,COLUMNS($N$35:N47)-1)<>"",OFFSET(DE104_3!$N$35,ROWS($N$35:N47)-1,COLUMNS($N$35:N47)-1),"") -> 1 | M33: =IF(OFFSET(DE104_3!$O$35,ROWS($O$35:O47)-1,COLUMNS($O$35:O47)-1)<>"",OFFSET(DE104_3!$O$35,ROWS($O$35:O47)-1,COLUMNS($O$35:O47)-1),"") ->  | N33: =IF(OFFSET(DE104_3!$P$35,ROWS($P$35:P47)-1,COLUMNS($P$35:P47)-1)<>"",OFFSET(DE104_3!$P$35,ROWS($P$35:P47)-1,COLUMNS($P$35:P47)-1),"") ->  | O33: =IF(OFFSET(DE104_3!$Q$35,ROWS($Q$35:Q47)-1,COLUMNS($Q$35:Q47)-1)<>"",OFFSET(DE104_3!$Q$35,ROWS($Q$35:Q47)-1,COLUMNS($Q$35:Q47)-1),"") ->  | P33: =IF(OFFSET(DE104_3!$R$35,ROWS($R$35:R47)-1,COLUMNS($R$35:R47)-1)<>"",OFFSET(DE104_3!$R$35,ROWS($R$35:R47)-1,COLUMNS($R$35:R47)-1),"") ->  | Q33: =IF(OFFSET(DE104_3!$S$35,ROWS($S$35:S47)-1,COLUMNS($S$35:S47)-1)<>"",OFFSET(DE104_3!$S$35,ROWS($S$35:S47)-1,COLUMNS($S$35:S47)-1),"") ->  | R33: =IF(OFFSET(DE104_3!$T$35,ROWS($T$35:T47)-1,COLUMNS($T$35:T47)-1)<>"",OFFSET(DE104_3!$T$35,ROWS($T$35:T47)-1,COLUMNS($T$35:T47)-1),"") ->  | S33: =IF(OFFSET(DE104_3!$U$35,ROWS($U$35:U47)-1,COLUMNS($U$35:U47)-1)<>"",OFFSET(DE104_3!$U$35,ROWS($U$35:U47)-1,COLUMNS($U$35:U47)-1),"") ->  | T33: =IF(OFFSET(DE104_3!$V$35,ROWS($V$35:V47)-1,COLUMNS($V$35:V47)-1)<>"",OFFSET(DE104_3!$V$35,ROWS($V$35:V47)-1,COLUMNS($V$35:V47)-1),"") ->  | U33: =IF(OFFSET(DE104_3!$W$35,ROWS($W$35:W47)-1,COLUMNS($W$35:W47)-1)<>"",OFFSET(DE104_3!$W$35,ROWS($W$35:W47)-1,COLUMNS($W$35:W47)-1),"") -> 888.2 | V33: =IF(OFFSET(DE104_3!$X$35,ROWS($X$35:X47)-1,COLUMNS($X$35:X47)-1)<>"",OFFSET(DE104_3!$X$35,ROWS($X$35:X47)-1,COLUMNS($X$35:X47)-1),"") -> 884.5 | W33: =IF(OFFSET(DE104_3!$Y$35,ROWS($Y$35:Y47)-1,COLUMNS($Y$35:Y47)-1)<>"",OFFSET(DE104_3!$Y$35,ROWS($Y$35:Y47)-1,COLUMNS($Y$35:Y47)-1),"") -> 888.2 | X33: =IF(OFFSET(DE104_3!$Z$35,ROWS($Z$35:Z47)-1,COLUMNS($Z$35:Z47)-1)<>"",OFFSET(DE104_3!$Z$35,ROWS($Z$35:Z47)-1,COLUMNS($Z$35:Z47)-1),"") -> 886.52 | Y33: =IF(OFFSET(DE104_3!$AA$35,ROWS($AA$35:AA47)-1,COLUMNS($AA$35:AA47)-1)<>"",OFFSET(DE104_3!$AA$35,ROWS($AA$35:AA47)-1,COLUMNS($AA$35:AA47)-1),"") ->  | Z33: =IF(OFFSET(DE104_3!$AB$35,ROWS($AB$35:AB47)-1,COLUMNS($AB$35:AB47)-1)<>"",OFFSET(DE104_3!$AB$35,ROWS($AB$35:AB47)-1,COLUMNS($AB$35:AB47)-1),"") -> 52.9 | AA33: =IF(OFFSET(DE104_3!$AC$35,ROWS($AC$35:AC47)-1,COLUMNS($AC$35:AC47)-1)<>"",OFFSET(DE104_3!$AC$35,ROWS($AC$35:AC47)-1,COLUMNS($AC$35:AC47)-1),"") -> 41.2 | AB33: =IF(OFFSET(DE104_3!$AD$35,ROWS($AD$35:AD47)-1,COLUMNS($AD$35:AD47)-1)<>"",OFFSET(DE104_3!$AD$35,ROWS($AD$35:AD47)-1,COLUMNS($AD$35:AD47)-1),"") ->  | AC33: =IF(OFFSET(DE104_3!$AE$35,ROWS($AE$35:AE47)-1,COLUMNS($AE$35:AE47)-1)<>"",OFFSET(DE104_3!$AE$35,ROWS($AE$35:AE47)-1,COLUMNS($AE$35:AE47)-1),"") ->  | AD33: =IF(OFFSET(DE104_3!$AF$35,ROWS($AF$35:AF47)-1,COLUMNS($AF$35:AF47)-1)<>"",OFFSET(DE104_3!$AF$35,ROWS($AF$35:AF47)-1,COLUMNS($AF$35:AF47)-1),"") ->  | AE33: =IF(OFFSET(DE104_3!$AG$35,ROWS($AG$35:AG47)-1,COLUMNS($AG$35:AG47)-1)<>"",OFFSET(DE104_3!$AG$35,ROWS($AG$35:AG47)-1,COLUMNS($AG$35:AG47)-1),"") ->  | AF33: =IF(OFFSET(DE104_3!$AH$35,ROWS($AH$35:AH47)-1,COLUMNS($AH$35:AH47)-1)<>"",OFFSET(DE104_3!$AH$35,ROWS($AH$35:AH47)-1,COLUMNS($AH$35:AH47)-1),"") ->  | AG33: =IF(OFFSET(DE104_3!$AI$35,ROWS($AI$35:AI47)-1,COLUMNS($AI$35:AI47)-1)<>"",OFFSET(DE104_3!$AI$35,ROWS($AI$35:AI47)-1,COLUMNS($AI$35:AI47)-1),"") ->  | AH33: =IF(OFFSET(DE104_3!$AJ$35,ROWS($AJ$35:AJ47)-1,COLUMNS($AJ$35:AJ47)-1)<>"",OFFSET(DE104_3!$AJ$35,ROWS($AJ$35:AJ47)-1,COLUMNS($AJ$35:AJ47)-1),"") ->  | AI33: =IF(OFFSET(DE104_3!$AK$35,ROWS($AK$35:AK47)-1,COLUMNS($AK$35:AK47)-1)<>"",OFFSET(DE104_3!$AK$35,ROWS($AK$35:AK47)-1,COLUMNS($AK$35:AK47)-1),"") ->  | AJ33: =IF(OFFSET(DE104_3!$AL$35,ROWS($AL$35:AL47)-1,COLUMNS($AL$35:AL47)-1)<>"",OFFSET(DE104_3!$AL$35,ROWS($AL$35:AL47)-1,COLUMNS($AL$35:AL47)-1),"") -> 4.1832 | AK33: =IF(OFFSET(DE104_3!$AM$35,ROWS($AM$35:AM47)-1,COLUMNS($AM$35:AM47)-1)<>"",OFFSET(DE104_3!$AM$35,ROWS($AM$35:AM47)-1,COLUMNS($AM$35:AM47)-1),"") -> 11.65413333 | AL33: =IF(OFFSET(DE104_3!$AN$35,ROWS($AN$35:AN47)-1,COLUMNS($AN$35:AN47)-1)<>"",OFFSET(DE104_3!$AN$35,ROWS($AN$35:AN47)-1,COLUMNS($AN$35:AN47)-1),"") -> 49.3045037 | AM33: =IF(OFFSET(DE104_3!$AO$35,ROWS($AO$35:AO47)-1,COLUMNS($AO$35:AO47)-1)<>"",OFFSET(DE104_3!$AO$35,ROWS($AO$35:AO47)-1,COLUMNS($AO$35:AO47)-1),"") -> 6.626896296 | AN33: =IF(OFFSET(DE104_3!$AP$35,ROWS($AP$35:AP47)-1,COLUMNS($AP$35:AP47)-1)<>"",OFFSET(DE104_3!$AP$35,ROWS($AP$35:AP47)-1,COLUMNS($AP$35:AP47)-1),"") -> 55.9314 | AO33: =IF(OFFSET(DE104_3!$AQ$35,ROWS($AQ$35:AQ47)-1,COLUMNS($AQ$35:AQ47)-1)<>"",OFFSET(DE104_3!$AQ$35,ROWS($AQ$35:AQ47)-1,COLUMNS($AQ$35:AQ47)-1),"") -> -12
A34: =IF(OFFSET(DE104_3!$C$35,ROWS($C$35:C48)-1,COLUMNS($C$35:C48)-1)<>"",OFFSET(DE104_3!$C$35,ROWS($C$35:C48)-1,COLUMNS($C$35:C48)-1),"") -> 104R-H | B34: =IF(OFFSET(DE104_3!$D$35,ROWS($D$35:D48)-1,COLUMNS($D$35:D48)-1)<>"",OFFSET(DE104_3!$D$35,ROWS($D$35:D48)-1,COLUMNS($D$35:D48)-1),"") -> 15915 | C34: =IF(OFFSET(DE104_3!$E$35,ROWS($E$35:E48)-1,COLUMNS($E$35:E48)-1)<>"",OFFSET(DE104_3!$E$35,ROWS($E$35:E48)-1,COLUMNS($E$35:E48)-1),"") -> 601 | D34: =IF(OFFSET(DE104_3!$F$35,ROWS($F$35:F48)-1,COLUMNS($F$35:F48)-1)<>"",OFFSET(DE104_3!$F$35,ROWS($F$35:F48)-1,COLUMNS($F$35:F48)-1),"") -> 88x54 | E34: =IF(OFFSET(DE104_3!$G$35,ROWS($G$35:G48)-1,COLUMNS($G$35:G48)-1)<>"",OFFSET(DE104_3!$G$35,ROWS($G$35:G48)-1,COLUMNS($G$35:G48)-1),"") -> LCP | F34: =IF(OFFSET(DE104_3!$H$35,ROWS($H$35:H48)-1,COLUMNS($H$35:H48)-1)<>"",OFFSET(DE104_3!$H$35,ROWS($H$35:H48)-1,COLUMNS($H$35:H48)-1),"") -> 198 | G34: =IF(OFFSET(DE104_3!$I$35,ROWS($I$35:I48)-1,COLUMNS($I$35:I48)-1)<>"",OFFSET(DE104_3!$I$35,ROWS($I$35:I48)-1,COLUMNS($I$35:I48)-1),"") ->  | H34: =IF(OFFSET(DE104_3!$J$35,ROWS($J$35:J48)-1,COLUMNS($J$35:J48)-1)<>"",OFFSET(DE104_3!$J$35,ROWS($J$35:J48)-1,COLUMNS($J$35:J48)-1),"") -> 6 | I34: =IF(OFFSET(DE104_3!$K$35,ROWS($K$35:K48)-1,COLUMNS($K$35:K48)-1)<>"",OFFSET(DE104_3!$K$35,ROWS($K$35:K48)-1,COLUMNS($K$35:K48)-1),"") ->  | J34: =IF(OFFSET(DE104_3!$L$35,ROWS($L$35:L48)-1,COLUMNS($L$35:L48)-1)<>"",OFFSET(DE104_3!$L$35,ROWS($L$35:L48)-1,COLUMNS($L$35:L48)-1),"") -> 1 | K34: =IF(OFFSET(DE104_3!$M$35,ROWS($M$35:M48)-1,COLUMNS($M$35:M48)-1)<>"",OFFSET(DE104_3!$M$35,ROWS($M$35:M48)-1,COLUMNS($M$35:M48)-1),"") -> 1 | L34: =IF(OFFSET(DE104_3!$N$35,ROWS($N$35:N48)-1,COLUMNS($N$35:N48)-1)<>"",OFFSET(DE104_3!$N$35,ROWS($N$35:N48)-1,COLUMNS($N$35:N48)-1),"") ->  | M34: =IF(OFFSET(DE104_3!$O$35,ROWS($O$35:O48)-1,COLUMNS($O$35:O48)-1)<>"",OFFSET(DE104_3!$O$35,ROWS($O$35:O48)-1,COLUMNS($O$35:O48)-1),"") ->  | N34: =IF(OFFSET(DE104_3!$P$35,ROWS($P$35:P48)-1,COLUMNS($P$35:P48)-1)<>"",OFFSET(DE104_3!$P$35,ROWS($P$35:P48)-1,COLUMNS($P$35:P48)-1),"") ->  | O34: =IF(OFFSET(DE104_3!$Q$35,ROWS($Q$35:Q48)-1,COLUMNS($Q$35:Q48)-1)<>"",OFFSET(DE104_3!$Q$35,ROWS($Q$35:Q48)-1,COLUMNS($Q$35:Q48)-1),"") ->  | P34: =IF(OFFSET(DE104_3!$R$35,ROWS($R$35:R48)-1,COLUMNS($R$35:R48)-1)<>"",OFFSET(DE104_3!$R$35,ROWS($R$35:R48)-1,COLUMNS($R$35:R48)-1),"") ->  | Q34: =IF(OFFSET(DE104_3!$S$35,ROWS($S$35:S48)-1,COLUMNS($S$35:S48)-1)<>"",OFFSET(DE104_3!$S$35,ROWS($S$35:S48)-1,COLUMNS($S$35:S48)-1),"") ->  | R34: =IF(OFFSET(DE104_3!$T$35,ROWS($T$35:T48)-1,COLUMNS($T$35:T48)-1)<>"",OFFSET(DE104_3!$T$35,ROWS($T$35:T48)-1,COLUMNS($T$35:T48)-1),"") ->  | S34: =IF(OFFSET(DE104_3!$U$35,ROWS($U$35:U48)-1,COLUMNS($U$35:U48)-1)<>"",OFFSET(DE104_3!$U$35,ROWS($U$35:U48)-1,COLUMNS($U$35:U48)-1),"") ->  | T34: =IF(OFFSET(DE104_3!$V$35,ROWS($V$35:V48)-1,COLUMNS($V$35:V48)-1)<>"",OFFSET(DE104_3!$V$35,ROWS($V$35:V48)-1,COLUMNS($V$35:V48)-1),"") ->  | U34: =IF(OFFSET(DE104_3!$W$35,ROWS($W$35:W48)-1,COLUMNS($W$35:W48)-1)<>"",OFFSET(DE104_3!$W$35,ROWS($W$35:W48)-1,COLUMNS($W$35:W48)-1),"") ->  | V34: =IF(OFFSET(DE104_3!$X$35,ROWS($X$35:X48)-1,COLUMNS($X$35:X48)-1)<>"",OFFSET(DE104_3!$X$35,ROWS($X$35:X48)-1,COLUMNS($X$35:X48)-1),"") -> 878.5 | W34: =IF(OFFSET(DE104_3!$Y$35,ROWS($Y$35:Y48)-1,COLUMNS($Y$35:Y48)-1)<>"",OFFSET(DE104_3!$Y$35,ROWS($Y$35:Y48)-1,COLUMNS($Y$35:Y48)-1),"") -> 875.2 | X34: =IF(OFFSET(DE104_3!$Z$35,ROWS($Z$35:Z48)-1,COLUMNS($Z$35:Z48)-1)<>"",OFFSET(DE104_3!$Z$35,ROWS($Z$35:Z48)-1,COLUMNS($Z$35:Z48)-1),"") ->  | Y34: =IF(OFFSET(DE104_3!$AA$35,ROWS($AA$35:AA48)-1,COLUMNS($AA$35:AA48)-1)<>"",OFFSET(DE104_3!$AA$35,ROWS($AA$35:AA48)-1,COLUMNS($AA$35:AA48)-1),"") ->  | Z34: =IF(OFFSET(DE104_3!$AB$35,ROWS($AB$35:AB48)-1,COLUMNS($AB$35:AB48)-1)<>"",OFFSET(DE104_3!$AB$35,ROWS($AB$35:AB48)-1,COLUMNS($AB$35:AB48)-1),"") -> 101.5 | AA34: =IF(OFFSET(DE104_3!$AC$35,ROWS($AC$35:AC48)-1,COLUMNS($AC$35:AC48)-1)<>"",OFFSET(DE104_3!$AC$35,ROWS($AC$35:AC48)-1,COLUMNS($AC$35:AC48)-1),"") -> 113 | AB34: =IF(OFFSET(DE104_3!$AD$35,ROWS($AD$35:AD48)-1,COLUMNS($AD$35:AD48)-1)<>"",OFFSET(DE104_3!$AD$35,ROWS($AD$35:AD48)-1,COLUMNS($AD$35:AD48)-1),"") ->  | AC34: =IF(OFFSET(DE104_3!$AE$35,ROWS($AE$35:AE48)-1,COLUMNS($AE$35:AE48)-1)<>"",OFFSET(DE104_3!$AE$35,ROWS($AE$35:AE48)-1,COLUMNS($AE$35:AE48)-1),"") ->  | AD34: =IF(OFFSET(DE104_3!$AF$35,ROWS($AF$35:AF48)-1,COLUMNS($AF$35:AF48)-1)<>"",OFFSET(DE104_3!$AF$35,ROWS($AF$35:AF48)-1,COLUMNS($AF$35:AF48)-1),"") ->  | AE34: =IF(OFFSET(DE104_3!$AG$35,ROWS($AG$35:AG48)-1,COLUMNS($AG$35:AG48)-1)<>"",OFFSET(DE104_3!$AG$35,ROWS($AG$35:AG48)-1,COLUMNS($AG$35:AG48)-1),"") ->  | AF34: =IF(OFFSET(DE104_3!$AH$35,ROWS($AH$35:AH48)-1,COLUMNS($AH$35:AH48)-1)<>"",OFFSET(DE104_3!$AH$35,ROWS($AH$35:AH48)-1,COLUMNS($AH$35:AH48)-1),"") ->  | AG34: =IF(OFFSET(DE104_3!$AI$35,ROWS($AI$35:AI48)-1,COLUMNS($AI$35:AI48)-1)<>"",OFFSET(DE104_3!$AI$35,ROWS($AI$35:AI48)-1,COLUMNS($AI$35:AI48)-1),"") ->  | AH34: =IF(OFFSET(DE104_3!$AJ$35,ROWS($AJ$35:AJ48)-1,COLUMNS($AJ$35:AJ48)-1)<>"",OFFSET(DE104_3!$AJ$35,ROWS($AJ$35:AJ48)-1,COLUMNS($AJ$35:AJ48)-1),"") ->  | AI34: =IF(OFFSET(DE104_3!$AK$35,ROWS($AK$35:AK48)-1,COLUMNS($AK$35:AK48)-1)<>"",OFFSET(DE104_3!$AK$35,ROWS($AK$35:AK48)-1,COLUMNS($AK$35:AK48)-1),"") ->  | AJ34: =IF(OFFSET(DE104_3!$AL$35,ROWS($AL$35:AL48)-1,COLUMNS($AL$35:AL48)-1)<>"",OFFSET(DE104_3!$AL$35,ROWS($AL$35:AL48)-1,COLUMNS($AL$35:AL48)-1),"") -> 1390.33037 | AK34: =IF(OFFSET(DE104_3!$AM$35,ROWS($AM$35:AM48)-1,COLUMNS($AM$35:AM48)-1)<>"",OFFSET(DE104_3!$AM$35,ROWS($AM$35:AM48)-1,COLUMNS($AM$35:AM48)-1),"") -> N/A | AL34: =IF(OFFSET(DE104_3!$AN$35,ROWS($AN$35:AN48)-1,COLUMNS($AN$35:AN48)-1)<>"",OFFSET(DE104_3!$AN$35,ROWS($AN$35:AN48)-1,COLUMNS($AN$35:AN48)-1),"") -> 661.4294519 | AM34: =IF(OFFSET(DE104_3!$AO$35,ROWS($AO$35:AO48)-1,COLUMNS($AO$35:AO48)-1)<>"",OFFSET(DE104_3!$AO$35,ROWS($AO$35:AO48)-1,COLUMNS($AO$35:AO48)-1),"") -> 30.53703704 | AN34: =IF(OFFSET(DE104_3!$AP$35,ROWS($AP$35:AP48)-1,COLUMNS($AP$35:AP48)-1)<>"",OFFSET(DE104_3!$AP$35,ROWS($AP$35:AP48)-1,COLUMNS($AP$35:AP48)-1),"") -> 691.9664889 | AO34: =IF(OFFSET(DE104_3!$AQ$35,ROWS($AQ$35:AQ48)-1,COLUMNS($AQ$35:AQ48)-1)<>"",OFFSET(DE104_3!$AQ$35,ROWS($AQ$35:AQ48)-1,COLUMNS($AQ$35:AQ48)-1),"") -> -13
A35: =IF(OFFSET(DE104_3!$C$35,ROWS($C$35:C49)-1,COLUMNS($C$35:C49)-1)<>"",OFFSET(DE104_3!$C$35,ROWS($C$35:C49)-1,COLUMNS($C$35:C49)-1),"") ->  | B35: =IF(OFFSET(DE104_3!$D$35,ROWS($D$35:D49)-1,COLUMNS($D$35:D49)-1)<>"",OFFSET(DE104_3!$D$35,ROWS($D$35:D49)-1,COLUMNS($D$35:D49)-1),"") -> 159+16.55, 191.52' Rt | C35: =IF(OFFSET(DE104_3!$E$35,ROWS($E$35:E49)-1,COLUMNS($E$35:E49)-1)<>"",OFFSET(DE104_3!$E$35,ROWS($E$35:E49)-1,COLUMNS($E$35:E49)-1),"") -> Existing | D35: =IF(OFFSET(DE104_3!$F$35,ROWS($F$35:F49)-1,COLUMNS($F$35:F49)-1)<>"",OFFSET(DE104_3!$F$35,ROWS($F$35:F49)-1,COLUMNS($F$35:F49)-1),"") ->  | E35: =IF(OFFSET(DE104_3!$G$35,ROWS($G$35:G49)-1,COLUMNS($G$35:G49)-1)<>"",OFFSET(DE104_3!$G$35,ROWS($G$35:G49)-1,COLUMNS($G$35:G49)-1),"") ->  | F35: =IF(OFFSET(DE104_3!$H$35,ROWS($H$35:H49)-1,COLUMNS($H$35:H49)-1)<>"",OFFSET(DE104_3!$H$35,ROWS($H$35:H49)-1,COLUMNS($H$35:H49)-1),"") ->  | G35: =IF(OFFSET(DE104_3!$I$35,ROWS($I$35:I49)-1,COLUMNS($I$35:I49)-1)<>"",OFFSET(DE104_3!$I$35,ROWS($I$35:I49)-1,COLUMNS($I$35:I49)-1),"") ->  | H35: =IF(OFFSET(DE104_3!$J$35,ROWS($J$35:J49)-1,COLUMNS($J$35:J49)-1)<>"",OFFSET(DE104_3!$J$35,ROWS($J$35:J49)-1,COLUMNS($J$35:J49)-1),"") ->  | I35: =IF(OFFSET(DE104_3!$K$35,ROWS($K$35:K49)-1,COLUMNS($K$35:K49)-1)<>"",OFFSET(DE104_3!$K$35,ROWS($K$35:K49)-1,COLUMNS($K$35:K49)-1),"") ->  | J35: =IF(OFFSET(DE104_3!$L$35,ROWS($L$35:L49)-1,COLUMNS($L$35:L49)-1)<>"",OFFSET(DE104_3!$L$35,ROWS($L$35:L49)-1,COLUMNS($L$35:L49)-1),"") ->  | K35: =IF(OFFSET(DE104_3!$M$35,ROWS($M$35:M49)-1,COLUMNS($M$35:M49)-1)<>"",OFFSET(DE104_3!$M$35,ROWS($M$35:M49)-1,COLUMNS($M$35:M49)-1),"") ->  | L35: =IF(OFFSET(DE104_3!$N$35,ROWS($N$35:N49)-1,COLUMNS($N$35:N49)-1)<>"",OFFSET(DE104_3!$N$35,ROWS($N$35:N49)-1,COLUMNS($N$35:N49)-1),"") ->  | M35: =IF(OFFSET(DE104_3!$O$35,ROWS($O$35:O49)-1,COLUMNS($O$35:O49)-1)<>"",OFFSET(DE104_3!$O$35,ROWS($O$35:O49)-1,COLUMNS($O$35:O49)-1),"") ->  | N35: =IF(OFFSET(DE104_3!$P$35,ROWS($P$35:P49)-1,COLUMNS($P$35:P49)-1)<>"",OFFSET(DE104_3!$P$35,ROWS($P$35:P49)-1,COLUMNS($P$35:P49)-1),"") ->  | O35: =IF(OFFSET(DE104_3!$Q$35,ROWS($Q$35:Q49)-1,COLUMNS($Q$35:Q49)-1)<>"",OFFSET(DE104_3!$Q$35,ROWS($Q$35:Q49)-1,COLUMNS($Q$35:Q49)-1),"") ->  | P35: =IF(OFFSET(DE104_3!$R$35,ROWS($R$35:R49)-1,COLUMNS($R$35:R49)-1)<>"",OFFSET(DE104_3!$R$35,ROWS($R$35:R49)-1,COLUMNS($R$35:R49)-1),"") ->  | Q35: =IF(OFFSET(DE104_3!$S$35,ROWS($S$35:S49)-1,COLUMNS($S$35:S49)-1)<>"",OFFSET(DE104_3!$S$35,ROWS($S$35:S49)-1,COLUMNS($S$35:S49)-1),"") ->  | R35: =IF(OFFSET(DE104_3!$T$35,ROWS($T$35:T49)-1,COLUMNS($T$35:T49)-1)<>"",OFFSET(DE104_3!$T$35,ROWS($T$35:T49)-1,COLUMNS($T$35:T49)-1),"") ->  | S35: =IF(OFFSET(DE104_3!$U$35,ROWS($U$35:U49)-1,COLUMNS($U$35:U49)-1)<>"",OFFSET(DE104_3!$U$35,ROWS($U$35:U49)-1,COLUMNS($U$35:U49)-1),"") ->  | T35: =IF(OFFSET(DE104_3!$V$35,ROWS($V$35:V49)-1,COLUMNS($V$35:V49)-1)<>"",OFFSET(DE104_3!$V$35,ROWS($V$35:V49)-1,COLUMNS($V$35:V49)-1),"") ->  | U35: =IF(OFFSET(DE104_3!$W$35,ROWS($W$35:W49)-1,COLUMNS($W$35:W49)-1)<>"",OFFSET(DE104_3!$W$35,ROWS($W$35:W49)-1,COLUMNS($W$35:W49)-1),"") ->  | V35: =IF(OFFSET(DE104_3!$X$35,ROWS($X$35:X49)-1,COLUMNS($X$35:X49)-1)<>"",OFFSET(DE104_3!$X$35,ROWS($X$35:X49)-1,COLUMNS($X$35:X49)-1),"") ->  | W35: =IF(OFFSET(DE104_3!$Y$35,ROWS($Y$35:Y49)-1,COLUMNS($Y$35:Y49)-1)<>"",OFFSET(DE104_3!$Y$35,ROWS($Y$35:Y49)-1,COLUMNS($Y$35:Y49)-1),"") ->  | X35: =IF(OFFSET(DE104_3!$Z$35,ROWS($Z$35:Z49)-1,COLUMNS($Z$35:Z49)-1)<>"",OFFSET(DE104_3!$Z$35,ROWS($Z$35:Z49)-1,COLUMNS($Z$35:Z49)-1),"") ->  | Y35: =IF(OFFSET(DE104_3!$AA$35,ROWS($AA$35:AA49)-1,COLUMNS($AA$35:AA49)-1)<>"",OFFSET(DE104_3!$AA$35,ROWS($AA$35:AA49)-1,COLUMNS($AA$35:AA49)-1),"") ->  | Z35: =IF(OFFSET(DE104_3!$AB$35,ROWS($AB$35:AB49)-1,COLUMNS($AB$35:AB49)-1)<>"",OFFSET(DE104_3!$AB$35,ROWS($AB$35:AB49)-1,COLUMNS($AB$35:AB49)-1),"") ->  | AA35: =IF(OFFSET(DE104_3!$AC$35,ROWS($AC$35:AC49)-1,COLUMNS($AC$35:AC49)-1)<>"",OFFSET(DE104_3!$AC$35,ROWS($AC$35:AC49)-1,COLUMNS($AC$35:AC49)-1),"") ->  | AB35: =IF(OFFSET(DE104_3!$AD$35,ROWS($AD$35:AD49)-1,COLUMNS($AD$35:AD49)-1)<>"",OFFSET(DE104_3!$AD$35,ROWS($AD$35:AD49)-1,COLUMNS($AD$35:AD49)-1),"") ->  | AC35: =IF(OFFSET(DE104_3!$AE$35,ROWS($AE$35:AE49)-1,COLUMNS($AE$35:AE49)-1)<>"",OFFSET(DE104_3!$AE$35,ROWS($AE$35:AE49)-1,COLUMNS($AE$35:AE49)-1),"") ->  | AD35: =IF(OFFSET(DE104_3!$AF$35,ROWS($AF$35:AF49)-1,COLUMNS($AF$35:AF49)-1)<>"",OFFSET(DE104_3!$AF$35,ROWS($AF$35:AF49)-1,COLUMNS($AF$35:AF49)-1),"") ->  | AE35: =IF(OFFSET(DE104_3!$AG$35,ROWS($AG$35:AG49)-1,COLUMNS($AG$35:AG49)-1)<>"",OFFSET(DE104_3!$AG$35,ROWS($AG$35:AG49)-1,COLUMNS($AG$35:AG49)-1),"") ->  | AF35: =IF(OFFSET(DE104_3!$AH$35,ROWS($AH$35:AH49)-1,COLUMNS($AH$35:AH49)-1)<>"",OFFSET(DE104_3!$AH$35,ROWS($AH$35:AH49)-1,COLUMNS($AH$35:AH49)-1),"") ->  | AG35: =IF(OFFSET(DE104_3!$AI$35,ROWS($AI$35:AI49)-1,COLUMNS($AI$35:AI49)-1)<>"",OFFSET(DE104_3!$AI$35,ROWS($AI$35:AI49)-1,COLUMNS($AI$35:AI49)-1),"") ->  | AH35: =IF(OFFSET(DE104_3!$AJ$35,ROWS($AJ$35:AJ49)-1,COLUMNS($AJ$35:AJ49)-1)<>"",OFFSET(DE104_3!$AJ$35,ROWS($AJ$35:AJ49)-1,COLUMNS($AJ$35:AJ49)-1),"") ->  | AI35: =IF(OFFSET(DE104_3!$AK$35,ROWS($AK$35:AK49)-1,COLUMNS($AK$35:AK49)-1)<>"",OFFSET(DE104_3!$AK$35,ROWS($AK$35:AK49)-1,COLUMNS($AK$35:AK49)-1),"") ->  | AJ35: =IF(OFFSET(DE104_3!$AL$35,ROWS($AL$35:AL49)-1,COLUMNS($AL$35:AL49)-1)<>"",OFFSET(DE104_3!$AL$35,ROWS($AL$35:AL49)-1,COLUMNS($AL$35:AL49)-1),"") ->  | AK35: =IF(OFFSET(DE104_3!$AM$35,ROWS($AM$35:AM49)-1,COLUMNS($AM$35:AM49)-1)<>"",OFFSET(DE104_3!$AM$35,ROWS($AM$35:AM49)-1,COLUMNS($AM$35:AM49)-1),"") ->  | AL35: =IF(OFFSET(DE104_3!$AN$35,ROWS($AN$35:AN49)-1,COLUMNS($AN$35:AN49)-1)<>"",OFFSET(DE104_3!$AN$35,ROWS($AN$35:AN49)-1,COLUMNS($AN$35:AN49)-1),"") ->  | AM35: =IF(OFFSET(DE104_3!$AO$35,ROWS($AO$35:AO49)-1,COLUMNS($AO$35:AO49)-1)<>"",OFFSET(DE104_3!$AO$35,ROWS($AO$35:AO49)-1,COLUMNS($AO$35:AO49)-1),"") ->  | AN35: =IF(OFFSET(DE104_3!$AP$35,ROWS($AP$35:AP49)-1,COLUMNS($AP$35:AP49)-1)<>"",OFFSET(DE104_3!$AP$35,ROWS($AP$35:AP49)-1,COLUMNS($AP$35:AP49)-1),"") ->  | AO35: =IF(OFFSET(DE104_3!$AQ$35,ROWS($AQ$35:AQ49)-1,COLUMNS($AQ$35:AQ49)-1)<>"",OFFSET(DE104_3!$AQ$35,ROWS($AQ$35:AQ49)-1,COLUMNS($AQ$35:AQ49)-1),"") -> -14
A36: =IF(OFFSET(DE104_3!$C$35,ROWS($C$35:C50)-1,COLUMNS($C$35:C50)-1)<>"",OFFSET(DE104_3!$C$35,ROWS($C$35:C50)-1,COLUMNS($C$35:C50)-1),"") -> MED | B36: =IF(OFFSET(DE104_3!$D$35,ROWS($D$35:D50)-1,COLUMNS($D$35:D50)-1)<>"",OFFSET(DE104_3!$D$35,ROWS($D$35:D50)-1,COLUMNS($D$35:D50)-1),"") -> 15925 | C36: =IF(OFFSET(DE104_3!$E$35,ROWS($E$35:E50)-1,COLUMNS($E$35:E50)-1)<>"",OFFSET(DE104_3!$E$35,ROWS($E$35:E50)-1,COLUMNS($E$35:E50)-1),"") -> 611 | D36: =IF(OFFSET(DE104_3!$F$35,ROWS($F$35:F50)-1,COLUMNS($F$35:F50)-1)<>"",OFFSET(DE104_3!$F$35,ROWS($F$35:F50)-1,COLUMNS($F$35:F50)-1),"") -> 24 | E36: =IF(OFFSET(DE104_3!$G$35,ROWS($G$35:G50)-1,COLUMNS($G$35:G50)-1)<>"",OFFSET(DE104_3!$G$35,ROWS($G$35:G50)-1,COLUMNS($G$35:G50)-1),"") -> RCP | F36: =IF(OFFSET(DE104_3!$H$35,ROWS($H$35:H50)-1,COLUMNS($H$35:H50)-1)<>"",OFFSET(DE104_3!$H$35,ROWS($H$35:H50)-1,COLUMNS($H$35:H50)-1),"") -> 98 | G36: =IF(OFFSET(DE104_3!$I$35,ROWS($I$35:I50)-1,COLUMNS($I$35:I50)-1)<>"",OFFSET(DE104_3!$I$35,ROWS($I$35:I50)-1,COLUMNS($I$35:I50)-1),"") ->  | H36: =IF(OFFSET(DE104_3!$J$35,ROWS($J$35:J50)-1,COLUMNS($J$35:J50)-1)<>"",OFFSET(DE104_3!$J$35,ROWS($J$35:J50)-1,COLUMNS($J$35:J50)-1),"") -> 3.8 | I36: =IF(OFFSET(DE104_3!$K$35,ROWS($K$35:K50)-1,COLUMNS($K$35:K50)-1)<>"",OFFSET(DE104_3!$K$35,ROWS($K$35:K50)-1,COLUMNS($K$35:K50)-1),"") ->  | J36: =IF(OFFSET(DE104_3!$L$35,ROWS($L$35:L50)-1,COLUMNS($L$35:L50)-1)<>"",OFFSET(DE104_3!$L$35,ROWS($L$35:L50)-1,COLUMNS($L$35:L50)-1),"") -> 1 | K36: =IF(OFFSET(DE104_3!$M$35,ROWS($M$35:M50)-1,COLUMNS($M$35:M50)-1)<>"",OFFSET(DE104_3!$M$35,ROWS($M$35:M50)-1,COLUMNS($M$35:M50)-1),"") -> 1 | L36: =IF(OFFSET(DE104_3!$N$35,ROWS($N$35:N50)-1,COLUMNS($N$35:N50)-1)<>"",OFFSET(DE104_3!$N$35,ROWS($N$35:N50)-1,COLUMNS($N$35:N50)-1),"") -> 1 | M36: =IF(OFFSET(DE104_3!$O$35,ROWS($O$35:O50)-1,COLUMNS($O$35:O50)-1)<>"",OFFSET(DE104_3!$O$35,ROWS($O$35:O50)-1,COLUMNS($O$35:O50)-1),"") ->  | N36: =IF(OFFSET(DE104_3!$P$35,ROWS($P$35:P50)-1,COLUMNS($P$35:P50)-1)<>"",OFFSET(DE104_3!$P$35,ROWS($P$35:P50)-1,COLUMNS($P$35:P50)-1),"") ->  | O36: =IF(OFFSET(DE104_3!$Q$35,ROWS($Q$35:Q50)-1,COLUMNS($Q$35:Q50)-1)<>"",OFFSET(DE104_3!$Q$35,ROWS($Q$35:Q50)-1,COLUMNS($Q$35:Q50)-1),"") ->  | P36: =IF(OFFSET(DE104_3!$R$35,ROWS($R$35:R50)-1,COLUMNS($R$35:R50)-1)<>"",OFFSET(DE104_3!$R$35,ROWS($R$35:R50)-1,COLUMNS($R$35:R50)-1),"") ->  | Q36: =IF(OFFSET(DE104_3!$S$35,ROWS($S$35:S50)-1,COLUMNS($S$35:S50)-1)<>"",OFFSET(DE104_3!$S$35,ROWS($S$35:S50)-1,COLUMNS($S$35:S50)-1),"") ->  | R36: =IF(OFFSET(DE104_3!$T$35,ROWS($T$35:T50)-1,COLUMNS($T$35:T50)-1)<>"",OFFSET(DE104_3!$T$35,ROWS($T$35:T50)-1,COLUMNS($T$35:T50)-1),"") ->  | S36: =IF(OFFSET(DE104_3!$U$35,ROWS($U$35:U50)-1,COLUMNS($U$35:U50)-1)<>"",OFFSET(DE104_3!$U$35,ROWS($U$35:U50)-1,COLUMNS($U$35:U50)-1),"") ->  | T36: =IF(OFFSET(DE104_3!$V$35,ROWS($V$35:V50)-1,COLUMNS($V$35:V50)-1)<>"",OFFSET(DE104_3!$V$35,ROWS($V$35:V50)-1,COLUMNS($V$35:V50)-1),"") ->  | U36: =IF(OFFSET(DE104_3!$W$35,ROWS($W$35:W50)-1,COLUMNS($W$35:W50)-1)<>"",OFFSET(DE104_3!$W$35,ROWS($W$35:W50)-1,COLUMNS($W$35:W50)-1),"") -> 884.6 | V36: =IF(OFFSET(DE104_3!$X$35,ROWS($X$35:X50)-1,COLUMNS($X$35:X50)-1)<>"",OFFSET(DE104_3!$X$35,ROWS($X$35:X50)-1,COLUMNS($X$35:X50)-1),"") -> 878.68 | W36: =IF(OFFSET(DE104_3!$Y$35,ROWS($Y$35:Y50)-1,COLUMNS($Y$35:Y50)-1)<>"",OFFSET(DE104_3!$Y$35,ROWS($Y$35:Y50)-1,COLUMNS($Y$35:Y50)-1),"") -> 884.6 | X36: =IF(OFFSET(DE104_3!$Z$35,ROWS($Z$35:Z50)-1,COLUMNS($Z$35:Z50)-1)<>"",OFFSET(DE104_3!$Z$35,ROWS($Z$35:Z50)-1,COLUMNS($Z$35:Z50)-1),"") -> 882.77 | Y36: =IF(OFFSET(DE104_3!$AA$35,ROWS($AA$35:AA50)-1,COLUMNS($AA$35:AA50)-1)<>"",OFFSET(DE104_3!$AA$35,ROWS($AA$35:AA50)-1,COLUMNS($AA$35:AA50)-1),"") ->  | Z36: =IF(OFFSET(DE104_3!$AB$35,ROWS($AB$35:AB50)-1,COLUMNS($AB$35:AB50)-1)<>"",OFFSET(DE104_3!$AB$35,ROWS($AB$35:AB50)-1,COLUMNS($AB$35:AB50)-1),"") -> 62.57 | AA36: =IF(OFFSET(DE104_3!$AC$35,ROWS($AC$35:AC50)-1,COLUMNS($AC$35:AC50)-1)<>"",OFFSET(DE104_3!$AC$35,ROWS($AC$35:AC50)-1,COLUMNS($AC$35:AC50)-1),"") -> 47.5 | AB36: =IF(OFFSET(DE104_3!$AD$35,ROWS($AD$35:AD50)-1,COLUMNS($AD$35:AD50)-1)<>"",OFFSET(DE104_3!$AD$35,ROWS($AD$35:AD50)-1,COLUMNS($AD$35:AD50)-1),"") ->  | AC36: =IF(OFFSET(DE104_3!$AE$35,ROWS($AE$35:AE50)-1,COLUMNS($AE$35:AE50)-1)<>"",OFFSET(DE104_3!$AE$35,ROWS($AE$35:AE50)-1,COLUMNS($AE$35:AE50)-1),"") ->  | AD36: =IF(OFFSET(DE104_3!$AF$35,ROWS($AF$35:AF50)-1,COLUMNS($AF$35:AF50)-1)<>"",OFFSET(DE104_3!$AF$35,ROWS($AF$35:AF50)-1,COLUMNS($AF$35:AF50)-1),"") ->  | AE36: =IF(OFFSET(DE104_3!$AG$35,ROWS($AG$35:AG50)-1,COLUMNS($AG$35:AG50)-1)<>"",OFFSET(DE104_3!$AG$35,ROWS($AG$35:AG50)-1,COLUMNS($AG$35:AG50)-1),"") ->  | AF36: =IF(OFFSET(DE104_3!$AH$35,ROWS($AH$35:AH50)-1,COLUMNS($AH$35:AH50)-1)<>"",OFFSET(DE104_3!$AH$35,ROWS($AH$35:AH50)-1,COLUMNS($AH$35:AH50)-1),"") ->  | AG36: =IF(OFFSET(DE104_3!$AI$35,ROWS($AI$35:AI50)-1,COLUMNS($AI$35:AI50)-1)<>"",OFFSET(DE104_3!$AI$35,ROWS($AI$35:AI50)-1,COLUMNS($AI$35:AI50)-1),"") ->  | AH36: =IF(OFFSET(DE104_3!$AJ$35,ROWS($AJ$35:AJ50)-1,COLUMNS($AJ$35:AJ50)-1)<>"",OFFSET(DE104_3!$AJ$35,ROWS($AJ$35:AJ50)-1,COLUMNS($AJ$35:AJ50)-1),"") ->  | AI36: =IF(OFFSET(DE104_3!$AK$35,ROWS($AK$35:AK50)-1,COLUMNS($AK$35:AK50)-1)<>"",OFFSET(DE104_3!$AK$35,ROWS($AK$35:AK50)-1,COLUMNS($AK$35:AK50)-1),"") ->  | AJ36: =IF(OFFSET(DE104_3!$AL$35,ROWS($AL$35:AL50)-1,COLUMNS($AL$35:AL50)-1)<>"",OFFSET(DE104_3!$AL$35,ROWS($AL$35:AL50)-1,COLUMNS($AL$35:AL50)-1),"") -> 254.2358444 | AK36: =IF(OFFSET(DE104_3!$AM$35,ROWS($AM$35:AM50)-1,COLUMNS($AM$35:AM50)-1)<>"",OFFSET(DE104_3!$AM$35,ROWS($AM$35:AM50)-1,COLUMNS($AM$35:AM50)-1),"") -> 16.39396296 | AL36: =IF(OFFSET(DE104_3!$AN$35,ROWS($AN$35:AN50)-1,COLUMNS($AN$35:AN50)-1)<>"",OFFSET(DE104_3!$AN$35,ROWS($AN$35:AN50)-1,COLUMNS($AN$35:AN50)-1),"") -> 91.19173333 | AM36: =IF(OFFSET(DE104_3!$AO$35,ROWS($AO$35:AO50)-1,COLUMNS($AO$35:AO50)-1)<>"",OFFSET(DE104_3!$AO$35,ROWS($AO$35:AO50)-1,COLUMNS($AO$35:AO50)-1),"") -> 7.993774074 | AN36: =IF(OFFSET(DE104_3!$AP$35,ROWS($AP$35:AP50)-1,COLUMNS($AP$35:AP50)-1)<>"",OFFSET(DE104_3!$AP$35,ROWS($AP$35:AP50)-1,COLUMNS($AP$35:AP50)-1),"") -> 99.18550741 | AO36: =IF(OFFSET(DE104_3!$AQ$35,ROWS($AQ$35:AQ50)-1,COLUMNS($AQ$35:AQ50)-1)<>"",OFFSET(DE104_3!$AQ$35,ROWS($AQ$35:AQ50)-1,COLUMNS($AQ$35:AQ50)-1),"") -> -15
A37: =IF(OFFSET(DE104_3!$C$35,ROWS($C$35:C51)-1,COLUMNS($C$35:C51)-1)<>"",OFFSET(DE104_3!$C$35,ROWS($C$35:C51)-1,COLUMNS($C$35:C51)-1),"") ->  | B37: =IF(OFFSET(DE104_3!$D$35,ROWS($D$35:D51)-1,COLUMNS($D$35:D51)-1)<>"",OFFSET(DE104_3!$D$35,ROWS($D$35:D51)-1,COLUMNS($D$35:D51)-1),"") -> 167+67.70, 188.61' Rt | C37: =IF(OFFSET(DE104_3!$E$35,ROWS($E$35:E51)-1,COLUMNS($E$35:E51)-1)<>"",OFFSET(DE104_3!$E$35,ROWS($E$35:E51)-1,COLUMNS($E$35:E51)-1),"") -> Existing | D37: =IF(OFFSET(DE104_3!$F$35,ROWS($F$35:F51)-1,COLUMNS($F$35:F51)-1)<>"",OFFSET(DE104_3!$F$35,ROWS($F$35:F51)-1,COLUMNS($F$35:F51)-1),"") ->  | E37: =IF(OFFSET(DE104_3!$G$35,ROWS($G$35:G51)-1,COLUMNS($G$35:G51)-1)<>"",OFFSET(DE104_3!$G$35,ROWS($G$35:G51)-1,COLUMNS($G$35:G51)-1),"") ->  | F37: =IF(OFFSET(DE104_3!$H$35,ROWS($H$35:H51)-1,COLUMNS($H$35:H51)-1)<>"",OFFSET(DE104_3!$H$35,ROWS($H$35:H51)-1,COLUMNS($H$35:H51)-1),"") ->  | G37: =IF(OFFSET(DE104_3!$I$35,ROWS($I$35:I51)-1,COLUMNS($I$35:I51)-1)<>"",OFFSET(DE104_3!$I$35,ROWS($I$35:I51)-1,COLUMNS($I$35:I51)-1),"") ->  | H37: =IF(OFFSET(DE104_3!$J$35,ROWS($J$35:J51)-1,COLUMNS($J$35:J51)-1)<>"",OFFSET(DE104_3!$J$35,ROWS($J$35:J51)-1,COLUMNS($J$35:J51)-1),"") ->  | I37: =IF(OFFSET(DE104_3!$K$35,ROWS($K$35:K51)-1,COLUMNS($K$35:K51)-1)<>"",OFFSET(DE104_3!$K$35,ROWS($K$35:K51)-1,COLUMNS($K$35:K51)-1),"") ->  | J37: =IF(OFFSET(DE104_3!$L$35,ROWS($L$35:L51)-1,COLUMNS($L$35:L51)-1)<>"",OFFSET(DE104_3!$L$35,ROWS($L$35:L51)-1,COLUMNS($L$35:L51)-1),"") ->  | K37: =IF(OFFSET(DE104_3!$M$35,ROWS($M$35:M51)-1,COLUMNS($M$35:M51)-1)<>"",OFFSET(DE104_3!$M$35,ROWS($M$35:M51)-1,COLUMNS($M$35:M51)-1),"") ->  | L37: =IF(OFFSET(DE104_3!$N$35,ROWS($N$35:N51)-1,COLUMNS($N$35:N51)-1)<>"",OFFSET(DE104_3!$N$35,ROWS($N$35:N51)-1,COLUMNS($N$35:N51)-1),"") ->  | M37: =IF(OFFSET(DE104_3!$O$35,ROWS($O$35:O51)-1,COLUMNS($O$35:O51)-1)<>"",OFFSET(DE104_3!$O$35,ROWS($O$35:O51)-1,COLUMNS($O$35:O51)-1),"") ->  | N37: =IF(OFFSET(DE104_3!$P$35,ROWS($P$35:P51)-1,COLUMNS($P$35:P51)-1)<>"",OFFSET(DE104_3!$P$35,ROWS($P$35:P51)-1,COLUMNS($P$35:P51)-1),"") ->  | O37: =IF(OFFSET(DE104_3!$Q$35,ROWS($Q$35:Q51)-1,COLUMNS($Q$35:Q51)-1)<>"",OFFSET(DE104_3!$Q$35,ROWS($Q$35:Q51)-1,COLUMNS($Q$35:Q51)-1),"") ->  | P37: =IF(OFFSET(DE104_3!$R$35,ROWS($R$35:R51)-1,COLUMNS($R$35:R51)-1)<>"",OFFSET(DE104_3!$R$35,ROWS($R$35:R51)-1,COLUMNS($R$35:R51)-1),"") ->  | Q37: =IF(OFFSET(DE104_3!$S$35,ROWS($S$35:S51)-1,COLUMNS($S$35:S51)-1)<>"",OFFSET(DE104_3!$S$35,ROWS($S$35:S51)-1,COLUMNS($S$35:S51)-1),"") ->  | R37: =IF(OFFSET(DE104_3!$T$35,ROWS($T$35:T51)-1,COLUMNS($T$35:T51)-1)<>"",OFFSET(DE104_3!$T$35,ROWS($T$35:T51)-1,COLUMNS($T$35:T51)-1),"") ->  | S37: =IF(OFFSET(DE104_3!$U$35,ROWS($U$35:U51)-1,COLUMNS($U$35:U51)-1)<>"",OFFSET(DE104_3!$U$35,ROWS($U$35:U51)-1,COLUMNS($U$35:U51)-1),"") ->  | T37: =IF(OFFSET(DE104_3!$V$35,ROWS($V$35:V51)-1,COLUMNS($V$35:V51)-1)<>"",OFFSET(DE104_3!$V$35,ROWS($V$35:V51)-1,COLUMNS($V$35:V51)-1),"") ->  | U37: =IF(OFFSET(DE104_3!$W$35,ROWS($W$35:W51)-1,COLUMNS($W$35:W51)-1)<>"",OFFSET(DE104_3!$W$35,ROWS($W$35:W51)-1,COLUMNS($W$35:W51)-1),"") ->  | V37: =IF(OFFSET(DE104_3!$X$35,ROWS($X$35:X51)-1,COLUMNS($X$35:X51)-1)<>"",OFFSET(DE104_3!$X$35,ROWS($X$35:X51)-1,COLUMNS($X$35:X51)-1),"") ->  | W37: =IF(OFFSET(DE104_3!$Y$35,ROWS($Y$35:Y51)-1,COLUMNS($Y$35:Y51)-1)<>"",OFFSET(DE104_3!$Y$35,ROWS($Y$35:Y51)-1,COLUMNS($Y$35:Y51)-1),"") ->  | X37: =IF(OFFSET(DE104_3!$Z$35,ROWS($Z$35:Z51)-1,COLUMNS($Z$35:Z51)-1)<>"",OFFSET(DE104_3!$Z$35,ROWS($Z$35:Z51)-1,COLUMNS($Z$35:Z51)-1),"") ->  | Y37: =IF(OFFSET(DE104_3!$AA$35,ROWS($AA$35:AA51)-1,COLUMNS($AA$35:AA51)-1)<>"",OFFSET(DE104_3!$AA$35,ROWS($AA$35:AA51)-1,COLUMNS($AA$35:AA51)-1),"") ->  | Z37: =IF(OFFSET(DE104_3!$AB$35,ROWS($AB$35:AB51)-1,COLUMNS($AB$35:AB51)-1)<>"",OFFSET(DE104_3!$AB$35,ROWS($AB$35:AB51)-1,COLUMNS($AB$35:AB51)-1),"") ->  | AA37: =IF(OFFSET(DE104_3!$AC$35,ROWS($AC$35:AC51)-1,COLUMNS($AC$35:AC51)-1)<>"",OFFSET(DE104_3!$AC$35,ROWS($AC$35:AC51)-1,COLUMNS($AC$35:AC51)-1),"") ->  | AB37: =IF(OFFSET(DE104_3!$AD$35,ROWS($AD$35:AD51)-1,COLUMNS($AD$35:AD51)-1)<>"",OFFSET(DE104_3!$AD$35,ROWS($AD$35:AD51)-1,COLUMNS($AD$35:AD51)-1),"") ->  | AC37: =IF(OFFSET(DE104_3!$AE$35,ROWS($AE$35:AE51)-1,COLUMNS($AE$35:AE51)-1)<>"",OFFSET(DE104_3!$AE$35,ROWS($AE$35:AE51)-1,COLUMNS($AE$35:AE51)-1),"") ->  | AD37: =IF(OFFSET(DE104_3!$AF$35,ROWS($AF$35:AF51)-1,COLUMNS($AF$35:AF51)-1)<>"",OFFSET(DE104_3!$AF$35,ROWS($AF$35:AF51)-1,COLUMNS($AF$35:AF51)-1),"") ->  | AE37: =IF(OFFSET(DE104_3!$AG$35,ROWS($AG$35:AG51)-1,COLUMNS($AG$35:AG51)-1)<>"",OFFSET(DE104_3!$AG$35,ROWS($AG$35:AG51)-1,COLUMNS($AG$35:AG51)-1),"") ->  | AF37: =IF(OFFSET(DE104_3!$AH$35,ROWS($AH$35:AH51)-1,COLUMNS($AH$35:AH51)-1)<>"",OFFSET(DE104_3!$AH$35,ROWS($AH$35:AH51)-1,COLUMNS($AH$35:AH51)-1),"") ->  | AG37: =IF(OFFSET(DE104_3!$AI$35,ROWS($AI$35:AI51)-1,COLUMNS($AI$35:AI51)-1)<>"",OFFSET(DE104_3!$AI$35,ROWS($AI$35:AI51)-1,COLUMNS($AI$35:AI51)-1),"") ->  | AH37: =IF(OFFSET(DE104_3!$AJ$35,ROWS($AJ$35:AJ51)-1,COLUMNS($AJ$35:AJ51)-1)<>"",OFFSET(DE104_3!$AJ$35,ROWS($AJ$35:AJ51)-1,COLUMNS($AJ$35:AJ51)-1),"") ->  | AI37: =IF(OFFSET(DE104_3!$AK$35,ROWS($AK$35:AK51)-1,COLUMNS($AK$35:AK51)-1)<>"",OFFSET(DE104_3!$AK$35,ROWS($AK$35:AK51)-1,COLUMNS($AK$35:AK51)-1),"") ->  | AJ37: =IF(OFFSET(DE104_3!$AL$35,ROWS($AL$35:AL51)-1,COLUMNS($AL$35:AL51)-1)<>"",OFFSET(DE104_3!$AL$35,ROWS($AL$35:AL51)-1,COLUMNS($AL$35:AL51)-1),"") ->  | AK37: =IF(OFFSET(DE104_3!$AM$35,ROWS($AM$35:AM51)-1,COLUMNS($AM$35:AM51)-1)<>"",OFFSET(DE104_3!$AM$35,ROWS($AM$35:AM51)-1,COLUMNS($AM$35:AM51)-1),"") ->  | AL37: =IF(OFFSET(DE104_3!$AN$35,ROWS($AN$35:AN51)-1,COLUMNS($AN$35:AN51)-1)<>"",OFFSET(DE104_3!$AN$35,ROWS($AN$35:AN51)-1,COLUMNS($AN$35:AN51)-1),"") ->  | AM37: =IF(OFFSET(DE104_3!$AO$35,ROWS($AO$35:AO51)-1,COLUMNS($AO$35:AO51)-1)<>"",OFFSET(DE104_3!$AO$35,ROWS($AO$35:AO51)-1,COLUMNS($AO$35:AO51)-1),"") ->  | AN37: =IF(OFFSET(DE104_3!$AP$35,ROWS($AP$35:AP51)-1,COLUMNS($AP$35:AP51)-1)<>"",OFFSET(DE104_3!$AP$35,ROWS($AP$35:AP51)-1,COLUMNS($AP$35:AP51)-1),"") ->  | AO37: =IF(OFFSET(DE104_3!$AQ$35,ROWS($AQ$35:AQ51)-1,COLUMNS($AQ$35:AQ51)-1)<>"",OFFSET(DE104_3!$AQ$35,ROWS($AQ$35:AQ51)-1,COLUMNS($AQ$35:AQ51)-1),"") -> -16
A38: =IF(OFFSET(DE104_3!$C$35,ROWS($C$35:C52)-1,COLUMNS($C$35:C52)-1)<>"",OFFSET(DE104_3!$C$35,ROWS($C$35:C52)-1,COLUMNS($C$35:C52)-1),"") -> 24R-H | B38: =IF(OFFSET(DE104_3!$D$35,ROWS($D$35:D52)-1,COLUMNS($D$35:D52)-1)<>"",OFFSET(DE104_3!$D$35,ROWS($D$35:D52)-1,COLUMNS($D$35:D52)-1),"") -> 17426 | C38: =IF(OFFSET(DE104_3!$E$35,ROWS($E$35:E52)-1,COLUMNS($E$35:E52)-1)<>"",OFFSET(DE104_3!$E$35,ROWS($E$35:E52)-1,COLUMNS($E$35:E52)-1),"") -> 601 | D38: =IF(OFFSET(DE104_3!$F$35,ROWS($F$35:F52)-1,COLUMNS($F$35:F52)-1)<>"",OFFSET(DE104_3!$F$35,ROWS($F$35:F52)-1,COLUMNS($F$35:F52)-1),"") -> 36 | E38: =IF(OFFSET(DE104_3!$G$35,ROWS($G$35:G52)-1,COLUMNS($G$35:G52)-1)<>"",OFFSET(DE104_3!$G$35,ROWS($G$35:G52)-1,COLUMNS($G$35:G52)-1),"") -> RCP | F38: =IF(OFFSET(DE104_3!$H$35,ROWS($H$35:H52)-1,COLUMNS($H$35:H52)-1)<>"",OFFSET(DE104_3!$H$35,ROWS($H$35:H52)-1,COLUMNS($H$35:H52)-1),"") -> 348 | G38: =IF(OFFSET(DE104_3!$I$35,ROWS($I$35:I52)-1,COLUMNS($I$35:I52)-1)<>"",OFFSET(DE104_3!$I$35,ROWS($I$35:I52)-1,COLUMNS($I$35:I52)-1),"") ->  | H38: =IF(OFFSET(DE104_3!$J$35,ROWS($J$35:J52)-1,COLUMNS($J$35:J52)-1)<>"",OFFSET(DE104_3!$J$35,ROWS($J$35:J52)-1,COLUMNS($J$35:J52)-1),"") -> 12 | I38: =IF(OFFSET(DE104_3!$K$35,ROWS($K$35:K52)-1,COLUMNS($K$35:K52)-1)<>"",OFFSET(DE104_3!$K$35,ROWS($K$35:K52)-1,COLUMNS($K$35:K52)-1),"") ->  | J38: =IF(OFFSET(DE104_3!$L$35,ROWS($L$35:L52)-1,COLUMNS($L$35:L52)-1)<>"",OFFSET(DE104_3!$L$35,ROWS($L$35:L52)-1,COLUMNS($L$35:L52)-1),"") -> 1 | K38: =IF(OFFSET(DE104_3!$M$35,ROWS($M$35:M52)-1,COLUMNS($M$35:M52)-1)<>"",OFFSET(DE104_3!$M$35,ROWS($M$35:M52)-1,COLUMNS($M$35:M52)-1),"") ->  | L38: =IF(OFFSET(DE104_3!$N$35,ROWS($N$35:N52)-1,COLUMNS($N$35:N52)-1)<>"",OFFSET(DE104_3!$N$35,ROWS($N$35:N52)-1,COLUMNS($N$35:N52)-1),"") ->  | M38: =IF(OFFSET(DE104_3!$O$35,ROWS($O$35:O52)-1,COLUMNS($O$35:O52)-1)<>"",OFFSET(DE104_3!$O$35,ROWS($O$35:O52)-1,COLUMNS($O$35:O52)-1),"") ->  | N38: =IF(OFFSET(DE104_3!$P$35,ROWS($P$35:P52)-1,COLUMNS($P$35:P52)-1)<>"",OFFSET(DE104_3!$P$35,ROWS($P$35:P52)-1,COLUMNS($P$35:P52)-1),"") ->  | O38: =IF(OFFSET(DE104_3!$Q$35,ROWS($Q$35:Q52)-1,COLUMNS($Q$35:Q52)-1)<>"",OFFSET(DE104_3!$Q$35,ROWS($Q$35:Q52)-1,COLUMNS($Q$35:Q52)-1),"") ->  | P38: =IF(OFFSET(DE104_3!$R$35,ROWS($R$35:R52)-1,COLUMNS($R$35:R52)-1)<>"",OFFSET(DE104_3!$R$35,ROWS($R$35:R52)-1,COLUMNS($R$35:R52)-1),"") ->  | Q38: =IF(OFFSET(DE104_3!$S$35,ROWS($S$35:S52)-1,COLUMNS($S$35:S52)-1)<>"",OFFSET(DE104_3!$S$35,ROWS($S$35:S52)-1,COLUMNS($S$35:S52)-1),"") ->  | R38: =IF(OFFSET(DE104_3!$T$35,ROWS($T$35:T52)-1,COLUMNS($T$35:T52)-1)<>"",OFFSET(DE104_3!$T$35,ROWS($T$35:T52)-1,COLUMNS($T$35:T52)-1),"") ->  | S38: =IF(OFFSET(DE104_3!$U$35,ROWS($U$35:U52)-1,COLUMNS($U$35:U52)-1)<>"",OFFSET(DE104_3!$U$35,ROWS($U$35:U52)-1,COLUMNS($U$35:U52)-1),"") ->  | T38: =IF(OFFSET(DE104_3!$V$35,ROWS($V$35:V52)-1,COLUMNS($V$35:V52)-1)<>"",OFFSET(DE104_3!$V$35,ROWS($V$35:V52)-1,COLUMNS($V$35:V52)-1),"") ->  | U38: =IF(OFFSET(DE104_3!$W$35,ROWS($W$35:W52)-1,COLUMNS($W$35:W52)-1)<>"",OFFSET(DE104_3!$W$35,ROWS($W$35:W52)-1,COLUMNS($W$35:W52)-1),"") ->  | V38: =IF(OFFSET(DE104_3!$X$35,ROWS($X$35:X52)-1,COLUMNS($X$35:X52)-1)<>"",OFFSET(DE104_3!$X$35,ROWS($X$35:X52)-1,COLUMNS($X$35:X52)-1),"") -> 880 | W38: =IF(OFFSET(DE104_3!$Y$35,ROWS($Y$35:Y52)-1,COLUMNS($Y$35:Y52)-1)<>"",OFFSET(DE104_3!$Y$35,ROWS($Y$35:Y52)-1,COLUMNS($Y$35:Y52)-1),"") -> 869.55 | X38: =IF(OFFSET(DE104_3!$Z$35,ROWS($Z$35:Z52)-1,COLUMNS($Z$35:Z52)-1)<>"",OFFSET(DE104_3!$Z$35,ROWS($Z$35:Z52)-1,COLUMNS($Z$35:Z52)-1),"") ->  | Y38: =IF(OFFSET(DE104_3!$AA$35,ROWS($AA$35:AA52)-1,COLUMNS($AA$35:AA52)-1)<>"",OFFSET(DE104_3!$AA$35,ROWS($AA$35:AA52)-1,COLUMNS($AA$35:AA52)-1),"") ->  | Z38: =IF(OFFSET(DE104_3!$AB$35,ROWS($AB$35:AB52)-1,COLUMNS($AB$35:AB52)-1)<>"",OFFSET(DE104_3!$AB$35,ROWS($AB$35:AB52)-1,COLUMNS($AB$35:AB52)-1),"") -> 114.9 | AA38: =IF(OFFSET(DE104_3!$AC$35,ROWS($AC$35:AC52)-1,COLUMNS($AC$35:AC52)-1)<>"",OFFSET(DE104_3!$AC$35,ROWS($AC$35:AC52)-1,COLUMNS($AC$35:AC52)-1),"") -> 240.95 | AB38: =IF(OFFSET(DE104_3!$AD$35,ROWS($AD$35:AD52)-1,COLUMNS($AD$35:AD52)-1)<>"",OFFSET(DE104_3!$AD$35,ROWS($AD$35:AD52)-1,COLUMNS($AD$35:AD52)-1),"") ->  | AC38: =IF(OFFSET(DE104_3!$AE$35,ROWS($AE$35:AE52)-1,COLUMNS($AE$35:AE52)-1)<>"",OFFSET(DE104_3!$AE$35,ROWS($AE$35:AE52)-1,COLUMNS($AE$35:AE52)-1),"") ->  | AD38: =IF(OFFSET(DE104_3!$AF$35,ROWS($AF$35:AF52)-1,COLUMNS($AF$35:AF52)-1)<>"",OFFSET(DE104_3!$AF$35,ROWS($AF$35:AF52)-1,COLUMNS($AF$35:AF52)-1),"") ->  | AE38: =IF(OFFSET(DE104_3!$AG$35,ROWS($AG$35:AG52)-1,COLUMNS($AG$35:AG52)-1)<>"",OFFSET(DE104_3!$AG$35,ROWS($AG$35:AG52)-1,COLUMNS($AG$35:AG52)-1),"") ->  | AF38: =IF(OFFSET(DE104_3!$AH$35,ROWS($AH$35:AH52)-1,COLUMNS($AH$35:AH52)-1)<>"",OFFSET(DE104_3!$AH$35,ROWS($AH$35:AH52)-1,COLUMNS($AH$35:AH52)-1),"") -> Lt | AG38: =IF(OFFSET(DE104_3!$AI$35,ROWS($AI$35:AI52)-1,COLUMNS($AI$35:AI52)-1)<>"",OFFSET(DE104_3!$AI$35,ROWS($AI$35:AI52)-1,COLUMNS($AI$35:AI52)-1),"") -> 17600 | AH38: =IF(OFFSET(DE104_3!$AJ$35,ROWS($AJ$35:AJ52)-1,COLUMNS($AJ$35:AJ52)-1)<>"",OFFSET(DE104_3!$AJ$35,ROWS($AJ$35:AJ52)-1,COLUMNS($AJ$35:AJ52)-1),"") -> 884.7 | AI38: =IF(OFFSET(DE104_3!$AK$35,ROWS($AK$35:AK52)-1,COLUMNS($AK$35:AK52)-1)<>"",OFFSET(DE104_3!$AK$35,ROWS($AK$35:AK52)-1,COLUMNS($AK$35:AK52)-1),"") -> G | AJ38: =IF(OFFSET(DE104_3!$AL$35,ROWS($AL$35:AL52)-1,COLUMNS($AL$35:AL52)-1)<>"",OFFSET(DE104_3!$AL$35,ROWS($AL$35:AL52)-1,COLUMNS($AL$35:AL52)-1),"") -> 315.4756444 | AK38: =IF(OFFSET(DE104_3!$AM$35,ROWS($AM$35:AM52)-1,COLUMNS($AM$35:AM52)-1)<>"",OFFSET(DE104_3!$AM$35,ROWS($AM$35:AM52)-1,COLUMNS($AM$35:AM52)-1),"") -> N/A | AL38: =IF(OFFSET(DE104_3!$AN$35,ROWS($AN$35:AN52)-1,COLUMNS($AN$35:AN52)-1)<>"",OFFSET(DE104_3!$AN$35,ROWS($AN$35:AN52)-1,COLUMNS($AN$35:AN52)-1),"") -> 404.3089333 | AM38: =IF(OFFSET(DE104_3!$AO$35,ROWS($AO$35:AO52)-1,COLUMNS($AO$35:AO52)-1)<>"",OFFSET(DE104_3!$AO$35,ROWS($AO$35:AO52)-1,COLUMNS($AO$35:AO52)-1),"") -> 23.67703704 | AN38: =IF(OFFSET(DE104_3!$AP$35,ROWS($AP$35:AP52)-1,COLUMNS($AP$35:AP52)-1)<>"",OFFSET(DE104_3!$AP$35,ROWS($AP$35:AP52)-1,COLUMNS($AP$35:AP52)-1),"") -> 427.9859704 | AO38: =IF(OFFSET(DE104_3!$AQ$35,ROWS($AQ$35:AQ52)-1,COLUMNS($AQ$35:AQ52)-1)<>"",OFFSET(DE104_3!$AQ$35,ROWS($AQ$35:AQ52)-1,COLUMNS($AQ$35:AQ52)-1),"") -> -17
A39: =IF(OFFSET(DE104_3!$C$35,ROWS($C$35:C53)-1,COLUMNS($C$35:C53)-1)<>"",OFFSET(DE104_3!$C$35,ROWS($C$35:C53)-1,COLUMNS($C$35:C53)-1),"") ->  | B39: =IF(OFFSET(DE104_3!$D$35,ROWS($D$35:D53)-1,COLUMNS($D$35:D53)-1)<>"",OFFSET(DE104_3!$D$35,ROWS($D$35:D53)-1,COLUMNS($D$35:D53)-1),"") -> 175+05.25, 186.37' Rt | C39: =IF(OFFSET(DE104_3!$E$35,ROWS($E$35:E53)-1,COLUMNS($E$35:E53)-1)<>"",OFFSET(DE104_3!$E$35,ROWS($E$35:E53)-1,COLUMNS($E$35:E53)-1),"") -> Existing | D39: =IF(OFFSET(DE104_3!$F$35,ROWS($F$35:F53)-1,COLUMNS($F$35:F53)-1)<>"",OFFSET(DE104_3!$F$35,ROWS($F$35:F53)-1,COLUMNS($F$35:F53)-1),"") ->  | E39: =IF(OFFSET(DE104_3!$G$35,ROWS($G$35:G53)-1,COLUMNS($G$35:G53)-1)<>"",OFFSET(DE104_3!$G$35,ROWS($G$35:G53)-1,COLUMNS($G$35:G53)-1),"") ->  | F39: =IF(OFFSET(DE104_3!$H$35,ROWS($H$35:H53)-1,COLUMNS($H$35:H53)-1)<>"",OFFSET(DE104_3!$H$35,ROWS($H$35:H53)-1,COLUMNS($H$35:H53)-1),"") ->  | G39: =IF(OFFSET(DE104_3!$I$35,ROWS($I$35:I53)-1,COLUMNS($I$35:I53)-1)<>"",OFFSET(DE104_3!$I$35,ROWS($I$35:I53)-1,COLUMNS($I$35:I53)-1),"") ->  | H39: =IF(OFFSET(DE104_3!$J$35,ROWS($J$35:J53)-1,COLUMNS($J$35:J53)-1)<>"",OFFSET(DE104_3!$J$35,ROWS($J$35:J53)-1,COLUMNS($J$35:J53)-1),"") ->  | I39: =IF(OFFSET(DE104_3!$K$35,ROWS($K$35:K53)-1,COLUMNS($K$35:K53)-1)<>"",OFFSET(DE104_3!$K$35,ROWS($K$35:K53)-1,COLUMNS($K$35:K53)-1),"") ->  | J39: =IF(OFFSET(DE104_3!$L$35,ROWS($L$35:L53)-1,COLUMNS($L$35:L53)-1)<>"",OFFSET(DE104_3!$L$35,ROWS($L$35:L53)-1,COLUMNS($L$35:L53)-1),"") ->  | K39: =IF(OFFSET(DE104_3!$M$35,ROWS($M$35:M53)-1,COLUMNS($M$35:M53)-1)<>"",OFFSET(DE104_3!$M$35,ROWS($M$35:M53)-1,COLUMNS($M$35:M53)-1),"") ->  | L39: =IF(OFFSET(DE104_3!$N$35,ROWS($N$35:N53)-1,COLUMNS($N$35:N53)-1)<>"",OFFSET(DE104_3!$N$35,ROWS($N$35:N53)-1,COLUMNS($N$35:N53)-1),"") ->  | M39: =IF(OFFSET(DE104_3!$O$35,ROWS($O$35:O53)-1,COLUMNS($O$35:O53)-1)<>"",OFFSET(DE104_3!$O$35,ROWS($O$35:O53)-1,COLUMNS($O$35:O53)-1),"") ->  | N39: =IF(OFFSET(DE104_3!$P$35,ROWS($P$35:P53)-1,COLUMNS($P$35:P53)-1)<>"",OFFSET(DE104_3!$P$35,ROWS($P$35:P53)-1,COLUMNS($P$35:P53)-1),"") ->  | O39: =IF(OFFSET(DE104_3!$Q$35,ROWS($Q$35:Q53)-1,COLUMNS($Q$35:Q53)-1)<>"",OFFSET(DE104_3!$Q$35,ROWS($Q$35:Q53)-1,COLUMNS($Q$35:Q53)-1),"") ->  | P39: =IF(OFFSET(DE104_3!$R$35,ROWS($R$35:R53)-1,COLUMNS($R$35:R53)-1)<>"",OFFSET(DE104_3!$R$35,ROWS($R$35:R53)-1,COLUMNS($R$35:R53)-1),"") ->  | Q39: =IF(OFFSET(DE104_3!$S$35,ROWS($S$35:S53)-1,COLUMNS($S$35:S53)-1)<>"",OFFSET(DE104_3!$S$35,ROWS($S$35:S53)-1,COLUMNS($S$35:S53)-1),"") ->  | R39: =IF(OFFSET(DE104_3!$T$35,ROWS($T$35:T53)-1,COLUMNS($T$35:T53)-1)<>"",OFFSET(DE104_3!$T$35,ROWS($T$35:T53)-1,COLUMNS($T$35:T53)-1),"") ->  | S39: =IF(OFFSET(DE104_3!$U$35,ROWS($U$35:U53)-1,COLUMNS($U$35:U53)-1)<>"",OFFSET(DE104_3!$U$35,ROWS($U$35:U53)-1,COLUMNS($U$35:U53)-1),"") ->  | T39: =IF(OFFSET(DE104_3!$V$35,ROWS($V$35:V53)-1,COLUMNS($V$35:V53)-1)<>"",OFFSET(DE104_3!$V$35,ROWS($V$35:V53)-1,COLUMNS($V$35:V53)-1),"") ->  | U39: =IF(OFFSET(DE104_3!$W$35,ROWS($W$35:W53)-1,COLUMNS($W$35:W53)-1)<>"",OFFSET(DE104_3!$W$35,ROWS($W$35:W53)-1,COLUMNS($W$35:W53)-1),"") ->  | V39: =IF(OFFSET(DE104_3!$X$35,ROWS($X$35:X53)-1,COLUMNS($X$35:X53)-1)<>"",OFFSET(DE104_3!$X$35,ROWS($X$35:X53)-1,COLUMNS($X$35:X53)-1),"") ->  | W39: =IF(OFFSET(DE104_3!$Y$35,ROWS($Y$35:Y53)-1,COLUMNS($Y$35:Y53)-1)<>"",OFFSET(DE104_3!$Y$35,ROWS($Y$35:Y53)-1,COLUMNS($Y$35:Y53)-1),"") ->  | X39: =IF(OFFSET(DE104_3!$Z$35,ROWS($Z$35:Z53)-1,COLUMNS($Z$35:Z53)-1)<>"",OFFSET(DE104_3!$Z$35,ROWS($Z$35:Z53)-1,COLUMNS($Z$35:Z53)-1),"") ->  | Y39: =IF(OFFSET(DE104_3!$AA$35,ROWS($AA$35:AA53)-1,COLUMNS($AA$35:AA53)-1)<>"",OFFSET(DE104_3!$AA$35,ROWS($AA$35:AA53)-1,COLUMNS($AA$35:AA53)-1),"") ->  | Z39: =IF(OFFSET(DE104_3!$AB$35,ROWS($AB$35:AB53)-1,COLUMNS($AB$35:AB53)-1)<>"",OFFSET(DE104_3!$AB$35,ROWS($AB$35:AB53)-1,COLUMNS($AB$35:AB53)-1),"") ->  | AA39: =IF(OFFSET(DE104_3!$AC$35,ROWS($AC$35:AC53)-1,COLUMNS($AC$35:AC53)-1)<>"",OFFSET(DE104_3!$AC$35,ROWS($AC$35:AC53)-1,COLUMNS($AC$35:AC53)-1),"") ->  | AB39: =IF(OFFSET(DE104_3!$AD$35,ROWS($AD$35:AD53)-1,COLUMNS($AD$35:AD53)-1)<>"",OFFSET(DE104_3!$AD$35,ROWS($AD$35:AD53)-1,COLUMNS($AD$35:AD53)-1),"") ->  | AC39: =IF(OFFSET(DE104_3!$AE$35,ROWS($AE$35:AE53)-1,COLUMNS($AE$35:AE53)-1)<>"",OFFSET(DE104_3!$AE$35,ROWS($AE$35:AE53)-1,COLUMNS($AE$35:AE53)-1),"") ->  | AD39: =IF(OFFSET(DE104_3!$AF$35,ROWS($AF$35:AF53)-1,COLUMNS($AF$35:AF53)-1)<>"",OFFSET(DE104_3!$AF$35,ROWS($AF$35:AF53)-1,COLUMNS($AF$35:AF53)-1),"") ->  | AE39: =IF(OFFSET(DE104_3!$AG$35,ROWS($AG$35:AG53)-1,COLUMNS($AG$35:AG53)-1)<>"",OFFSET(DE104_3!$AG$35,ROWS($AG$35:AG53)-1,COLUMNS($AG$35:AG53)-1),"") ->  | AF39: =IF(OFFSET(DE104_3!$AH$35,ROWS($AH$35:AH53)-1,COLUMNS($AH$35:AH53)-1)<>"",OFFSET(DE104_3!$AH$35,ROWS($AH$35:AH53)-1,COLUMNS($AH$35:AH53)-1),"") ->  | AG39: =IF(OFFSET(DE104_3!$AI$35,ROWS($AI$35:AI53)-1,COLUMNS($AI$35:AI53)-1)<>"",OFFSET(DE104_3!$AI$35,ROWS($AI$35:AI53)-1,COLUMNS($AI$35:AI53)-1),"") ->  | AH39: =IF(OFFSET(DE104_3!$AJ$35,ROWS($AJ$35:AJ53)-1,COLUMNS($AJ$35:AJ53)-1)<>"",OFFSET(DE104_3!$AJ$35,ROWS($AJ$35:AJ53)-1,COLUMNS($AJ$35:AJ53)-1),"") ->  | AI39: =IF(OFFSET(DE104_3!$AK$35,ROWS($AK$35:AK53)-1,COLUMNS($AK$35:AK53)-1)<>"",OFFSET(DE104_3!$AK$35,ROWS($AK$35:AK53)-1,COLUMNS($AK$35:AK53)-1),"") ->  | AJ39: =IF(OFFSET(DE104_3!$AL$35,ROWS($AL$35:AL53)-1,COLUMNS($AL$35:AL53)-1)<>"",OFFSET(DE104_3!$AL$35,ROWS($AL$35:AL53)-1,COLUMNS($AL$35:AL53)-1),"") ->  | AK39: =IF(OFFSET(DE104_3!$AM$35,ROWS($AM$35:AM53)-1,COLUMNS($AM$35:AM53)-1)<>"",OFFSET(DE104_3!$AM$35,ROWS($AM$35:AM53)-1,COLUMNS($AM$35:AM53)-1),"") ->  | AL39: =IF(OFFSET(DE104_3!$AN$35,ROWS($AN$35:AN53)-1,COLUMNS($AN$35:AN53)-1)<>"",OFFSET(DE104_3!$AN$35,ROWS($AN$35:AN53)-1,COLUMNS($AN$35:AN53)-1),"") ->  | AM39: =IF(OFFSET(DE104_3!$AO$35,ROWS($AO$35:AO53)-1,COLUMNS($AO$35:AO53)-1)<>"",OFFSET(DE104_3!$AO$35,ROWS($AO$35:AO53)-1,COLUMNS($AO$35:AO53)-1),"") ->  | AN39: =IF(OFFSET(DE104_3!$AP$35,ROWS($AP$35:AP53)-1,COLUMNS($AP$35:AP53)-1)<>"",OFFSET(DE104_3!$AP$35,ROWS($AP$35:AP53)-1,COLUMNS($AP$35:AP53)-1),"") ->  | AO39: =IF(OFFSET(DE104_3!$AQ$35,ROWS($AQ$35:AQ53)-1,COLUMNS($AQ$35:AQ53)-1)<>"",OFFSET(DE104_3!$AQ$35,ROWS($AQ$35:AQ53)-1,COLUMNS($AQ$35:AQ53)-1),"") -> -18
A40: =IF(OFFSET(DE104_3!$C$35,ROWS($C$35:C54)-1,COLUMNS($C$35:C54)-1)<>"",OFFSET(DE104_3!$C$35,ROWS($C$35:C54)-1,COLUMNS($C$35:C54)-1),"") -> MED | B40: =IF(OFFSET(DE104_3!$D$35,ROWS($D$35:D54)-1,COLUMNS($D$35:D54)-1)<>"",OFFSET(DE104_3!$D$35,ROWS($D$35:D54)-1,COLUMNS($D$35:D54)-1),"") -> 17800 | C40: =IF(OFFSET(DE104_3!$E$35,ROWS($E$35:E54)-1,COLUMNS($E$35:E54)-1)<>"",OFFSET(DE104_3!$E$35,ROWS($E$35:E54)-1,COLUMNS($E$35:E54)-1),"") -> 611 | D40: =IF(OFFSET(DE104_3!$F$35,ROWS($F$35:F54)-1,COLUMNS($F$35:F54)-1)<>"",OFFSET(DE104_3!$F$35,ROWS($F$35:F54)-1,COLUMNS($F$35:F54)-1),"") -> 24 | E40: =IF(OFFSET(DE104_3!$G$35,ROWS($G$35:G54)-1,COLUMNS($G$35:G54)-1)<>"",OFFSET(DE104_3!$G$35,ROWS($G$35:G54)-1,COLUMNS($G$35:G54)-1),"") -> RCP | F40: =IF(OFFSET(DE104_3!$H$35,ROWS($H$35:H54)-1,COLUMNS($H$35:H54)-1)<>"",OFFSET(DE104_3!$H$35,ROWS($H$35:H54)-1,COLUMNS($H$35:H54)-1),"") -> 76 | G40: =IF(OFFSET(DE104_3!$I$35,ROWS($I$35:I54)-1,COLUMNS($I$35:I54)-1)<>"",OFFSET(DE104_3!$I$35,ROWS($I$35:I54)-1,COLUMNS($I$35:I54)-1),"") ->  | H40: =IF(OFFSET(DE104_3!$J$35,ROWS($J$35:J54)-1,COLUMNS($J$35:J54)-1)<>"",OFFSET(DE104_3!$J$35,ROWS($J$35:J54)-1,COLUMNS($J$35:J54)-1),"") -> 2.5 | I40: =IF(OFFSET(DE104_3!$K$35,ROWS($K$35:K54)-1,COLUMNS($K$35:K54)-1)<>"",OFFSET(DE104_3!$K$35,ROWS($K$35:K54)-1,COLUMNS($K$35:K54)-1),"") ->  | J40: =IF(OFFSET(DE104_3!$L$35,ROWS($L$35:L54)-1,COLUMNS($L$35:L54)-1)<>"",OFFSET(DE104_3!$L$35,ROWS($L$35:L54)-1,COLUMNS($L$35:L54)-1),"") -> 1 | K40: =IF(OFFSET(DE104_3!$M$35,ROWS($M$35:M54)-1,COLUMNS($M$35:M54)-1)<>"",OFFSET(DE104_3!$M$35,ROWS($M$35:M54)-1,COLUMNS($M$35:M54)-1),"") -> 1 | L40: =IF(OFFSET(DE104_3!$N$35,ROWS($N$35:N54)-1,COLUMNS($N$35:N54)-1)<>"",OFFSET(DE104_3!$N$35,ROWS($N$35:N54)-1,COLUMNS($N$35:N54)-1),"") -> 1 | M40: =IF(OFFSET(DE104_3!$O$35,ROWS($O$35:O54)-1,COLUMNS($O$35:O54)-1)<>"",OFFSET(DE104_3!$O$35,ROWS($O$35:O54)-1,COLUMNS($O$35:O54)-1),"") ->  | N40: =IF(OFFSET(DE104_3!$P$35,ROWS($P$35:P54)-1,COLUMNS($P$35:P54)-1)<>"",OFFSET(DE104_3!$P$35,ROWS($P$35:P54)-1,COLUMNS($P$35:P54)-1),"") ->  | O40: =IF(OFFSET(DE104_3!$Q$35,ROWS($Q$35:Q54)-1,COLUMNS($Q$35:Q54)-1)<>"",OFFSET(DE104_3!$Q$35,ROWS($Q$35:Q54)-1,COLUMNS($Q$35:Q54)-1),"") ->  | P40: =IF(OFFSET(DE104_3!$R$35,ROWS($R$35:R54)-1,COLUMNS($R$35:R54)-1)<>"",OFFSET(DE104_3!$R$35,ROWS($R$35:R54)-1,COLUMNS($R$35:R54)-1),"") ->  | Q40: =IF(OFFSET(DE104_3!$S$35,ROWS($S$35:S54)-1,COLUMNS($S$35:S54)-1)<>"",OFFSET(DE104_3!$S$35,ROWS($S$35:S54)-1,COLUMNS($S$35:S54)-1),"") ->  | R40: =IF(OFFSET(DE104_3!$T$35,ROWS($T$35:T54)-1,COLUMNS($T$35:T54)-1)<>"",OFFSET(DE104_3!$T$35,ROWS($T$35:T54)-1,COLUMNS($T$35:T54)-1),"") ->  | S40: =IF(OFFSET(DE104_3!$U$35,ROWS($U$35:U54)-1,COLUMNS($U$35:U54)-1)<>"",OFFSET(DE104_3!$U$35,ROWS($U$35:U54)-1,COLUMNS($U$35:U54)-1),"") ->  | T40: =IF(OFFSET(DE104_3!$V$35,ROWS($V$35:V54)-1,COLUMNS($V$35:V54)-1)<>"",OFFSET(DE104_3!$V$35,ROWS($V$35:V54)-1,COLUMNS($V$35:V54)-1),"") ->  | U40: =IF(OFFSET(DE104_3!$W$35,ROWS($W$35:W54)-1,COLUMNS($W$35:W54)-1)<>"",OFFSET(DE104_3!$W$35,ROWS($W$35:W54)-1,COLUMNS($W$35:W54)-1),"") ->  | V40: =IF(OFFSET(DE104_3!$X$35,ROWS($X$35:X54)-1,COLUMNS($X$35:X54)-1)<>"",OFFSET(DE104_3!$X$35,ROWS($X$35:X54)-1,COLUMNS($X$35:X54)-1),"") -> 878.99 | W40: =IF(OFFSET(DE104_3!$Y$35,ROWS($Y$35:Y54)-1,COLUMNS($Y$35:Y54)-1)<>"",OFFSET(DE104_3!$Y$35,ROWS($Y$35:Y54)-1,COLUMNS($Y$35:Y54)-1),"") -> 881.36 | X40: =IF(OFFSET(DE104_3!$Z$35,ROWS($Z$35:Z54)-1,COLUMNS($Z$35:Z54)-1)<>"",OFFSET(DE104_3!$Z$35,ROWS($Z$35:Z54)-1,COLUMNS($Z$35:Z54)-1),"") -> 880.44 | Y40: =IF(OFFSET(DE104_3!$AA$35,ROWS($AA$35:AA54)-1,COLUMNS($AA$35:AA54)-1)<>"",OFFSET(DE104_3!$AA$35,ROWS($AA$35:AA54)-1,COLUMNS($AA$35:AA54)-1),"") ->  | Z40: =IF(OFFSET(DE104_3!$AB$35,ROWS($AB$35:AB54)-1,COLUMNS($AB$35:AB54)-1)<>"",OFFSET(DE104_3!$AB$35,ROWS($AB$35:AB54)-1,COLUMNS($AB$35:AB54)-1),"") -> 50 | AA40: =IF(OFFSET(DE104_3!$AC$35,ROWS($AC$35:AC54)-1,COLUMNS($AC$35:AC54)-1)<>"",OFFSET(DE104_3!$AC$35,ROWS($AC$35:AC54)-1,COLUMNS($AC$35:AC54)-1),"") -> 38.2 | AB40: =IF(OFFSET(DE104_3!$AD$35,ROWS($AD$35:AD54)-1,COLUMNS($AD$35:AD54)-1)<>"",OFFSET(DE104_3!$AD$35,ROWS($AD$35:AD54)-1,COLUMNS($AD$35:AD54)-1),"") ->  | AC40: =IF(OFFSET(DE104_3!$AE$35,ROWS($AE$35:AE54)-1,COLUMNS($AE$35:AE54)-1)<>"",OFFSET(DE104_3!$AE$35,ROWS($AE$35:AE54)-1,COLUMNS($AE$35:AE54)-1),"") ->  | AD40: =IF(OFFSET(DE104_3!$AF$35,ROWS($AF$35:AF54)-1,COLUMNS($AF$35:AF54)-1)<>"",OFFSET(DE104_3!$AF$35,ROWS($AF$35:AF54)-1,COLUMNS($AF$35:AF54)-1),"") ->  | AE40: =IF(OFFSET(DE104_3!$AG$35,ROWS($AG$35:AG54)-1,COLUMNS($AG$35:AG54)-1)<>"",OFFSET(DE104_3!$AG$35,ROWS($AG$35:AG54)-1,COLUMNS($AG$35:AG54)-1),"") ->  | AF40: =IF(OFFSET(DE104_3!$AH$35,ROWS($AH$35:AH54)-1,COLUMNS($AH$35:AH54)-1)<>"",OFFSET(DE104_3!$AH$35,ROWS($AH$35:AH54)-1,COLUMNS($AH$35:AH54)-1),"") -> Med | AG40: =IF(OFFSET(DE104_3!$AI$35,ROWS($AI$35:AI54)-1,COLUMNS($AI$35:AI54)-1)<>"",OFFSET(DE104_3!$AI$35,ROWS($AI$35:AI54)-1,COLUMNS($AI$35:AI54)-1),"") -> 17825 | AH40: =IF(OFFSET(DE104_3!$AJ$35,ROWS($AJ$35:AJ54)-1,COLUMNS($AJ$35:AJ54)-1)<>"",OFFSET(DE104_3!$AJ$35,ROWS($AJ$35:AJ54)-1,COLUMNS($AJ$35:AJ54)-1),"") -> 883.33 | AI40: =IF(OFFSET(DE104_3!$AK$35,ROWS($AK$35:AK54)-1,COLUMNS($AK$35:AK54)-1)<>"",OFFSET(DE104_3!$AK$35,ROWS($AK$35:AK54)-1,COLUMNS($AK$35:AK54)-1),"") -> M | AJ40: =IF(OFFSET(DE104_3!$AL$35,ROWS($AL$35:AL54)-1,COLUMNS($AL$35:AL54)-1)<>"",OFFSET(DE104_3!$AL$35,ROWS($AL$35:AL54)-1,COLUMNS($AL$35:AL54)-1),"") -> 201.3012 | AK40: =IF(OFFSET(DE104_3!$AM$35,ROWS($AM$35:AM54)-1,COLUMNS($AM$35:AM54)-1)<>"",OFFSET(DE104_3!$AM$35,ROWS($AM$35:AM54)-1,COLUMNS($AM$35:AM54)-1),"") -> 10.99325926 | AL40: =IF(OFFSET(DE104_3!$AN$35,ROWS($AN$35:AN54)-1,COLUMNS($AN$35:AN54)-1)<>"",OFFSET(DE104_3!$AN$35,ROWS($AN$35:AN54)-1,COLUMNS($AN$35:AN54)-1),"") -> 45.07327407 | AM40: =IF(OFFSET(DE104_3!$AO$35,ROWS($AO$35:AO54)-1,COLUMNS($AO$35:AO54)-1)<>"",OFFSET(DE104_3!$AO$35,ROWS($AO$35:AO54)-1,COLUMNS($AO$35:AO54)-1),"") -> 6.743403704 | AN40: =IF(OFFSET(DE104_3!$AP$35,ROWS($AP$35:AP54)-1,COLUMNS($AP$35:AP54)-1)<>"",OFFSET(DE104_3!$AP$35,ROWS($AP$35:AP54)-1,COLUMNS($AP$35:AP54)-1),"") -> 51.81667778 | AO40: =IF(OFFSET(DE104_3!$AQ$35,ROWS($AQ$35:AQ54)-1,COLUMNS($AQ$35:AQ54)-1)<>"",OFFSET(DE104_3!$AQ$35,ROWS($AQ$35:AQ54)-1,COLUMNS($AQ$35:AQ54)-1),"") -> -19
A41: =IF(OFFSET(DE104_3!$C$35,ROWS($C$35:C55)-1,COLUMNS($C$35:C55)-1)<>"",OFFSET(DE104_3!$C$35,ROWS($C$35:C55)-1,COLUMNS($C$35:C55)-1),"") -> MED | B41: =IF(OFFSET(DE104_3!$D$35,ROWS($D$35:D55)-1,COLUMNS($D$35:D55)-1)<>"",OFFSET(DE104_3!$D$35,ROWS($D$35:D55)-1,COLUMNS($D$35:D55)-1),"") -> 18150 | C41: =IF(OFFSET(DE104_3!$E$35,ROWS($E$35:E55)-1,COLUMNS($E$35:E55)-1)<>"",OFFSET(DE104_3!$E$35,ROWS($E$35:E55)-1,COLUMNS($E$35:E55)-1),"") -> 611 | D41: =IF(OFFSET(DE104_3!$F$35,ROWS($F$35:F55)-1,COLUMNS($F$35:F55)-1)<>"",OFFSET(DE104_3!$F$35,ROWS($F$35:F55)-1,COLUMNS($F$35:F55)-1),"") -> 18 | E41: =IF(OFFSET(DE104_3!$G$35,ROWS($G$35:G55)-1,COLUMNS($G$35:G55)-1)<>"",OFFSET(DE104_3!$G$35,ROWS($G$35:G55)-1,COLUMNS($G$35:G55)-1),"") -> RCP | F41: =IF(OFFSET(DE104_3!$H$35,ROWS($H$35:H55)-1,COLUMNS($H$35:H55)-1)<>"",OFFSET(DE104_3!$H$35,ROWS($H$35:H55)-1,COLUMNS($H$35:H55)-1),"") -> 84 | G41: =IF(OFFSET(DE104_3!$I$35,ROWS($I$35:I55)-1,COLUMNS($I$35:I55)-1)<>"",OFFSET(DE104_3!$I$35,ROWS($I$35:I55)-1,COLUMNS($I$35:I55)-1),"") ->  | H41: =IF(OFFSET(DE104_3!$J$35,ROWS($J$35:J55)-1,COLUMNS($J$35:J55)-1)<>"",OFFSET(DE104_3!$J$35,ROWS($J$35:J55)-1,COLUMNS($J$35:J55)-1),"") -> 3.8 | I41: =IF(OFFSET(DE104_3!$K$35,ROWS($K$35:K55)-1,COLUMNS($K$35:K55)-1)<>"",OFFSET(DE104_3!$K$35,ROWS($K$35:K55)-1,COLUMNS($K$35:K55)-1),"") ->  | J41: =IF(OFFSET(DE104_3!$L$35,ROWS($L$35:L55)-1,COLUMNS($L$35:L55)-1)<>"",OFFSET(DE104_3!$L$35,ROWS($L$35:L55)-1,COLUMNS($L$35:L55)-1),"") -> 1 | K41: =IF(OFFSET(DE104_3!$M$35,ROWS($M$35:M55)-1,COLUMNS($M$35:M55)-1)<>"",OFFSET(DE104_3!$M$35,ROWS($M$35:M55)-1,COLUMNS($M$35:M55)-1),"") -> 1 | L41: =IF(OFFSET(DE104_3!$N$35,ROWS($N$35:N55)-1,COLUMNS($N$35:N55)-1)<>"",OFFSET(DE104_3!$N$35,ROWS($N$35:N55)-1,COLUMNS($N$35:N55)-1),"") -> 1 | M41: =IF(OFFSET(DE104_3!$O$35,ROWS($O$35:O55)-1,COLUMNS($O$35:O55)-1)<>"",OFFSET(DE104_3!$O$35,ROWS($O$35:O55)-1,COLUMNS($O$35:O55)-1),"") ->  | N41: =IF(OFFSET(DE104_3!$P$35,ROWS($P$35:P55)-1,COLUMNS($P$35:P55)-1)<>"",OFFSET(DE104_3!$P$35,ROWS($P$35:P55)-1,COLUMNS($P$35:P55)-1),"") ->  | O41: =IF(OFFSET(DE104_3!$Q$35,ROWS($Q$35:Q55)-1,COLUMNS($Q$35:Q55)-1)<>"",OFFSET(DE104_3!$Q$35,ROWS($Q$35:Q55)-1,COLUMNS($Q$35:Q55)-1),"") ->  | P41: =IF(OFFSET(DE104_3!$R$35,ROWS($R$35:R55)-1,COLUMNS($R$35:R55)-1)<>"",OFFSET(DE104_3!$R$35,ROWS($R$35:R55)-1,COLUMNS($R$35:R55)-1),"") ->  | Q41: =IF(OFFSET(DE104_3!$S$35,ROWS($S$35:S55)-1,COLUMNS($S$35:S55)-1)<>"",OFFSET(DE104_3!$S$35,ROWS($S$35:S55)-1,COLUMNS($S$35:S55)-1),"") ->  | R41: =IF(OFFSET(DE104_3!$T$35,ROWS($T$35:T55)-1,COLUMNS($T$35:T55)-1)<>"",OFFSET(DE104_3!$T$35,ROWS($T$35:T55)-1,COLUMNS($T$35:T55)-1),"") ->  | S41: =IF(OFFSET(DE104_3!$U$35,ROWS($U$35:U55)-1,COLUMNS($U$35:U55)-1)<>"",OFFSET(DE104_3!$U$35,ROWS($U$35:U55)-1,COLUMNS($U$35:U55)-1),"") ->  | T41: =IF(OFFSET(DE104_3!$V$35,ROWS($V$35:V55)-1,COLUMNS($V$35:V55)-1)<>"",OFFSET(DE104_3!$V$35,ROWS($V$35:V55)-1,COLUMNS($V$35:V55)-1),"") ->  | U41: =IF(OFFSET(DE104_3!$W$35,ROWS($W$35:W55)-1,COLUMNS($W$35:W55)-1)<>"",OFFSET(DE104_3!$W$35,ROWS($W$35:W55)-1,COLUMNS($W$35:W55)-1),"") -> 876.75 | V41: =IF(OFFSET(DE104_3!$X$35,ROWS($X$35:X55)-1,COLUMNS($X$35:X55)-1)<>"",OFFSET(DE104_3!$X$35,ROWS($X$35:X55)-1,COLUMNS($X$35:X55)-1),"") -> 872.69 | W41: =IF(OFFSET(DE104_3!$Y$35,ROWS($Y$35:Y55)-1,COLUMNS($Y$35:Y55)-1)<>"",OFFSET(DE104_3!$Y$35,ROWS($Y$35:Y55)-1,COLUMNS($Y$35:Y55)-1),"") -> 876.75 | X41: =IF(OFFSET(DE104_3!$Z$35,ROWS($Z$35:Z55)-1,COLUMNS($Z$35:Z55)-1)<>"",OFFSET(DE104_3!$Z$35,ROWS($Z$35:Z55)-1,COLUMNS($Z$35:Z55)-1),"") -> 875.05 | Y41: =IF(OFFSET(DE104_3!$AA$35,ROWS($AA$35:AA55)-1,COLUMNS($AA$35:AA55)-1)<>"",OFFSET(DE104_3!$AA$35,ROWS($AA$35:AA55)-1,COLUMNS($AA$35:AA55)-1),"") ->  | Z41: =IF(OFFSET(DE104_3!$AB$35,ROWS($AB$35:AB55)-1,COLUMNS($AB$35:AB55)-1)<>"",OFFSET(DE104_3!$AB$35,ROWS($AB$35:AB55)-1,COLUMNS($AB$35:AB55)-1),"") -> 56.07 | AA41: =IF(OFFSET(DE104_3!$AC$35,ROWS($AC$35:AC55)-1,COLUMNS($AC$35:AC55)-1)<>"",OFFSET(DE104_3!$AC$35,ROWS($AC$35:AC55)-1,COLUMNS($AC$35:AC55)-1),"") -> 39.98 | AB41: =IF(OFFSET(DE104_3!$AD$35,ROWS($AD$35:AD55)-1,COLUMNS($AD$35:AD55)-1)<>"",OFFSET(DE104_3!$AD$35,ROWS($AD$35:AD55)-1,COLUMNS($AD$35:AD55)-1),"") ->  | AC41: =IF(OFFSET(DE104_3!$AE$35,ROWS($AE$35:AE55)-1,COLUMNS($AE$35:AE55)-1)<>"",OFFSET(DE104_3!$AE$35,ROWS($AE$35:AE55)-1,COLUMNS($AE$35:AE55)-1),"") ->  | AD41: =IF(OFFSET(DE104_3!$AF$35,ROWS($AF$35:AF55)-1,COLUMNS($AF$35:AF55)-1)<>"",OFFSET(DE104_3!$AF$35,ROWS($AF$35:AF55)-1,COLUMNS($AF$35:AF55)-1),"") ->  | AE41: =IF(OFFSET(DE104_3!$AG$35,ROWS($AG$35:AG55)-1,COLUMNS($AG$35:AG55)-1)<>"",OFFSET(DE104_3!$AG$35,ROWS($AG$35:AG55)-1,COLUMNS($AG$35:AG55)-1),"") ->  | AF41: =IF(OFFSET(DE104_3!$AH$35,ROWS($AH$35:AH55)-1,COLUMNS($AH$35:AH55)-1)<>"",OFFSET(DE104_3!$AH$35,ROWS($AH$35:AH55)-1,COLUMNS($AH$35:AH55)-1),"") ->  | AG41: =IF(OFFSET(DE104_3!$AI$35,ROWS($AI$35:AI55)-1,COLUMNS($AI$35:AI55)-1)<>"",OFFSET(DE104_3!$AI$35,ROWS($AI$35:AI55)-1,COLUMNS($AI$35:AI55)-1),"") ->  | AH41: =IF(OFFSET(DE104_3!$AJ$35,ROWS($AJ$35:AJ55)-1,COLUMNS($AJ$35:AJ55)-1)<>"",OFFSET(DE104_3!$AJ$35,ROWS($AJ$35:AJ55)-1,COLUMNS($AJ$35:AJ55)-1),"") ->  | AI41: =IF(OFFSET(DE104_3!$AK$35,ROWS($AK$35:AK55)-1,COLUMNS($AK$35:AK55)-1)<>"",OFFSET(DE104_3!$AK$35,ROWS($AK$35:AK55)-1,COLUMNS($AK$35:AK55)-1),"") ->  | AJ41: =IF(OFFSET(DE104_3!$AL$35,ROWS($AL$35:AL55)-1,COLUMNS($AL$35:AL55)-1)<>"",OFFSET(DE104_3!$AL$35,ROWS($AL$35:AL55)-1,COLUMNS($AL$35:AL55)-1),"") -> 188.7890037 | AK41: =IF(OFFSET(DE104_3!$AM$35,ROWS($AM$35:AM55)-1,COLUMNS($AM$35:AM55)-1)<>"",OFFSET(DE104_3!$AM$35,ROWS($AM$35:AM55)-1,COLUMNS($AM$35:AM55)-1),"") -> 11.81305185 | AL41: =IF(OFFSET(DE104_3!$AN$35,ROWS($AN$35:AN55)-1,COLUMNS($AN$35:AN55)-1)<>"",OFFSET(DE104_3!$AN$35,ROWS($AN$35:AN55)-1,COLUMNS($AN$35:AN55)-1),"") -> 54.76888148 | AM41: =IF(OFFSET(DE104_3!$AO$35,ROWS($AO$35:AO55)-1,COLUMNS($AO$35:AO55)-1)<>"",OFFSET(DE104_3!$AO$35,ROWS($AO$35:AO55)-1,COLUMNS($AO$35:AO55)-1),"") -> 6.7706 | AN41: =IF(OFFSET(DE104_3!$AP$35,ROWS($AP$35:AP55)-1,COLUMNS($AP$35:AP55)-1)<>"",OFFSET(DE104_3!$AP$35,ROWS($AP$35:AP55)-1,COLUMNS($AP$35:AP55)-1),"") -> 61.53948148 | AO41: =IF(OFFSET(DE104_3!$AQ$35,ROWS($AQ$35:AQ55)-1,COLUMNS($AQ$35:AQ55)-1)<>"",OFFSET(DE104_3!$AQ$35,ROWS($AQ$35:AQ55)-1,COLUMNS($AQ$35:AQ55)-1),"") -> -20
A42: =IF(OFFSET(DE104_3!$C$35,ROWS($C$35:C56)-1,COLUMNS($C$35:C56)-1)<>"",OFFSET(DE104_3!$C$35,ROWS($C$35:C56)-1,COLUMNS($C$35:C56)-1),"") ->  | B42: =IF(OFFSET(DE104_3!$D$35,ROWS($D$35:D56)-1,COLUMNS($D$35:D56)-1)<>"",OFFSET(DE104_3!$D$35,ROWS($D$35:D56)-1,COLUMNS($D$35:D56)-1),"") -> 184+86.38, 183.52' Rt | C42: =IF(OFFSET(DE104_3!$E$35,ROWS($E$35:E56)-1,COLUMNS($E$35:E56)-1)<>"",OFFSET(DE104_3!$E$35,ROWS($E$35:E56)-1,COLUMNS($E$35:E56)-1),"") -> Existing | D42: =IF(OFFSET(DE104_3!$F$35,ROWS($F$35:F56)-1,COLUMNS($F$35:F56)-1)<>"",OFFSET(DE104_3!$F$35,ROWS($F$35:F56)-1,COLUMNS($F$35:F56)-1),"") ->  | E42: =IF(OFFSET(DE104_3!$G$35,ROWS($G$35:G56)-1,COLUMNS($G$35:G56)-1)<>"",OFFSET(DE104_3!$G$35,ROWS($G$35:G56)-1,COLUMNS($G$35:G56)-1),"") ->  | F42: =IF(OFFSET(DE104_3!$H$35,ROWS($H$35:H56)-1,COLUMNS($H$35:H56)-1)<>"",OFFSET(DE104_3!$H$35,ROWS($H$35:H56)-1,COLUMNS($H$35:H56)-1),"") ->  | G42: =IF(OFFSET(DE104_3!$I$35,ROWS($I$35:I56)-1,COLUMNS($I$35:I56)-1)<>"",OFFSET(DE104_3!$I$35,ROWS($I$35:I56)-1,COLUMNS($I$35:I56)-1),"") ->  | H42: =IF(OFFSET(DE104_3!$J$35,ROWS($J$35:J56)-1,COLUMNS($J$35:J56)-1)<>"",OFFSET(DE104_3!$J$35,ROWS($J$35:J56)-1,COLUMNS($J$35:J56)-1),"") ->  | I42: =IF(OFFSET(DE104_3!$K$35,ROWS($K$35:K56)-1,COLUMNS($K$35:K56)-1)<>"",OFFSET(DE104_3!$K$35,ROWS($K$35:K56)-1,COLUMNS($K$35:K56)-1),"") ->  | J42: =IF(OFFSET(DE104_3!$L$35,ROWS($L$35:L56)-1,COLUMNS($L$35:L56)-1)<>"",OFFSET(DE104_3!$L$35,ROWS($L$35:L56)-1,COLUMNS($L$35:L56)-1),"") ->  | K42: =IF(OFFSET(DE104_3!$M$35,ROWS($M$35:M56)-1,COLUMNS($M$35:M56)-1)<>"",OFFSET(DE104_3!$M$35,ROWS($M$35:M56)-1,COLUMNS($M$35:M56)-1),"") ->  | L42: =IF(OFFSET(DE104_3!$N$35,ROWS($N$35:N56)-1,COLUMNS($N$35:N56)-1)<>"",OFFSET(DE104_3!$N$35,ROWS($N$35:N56)-1,COLUMNS($N$35:N56)-1),"") ->  | M42: =IF(OFFSET(DE104_3!$O$35,ROWS($O$35:O56)-1,COLUMNS($O$35:O56)-1)<>"",OFFSET(DE104_3!$O$35,ROWS($O$35:O56)-1,COLUMNS($O$35:O56)-1),"") ->  | N42: =IF(OFFSET(DE104_3!$P$35,ROWS($P$35:P56)-1,COLUMNS($P$35:P56)-1)<>"",OFFSET(DE104_3!$P$35,ROWS($P$35:P56)-1,COLUMNS($P$35:P56)-1),"") ->  | O42: =IF(OFFSET(DE104_3!$Q$35,ROWS($Q$35:Q56)-1,COLUMNS($Q$35:Q56)-1)<>"",OFFSET(DE104_3!$Q$35,ROWS($Q$35:Q56)-1,COLUMNS($Q$35:Q56)-1),"") ->  | P42: =IF(OFFSET(DE104_3!$R$35,ROWS($R$35:R56)-1,COLUMNS($R$35:R56)-1)<>"",OFFSET(DE104_3!$R$35,ROWS($R$35:R56)-1,COLUMNS($R$35:R56)-1),"") ->  | Q42: =IF(OFFSET(DE104_3!$S$35,ROWS($S$35:S56)-1,COLUMNS($S$35:S56)-1)<>"",OFFSET(DE104_3!$S$35,ROWS($S$35:S56)-1,COLUMNS($S$35:S56)-1),"") ->  | R42: =IF(OFFSET(DE104_3!$T$35,ROWS($T$35:T56)-1,COLUMNS($T$35:T56)-1)<>"",OFFSET(DE104_3!$T$35,ROWS($T$35:T56)-1,COLUMNS($T$35:T56)-1),"") ->  | S42: =IF(OFFSET(DE104_3!$U$35,ROWS($U$35:U56)-1,COLUMNS($U$35:U56)-1)<>"",OFFSET(DE104_3!$U$35,ROWS($U$35:U56)-1,COLUMNS($U$35:U56)-1),"") ->  | T42: =IF(OFFSET(DE104_3!$V$35,ROWS($V$35:V56)-1,COLUMNS($V$35:V56)-1)<>"",OFFSET(DE104_3!$V$35,ROWS($V$35:V56)-1,COLUMNS($V$35:V56)-1),"") ->  | U42: =IF(OFFSET(DE104_3!$W$35,ROWS($W$35:W56)-1,COLUMNS($W$35:W56)-1)<>"",OFFSET(DE104_3!$W$35,ROWS($W$35:W56)-1,COLUMNS($W$35:W56)-1),"") ->  | V42: =IF(OFFSET(DE104_3!$X$35,ROWS($X$35:X56)-1,COLUMNS($X$35:X56)-1)<>"",OFFSET(DE104_3!$X$35,ROWS($X$35:X56)-1,COLUMNS($X$35:X56)-1),"") ->  | W42: =IF(OFFSET(DE104_3!$Y$35,ROWS($Y$35:Y56)-1,COLUMNS($Y$35:Y56)-1)<>"",OFFSET(DE104_3!$Y$35,ROWS($Y$35:Y56)-1,COLUMNS($Y$35:Y56)-1),"") ->  | X42: =IF(OFFSET(DE104_3!$Z$35,ROWS($Z$35:Z56)-1,COLUMNS($Z$35:Z56)-1)<>"",OFFSET(DE104_3!$Z$35,ROWS($Z$35:Z56)-1,COLUMNS($Z$35:Z56)-1),"") ->  | Y42: =IF(OFFSET(DE104_3!$AA$35,ROWS($AA$35:AA56)-1,COLUMNS($AA$35:AA56)-1)<>"",OFFSET(DE104_3!$AA$35,ROWS($AA$35:AA56)-1,COLUMNS($AA$35:AA56)-1),"") ->  | Z42: =IF(OFFSET(DE104_3!$AB$35,ROWS($AB$35:AB56)-1,COLUMNS($AB$35:AB56)-1)<>"",OFFSET(DE104_3!$AB$35,ROWS($AB$35:AB56)-1,COLUMNS($AB$35:AB56)-1),"") ->  | AA42: =IF(OFFSET(DE104_3!$AC$35,ROWS($AC$35:AC56)-1,COLUMNS($AC$35:AC56)-1)<>"",OFFSET(DE104_3!$AC$35,ROWS($AC$35:AC56)-1,COLUMNS($AC$35:AC56)-1),"") ->  | AB42: =IF(OFFSET(DE104_3!$AD$35,ROWS($AD$35:AD56)-1,COLUMNS($AD$35:AD56)-1)<>"",OFFSET(DE104_3!$AD$35,ROWS($AD$35:AD56)-1,COLUMNS($AD$35:AD56)-1),"") ->  | AC42: =IF(OFFSET(DE104_3!$AE$35,ROWS($AE$35:AE56)-1,COLUMNS($AE$35:AE56)-1)<>"",OFFSET(DE104_3!$AE$35,ROWS($AE$35:AE56)-1,COLUMNS($AE$35:AE56)-1),"") ->  | AD42: =IF(OFFSET(DE104_3!$AF$35,ROWS($AF$35:AF56)-1,COLUMNS($AF$35:AF56)-1)<>"",OFFSET(DE104_3!$AF$35,ROWS($AF$35:AF56)-1,COLUMNS($AF$35:AF56)-1),"") ->  | AE42: =IF(OFFSET(DE104_3!$AG$35,ROWS($AG$35:AG56)-1,COLUMNS($AG$35:AG56)-1)<>"",OFFSET(DE104_3!$AG$35,ROWS($AG$35:AG56)-1,COLUMNS($AG$35:AG56)-1),"") ->  | AF42: =IF(OFFSET(DE104_3!$AH$35,ROWS($AH$35:AH56)-1,COLUMNS($AH$35:AH56)-1)<>"",OFFSET(DE104_3!$AH$35,ROWS($AH$35:AH56)-1,COLUMNS($AH$35:AH56)-1),"") ->  | AG42: =IF(OFFSET(DE104_3!$AI$35,ROWS($AI$35:AI56)-1,COLUMNS($AI$35:AI56)-1)<>"",OFFSET(DE104_3!$AI$35,ROWS($AI$35:AI56)-1,COLUMNS($AI$35:AI56)-1),"") ->  | AH42: =IF(OFFSET(DE104_3!$AJ$35,ROWS($AJ$35:AJ56)-1,COLUMNS($AJ$35:AJ56)-1)<>"",OFFSET(DE104_3!$AJ$35,ROWS($AJ$35:AJ56)-1,COLUMNS($AJ$35:AJ56)-1),"") ->  | AI42: =IF(OFFSET(DE104_3!$AK$35,ROWS($AK$35:AK56)-1,COLUMNS($AK$35:AK56)-1)<>"",OFFSET(DE104_3!$AK$35,ROWS($AK$35:AK56)-1,COLUMNS($AK$35:AK56)-1),"") ->  | AJ42: =IF(OFFSET(DE104_3!$AL$35,ROWS($AL$35:AL56)-1,COLUMNS($AL$35:AL56)-1)<>"",OFFSET(DE104_3!$AL$35,ROWS($AL$35:AL56)-1,COLUMNS($AL$35:AL56)-1),"") ->  | AK42: =IF(OFFSET(DE104_3!$AM$35,ROWS($AM$35:AM56)-1,COLUMNS($AM$35:AM56)-1)<>"",OFFSET(DE104_3!$AM$35,ROWS($AM$35:AM56)-1,COLUMNS($AM$35:AM56)-1),"") ->  | AL42: =IF(OFFSET(DE104_3!$AN$35,ROWS($AN$35:AN56)-1,COLUMNS($AN$35:AN56)-1)<>"",OFFSET(DE104_3!$AN$35,ROWS($AN$35:AN56)-1,COLUMNS($AN$35:AN56)-1),"") ->  | AM42: =IF(OFFSET(DE104_3!$AO$35,ROWS($AO$35:AO56)-1,COLUMNS($AO$35:AO56)-1)<>"",OFFSET(DE104_3!$AO$35,ROWS($AO$35:AO56)-1,COLUMNS($AO$35:AO56)-1),"") ->  | AN42: =IF(OFFSET(DE104_3!$AP$35,ROWS($AP$35:AP56)-1,COLUMNS($AP$35:AP56)-1)<>"",OFFSET(DE104_3!$AP$35,ROWS($AP$35:AP56)-1,COLUMNS($AP$35:AP56)-1),"") ->  | AO42: =IF(OFFSET(DE104_3!$AQ$35,ROWS($AQ$35:AQ56)-1,COLUMNS($AQ$35:AQ56)-1)<>"",OFFSET(DE104_3!$AQ$35,ROWS($AQ$35:AQ56)-1,COLUMNS($AQ$35:AQ56)-1),"") -> -21
A43: =IF(OFFSET(DE104_3!$C$35,ROWS($C$35:C57)-1,COLUMNS($C$35:C57)-1)<>"",OFFSET(DE104_3!$C$35,ROWS($C$35:C57)-1,COLUMNS($C$35:C57)-1),"") -> 23 H | B43: =IF(OFFSET(DE104_3!$D$35,ROWS($D$35:D57)-1,COLUMNS($D$35:D57)-1)<>"",OFFSET(DE104_3!$D$35,ROWS($D$35:D57)-1,COLUMNS($D$35:D57)-1),"") -> 18500 | C43: =IF(OFFSET(DE104_3!$E$35,ROWS($E$35:E57)-1,COLUMNS($E$35:E57)-1)<>"",OFFSET(DE104_3!$E$35,ROWS($E$35:E57)-1,COLUMNS($E$35:E57)-1),"") -> 601 | D43: =IF(OFFSET(DE104_3!$F$35,ROWS($F$35:F57)-1,COLUMNS($F$35:F57)-1)<>"",OFFSET(DE104_3!$F$35,ROWS($F$35:F57)-1,COLUMNS($F$35:F57)-1),"") -> 42 | E43: =IF(OFFSET(DE104_3!$G$35,ROWS($G$35:G57)-1,COLUMNS($G$35:G57)-1)<>"",OFFSET(DE104_3!$G$35,ROWS($G$35:G57)-1,COLUMNS($G$35:G57)-1),"") -> RCP | F43: =IF(OFFSET(DE104_3!$H$35,ROWS($H$35:H57)-1,COLUMNS($H$35:H57)-1)<>"",OFFSET(DE104_3!$H$35,ROWS($H$35:H57)-1,COLUMNS($H$35:H57)-1),"") -> 208 | G43: =IF(OFFSET(DE104_3!$I$35,ROWS($I$35:I57)-1,COLUMNS($I$35:I57)-1)<>"",OFFSET(DE104_3!$I$35,ROWS($I$35:I57)-1,COLUMNS($I$35:I57)-1),"") ->  | H43: =IF(OFFSET(DE104_3!$J$35,ROWS($J$35:J57)-1,COLUMNS($J$35:J57)-1)<>"",OFFSET(DE104_3!$J$35,ROWS($J$35:J57)-1,COLUMNS($J$35:J57)-1),"") -> 5 | I43: =IF(OFFSET(DE104_3!$K$35,ROWS($K$35:K57)-1,COLUMNS($K$35:K57)-1)<>"",OFFSET(DE104_3!$K$35,ROWS($K$35:K57)-1,COLUMNS($K$35:K57)-1),"") ->  | J43: =IF(OFFSET(DE104_3!$L$35,ROWS($L$35:L57)-1,COLUMNS($L$35:L57)-1)<>"",OFFSET(DE104_3!$L$35,ROWS($L$35:L57)-1,COLUMNS($L$35:L57)-1),"") -> 1 | K43: =IF(OFFSET(DE104_3!$M$35,ROWS($M$35:M57)-1,COLUMNS($M$35:M57)-1)<>"",OFFSET(DE104_3!$M$35,ROWS($M$35:M57)-1,COLUMNS($M$35:M57)-1),"") -> 1 | L43: =IF(OFFSET(DE104_3!$N$35,ROWS($N$35:N57)-1,COLUMNS($N$35:N57)-1)<>"",OFFSET(DE104_3!$N$35,ROWS($N$35:N57)-1,COLUMNS($N$35:N57)-1),"") ->  | M43: =IF(OFFSET(DE104_3!$O$35,ROWS($O$35:O57)-1,COLUMNS($O$35:O57)-1)<>"",OFFSET(DE104_3!$O$35,ROWS($O$35:O57)-1,COLUMNS($O$35:O57)-1),"") ->  | N43: =IF(OFFSET(DE104_3!$P$35,ROWS($P$35:P57)-1,COLUMNS($P$35:P57)-1)<>"",OFFSET(DE104_3!$P$35,ROWS($P$35:P57)-1,COLUMNS($P$35:P57)-1),"") ->  | O43: =IF(OFFSET(DE104_3!$Q$35,ROWS($Q$35:Q57)-1,COLUMNS($Q$35:Q57)-1)<>"",OFFSET(DE104_3!$Q$35,ROWS($Q$35:Q57)-1,COLUMNS($Q$35:Q57)-1),"") ->  | P43: =IF(OFFSET(DE104_3!$R$35,ROWS($R$35:R57)-1,COLUMNS($R$35:R57)-1)<>"",OFFSET(DE104_3!$R$35,ROWS($R$35:R57)-1,COLUMNS($R$35:R57)-1),"") ->  | Q43: =IF(OFFSET(DE104_3!$S$35,ROWS($S$35:S57)-1,COLUMNS($S$35:S57)-1)<>"",OFFSET(DE104_3!$S$35,ROWS($S$35:S57)-1,COLUMNS($S$35:S57)-1),"") ->  | R43: =IF(OFFSET(DE104_3!$T$35,ROWS($T$35:T57)-1,COLUMNS($T$35:T57)-1)<>"",OFFSET(DE104_3!$T$35,ROWS($T$35:T57)-1,COLUMNS($T$35:T57)-1),"") ->  | S43: =IF(OFFSET(DE104_3!$U$35,ROWS($U$35:U57)-1,COLUMNS($U$35:U57)-1)<>"",OFFSET(DE104_3!$U$35,ROWS($U$35:U57)-1,COLUMNS($U$35:U57)-1),"") ->  | T43: =IF(OFFSET(DE104_3!$V$35,ROWS($V$35:V57)-1,COLUMNS($V$35:V57)-1)<>"",OFFSET(DE104_3!$V$35,ROWS($V$35:V57)-1,COLUMNS($V$35:V57)-1),"") ->  | U43: =IF(OFFSET(DE104_3!$W$35,ROWS($W$35:W57)-1,COLUMNS($W$35:W57)-1)<>"",OFFSET(DE104_3!$W$35,ROWS($W$35:W57)-1,COLUMNS($W$35:W57)-1),"") ->  | V43: =IF(OFFSET(DE104_3!$X$35,ROWS($X$35:X57)-1,COLUMNS($X$35:X57)-1)<>"",OFFSET(DE104_3!$X$35,ROWS($X$35:X57)-1,COLUMNS($X$35:X57)-1),"") -> 865 | W43: =IF(OFFSET(DE104_3!$Y$35,ROWS($Y$35:Y57)-1,COLUMNS($Y$35:Y57)-1)<>"",OFFSET(DE104_3!$Y$35,ROWS($Y$35:Y57)-1,COLUMNS($Y$35:Y57)-1),"") -> 860.5 | X43: =IF(OFFSET(DE104_3!$Z$35,ROWS($Z$35:Z57)-1,COLUMNS($Z$35:Z57)-1)<>"",OFFSET(DE104_3!$Z$35,ROWS($Z$35:Z57)-1,COLUMNS($Z$35:Z57)-1),"") ->  | Y43: =IF(OFFSET(DE104_3!$AA$35,ROWS($AA$35:AA57)-1,COLUMNS($AA$35:AA57)-1)<>"",OFFSET(DE104_3!$AA$35,ROWS($AA$35:AA57)-1,COLUMNS($AA$35:AA57)-1),"") ->  | Z43: =IF(OFFSET(DE104_3!$AB$35,ROWS($AB$35:AB57)-1,COLUMNS($AB$35:AB57)-1)<>"",OFFSET(DE104_3!$AB$35,ROWS($AB$35:AB57)-1,COLUMNS($AB$35:AB57)-1),"") -> 105 | AA43: =IF(OFFSET(DE104_3!$AC$35,ROWS($AC$35:AC57)-1,COLUMNS($AC$35:AC57)-1)<>"",OFFSET(DE104_3!$AC$35,ROWS($AC$35:AC57)-1,COLUMNS($AC$35:AC57)-1),"") -> 119 | AB43: =IF(OFFSET(DE104_3!$AD$35,ROWS($AD$35:AD57)-1,COLUMNS($AD$35:AD57)-1)<>"",OFFSET(DE104_3!$AD$35,ROWS($AD$35:AD57)-1,COLUMNS($AD$35:AD57)-1),"") ->  | AC43: =IF(OFFSET(DE104_3!$AE$35,ROWS($AE$35:AE57)-1,COLUMNS($AE$35:AE57)-1)<>"",OFFSET(DE104_3!$AE$35,ROWS($AE$35:AE57)-1,COLUMNS($AE$35:AE57)-1),"") ->  | AD43: =IF(OFFSET(DE104_3!$AF$35,ROWS($AF$35:AF57)-1,COLUMNS($AF$35:AF57)-1)<>"",OFFSET(DE104_3!$AF$35,ROWS($AF$35:AF57)-1,COLUMNS($AF$35:AF57)-1),"") ->  | AE43: =IF(OFFSET(DE104_3!$AG$35,ROWS($AG$35:AG57)-1,COLUMNS($AG$35:AG57)-1)<>"",OFFSET(DE104_3!$AG$35,ROWS($AG$35:AG57)-1,COLUMNS($AG$35:AG57)-1),"") ->  | AF43: =IF(OFFSET(DE104_3!$AH$35,ROWS($AH$35:AH57)-1,COLUMNS($AH$35:AH57)-1)<>"",OFFSET(DE104_3!$AH$35,ROWS($AH$35:AH57)-1,COLUMNS($AH$35:AH57)-1),"") -> Lt | AG43: =IF(OFFSET(DE104_3!$AI$35,ROWS($AI$35:AI57)-1,COLUMNS($AI$35:AI57)-1)<>"",OFFSET(DE104_3!$AI$35,ROWS($AI$35:AI57)-1,COLUMNS($AI$35:AI57)-1),"") -> 18650 | AH43: =IF(OFFSET(DE104_3!$AJ$35,ROWS($AJ$35:AJ57)-1,COLUMNS($AJ$35:AJ57)-1)<>"",OFFSET(DE104_3!$AJ$35,ROWS($AJ$35:AJ57)-1,COLUMNS($AJ$35:AJ57)-1),"") -> 869.2 | AI43: =IF(OFFSET(DE104_3!$AK$35,ROWS($AK$35:AK57)-1,COLUMNS($AK$35:AK57)-1)<>"",OFFSET(DE104_3!$AK$35,ROWS($AK$35:AK57)-1,COLUMNS($AK$35:AK57)-1),"") -> G | AJ43: =IF(OFFSET(DE104_3!$AL$35,ROWS($AL$35:AL57)-1,COLUMNS($AL$35:AL57)-1)<>"",OFFSET(DE104_3!$AL$35,ROWS($AL$35:AL57)-1,COLUMNS($AL$35:AL57)-1),"") -> 1050.2335 | AK43: =IF(OFFSET(DE104_3!$AM$35,ROWS($AM$35:AM57)-1,COLUMNS($AM$35:AM57)-1)<>"",OFFSET(DE104_3!$AM$35,ROWS($AM$35:AM57)-1,COLUMNS($AM$35:AM57)-1),"") -> N/A | AL43: =IF(OFFSET(DE104_3!$AN$35,ROWS($AN$35:AN57)-1,COLUMNS($AN$35:AN57)-1)<>"",OFFSET(DE104_3!$AN$35,ROWS($AN$35:AN57)-1,COLUMNS($AN$35:AN57)-1),"") -> 537.5759778 | AM43: =IF(OFFSET(DE104_3!$AO$35,ROWS($AO$35:AO57)-1,COLUMNS($AO$35:AO57)-1)<>"",OFFSET(DE104_3!$AO$35,ROWS($AO$35:AO57)-1,COLUMNS($AO$35:AO57)-1),"") -> 21.46386667 | AN43: =IF(OFFSET(DE104_3!$AP$35,ROWS($AP$35:AP57)-1,COLUMNS($AP$35:AP57)-1)<>"",OFFSET(DE104_3!$AP$35,ROWS($AP$35:AP57)-1,COLUMNS($AP$35:AP57)-1),"") -> 559.0398444 | AO43: =IF(OFFSET(DE104_3!$AQ$35,ROWS($AQ$35:AQ57)-1,COLUMNS($AQ$35:AQ57)-1)<>"",OFFSET(DE104_3!$AQ$35,ROWS($AQ$35:AQ57)-1,COLUMNS($AQ$35:AQ57)-1),"") -> -22
A44: =IF(OFFSET(DE104_3!$C$35,ROWS($C$35:C58)-1,COLUMNS($C$35:C58)-1)<>"",OFFSET(DE104_3!$C$35,ROWS($C$35:C58)-1,COLUMNS($C$35:C58)-1),"") ->  | B44: =IF(OFFSET(DE104_3!$D$35,ROWS($D$35:D58)-1,COLUMNS($D$35:D58)-1)<>"",OFFSET(DE104_3!$D$35,ROWS($D$35:D58)-1,COLUMNS($D$35:D58)-1),"") ->  | C44: =IF(OFFSET(DE104_3!$E$35,ROWS($E$35:E58)-1,COLUMNS($E$35:E58)-1)<>"",OFFSET(DE104_3!$E$35,ROWS($E$35:E58)-1,COLUMNS($E$35:E58)-1),"") ->  | D44: =IF(OFFSET(DE104_3!$F$35,ROWS($F$35:F58)-1,COLUMNS($F$35:F58)-1)<>"",OFFSET(DE104_3!$F$35,ROWS($F$35:F58)-1,COLUMNS($F$35:F58)-1),"") ->  | E44: =IF(OFFSET(DE104_3!$G$35,ROWS($G$35:G58)-1,COLUMNS($G$35:G58)-1)<>"",OFFSET(DE104_3!$G$35,ROWS($G$35:G58)-1,COLUMNS($G$35:G58)-1),"") ->  | F44: =IF(OFFSET(DE104_3!$H$35,ROWS($H$35:H58)-1,COLUMNS($H$35:H58)-1)<>"",OFFSET(DE104_3!$H$35,ROWS($H$35:H58)-1,COLUMNS($H$35:H58)-1),"") ->  | G44: =IF(OFFSET(DE104_3!$I$35,ROWS($I$35:I58)-1,COLUMNS($I$35:I58)-1)<>"",OFFSET(DE104_3!$I$35,ROWS($I$35:I58)-1,COLUMNS($I$35:I58)-1),"") ->  | H44: =IF(OFFSET(DE104_3!$J$35,ROWS($J$35:J58)-1,COLUMNS($J$35:J58)-1)<>"",OFFSET(DE104_3!$J$35,ROWS($J$35:J58)-1,COLUMNS($J$35:J58)-1),"") ->  | I44: =IF(OFFSET(DE104_3!$K$35,ROWS($K$35:K58)-1,COLUMNS($K$35:K58)-1)<>"",OFFSET(DE104_3!$K$35,ROWS($K$35:K58)-1,COLUMNS($K$35:K58)-1),"") ->  | J44: =IF(OFFSET(DE104_3!$L$35,ROWS($L$35:L58)-1,COLUMNS($L$35:L58)-1)<>"",OFFSET(DE104_3!$L$35,ROWS($L$35:L58)-1,COLUMNS($L$35:L58)-1),"") ->  | K44: =IF(OFFSET(DE104_3!$M$35,ROWS($M$35:M58)-1,COLUMNS($M$35:M58)-1)<>"",OFFSET(DE104_3!$M$35,ROWS($M$35:M58)-1,COLUMNS($M$35:M58)-1),"") ->  | L44: =IF(OFFSET(DE104_3!$N$35,ROWS($N$35:N58)-1,COLUMNS($N$35:N58)-1)<>"",OFFSET(DE104_3!$N$35,ROWS($N$35:N58)-1,COLUMNS($N$35:N58)-1),"") ->  | M44: =IF(OFFSET(DE104_3!$O$35,ROWS($O$35:O58)-1,COLUMNS($O$35:O58)-1)<>"",OFFSET(DE104_3!$O$35,ROWS($O$35:O58)-1,COLUMNS($O$35:O58)-1),"") ->  | N44: =IF(OFFSET(DE104_3!$P$35,ROWS($P$35:P58)-1,COLUMNS($P$35:P58)-1)<>"",OFFSET(DE104_3!$P$35,ROWS($P$35:P58)-1,COLUMNS($P$35:P58)-1),"") ->  | O44: =IF(OFFSET(DE104_3!$Q$35,ROWS($Q$35:Q58)-1,COLUMNS($Q$35:Q58)-1)<>"",OFFSET(DE104_3!$Q$35,ROWS($Q$35:Q58)-1,COLUMNS($Q$35:Q58)-1),"") ->  | P44: =IF(OFFSET(DE104_3!$R$35,ROWS($R$35:R58)-1,COLUMNS($R$35:R58)-1)<>"",OFFSET(DE104_3!$R$35,ROWS($R$35:R58)-1,COLUMNS($R$35:R58)-1),"") ->  | Q44: =IF(OFFSET(DE104_3!$S$35,ROWS($S$35:S58)-1,COLUMNS($S$35:S58)-1)<>"",OFFSET(DE104_3!$S$35,ROWS($S$35:S58)-1,COLUMNS($S$35:S58)-1),"") ->  | R44: =IF(OFFSET(DE104_3!$T$35,ROWS($T$35:T58)-1,COLUMNS($T$35:T58)-1)<>"",OFFSET(DE104_3!$T$35,ROWS($T$35:T58)-1,COLUMNS($T$35:T58)-1),"") ->  | S44: =IF(OFFSET(DE104_3!$U$35,ROWS($U$35:U58)-1,COLUMNS($U$35:U58)-1)<>"",OFFSET(DE104_3!$U$35,ROWS($U$35:U58)-1,COLUMNS($U$35:U58)-1),"") ->  | T44: =IF(OFFSET(DE104_3!$V$35,ROWS($V$35:V58)-1,COLUMNS($V$35:V58)-1)<>"",OFFSET(DE104_3!$V$35,ROWS($V$35:V58)-1,COLUMNS($V$35:V58)-1),"") ->  | U44: =IF(OFFSET(DE104_3!$W$35,ROWS($W$35:W58)-1,COLUMNS($W$35:W58)-1)<>"",OFFSET(DE104_3!$W$35,ROWS($W$35:W58)-1,COLUMNS($W$35:W58)-1),"") ->  | V44: =IF(OFFSET(DE104_3!$X$35,ROWS($X$35:X58)-1,COLUMNS($X$35:X58)-1)<>"",OFFSET(DE104_3!$X$35,ROWS($X$35:X58)-1,COLUMNS($X$35:X58)-1),"") ->  | W44: =IF(OFFSET(DE104_3!$Y$35,ROWS($Y$35:Y58)-1,COLUMNS($Y$35:Y58)-1)<>"",OFFSET(DE104_3!$Y$35,ROWS($Y$35:Y58)-1,COLUMNS($Y$35:Y58)-1),"") ->  | X44: =IF(OFFSET(DE104_3!$Z$35,ROWS($Z$35:Z58)-1,COLUMNS($Z$35:Z58)-1)<>"",OFFSET(DE104_3!$Z$35,ROWS($Z$35:Z58)-1,COLUMNS($Z$35:Z58)-1),"") ->  | Y44: =IF(OFFSET(DE104_3!$AA$35,ROWS($AA$35:AA58)-1,COLUMNS($AA$35:AA58)-1)<>"",OFFSET(DE104_3!$AA$35,ROWS($AA$35:AA58)-1,COLUMNS($AA$35:AA58)-1),"") ->  | Z44: =IF(OFFSET(DE104_3!$AB$35,ROWS($AB$35:AB58)-1,COLUMNS($AB$35:AB58)-1)<>"",OFFSET(DE104_3!$AB$35,ROWS($AB$35:AB58)-1,COLUMNS($AB$35:AB58)-1),"") ->  | AA44: =IF(OFFSET(DE104_3!$AC$35,ROWS($AC$35:AC58)-1,COLUMNS($AC$35:AC58)-1)<>"",OFFSET(DE104_3!$AC$35,ROWS($AC$35:AC58)-1,COLUMNS($AC$35:AC58)-1),"") ->  | AB44: =IF(OFFSET(DE104_3!$AD$35,ROWS($AD$35:AD58)-1,COLUMNS($AD$35:AD58)-1)<>"",OFFSET(DE104_3!$AD$35,ROWS($AD$35:AD58)-1,COLUMNS($AD$35:AD58)-1),"") ->  | AC44: =IF(OFFSET(DE104_3!$AE$35,ROWS($AE$35:AE58)-1,COLUMNS($AE$35:AE58)-1)<>"",OFFSET(DE104_3!$AE$35,ROWS($AE$35:AE58)-1,COLUMNS($AE$35:AE58)-1),"") ->  | AD44: =IF(OFFSET(DE104_3!$AF$35,ROWS($AF$35:AF58)-1,COLUMNS($AF$35:AF58)-1)<>"",OFFSET(DE104_3!$AF$35,ROWS($AF$35:AF58)-1,COLUMNS($AF$35:AF58)-1),"") ->  | AE44: =IF(OFFSET(DE104_3!$AG$35,ROWS($AG$35:AG58)-1,COLUMNS($AG$35:AG58)-1)<>"",OFFSET(DE104_3!$AG$35,ROWS($AG$35:AG58)-1,COLUMNS($AG$35:AG58)-1),"") ->  | AF44: =IF(OFFSET(DE104_3!$AH$35,ROWS($AH$35:AH58)-1,COLUMNS($AH$35:AH58)-1)<>"",OFFSET(DE104_3!$AH$35,ROWS($AH$35:AH58)-1,COLUMNS($AH$35:AH58)-1),"") -> Rt | AG44: =IF(OFFSET(DE104_3!$AI$35,ROWS($AI$35:AI58)-1,COLUMNS($AI$35:AI58)-1)<>"",OFFSET(DE104_3!$AI$35,ROWS($AI$35:AI58)-1,COLUMNS($AI$35:AI58)-1),"") -> 18650 | AH44: =IF(OFFSET(DE104_3!$AJ$35,ROWS($AJ$35:AJ58)-1,COLUMNS($AJ$35:AJ58)-1)<>"",OFFSET(DE104_3!$AJ$35,ROWS($AJ$35:AJ58)-1,COLUMNS($AJ$35:AJ58)-1),"") -> 864.2 | AI44: =IF(OFFSET(DE104_3!$AK$35,ROWS($AK$35:AK58)-1,COLUMNS($AK$35:AK58)-1)<>"",OFFSET(DE104_3!$AK$35,ROWS($AK$35:AK58)-1,COLUMNS($AK$35:AK58)-1),"") -> G | AJ44: =IF(OFFSET(DE104_3!$AL$35,ROWS($AL$35:AL58)-1,COLUMNS($AL$35:AL58)-1)<>"",OFFSET(DE104_3!$AL$35,ROWS($AL$35:AL58)-1,COLUMNS($AL$35:AL58)-1),"") ->  | AK44: =IF(OFFSET(DE104_3!$AM$35,ROWS($AM$35:AM58)-1,COLUMNS($AM$35:AM58)-1)<>"",OFFSET(DE104_3!$AM$35,ROWS($AM$35:AM58)-1,COLUMNS($AM$35:AM58)-1),"") ->  | AL44: =IF(OFFSET(DE104_3!$AN$35,ROWS($AN$35:AN58)-1,COLUMNS($AN$35:AN58)-1)<>"",OFFSET(DE104_3!$AN$35,ROWS($AN$35:AN58)-1,COLUMNS($AN$35:AN58)-1),"") ->  | AM44: =IF(OFFSET(DE104_3!$AO$35,ROWS($AO$35:AO58)-1,COLUMNS($AO$35:AO58)-1)<>"",OFFSET(DE104_3!$AO$35,ROWS($AO$35:AO58)-1,COLUMNS($AO$35:AO58)-1),"") ->  | AN44: =IF(OFFSET(DE104_3!$AP$35,ROWS($AP$35:AP58)-1,COLUMNS($AP$35:AP58)-1)<>"",OFFSET(DE104_3!$AP$35,ROWS($AP$35:AP58)-1,COLUMNS($AP$35:AP58)-1),"") ->  | AO44: =IF(OFFSET(DE104_3!$AQ$35,ROWS($AQ$35:AQ58)-1,COLUMNS($AQ$35:AQ58)-1)<>"",OFFSET(DE104_3!$AQ$35,ROWS($AQ$35:AQ58)-1,COLUMNS($AQ$35:AQ58)-1),"") -> 
A45: =IF(OFFSET(DE104_3!$C$35,ROWS($C$35:C59)-1,COLUMNS($C$35:C59)-1)<>"",OFFSET(DE104_3!$C$35,ROWS($C$35:C59)-1,COLUMNS($C$35:C59)-1),"") -> MED | B45: =IF(OFFSET(DE104_3!$D$35,ROWS($D$35:D59)-1,COLUMNS($D$35:D59)-1)<>"",OFFSET(DE104_3!$D$35,ROWS($D$35:D59)-1,COLUMNS($D$35:D59)-1),"") -> 19200 | C45: =IF(OFFSET(DE104_3!$E$35,ROWS($E$35:E59)-1,COLUMNS($E$35:E59)-1)<>"",OFFSET(DE104_3!$E$35,ROWS($E$35:E59)-1,COLUMNS($E$35:E59)-1),"") -> 611 | D45: =IF(OFFSET(DE104_3!$F$35,ROWS($F$35:F59)-1,COLUMNS($F$35:F59)-1)<>"",OFFSET(DE104_3!$F$35,ROWS($F$35:F59)-1,COLUMNS($F$35:F59)-1),"") -> 24 | E45: =IF(OFFSET(DE104_3!$G$35,ROWS($G$35:G59)-1,COLUMNS($G$35:G59)-1)<>"",OFFSET(DE104_3!$G$35,ROWS($G$35:G59)-1,COLUMNS($G$35:G59)-1),"") -> RCP | F45: =IF(OFFSET(DE104_3!$H$35,ROWS($H$35:H59)-1,COLUMNS($H$35:H59)-1)<>"",OFFSET(DE104_3!$H$35,ROWS($H$35:H59)-1,COLUMNS($H$35:H59)-1),"") -> 76 | G45: =IF(OFFSET(DE104_3!$I$35,ROWS($I$35:I59)-1,COLUMNS($I$35:I59)-1)<>"",OFFSET(DE104_3!$I$35,ROWS($I$35:I59)-1,COLUMNS($I$35:I59)-1),"") ->  | H45: =IF(OFFSET(DE104_3!$J$35,ROWS($J$35:J59)-1,COLUMNS($J$35:J59)-1)<>"",OFFSET(DE104_3!$J$35,ROWS($J$35:J59)-1,COLUMNS($J$35:J59)-1),"") -> 2.5 | I45: =IF(OFFSET(DE104_3!$K$35,ROWS($K$35:K59)-1,COLUMNS($K$35:K59)-1)<>"",OFFSET(DE104_3!$K$35,ROWS($K$35:K59)-1,COLUMNS($K$35:K59)-1),"") ->  | J45: =IF(OFFSET(DE104_3!$L$35,ROWS($L$35:L59)-1,COLUMNS($L$35:L59)-1)<>"",OFFSET(DE104_3!$L$35,ROWS($L$35:L59)-1,COLUMNS($L$35:L59)-1),"") -> 1 | K45: =IF(OFFSET(DE104_3!$M$35,ROWS($M$35:M59)-1,COLUMNS($M$35:M59)-1)<>"",OFFSET(DE104_3!$M$35,ROWS($M$35:M59)-1,COLUMNS($M$35:M59)-1),"") -> 1 | L45: =IF(OFFSET(DE104_3!$N$35,ROWS($N$35:N59)-1,COLUMNS($N$35:N59)-1)<>"",OFFSET(DE104_3!$N$35,ROWS($N$35:N59)-1,COLUMNS($N$35:N59)-1),"") -> 1 | M45: =IF(OFFSET(DE104_3!$O$35,ROWS($O$35:O59)-1,COLUMNS($O$35:O59)-1)<>"",OFFSET(DE104_3!$O$35,ROWS($O$35:O59)-1,COLUMNS($O$35:O59)-1),"") ->  | N45: =IF(OFFSET(DE104_3!$P$35,ROWS($P$35:P59)-1,COLUMNS($P$35:P59)-1)<>"",OFFSET(DE104_3!$P$35,ROWS($P$35:P59)-1,COLUMNS($P$35:P59)-1),"") ->  | O45: =IF(OFFSET(DE104_3!$Q$35,ROWS($Q$35:Q59)-1,COLUMNS($Q$35:Q59)-1)<>"",OFFSET(DE104_3!$Q$35,ROWS($Q$35:Q59)-1,COLUMNS($Q$35:Q59)-1),"") ->  | P45: =IF(OFFSET(DE104_3!$R$35,ROWS($R$35:R59)-1,COLUMNS($R$35:R59)-1)<>"",OFFSET(DE104_3!$R$35,ROWS($R$35:R59)-1,COLUMNS($R$35:R59)-1),"") ->  | Q45: =IF(OFFSET(DE104_3!$S$35,ROWS($S$35:S59)-1,COLUMNS($S$35:S59)-1)<>"",OFFSET(DE104_3!$S$35,ROWS($S$35:S59)-1,COLUMNS($S$35:S59)-1),"") ->  | R45: =IF(OFFSET(DE104_3!$T$35,ROWS($T$35:T59)-1,COLUMNS($T$35:T59)-1)<>"",OFFSET(DE104_3!$T$35,ROWS($T$35:T59)-1,COLUMNS($T$35:T59)-1),"") ->  | S45: =IF(OFFSET(DE104_3!$U$35,ROWS($U$35:U59)-1,COLUMNS($U$35:U59)-1)<>"",OFFSET(DE104_3!$U$35,ROWS($U$35:U59)-1,COLUMNS($U$35:U59)-1),"") ->  | T45: =IF(OFFSET(DE104_3!$V$35,ROWS($V$35:V59)-1,COLUMNS($V$35:V59)-1)<>"",OFFSET(DE104_3!$V$35,ROWS($V$35:V59)-1,COLUMNS($V$35:V59)-1),"") ->  | U45: =IF(OFFSET(DE104_3!$W$35,ROWS($W$35:W59)-1,COLUMNS($W$35:W59)-1)<>"",OFFSET(DE104_3!$W$35,ROWS($W$35:W59)-1,COLUMNS($W$35:W59)-1),"") ->  | V45: =IF(OFFSET(DE104_3!$X$35,ROWS($X$35:X59)-1,COLUMNS($X$35:X59)-1)<>"",OFFSET(DE104_3!$X$35,ROWS($X$35:X59)-1,COLUMNS($X$35:X59)-1),"") -> 859.32 | W45: =IF(OFFSET(DE104_3!$Y$35,ROWS($Y$35:Y59)-1,COLUMNS($Y$35:Y59)-1)<>"",OFFSET(DE104_3!$Y$35,ROWS($Y$35:Y59)-1,COLUMNS($Y$35:Y59)-1),"") -> 860.36 | X45: =IF(OFFSET(DE104_3!$Z$35,ROWS($Z$35:Z59)-1,COLUMNS($Z$35:Z59)-1)<>"",OFFSET(DE104_3!$Z$35,ROWS($Z$35:Z59)-1,COLUMNS($Z$35:Z59)-1),"") -> 859.54 | Y45: =IF(OFFSET(DE104_3!$AA$35,ROWS($AA$35:AA59)-1,COLUMNS($AA$35:AA59)-1)<>"",OFFSET(DE104_3!$AA$35,ROWS($AA$35:AA59)-1,COLUMNS($AA$35:AA59)-1),"") ->  | Z45: =IF(OFFSET(DE104_3!$AB$35,ROWS($AB$35:AB59)-1,COLUMNS($AB$35:AB59)-1)<>"",OFFSET(DE104_3!$AB$35,ROWS($AB$35:AB59)-1,COLUMNS($AB$35:AB59)-1),"") -> 50 | AA45: =IF(OFFSET(DE104_3!$AC$35,ROWS($AC$35:AC59)-1,COLUMNS($AC$35:AC59)-1)<>"",OFFSET(DE104_3!$AC$35,ROWS($AC$35:AC59)-1,COLUMNS($AC$35:AC59)-1),"") -> 38.16 | AB45: =IF(OFFSET(DE104_3!$AD$35,ROWS($AD$35:AD59)-1,COLUMNS($AD$35:AD59)-1)<>"",OFFSET(DE104_3!$AD$35,ROWS($AD$35:AD59)-1,COLUMNS($AD$35:AD59)-1),"") ->  | AC45: =IF(OFFSET(DE104_3!$AE$35,ROWS($AE$35:AE59)-1,COLUMNS($AE$35:AE59)-1)<>"",OFFSET(DE104_3!$AE$35,ROWS($AE$35:AE59)-1,COLUMNS($AE$35:AE59)-1),"") ->  | AD45: =IF(OFFSET(DE104_3!$AF$35,ROWS($AF$35:AF59)-1,COLUMNS($AF$35:AF59)-1)<>"",OFFSET(DE104_3!$AF$35,ROWS($AF$35:AF59)-1,COLUMNS($AF$35:AF59)-1),"") ->  | AE45: =IF(OFFSET(DE104_3!$AG$35,ROWS($AG$35:AG59)-1,COLUMNS($AG$35:AG59)-1)<>"",OFFSET(DE104_3!$AG$35,ROWS($AG$35:AG59)-1,COLUMNS($AG$35:AG59)-1),"") ->  | AF45: =IF(OFFSET(DE104_3!$AH$35,ROWS($AH$35:AH59)-1,COLUMNS($AH$35:AH59)-1)<>"",OFFSET(DE104_3!$AH$35,ROWS($AH$35:AH59)-1,COLUMNS($AH$35:AH59)-1),"") -> Med | AG45: =IF(OFFSET(DE104_3!$AI$35,ROWS($AI$35:AI59)-1,COLUMNS($AI$35:AI59)-1)<>"",OFFSET(DE104_3!$AI$35,ROWS($AI$35:AI59)-1,COLUMNS($AI$35:AI59)-1),"") -> 19225 | AH45: =IF(OFFSET(DE104_3!$AJ$35,ROWS($AJ$35:AJ59)-1,COLUMNS($AJ$35:AJ59)-1)<>"",OFFSET(DE104_3!$AJ$35,ROWS($AJ$35:AJ59)-1,COLUMNS($AJ$35:AJ59)-1),"") -> 862.33 | AI45: =IF(OFFSET(DE104_3!$AK$35,ROWS($AK$35:AK59)-1,COLUMNS($AK$35:AK59)-1)<>"",OFFSET(DE104_3!$AK$35,ROWS($AK$35:AK59)-1,COLUMNS($AK$35:AK59)-1),"") -> M | AJ45: =IF(OFFSET(DE104_3!$AL$35,ROWS($AL$35:AL59)-1,COLUMNS($AL$35:AL59)-1)<>"",OFFSET(DE104_3!$AL$35,ROWS($AL$35:AL59)-1,COLUMNS($AL$35:AL59)-1),"") -> 128.9688 | AK45: =IF(OFFSET(DE104_3!$AM$35,ROWS($AM$35:AM59)-1,COLUMNS($AM$35:AM59)-1)<>"",OFFSET(DE104_3!$AM$35,ROWS($AM$35:AM59)-1,COLUMNS($AM$35:AM59)-1),"") -> 9.875 | AL45: =IF(OFFSET(DE104_3!$AN$35,ROWS($AN$35:AN59)-1,COLUMNS($AN$35:AN59)-1)<>"",OFFSET(DE104_3!$AN$35,ROWS($AN$35:AN59)-1,COLUMNS($AN$35:AN59)-1),"") -> 28.70240741 | AM45: =IF(OFFSET(DE104_3!$AO$35,ROWS($AO$35:AO59)-1,COLUMNS($AO$35:AO59)-1)<>"",OFFSET(DE104_3!$AO$35,ROWS($AO$35:AO59)-1,COLUMNS($AO$35:AO59)-1),"") -> 6.743403704 | AN45: =IF(OFFSET(DE104_3!$AP$35,ROWS($AP$35:AP59)-1,COLUMNS($AP$35:AP59)-1)<>"",OFFSET(DE104_3!$AP$35,ROWS($AP$35:AP59)-1,COLUMNS($AP$35:AP59)-1),"") -> 35.44581111 | AO45: =IF(OFFSET(DE104_3!$AQ$35,ROWS($AQ$35:AQ59)-1,COLUMNS($AQ$35:AQ59)-1)<>"",OFFSET(DE104_3!$AQ$35,ROWS($AQ$35:AQ59)-1,COLUMNS($AQ$35:AQ59)-1),"") -> -23
A46: =IF(OFFSET(DE104_3!$C$35,ROWS($C$35:C60)-1,COLUMNS($C$35:C60)-1)<>"",OFFSET(DE104_3!$C$35,ROWS($C$35:C60)-1,COLUMNS($C$35:C60)-1),"") -> MED | B46: =IF(OFFSET(DE104_3!$D$35,ROWS($D$35:D60)-1,COLUMNS($D$35:D60)-1)<>"",OFFSET(DE104_3!$D$35,ROWS($D$35:D60)-1,COLUMNS($D$35:D60)-1),"") -> 19500 | C46: =IF(OFFSET(DE104_3!$E$35,ROWS($E$35:E60)-1,COLUMNS($E$35:E60)-1)<>"",OFFSET(DE104_3!$E$35,ROWS($E$35:E60)-1,COLUMNS($E$35:E60)-1),"") -> 611 | D46: =IF(OFFSET(DE104_3!$F$35,ROWS($F$35:F60)-1,COLUMNS($F$35:F60)-1)<>"",OFFSET(DE104_3!$F$35,ROWS($F$35:F60)-1,COLUMNS($F$35:F60)-1),"") -> 18 | E46: =IF(OFFSET(DE104_3!$G$35,ROWS($G$35:G60)-1,COLUMNS($G$35:G60)-1)<>"",OFFSET(DE104_3!$G$35,ROWS($G$35:G60)-1,COLUMNS($G$35:G60)-1),"") -> RCP | F46: =IF(OFFSET(DE104_3!$H$35,ROWS($H$35:H60)-1,COLUMNS($H$35:H60)-1)<>"",OFFSET(DE104_3!$H$35,ROWS($H$35:H60)-1,COLUMNS($H$35:H60)-1),"") -> 76 | G46: =IF(OFFSET(DE104_3!$I$35,ROWS($I$35:I60)-1,COLUMNS($I$35:I60)-1)<>"",OFFSET(DE104_3!$I$35,ROWS($I$35:I60)-1,COLUMNS($I$35:I60)-1),"") ->  | H46: =IF(OFFSET(DE104_3!$J$35,ROWS($J$35:J60)-1,COLUMNS($J$35:J60)-1)<>"",OFFSET(DE104_3!$J$35,ROWS($J$35:J60)-1,COLUMNS($J$35:J60)-1),"") -> 3.5 | I46: =IF(OFFSET(DE104_3!$K$35,ROWS($K$35:K60)-1,COLUMNS($K$35:K60)-1)<>"",OFFSET(DE104_3!$K$35,ROWS($K$35:K60)-1,COLUMNS($K$35:K60)-1),"") ->  | J46: =IF(OFFSET(DE104_3!$L$35,ROWS($L$35:L60)-1,COLUMNS($L$35:L60)-1)<>"",OFFSET(DE104_3!$L$35,ROWS($L$35:L60)-1,COLUMNS($L$35:L60)-1),"") -> 1 | K46: =IF(OFFSET(DE104_3!$M$35,ROWS($M$35:M60)-1,COLUMNS($M$35:M60)-1)<>"",OFFSET(DE104_3!$M$35,ROWS($M$35:M60)-1,COLUMNS($M$35:M60)-1),"") -> 1 | L46: =IF(OFFSET(DE104_3!$N$35,ROWS($N$35:N60)-1,COLUMNS($N$35:N60)-1)<>"",OFFSET(DE104_3!$N$35,ROWS($N$35:N60)-1,COLUMNS($N$35:N60)-1),"") -> 1 | M46: =IF(OFFSET(DE104_3!$O$35,ROWS($O$35:O60)-1,COLUMNS($O$35:O60)-1)<>"",OFFSET(DE104_3!$O$35,ROWS($O$35:O60)-1,COLUMNS($O$35:O60)-1),"") ->  | N46: =IF(OFFSET(DE104_3!$P$35,ROWS($P$35:P60)-1,COLUMNS($P$35:P60)-1)<>"",OFFSET(DE104_3!$P$35,ROWS($P$35:P60)-1,COLUMNS($P$35:P60)-1),"") ->  | O46: =IF(OFFSET(DE104_3!$Q$35,ROWS($Q$35:Q60)-1,COLUMNS($Q$35:Q60)-1)<>"",OFFSET(DE104_3!$Q$35,ROWS($Q$35:Q60)-1,COLUMNS($Q$35:Q60)-1),"") ->  | P46: =IF(OFFSET(DE104_3!$R$35,ROWS($R$35:R60)-1,COLUMNS($R$35:R60)-1)<>"",OFFSET(DE104_3!$R$35,ROWS($R$35:R60)-1,COLUMNS($R$35:R60)-1),"") ->  | Q46: =IF(OFFSET(DE104_3!$S$35,ROWS($S$35:S60)-1,COLUMNS($S$35:S60)-1)<>"",OFFSET(DE104_3!$S$35,ROWS($S$35:S60)-1,COLUMNS($S$35:S60)-1),"") ->  | R46: =IF(OFFSET(DE104_3!$T$35,ROWS($T$35:T60)-1,COLUMNS($T$35:T60)-1)<>"",OFFSET(DE104_3!$T$35,ROWS($T$35:T60)-1,COLUMNS($T$35:T60)-1),"") ->  | S46: =IF(OFFSET(DE104_3!$U$35,ROWS($U$35:U60)-1,COLUMNS($U$35:U60)-1)<>"",OFFSET(DE104_3!$U$35,ROWS($U$35:U60)-1,COLUMNS($U$35:U60)-1),"") ->  | T46: =IF(OFFSET(DE104_3!$V$35,ROWS($V$35:V60)-1,COLUMNS($V$35:V60)-1)<>"",OFFSET(DE104_3!$V$35,ROWS($V$35:V60)-1,COLUMNS($V$35:V60)-1),"") ->  | U46: =IF(OFFSET(DE104_3!$W$35,ROWS($W$35:W60)-1,COLUMNS($W$35:W60)-1)<>"",OFFSET(DE104_3!$W$35,ROWS($W$35:W60)-1,COLUMNS($W$35:W60)-1),"") -> 856.37 | V46: =IF(OFFSET(DE104_3!$X$35,ROWS($X$35:X60)-1,COLUMNS($X$35:X60)-1)<>"",OFFSET(DE104_3!$X$35,ROWS($X$35:X60)-1,COLUMNS($X$35:X60)-1),"") -> 854 | W46: =IF(OFFSET(DE104_3!$Y$35,ROWS($Y$35:Y60)-1,COLUMNS($Y$35:Y60)-1)<>"",OFFSET(DE104_3!$Y$35,ROWS($Y$35:Y60)-1,COLUMNS($Y$35:Y60)-1),"") -> 856.37 | X46: =IF(OFFSET(DE104_3!$Z$35,ROWS($Z$35:Z60)-1,COLUMNS($Z$35:Z60)-1)<>"",OFFSET(DE104_3!$Z$35,ROWS($Z$35:Z60)-1,COLUMNS($Z$35:Z60)-1),"") -> 854.78 | Y46: =IF(OFFSET(DE104_3!$AA$35,ROWS($AA$35:AA60)-1,COLUMNS($AA$35:AA60)-1)<>"",OFFSET(DE104_3!$AA$35,ROWS($AA$35:AA60)-1,COLUMNS($AA$35:AA60)-1),"") ->  | Z46: =IF(OFFSET(DE104_3!$AB$35,ROWS($AB$35:AB60)-1,COLUMNS($AB$35:AB60)-1)<>"",OFFSET(DE104_3!$AB$35,ROWS($AB$35:AB60)-1,COLUMNS($AB$35:AB60)-1),"") -> 48.9 | AA46: =IF(OFFSET(DE104_3!$AC$35,ROWS($AC$35:AC60)-1,COLUMNS($AC$35:AC60)-1)<>"",OFFSET(DE104_3!$AC$35,ROWS($AC$35:AC60)-1,COLUMNS($AC$35:AC60)-1),"") -> 39.2 | AB46: =IF(OFFSET(DE104_3!$AD$35,ROWS($AD$35:AD60)-1,COLUMNS($AD$35:AD60)-1)<>"",OFFSET(DE104_3!$AD$35,ROWS($AD$35:AD60)-1,COLUMNS($AD$35:AD60)-1),"") ->  | AC46: =IF(OFFSET(DE104_3!$AE$35,ROWS($AE$35:AE60)-1,COLUMNS($AE$35:AE60)-1)<>"",OFFSET(DE104_3!$AE$35,ROWS($AE$35:AE60)-1,COLUMNS($AE$35:AE60)-1),"") ->  | AD46: =IF(OFFSET(DE104_3!$AF$35,ROWS($AF$35:AF60)-1,COLUMNS($AF$35:AF60)-1)<>"",OFFSET(DE104_3!$AF$35,ROWS($AF$35:AF60)-1,COLUMNS($AF$35:AF60)-1),"") ->  | AE46: =IF(OFFSET(DE104_3!$AG$35,ROWS($AG$35:AG60)-1,COLUMNS($AG$35:AG60)-1)<>"",OFFSET(DE104_3!$AG$35,ROWS($AG$35:AG60)-1,COLUMNS($AG$35:AG60)-1),"") ->  | AF46: =IF(OFFSET(DE104_3!$AH$35,ROWS($AH$35:AH60)-1,COLUMNS($AH$35:AH60)-1)<>"",OFFSET(DE104_3!$AH$35,ROWS($AH$35:AH60)-1,COLUMNS($AH$35:AH60)-1),"") ->  | AG46: =IF(OFFSET(DE104_3!$AI$35,ROWS($AI$35:AI60)-1,COLUMNS($AI$35:AI60)-1)<>"",OFFSET(DE104_3!$AI$35,ROWS($AI$35:AI60)-1,COLUMNS($AI$35:AI60)-1),"") ->  | AH46: =IF(OFFSET(DE104_3!$AJ$35,ROWS($AJ$35:AJ60)-1,COLUMNS($AJ$35:AJ60)-1)<>"",OFFSET(DE104_3!$AJ$35,ROWS($AJ$35:AJ60)-1,COLUMNS($AJ$35:AJ60)-1),"") ->  | AI46: =IF(OFFSET(DE104_3!$AK$35,ROWS($AK$35:AK60)-1,COLUMNS($AK$35:AK60)-1)<>"",OFFSET(DE104_3!$AK$35,ROWS($AK$35:AK60)-1,COLUMNS($AK$35:AK60)-1),"") ->  | AJ46: =IF(OFFSET(DE104_3!$AL$35,ROWS($AL$35:AL60)-1,COLUMNS($AL$35:AL60)-1)<>"",OFFSET(DE104_3!$AL$35,ROWS($AL$35:AL60)-1,COLUMNS($AL$35:AL60)-1),"") -> 238.2609185 | AK46: =IF(OFFSET(DE104_3!$AM$35,ROWS($AM$35:AM60)-1,COLUMNS($AM$35:AM60)-1)<>"",OFFSET(DE104_3!$AM$35,ROWS($AM$35:AM60)-1,COLUMNS($AM$35:AM60)-1),"") -> 10.87807407 | AL46: =IF(OFFSET(DE104_3!$AN$35,ROWS($AN$35:AN60)-1,COLUMNS($AN$35:AN60)-1)<>"",OFFSET(DE104_3!$AN$35,ROWS($AN$35:AN60)-1,COLUMNS($AN$35:AN60)-1),"") -> 49.1582963 | AM46: =IF(OFFSET(DE104_3!$AO$35,ROWS($AO$35:AO60)-1,COLUMNS($AO$35:AO60)-1)<>"",OFFSET(DE104_3!$AO$35,ROWS($AO$35:AO60)-1,COLUMNS($AO$35:AO60)-1),"") -> 6.195785185 | AN46: =IF(OFFSET(DE104_3!$AP$35,ROWS($AP$35:AP60)-1,COLUMNS($AP$35:AP60)-1)<>"",OFFSET(DE104_3!$AP$35,ROWS($AP$35:AP60)-1,COLUMNS($AP$35:AP60)-1),"") -> 55.35408148 | AO46: =IF(OFFSET(DE104_3!$AQ$35,ROWS($AQ$35:AQ60)-1,COLUMNS($AQ$35:AQ60)-1)<>"",OFFSET(DE104_3!$AQ$35,ROWS($AQ$35:AQ60)-1,COLUMNS($AQ$35:AQ60)-1),"") -> -24
A47: =IF(OFFSET(DE104_3!$C$35,ROWS($C$35:C61)-1,COLUMNS($C$35:C61)-1)<>"",OFFSET(DE104_3!$C$35,ROWS($C$35:C61)-1,COLUMNS($C$35:C61)-1),"") ->  | B47: =IF(OFFSET(DE104_3!$D$35,ROWS($D$35:D61)-1,COLUMNS($D$35:D61)-1)<>"",OFFSET(DE104_3!$D$35,ROWS($D$35:D61)-1,COLUMNS($D$35:D61)-1),"") -> 20175.15 | C47: =IF(OFFSET(DE104_3!$E$35,ROWS($E$35:E61)-1,COLUMNS($E$35:E61)-1)<>"",OFFSET(DE104_3!$E$35,ROWS($E$35:E61)-1,COLUMNS($E$35:E61)-1),"") -> 622 | D47: =IF(OFFSET(DE104_3!$F$35,ROWS($F$35:F61)-1,COLUMNS($F$35:F61)-1)<>"",OFFSET(DE104_3!$F$35,ROWS($F$35:F61)-1,COLUMNS($F$35:F61)-1),"") -> 24 | E47: =IF(OFFSET(DE104_3!$G$35,ROWS($G$35:G61)-1,COLUMNS($G$35:G61)-1)<>"",OFFSET(DE104_3!$G$35,ROWS($G$35:G61)-1,COLUMNS($G$35:G61)-1),"") -> UNCL | F47: =IF(OFFSET(DE104_3!$H$35,ROWS($H$35:H61)-1,COLUMNS($H$35:H61)-1)<>"",OFFSET(DE104_3!$H$35,ROWS($H$35:H61)-1,COLUMNS($H$35:H61)-1),"") -> 406 | G47: =IF(OFFSET(DE104_3!$I$35,ROWS($I$35:I61)-1,COLUMNS($I$35:I61)-1)<>"",OFFSET(DE104_3!$I$35,ROWS($I$35:I61)-1,COLUMNS($I$35:I61)-1),"") ->  | H47: =IF(OFFSET(DE104_3!$J$35,ROWS($J$35:J61)-1,COLUMNS($J$35:J61)-1)<>"",OFFSET(DE104_3!$J$35,ROWS($J$35:J61)-1,COLUMNS($J$35:J61)-1),"") ->  | I47: =IF(OFFSET(DE104_3!$K$35,ROWS($K$35:K61)-1,COLUMNS($K$35:K61)-1)<>"",OFFSET(DE104_3!$K$35,ROWS($K$35:K61)-1,COLUMNS($K$35:K61)-1),"") ->  | J47: =IF(OFFSET(DE104_3!$L$35,ROWS($L$35:L61)-1,COLUMNS($L$35:L61)-1)<>"",OFFSET(DE104_3!$L$35,ROWS($L$35:L61)-1,COLUMNS($L$35:L61)-1),"") ->  | K47: =IF(OFFSET(DE104_3!$M$35,ROWS($M$35:M61)-1,COLUMNS($M$35:M61)-1)<>"",OFFSET(DE104_3!$M$35,ROWS($M$35:M61)-1,COLUMNS($M$35:M61)-1),"") ->  | L47: =IF(OFFSET(DE104_3!$N$35,ROWS($N$35:N61)-1,COLUMNS($N$35:N61)-1)<>"",OFFSET(DE104_3!$N$35,ROWS($N$35:N61)-1,COLUMNS($N$35:N61)-1),"") ->  | M47: =IF(OFFSET(DE104_3!$O$35,ROWS($O$35:O61)-1,COLUMNS($O$35:O61)-1)<>"",OFFSET(DE104_3!$O$35,ROWS($O$35:O61)-1,COLUMNS($O$35:O61)-1),"") ->  | N47: =IF(OFFSET(DE104_3!$P$35,ROWS($P$35:P61)-1,COLUMNS($P$35:P61)-1)<>"",OFFSET(DE104_3!$P$35,ROWS($P$35:P61)-1,COLUMNS($P$35:P61)-1),"") ->  | O47: =IF(OFFSET(DE104_3!$Q$35,ROWS($Q$35:Q61)-1,COLUMNS($Q$35:Q61)-1)<>"",OFFSET(DE104_3!$Q$35,ROWS($Q$35:Q61)-1,COLUMNS($Q$35:Q61)-1),"") ->  | P47: =IF(OFFSET(DE104_3!$R$35,ROWS($R$35:R61)-1,COLUMNS($R$35:R61)-1)<>"",OFFSET(DE104_3!$R$35,ROWS($R$35:R61)-1,COLUMNS($R$35:R61)-1),"") ->  | Q47: =IF(OFFSET(DE104_3!$S$35,ROWS($S$35:S61)-1,COLUMNS($S$35:S61)-1)<>"",OFFSET(DE104_3!$S$35,ROWS($S$35:S61)-1,COLUMNS($S$35:S61)-1),"") ->  | R47: =IF(OFFSET(DE104_3!$T$35,ROWS($T$35:T61)-1,COLUMNS($T$35:T61)-1)<>"",OFFSET(DE104_3!$T$35,ROWS($T$35:T61)-1,COLUMNS($T$35:T61)-1),"") -> C-3 | S47: =IF(OFFSET(DE104_3!$U$35,ROWS($U$35:U61)-1,COLUMNS($U$35:U61)-1)<>"",OFFSET(DE104_3!$U$35,ROWS($U$35:U61)-1,COLUMNS($U$35:U61)-1),"") -> 1 | T47: =IF(OFFSET(DE104_3!$V$35,ROWS($V$35:V61)-1,COLUMNS($V$35:V61)-1)<>"",OFFSET(DE104_3!$V$35,ROWS($V$35:V61)-1,COLUMNS($V$35:V61)-1),"") ->  | U47: =IF(OFFSET(DE104_3!$W$35,ROWS($W$35:W61)-1,COLUMNS($W$35:W61)-1)<>"",OFFSET(DE104_3!$W$35,ROWS($W$35:W61)-1,COLUMNS($W$35:W61)-1),"") ->  | V47: =IF(OFFSET(DE104_3!$X$35,ROWS($X$35:X61)-1,COLUMNS($X$35:X61)-1)<>"",OFFSET(DE104_3!$X$35,ROWS($X$35:X61)-1,COLUMNS($X$35:X61)-1),"") -> 812.76 | W47: =IF(OFFSET(DE104_3!$Y$35,ROWS($Y$35:Y61)-1,COLUMNS($Y$35:Y61)-1)<>"",OFFSET(DE104_3!$Y$35,ROWS($Y$35:Y61)-1,COLUMNS($Y$35:Y61)-1),"") ->  | X47: =IF(OFFSET(DE104_3!$Z$35,ROWS($Z$35:Z61)-1,COLUMNS($Z$35:Z61)-1)<>"",OFFSET(DE104_3!$Z$35,ROWS($Z$35:Z61)-1,COLUMNS($Z$35:Z61)-1),"") -> 826.47 | Y47: =IF(OFFSET(DE104_3!$AA$35,ROWS($AA$35:AA61)-1,COLUMNS($AA$35:AA61)-1)<>"",OFFSET(DE104_3!$AA$35,ROWS($AA$35:AA61)-1,COLUMNS($AA$35:AA61)-1),"") ->  | Z47: =IF(OFFSET(DE104_3!$AB$35,ROWS($AB$35:AB61)-1,COLUMNS($AB$35:AB61)-1)<>"",OFFSET(DE104_3!$AB$35,ROWS($AB$35:AB61)-1,COLUMNS($AB$35:AB61)-1),"") -> 308.4 | AA47: =IF(OFFSET(DE104_3!$AC$35,ROWS($AC$35:AC61)-1,COLUMNS($AC$35:AC61)-1)<>"",OFFSET(DE104_3!$AC$35,ROWS($AC$35:AC61)-1,COLUMNS($AC$35:AC61)-1),"") -> 97.4 | AB47: =IF(OFFSET(DE104_3!$AD$35,ROWS($AD$35:AD61)-1,COLUMNS($AD$35:AD61)-1)<>"",OFFSET(DE104_3!$AD$35,ROWS($AD$35:AD61)-1,COLUMNS($AD$35:AD61)-1),"") -> 406 | AC47: =IF(OFFSET(DE104_3!$AE$35,ROWS($AE$35:AE61)-1,COLUMNS($AE$35:AE61)-1)<>"",OFFSET(DE104_3!$AE$35,ROWS($AE$35:AE61)-1,COLUMNS($AE$35:AE61)-1),"") ->  | AD47: =IF(OFFSET(DE104_3!$AF$35,ROWS($AF$35:AF61)-1,COLUMNS($AF$35:AF61)-1)<>"",OFFSET(DE104_3!$AF$35,ROWS($AF$35:AF61)-1,COLUMNS($AF$35:AF61)-1),"") -> 51 | AE47: =IF(OFFSET(DE104_3!$AG$35,ROWS($AG$35:AG61)-1,COLUMNS($AG$35:AG61)-1)<>"",OFFSET(DE104_3!$AG$35,ROWS($AG$35:AG61)-1,COLUMNS($AG$35:AG61)-1),"") ->  | AF47: =IF(OFFSET(DE104_3!$AH$35,ROWS($AH$35:AH61)-1,COLUMNS($AH$35:AH61)-1)<>"",OFFSET(DE104_3!$AH$35,ROWS($AH$35:AH61)-1,COLUMNS($AH$35:AH61)-1),"") ->  | AG47: =IF(OFFSET(DE104_3!$AI$35,ROWS($AI$35:AI61)-1,COLUMNS($AI$35:AI61)-1)<>"",OFFSET(DE104_3!$AI$35,ROWS($AI$35:AI61)-1,COLUMNS($AI$35:AI61)-1),"") ->  | AH47: =IF(OFFSET(DE104_3!$AJ$35,ROWS($AJ$35:AJ61)-1,COLUMNS($AJ$35:AJ61)-1)<>"",OFFSET(DE104_3!$AJ$35,ROWS($AJ$35:AJ61)-1,COLUMNS($AJ$35:AJ61)-1),"") ->  | AI47: =IF(OFFSET(DE104_3!$AK$35,ROWS($AK$35:AK61)-1,COLUMNS($AK$35:AK61)-1)<>"",OFFSET(DE104_3!$AK$35,ROWS($AK$35:AK61)-1,COLUMNS($AK$35:AK61)-1),"") ->  | AJ47: =IF(OFFSET(DE104_3!$AL$35,ROWS($AL$35:AL61)-1,COLUMNS($AL$35:AL61)-1)<>"",OFFSET(DE104_3!$AL$35,ROWS($AL$35:AL61)-1,COLUMNS($AL$35:AL61)-1),"") -> 537.3285333 | AK47: =IF(OFFSET(DE104_3!$AM$35,ROWS($AM$35:AM61)-1,COLUMNS($AM$35:AM61)-1)<>"",OFFSET(DE104_3!$AM$35,ROWS($AM$35:AM61)-1,COLUMNS($AM$35:AM61)-1),"") -> N/A | AL47: =IF(OFFSET(DE104_3!$AN$35,ROWS($AN$35:AN61)-1,COLUMNS($AN$35:AN61)-1)<>"",OFFSET(DE104_3!$AN$35,ROWS($AN$35:AN61)-1,COLUMNS($AN$35:AN61)-1),"") -> 377.276 | AM47: =IF(OFFSET(DE104_3!$AO$35,ROWS($AO$35:AO61)-1,COLUMNS($AO$35:AO61)-1)<>"",OFFSET(DE104_3!$AO$35,ROWS($AO$35:AO61)-1,COLUMNS($AO$35:AO61)-1),"") -> 31.72814815 | AN47: =IF(OFFSET(DE104_3!$AP$35,ROWS($AP$35:AP61)-1,COLUMNS($AP$35:AP61)-1)<>"",OFFSET(DE104_3!$AP$35,ROWS($AP$35:AP61)-1,COLUMNS($AP$35:AP61)-1),"") -> 409.0041481 | AO47: =IF(OFFSET(DE104_3!$AQ$35,ROWS($AQ$35:AQ61)-1,COLUMNS($AQ$35:AQ61)-1)<>"",OFFSET(DE104_3!$AQ$35,ROWS($AQ$35:AQ61)-1,COLUMNS($AQ$35:AQ61)-1),"") -> -25
A48: =IF(OFFSET(DE104_3!$C$35,ROWS($C$35:C62)-1,COLUMNS($C$35:C62)-1)<>"",OFFSET(DE104_3!$C$35,ROWS($C$35:C62)-1,COLUMNS($C$35:C62)-1),"") ->  | B48: =IF(OFFSET(DE104_3!$D$35,ROWS($D$35:D62)-1,COLUMNS($D$35:D62)-1)<>"",OFFSET(DE104_3!$D$35,ROWS($D$35:D62)-1,COLUMNS($D$35:D62)-1),"") -> 212+52.71, 175.48' Rt | C48: =IF(OFFSET(DE104_3!$E$35,ROWS($E$35:E62)-1,COLUMNS($E$35:E62)-1)<>"",OFFSET(DE104_3!$E$35,ROWS($E$35:E62)-1,COLUMNS($E$35:E62)-1),"") -> Existing | D48: =IF(OFFSET(DE104_3!$F$35,ROWS($F$35:F62)-1,COLUMNS($F$35:F62)-1)<>"",OFFSET(DE104_3!$F$35,ROWS($F$35:F62)-1,COLUMNS($F$35:F62)-1),"") ->  | E48: =IF(OFFSET(DE104_3!$G$35,ROWS($G$35:G62)-1,COLUMNS($G$35:G62)-1)<>"",OFFSET(DE104_3!$G$35,ROWS($G$35:G62)-1,COLUMNS($G$35:G62)-1),"") ->  | F48: =IF(OFFSET(DE104_3!$H$35,ROWS($H$35:H62)-1,COLUMNS($H$35:H62)-1)<>"",OFFSET(DE104_3!$H$35,ROWS($H$35:H62)-1,COLUMNS($H$35:H62)-1),"") ->  | G48: =IF(OFFSET(DE104_3!$I$35,ROWS($I$35:I62)-1,COLUMNS($I$35:I62)-1)<>"",OFFSET(DE104_3!$I$35,ROWS($I$35:I62)-1,COLUMNS($I$35:I62)-1),"") ->  | H48: =IF(OFFSET(DE104_3!$J$35,ROWS($J$35:J62)-1,COLUMNS($J$35:J62)-1)<>"",OFFSET(DE104_3!$J$35,ROWS($J$35:J62)-1,COLUMNS($J$35:J62)-1),"") ->  | I48: =IF(OFFSET(DE104_3!$K$35,ROWS($K$35:K62)-1,COLUMNS($K$35:K62)-1)<>"",OFFSET(DE104_3!$K$35,ROWS($K$35:K62)-1,COLUMNS($K$35:K62)-1),"") ->  | J48: =IF(OFFSET(DE104_3!$L$35,ROWS($L$35:L62)-1,COLUMNS($L$35:L62)-1)<>"",OFFSET(DE104_3!$L$35,ROWS($L$35:L62)-1,COLUMNS($L$35:L62)-1),"") ->  | K48: =IF(OFFSET(DE104_3!$M$35,ROWS($M$35:M62)-1,COLUMNS($M$35:M62)-1)<>"",OFFSET(DE104_3!$M$35,ROWS($M$35:M62)-1,COLUMNS($M$35:M62)-1),"") ->  | L48: =IF(OFFSET(DE104_3!$N$35,ROWS($N$35:N62)-1,COLUMNS($N$35:N62)-1)<>"",OFFSET(DE104_3!$N$35,ROWS($N$35:N62)-1,COLUMNS($N$35:N62)-1),"") ->  | M48: =IF(OFFSET(DE104_3!$O$35,ROWS($O$35:O62)-1,COLUMNS($O$35:O62)-1)<>"",OFFSET(DE104_3!$O$35,ROWS($O$35:O62)-1,COLUMNS($O$35:O62)-1),"") ->  | N48: =IF(OFFSET(DE104_3!$P$35,ROWS($P$35:P62)-1,COLUMNS($P$35:P62)-1)<>"",OFFSET(DE104_3!$P$35,ROWS($P$35:P62)-1,COLUMNS($P$35:P62)-1),"") ->  | O48: =IF(OFFSET(DE104_3!$Q$35,ROWS($Q$35:Q62)-1,COLUMNS($Q$35:Q62)-1)<>"",OFFSET(DE104_3!$Q$35,ROWS($Q$35:Q62)-1,COLUMNS($Q$35:Q62)-1),"") ->  | P48: =IF(OFFSET(DE104_3!$R$35,ROWS($R$35:R62)-1,COLUMNS($R$35:R62)-1)<>"",OFFSET(DE104_3!$R$35,ROWS($R$35:R62)-1,COLUMNS($R$35:R62)-1),"") ->  | Q48: =IF(OFFSET(DE104_3!$S$35,ROWS($S$35:S62)-1,COLUMNS($S$35:S62)-1)<>"",OFFSET(DE104_3!$S$35,ROWS($S$35:S62)-1,COLUMNS($S$35:S62)-1),"") ->  | R48: =IF(OFFSET(DE104_3!$T$35,ROWS($T$35:T62)-1,COLUMNS($T$35:T62)-1)<>"",OFFSET(DE104_3!$T$35,ROWS($T$35:T62)-1,COLUMNS($T$35:T62)-1),"") ->  | S48: =IF(OFFSET(DE104_3!$U$35,ROWS($U$35:U62)-1,COLUMNS($U$35:U62)-1)<>"",OFFSET(DE104_3!$U$35,ROWS($U$35:U62)-1,COLUMNS($U$35:U62)-1),"") ->  | T48: =IF(OFFSET(DE104_3!$V$35,ROWS($V$35:V62)-1,COLUMNS($V$35:V62)-1)<>"",OFFSET(DE104_3!$V$35,ROWS($V$35:V62)-1,COLUMNS($V$35:V62)-1),"") ->  | U48: =IF(OFFSET(DE104_3!$W$35,ROWS($W$35:W62)-1,COLUMNS($W$35:W62)-1)<>"",OFFSET(DE104_3!$W$35,ROWS($W$35:W62)-1,COLUMNS($W$35:W62)-1),"") ->  | V48: =IF(OFFSET(DE104_3!$X$35,ROWS($X$35:X62)-1,COLUMNS($X$35:X62)-1)<>"",OFFSET(DE104_3!$X$35,ROWS($X$35:X62)-1,COLUMNS($X$35:X62)-1),"") ->  | W48: =IF(OFFSET(DE104_3!$Y$35,ROWS($Y$35:Y62)-1,COLUMNS($Y$35:Y62)-1)<>"",OFFSET(DE104_3!$Y$35,ROWS($Y$35:Y62)-1,COLUMNS($Y$35:Y62)-1),"") ->  | X48: =IF(OFFSET(DE104_3!$Z$35,ROWS($Z$35:Z62)-1,COLUMNS($Z$35:Z62)-1)<>"",OFFSET(DE104_3!$Z$35,ROWS($Z$35:Z62)-1,COLUMNS($Z$35:Z62)-1),"") ->  | Y48: =IF(OFFSET(DE104_3!$AA$35,ROWS($AA$35:AA62)-1,COLUMNS($AA$35:AA62)-1)<>"",OFFSET(DE104_3!$AA$35,ROWS($AA$35:AA62)-1,COLUMNS($AA$35:AA62)-1),"") ->  | Z48: =IF(OFFSET(DE104_3!$AB$35,ROWS($AB$35:AB62)-1,COLUMNS($AB$35:AB62)-1)<>"",OFFSET(DE104_3!$AB$35,ROWS($AB$35:AB62)-1,COLUMNS($AB$35:AB62)-1),"") ->  | AA48: =IF(OFFSET(DE104_3!$AC$35,ROWS($AC$35:AC62)-1,COLUMNS($AC$35:AC62)-1)<>"",OFFSET(DE104_3!$AC$35,ROWS($AC$35:AC62)-1,COLUMNS($AC$35:AC62)-1),"") ->  | AB48: =IF(OFFSET(DE104_3!$AD$35,ROWS($AD$35:AD62)-1,COLUMNS($AD$35:AD62)-1)<>"",OFFSET(DE104_3!$AD$35,ROWS($AD$35:AD62)-1,COLUMNS($AD$35:AD62)-1),"") ->  | AC48: =IF(OFFSET(DE104_3!$AE$35,ROWS($AE$35:AE62)-1,COLUMNS($AE$35:AE62)-1)<>"",OFFSET(DE104_3!$AE$35,ROWS($AE$35:AE62)-1,COLUMNS($AE$35:AE62)-1),"") ->  | AD48: =IF(OFFSET(DE104_3!$AF$35,ROWS($AF$35:AF62)-1,COLUMNS($AF$35:AF62)-1)<>"",OFFSET(DE104_3!$AF$35,ROWS($AF$35:AF62)-1,COLUMNS($AF$35:AF62)-1),"") ->  | AE48: =IF(OFFSET(DE104_3!$AG$35,ROWS($AG$35:AG62)-1,COLUMNS($AG$35:AG62)-1)<>"",OFFSET(DE104_3!$AG$35,ROWS($AG$35:AG62)-1,COLUMNS($AG$35:AG62)-1),"") ->  | AF48: =IF(OFFSET(DE104_3!$AH$35,ROWS($AH$35:AH62)-1,COLUMNS($AH$35:AH62)-1)<>"",OFFSET(DE104_3!$AH$35,ROWS($AH$35:AH62)-1,COLUMNS($AH$35:AH62)-1),"") ->  | AG48: =IF(OFFSET(DE104_3!$AI$35,ROWS($AI$35:AI62)-1,COLUMNS($AI$35:AI62)-1)<>"",OFFSET(DE104_3!$AI$35,ROWS($AI$35:AI62)-1,COLUMNS($AI$35:AI62)-1),"") ->  | AH48: =IF(OFFSET(DE104_3!$AJ$35,ROWS($AJ$35:AJ62)-1,COLUMNS($AJ$35:AJ62)-1)<>"",OFFSET(DE104_3!$AJ$35,ROWS($AJ$35:AJ62)-1,COLUMNS($AJ$35:AJ62)-1),"") ->  | AI48: =IF(OFFSET(DE104_3!$AK$35,ROWS($AK$35:AK62)-1,COLUMNS($AK$35:AK62)-1)<>"",OFFSET(DE104_3!$AK$35,ROWS($AK$35:AK62)-1,COLUMNS($AK$35:AK62)-1),"") ->  | AJ48: =IF(OFFSET(DE104_3!$AL$35,ROWS($AL$35:AL62)-1,COLUMNS($AL$35:AL62)-1)<>"",OFFSET(DE104_3!$AL$35,ROWS($AL$35:AL62)-1,COLUMNS($AL$35:AL62)-1),"") ->  | AK48: =IF(OFFSET(DE104_3!$AM$35,ROWS($AM$35:AM62)-1,COLUMNS($AM$35:AM62)-1)<>"",OFFSET(DE104_3!$AM$35,ROWS($AM$35:AM62)-1,COLUMNS($AM$35:AM62)-1),"") ->  | AL48: =IF(OFFSET(DE104_3!$AN$35,ROWS($AN$35:AN62)-1,COLUMNS($AN$35:AN62)-1)<>"",OFFSET(DE104_3!$AN$35,ROWS($AN$35:AN62)-1,COLUMNS($AN$35:AN62)-1),"") ->  | AM48: =IF(OFFSET(DE104_3!$AO$35,ROWS($AO$35:AO62)-1,COLUMNS($AO$35:AO62)-1)<>"",OFFSET(DE104_3!$AO$35,ROWS($AO$35:AO62)-1,COLUMNS($AO$35:AO62)-1),"") ->  | AN48: =IF(OFFSET(DE104_3!$AP$35,ROWS($AP$35:AP62)-1,COLUMNS($AP$35:AP62)-1)<>"",OFFSET(DE104_3!$AP$35,ROWS($AP$35:AP62)-1,COLUMNS($AP$35:AP62)-1),"") ->  | AO48: =IF(OFFSET(DE104_3!$AQ$35,ROWS($AQ$35:AQ62)-1,COLUMNS($AQ$35:AQ62)-1)<>"",OFFSET(DE104_3!$AQ$35,ROWS($AQ$35:AQ62)-1,COLUMNS($AQ$35:AQ62)-1),"") -> -26
A49: =IF(OFFSET(DE104_3!$C$35,ROWS($C$35:C63)-1,COLUMNS($C$35:C63)-1)<>"",OFFSET(DE104_3!$C$35,ROWS($C$35:C63)-1,COLUMNS($C$35:C63)-1),"") -> 65 F | B49: =IF(OFFSET(DE104_3!$D$35,ROWS($D$35:D63)-1,COLUMNS($D$35:D63)-1)<>"",OFFSET(DE104_3!$D$35,ROWS($D$35:D63)-1,COLUMNS($D$35:D63)-1),"") -> 21225 | C49: =IF(OFFSET(DE104_3!$E$35,ROWS($E$35:E63)-1,COLUMNS($E$35:E63)-1)<>"",OFFSET(DE104_3!$E$35,ROWS($E$35:E63)-1,COLUMNS($E$35:E63)-1),"") -> 601 | D49: =IF(OFFSET(DE104_3!$F$35,ROWS($F$35:F63)-1,COLUMNS($F$35:F63)-1)<>"",OFFSET(DE104_3!$F$35,ROWS($F$35:F63)-1,COLUMNS($F$35:F63)-1),"") -> 42 | E49: =IF(OFFSET(DE104_3!$G$35,ROWS($G$35:G63)-1,COLUMNS($G$35:G63)-1)<>"",OFFSET(DE104_3!$G$35,ROWS($G$35:G63)-1,COLUMNS($G$35:G63)-1),"") -> RCP | F49: =IF(OFFSET(DE104_3!$H$35,ROWS($H$35:H63)-1,COLUMNS($H$35:H63)-1)<>"",OFFSET(DE104_3!$H$35,ROWS($H$35:H63)-1,COLUMNS($H$35:H63)-1),"") -> 290 | G49: =IF(OFFSET(DE104_3!$I$35,ROWS($I$35:I63)-1,COLUMNS($I$35:I63)-1)<>"",OFFSET(DE104_3!$I$35,ROWS($I$35:I63)-1,COLUMNS($I$35:I63)-1),"") ->  | H49: =IF(OFFSET(DE104_3!$J$35,ROWS($J$35:J63)-1,COLUMNS($J$35:J63)-1)<>"",OFFSET(DE104_3!$J$35,ROWS($J$35:J63)-1,COLUMNS($J$35:J63)-1),"") -> 25 | I49: =IF(OFFSET(DE104_3!$K$35,ROWS($K$35:K63)-1,COLUMNS($K$35:K63)-1)<>"",OFFSET(DE104_3!$K$35,ROWS($K$35:K63)-1,COLUMNS($K$35:K63)-1),"") ->  | J49: =IF(OFFSET(DE104_3!$L$35,ROWS($L$35:L63)-1,COLUMNS($L$35:L63)-1)<>"",OFFSET(DE104_3!$L$35,ROWS($L$35:L63)-1,COLUMNS($L$35:L63)-1),"") -> 1 | K49: =IF(OFFSET(DE104_3!$M$35,ROWS($M$35:M63)-1,COLUMNS($M$35:M63)-1)<>"",OFFSET(DE104_3!$M$35,ROWS($M$35:M63)-1,COLUMNS($M$35:M63)-1),"") ->  | L49: =IF(OFFSET(DE104_3!$N$35,ROWS($N$35:N63)-1,COLUMNS($N$35:N63)-1)<>"",OFFSET(DE104_3!$N$35,ROWS($N$35:N63)-1,COLUMNS($N$35:N63)-1),"") ->  | M49: =IF(OFFSET(DE104_3!$O$35,ROWS($O$35:O63)-1,COLUMNS($O$35:O63)-1)<>"",OFFSET(DE104_3!$O$35,ROWS($O$35:O63)-1,COLUMNS($O$35:O63)-1),"") ->  | N49: =IF(OFFSET(DE104_3!$P$35,ROWS($P$35:P63)-1,COLUMNS($P$35:P63)-1)<>"",OFFSET(DE104_3!$P$35,ROWS($P$35:P63)-1,COLUMNS($P$35:P63)-1),"") ->  | O49: =IF(OFFSET(DE104_3!$Q$35,ROWS($Q$35:Q63)-1,COLUMNS($Q$35:Q63)-1)<>"",OFFSET(DE104_3!$Q$35,ROWS($Q$35:Q63)-1,COLUMNS($Q$35:Q63)-1),"") ->  | P49: =IF(OFFSET(DE104_3!$R$35,ROWS($R$35:R63)-1,COLUMNS($R$35:R63)-1)<>"",OFFSET(DE104_3!$R$35,ROWS($R$35:R63)-1,COLUMNS($R$35:R63)-1),"") ->  | Q49: =IF(OFFSET(DE104_3!$S$35,ROWS($S$35:S63)-1,COLUMNS($S$35:S63)-1)<>"",OFFSET(DE104_3!$S$35,ROWS($S$35:S63)-1,COLUMNS($S$35:S63)-1),"") ->  | R49: =IF(OFFSET(DE104_3!$T$35,ROWS($T$35:T63)-1,COLUMNS($T$35:T63)-1)<>"",OFFSET(DE104_3!$T$35,ROWS($T$35:T63)-1,COLUMNS($T$35:T63)-1),"") ->  | S49: =IF(OFFSET(DE104_3!$U$35,ROWS($U$35:U63)-1,COLUMNS($U$35:U63)-1)<>"",OFFSET(DE104_3!$U$35,ROWS($U$35:U63)-1,COLUMNS($U$35:U63)-1),"") ->  | T49: =IF(OFFSET(DE104_3!$V$35,ROWS($V$35:V63)-1,COLUMNS($V$35:V63)-1)<>"",OFFSET(DE104_3!$V$35,ROWS($V$35:V63)-1,COLUMNS($V$35:V63)-1),"") ->  | U49: =IF(OFFSET(DE104_3!$W$35,ROWS($W$35:W63)-1,COLUMNS($W$35:W63)-1)<>"",OFFSET(DE104_3!$W$35,ROWS($W$35:W63)-1,COLUMNS($W$35:W63)-1),"") ->  | V49: =IF(OFFSET(DE104_3!$X$35,ROWS($X$35:X63)-1,COLUMNS($X$35:X63)-1)<>"",OFFSET(DE104_3!$X$35,ROWS($X$35:X63)-1,COLUMNS($X$35:X63)-1),"") -> 807 | W49: =IF(OFFSET(DE104_3!$Y$35,ROWS($Y$35:Y63)-1,COLUMNS($Y$35:Y63)-1)<>"",OFFSET(DE104_3!$Y$35,ROWS($Y$35:Y63)-1,COLUMNS($Y$35:Y63)-1),"") -> 806.12 | X49: =IF(OFFSET(DE104_3!$Z$35,ROWS($Z$35:Z63)-1,COLUMNS($Z$35:Z63)-1)<>"",OFFSET(DE104_3!$Z$35,ROWS($Z$35:Z63)-1,COLUMNS($Z$35:Z63)-1),"") ->  | Y49: =IF(OFFSET(DE104_3!$AA$35,ROWS($AA$35:AA63)-1,COLUMNS($AA$35:AA63)-1)<>"",OFFSET(DE104_3!$AA$35,ROWS($AA$35:AA63)-1,COLUMNS($AA$35:AA63)-1),"") ->  | Z49: =IF(OFFSET(DE104_3!$AB$35,ROWS($AB$35:AB63)-1,COLUMNS($AB$35:AB63)-1)<>"",OFFSET(DE104_3!$AB$35,ROWS($AB$35:AB63)-1,COLUMNS($AB$35:AB63)-1),"") -> 164.6 | AA49: =IF(OFFSET(DE104_3!$AC$35,ROWS($AC$35:AC63)-1,COLUMNS($AC$35:AC63)-1)<>"",OFFSET(DE104_3!$AC$35,ROWS($AC$35:AC63)-1,COLUMNS($AC$35:AC63)-1),"") -> 133.4 | AB49: =IF(OFFSET(DE104_3!$AD$35,ROWS($AD$35:AD63)-1,COLUMNS($AD$35:AD63)-1)<>"",OFFSET(DE104_3!$AD$35,ROWS($AD$35:AD63)-1,COLUMNS($AD$35:AD63)-1),"") ->  | AC49: =IF(OFFSET(DE104_3!$AE$35,ROWS($AE$35:AE63)-1,COLUMNS($AE$35:AE63)-1)<>"",OFFSET(DE104_3!$AE$35,ROWS($AE$35:AE63)-1,COLUMNS($AE$35:AE63)-1),"") ->  | AD49: =IF(OFFSET(DE104_3!$AF$35,ROWS($AF$35:AF63)-1,COLUMNS($AF$35:AF63)-1)<>"",OFFSET(DE104_3!$AF$35,ROWS($AF$35:AF63)-1,COLUMNS($AF$35:AF63)-1),"") ->  | AE49: =IF(OFFSET(DE104_3!$AG$35,ROWS($AG$35:AG63)-1,COLUMNS($AG$35:AG63)-1)<>"",OFFSET(DE104_3!$AG$35,ROWS($AG$35:AG63)-1,COLUMNS($AG$35:AG63)-1),"") ->  | AF49: =IF(OFFSET(DE104_3!$AH$35,ROWS($AH$35:AH63)-1,COLUMNS($AH$35:AH63)-1)<>"",OFFSET(DE104_3!$AH$35,ROWS($AH$35:AH63)-1,COLUMNS($AH$35:AH63)-1),"") ->  | AG49: =IF(OFFSET(DE104_3!$AI$35,ROWS($AI$35:AI63)-1,COLUMNS($AI$35:AI63)-1)<>"",OFFSET(DE104_3!$AI$35,ROWS($AI$35:AI63)-1,COLUMNS($AI$35:AI63)-1),"") ->  | AH49: =IF(OFFSET(DE104_3!$AJ$35,ROWS($AJ$35:AJ63)-1,COLUMNS($AJ$35:AJ63)-1)<>"",OFFSET(DE104_3!$AJ$35,ROWS($AJ$35:AJ63)-1,COLUMNS($AJ$35:AJ63)-1),"") ->  | AI49: =IF(OFFSET(DE104_3!$AK$35,ROWS($AK$35:AK63)-1,COLUMNS($AK$35:AK63)-1)<>"",OFFSET(DE104_3!$AK$35,ROWS($AK$35:AK63)-1,COLUMNS($AK$35:AK63)-1),"") ->  | AJ49: =IF(OFFSET(DE104_3!$AL$35,ROWS($AL$35:AL63)-1,COLUMNS($AL$35:AL63)-1)<>"",OFFSET(DE104_3!$AL$35,ROWS($AL$35:AL63)-1,COLUMNS($AL$35:AL63)-1),"") -> 372.1311111 | AK49: =IF(OFFSET(DE104_3!$AM$35,ROWS($AM$35:AM63)-1,COLUMNS($AM$35:AM63)-1)<>"",OFFSET(DE104_3!$AM$35,ROWS($AM$35:AM63)-1,COLUMNS($AM$35:AM63)-1),"") -> N/A | AL49: =IF(OFFSET(DE104_3!$AN$35,ROWS($AN$35:AN63)-1,COLUMNS($AN$35:AN63)-1)<>"",OFFSET(DE104_3!$AN$35,ROWS($AN$35:AN63)-1,COLUMNS($AN$35:AN63)-1),"") -> 222.6246963 | AM49: =IF(OFFSET(DE104_3!$AO$35,ROWS($AO$35:AO63)-1,COLUMNS($AO$35:AO63)-1)<>"",OFFSET(DE104_3!$AO$35,ROWS($AO$35:AO63)-1,COLUMNS($AO$35:AO63)-1),"") -> 29 | AN49: =IF(OFFSET(DE104_3!$AP$35,ROWS($AP$35:AP63)-1,COLUMNS($AP$35:AP63)-1)<>"",OFFSET(DE104_3!$AP$35,ROWS($AP$35:AP63)-1,COLUMNS($AP$35:AP63)-1),"") -> 251.6246963 | AO49: =IF(OFFSET(DE104_3!$AQ$35,ROWS($AQ$35:AQ63)-1,COLUMNS($AQ$35:AQ63)-1)<>"",OFFSET(DE104_3!$AQ$35,ROWS($AQ$35:AQ63)-1,COLUMNS($AQ$35:AQ63)-1),"") -> -27
A50: =IF(OFFSET(DE104_3!$C$35,ROWS($C$35:C64)-1,COLUMNS($C$35:C64)-1)<>"",OFFSET(DE104_3!$C$35,ROWS($C$35:C64)-1,COLUMNS($C$35:C64)-1),"") ->  | B50: =IF(OFFSET(DE104_3!$D$35,ROWS($D$35:D64)-1,COLUMNS($D$35:D64)-1)<>"",OFFSET(DE104_3!$D$35,ROWS($D$35:D64)-1,COLUMNS($D$35:D64)-1),"") -> 212+25.00, 175.59' Rt | C50: =IF(OFFSET(DE104_3!$E$35,ROWS($E$35:E64)-1,COLUMNS($E$35:E64)-1)<>"",OFFSET(DE104_3!$E$35,ROWS($E$35:E64)-1,COLUMNS($E$35:E64)-1),"") -> 601 | D50: =IF(OFFSET(DE104_3!$F$35,ROWS($F$35:F64)-1,COLUMNS($F$35:F64)-1)<>"",OFFSET(DE104_3!$F$35,ROWS($F$35:F64)-1,COLUMNS($F$35:F64)-1),"") -> 42 | E50: =IF(OFFSET(DE104_3!$G$35,ROWS($G$35:G64)-1,COLUMNS($G$35:G64)-1)<>"",OFFSET(DE104_3!$G$35,ROWS($G$35:G64)-1,COLUMNS($G$35:G64)-1),"") -> RCP | F50: =IF(OFFSET(DE104_3!$H$35,ROWS($H$35:H64)-1,COLUMNS($H$35:H64)-1)<>"",OFFSET(DE104_3!$H$35,ROWS($H$35:H64)-1,COLUMNS($H$35:H64)-1),"") -> 74 | G50: =IF(OFFSET(DE104_3!$I$35,ROWS($I$35:I64)-1,COLUMNS($I$35:I64)-1)<>"",OFFSET(DE104_3!$I$35,ROWS($I$35:I64)-1,COLUMNS($I$35:I64)-1),"") ->  | H50: =IF(OFFSET(DE104_3!$J$35,ROWS($J$35:J64)-1,COLUMNS($J$35:J64)-1)<>"",OFFSET(DE104_3!$J$35,ROWS($J$35:J64)-1,COLUMNS($J$35:J64)-1),"") -> 2.9 | I50: =IF(OFFSET(DE104_3!$K$35,ROWS($K$35:K64)-1,COLUMNS($K$35:K64)-1)<>"",OFFSET(DE104_3!$K$35,ROWS($K$35:K64)-1,COLUMNS($K$35:K64)-1),"") ->  | J50: =IF(OFFSET(DE104_3!$L$35,ROWS($L$35:L64)-1,COLUMNS($L$35:L64)-1)<>"",OFFSET(DE104_3!$L$35,ROWS($L$35:L64)-1,COLUMNS($L$35:L64)-1),"") ->  | K50: =IF(OFFSET(DE104_3!$M$35,ROWS($M$35:M64)-1,COLUMNS($M$35:M64)-1)<>"",OFFSET(DE104_3!$M$35,ROWS($M$35:M64)-1,COLUMNS($M$35:M64)-1),"") ->  | L50: =IF(OFFSET(DE104_3!$N$35,ROWS($N$35:N64)-1,COLUMNS($N$35:N64)-1)<>"",OFFSET(DE104_3!$N$35,ROWS($N$35:N64)-1,COLUMNS($N$35:N64)-1),"") ->  | M50: =IF(OFFSET(DE104_3!$O$35,ROWS($O$35:O64)-1,COLUMNS($O$35:O64)-1)<>"",OFFSET(DE104_3!$O$35,ROWS($O$35:O64)-1,COLUMNS($O$35:O64)-1),"") ->  | N50: =IF(OFFSET(DE104_3!$P$35,ROWS($P$35:P64)-1,COLUMNS($P$35:P64)-1)<>"",OFFSET(DE104_3!$P$35,ROWS($P$35:P64)-1,COLUMNS($P$35:P64)-1),"") ->  | O50: =IF(OFFSET(DE104_3!$Q$35,ROWS($Q$35:Q64)-1,COLUMNS($Q$35:Q64)-1)<>"",OFFSET(DE104_3!$Q$35,ROWS($Q$35:Q64)-1,COLUMNS($Q$35:Q64)-1),"") ->  | P50: =IF(OFFSET(DE104_3!$R$35,ROWS($R$35:R64)-1,COLUMNS($R$35:R64)-1)<>"",OFFSET(DE104_3!$R$35,ROWS($R$35:R64)-1,COLUMNS($R$35:R64)-1),"") ->  | Q50: =IF(OFFSET(DE104_3!$S$35,ROWS($S$35:S64)-1,COLUMNS($S$35:S64)-1)<>"",OFFSET(DE104_3!$S$35,ROWS($S$35:S64)-1,COLUMNS($S$35:S64)-1),"") ->  | R50: =IF(OFFSET(DE104_3!$T$35,ROWS($T$35:T64)-1,COLUMNS($T$35:T64)-1)<>"",OFFSET(DE104_3!$T$35,ROWS($T$35:T64)-1,COLUMNS($T$35:T64)-1),"") ->  | S50: =IF(OFFSET(DE104_3!$U$35,ROWS($U$35:U64)-1,COLUMNS($U$35:U64)-1)<>"",OFFSET(DE104_3!$U$35,ROWS($U$35:U64)-1,COLUMNS($U$35:U64)-1),"") ->  | T50: =IF(OFFSET(DE104_3!$V$35,ROWS($V$35:V64)-1,COLUMNS($V$35:V64)-1)<>"",OFFSET(DE104_3!$V$35,ROWS($V$35:V64)-1,COLUMNS($V$35:V64)-1),"") ->  | U50: =IF(OFFSET(DE104_3!$W$35,ROWS($W$35:W64)-1,COLUMNS($W$35:W64)-1)<>"",OFFSET(DE104_3!$W$35,ROWS($W$35:W64)-1,COLUMNS($W$35:W64)-1),"") ->  | V50: =IF(OFFSET(DE104_3!$X$35,ROWS($X$35:X64)-1,COLUMNS($X$35:X64)-1)<>"",OFFSET(DE104_3!$X$35,ROWS($X$35:X64)-1,COLUMNS($X$35:X64)-1),"") -> 806.1 | W50: =IF(OFFSET(DE104_3!$Y$35,ROWS($Y$35:Y64)-1,COLUMNS($Y$35:Y64)-1)<>"",OFFSET(DE104_3!$Y$35,ROWS($Y$35:Y64)-1,COLUMNS($Y$35:Y64)-1),"") -> 805.88 | X50: =IF(OFFSET(DE104_3!$Z$35,ROWS($Z$35:Z64)-1,COLUMNS($Z$35:Z64)-1)<>"",OFFSET(DE104_3!$Z$35,ROWS($Z$35:Z64)-1,COLUMNS($Z$35:Z64)-1),"") ->  | Y50: =IF(OFFSET(DE104_3!$AA$35,ROWS($AA$35:AA64)-1,COLUMNS($AA$35:AA64)-1)<>"",OFFSET(DE104_3!$AA$35,ROWS($AA$35:AA64)-1,COLUMNS($AA$35:AA64)-1),"") ->  | Z50: =IF(OFFSET(DE104_3!$AB$35,ROWS($AB$35:AB64)-1,COLUMNS($AB$35:AB64)-1)<>"",OFFSET(DE104_3!$AB$35,ROWS($AB$35:AB64)-1,COLUMNS($AB$35:AB64)-1),"") -> 34.2 | AA50: =IF(OFFSET(DE104_3!$AC$35,ROWS($AC$35:AC64)-1,COLUMNS($AC$35:AC64)-1)<>"",OFFSET(DE104_3!$AC$35,ROWS($AC$35:AC64)-1,COLUMNS($AC$35:AC64)-1),"") -> 39.8 | AB50: =IF(OFFSET(DE104_3!$AD$35,ROWS($AD$35:AD64)-1,COLUMNS($AD$35:AD64)-1)<>"",OFFSET(DE104_3!$AD$35,ROWS($AD$35:AD64)-1,COLUMNS($AD$35:AD64)-1),"") ->  | AC50: =IF(OFFSET(DE104_3!$AE$35,ROWS($AE$35:AE64)-1,COLUMNS($AE$35:AE64)-1)<>"",OFFSET(DE104_3!$AE$35,ROWS($AE$35:AE64)-1,COLUMNS($AE$35:AE64)-1),"") ->  | AD50: =IF(OFFSET(DE104_3!$AF$35,ROWS($AF$35:AF64)-1,COLUMNS($AF$35:AF64)-1)<>"",OFFSET(DE104_3!$AF$35,ROWS($AF$35:AF64)-1,COLUMNS($AF$35:AF64)-1),"") ->  | AE50: =IF(OFFSET(DE104_3!$AG$35,ROWS($AG$35:AG64)-1,COLUMNS($AG$35:AG64)-1)<>"",OFFSET(DE104_3!$AG$35,ROWS($AG$35:AG64)-1,COLUMNS($AG$35:AG64)-1),"") ->  | AF50: =IF(OFFSET(DE104_3!$AH$35,ROWS($AH$35:AH64)-1,COLUMNS($AH$35:AH64)-1)<>"",OFFSET(DE104_3!$AH$35,ROWS($AH$35:AH64)-1,COLUMNS($AH$35:AH64)-1),"") ->  | AG50: =IF(OFFSET(DE104_3!$AI$35,ROWS($AI$35:AI64)-1,COLUMNS($AI$35:AI64)-1)<>"",OFFSET(DE104_3!$AI$35,ROWS($AI$35:AI64)-1,COLUMNS($AI$35:AI64)-1),"") ->  | AH50: =IF(OFFSET(DE104_3!$AJ$35,ROWS($AJ$35:AJ64)-1,COLUMNS($AJ$35:AJ64)-1)<>"",OFFSET(DE104_3!$AJ$35,ROWS($AJ$35:AJ64)-1,COLUMNS($AJ$35:AJ64)-1),"") ->  | AI50: =IF(OFFSET(DE104_3!$AK$35,ROWS($AK$35:AK64)-1,COLUMNS($AK$35:AK64)-1)<>"",OFFSET(DE104_3!$AK$35,ROWS($AK$35:AK64)-1,COLUMNS($AK$35:AK64)-1),"") ->  | AJ50: =IF(OFFSET(DE104_3!$AL$35,ROWS($AL$35:AL64)-1,COLUMNS($AL$35:AL64)-1)<>"",OFFSET(DE104_3!$AL$35,ROWS($AL$35:AL64)-1,COLUMNS($AL$35:AL64)-1),"") -> N/A | AK50: =IF(OFFSET(DE104_3!$AM$35,ROWS($AM$35:AM64)-1,COLUMNS($AM$35:AM64)-1)<>"",OFFSET(DE104_3!$AM$35,ROWS($AM$35:AM64)-1,COLUMNS($AM$35:AM64)-1),"") -> N/A | AL50: =IF(OFFSET(DE104_3!$AN$35,ROWS($AN$35:AN64)-1,COLUMNS($AN$35:AN64)-1)<>"",OFFSET(DE104_3!$AN$35,ROWS($AN$35:AN64)-1,COLUMNS($AN$35:AN64)-1),"") -> N/A | AM50: =IF(OFFSET(DE104_3!$AO$35,ROWS($AO$35:AO64)-1,COLUMNS($AO$35:AO64)-1)<>"",OFFSET(DE104_3!$AO$35,ROWS($AO$35:AO64)-1,COLUMNS($AO$35:AO64)-1),"") -> N/A | AN50: =IF(OFFSET(DE104_3!$AP$35,ROWS($AP$35:AP64)-1,COLUMNS($AP$35:AP64)-1)<>"",OFFSET(DE104_3!$AP$35,ROWS($AP$35:AP64)-1,COLUMNS($AP$35:AP64)-1),"") -> N/A | AO50: =IF(OFFSET(DE104_3!$AQ$35,ROWS($AQ$35:AQ64)-1,COLUMNS($AQ$35:AQ64)-1)<>"",OFFSET(DE104_3!$AQ$35,ROWS($AQ$35:AQ64)-1,COLUMNS($AQ$35:AQ64)-1),"") -> -28
A51: =IF(OFFSET(DE104_3!$C$35,ROWS($C$35:C65)-1,COLUMNS($C$35:C65)-1)<>"",OFFSET(DE104_3!$C$35,ROWS($C$35:C65)-1,COLUMNS($C$35:C65)-1),"") -> MED | B51: =IF(OFFSET(DE104_3!$D$35,ROWS($D$35:D65)-1,COLUMNS($D$35:D65)-1)<>"",OFFSET(DE104_3!$D$35,ROWS($D$35:D65)-1,COLUMNS($D$35:D65)-1),"") -> 21800 | C51: =IF(OFFSET(DE104_3!$E$35,ROWS($E$35:E65)-1,COLUMNS($E$35:E65)-1)<>"",OFFSET(DE104_3!$E$35,ROWS($E$35:E65)-1,COLUMNS($E$35:E65)-1),"") -> 641 | D51: =IF(OFFSET(DE104_3!$F$35,ROWS($F$35:F65)-1,COLUMNS($F$35:F65)-1)<>"",OFFSET(DE104_3!$F$35,ROWS($F$35:F65)-1,COLUMNS($F$35:F65)-1),"") -> 24 | E51: =IF(OFFSET(DE104_3!$G$35,ROWS($G$35:G65)-1,COLUMNS($G$35:G65)-1)<>"",OFFSET(DE104_3!$G$35,ROWS($G$35:G65)-1,COLUMNS($G$35:G65)-1),"") -> RCP | F51: =IF(OFFSET(DE104_3!$H$35,ROWS($H$35:H65)-1,COLUMNS($H$35:H65)-1)<>"",OFFSET(DE104_3!$H$35,ROWS($H$35:H65)-1,COLUMNS($H$35:H65)-1),"") -> 68 | G51: =IF(OFFSET(DE104_3!$I$35,ROWS($I$35:I65)-1,COLUMNS($I$35:I65)-1)<>"",OFFSET(DE104_3!$I$35,ROWS($I$35:I65)-1,COLUMNS($I$35:I65)-1),"") ->  | H51: =IF(OFFSET(DE104_3!$J$35,ROWS($J$35:J65)-1,COLUMNS($J$35:J65)-1)<>"",OFFSET(DE104_3!$J$35,ROWS($J$35:J65)-1,COLUMNS($J$35:J65)-1),"") -> 4 | I51: =IF(OFFSET(DE104_3!$K$35,ROWS($K$35:K65)-1,COLUMNS($K$35:K65)-1)<>"",OFFSET(DE104_3!$K$35,ROWS($K$35:K65)-1,COLUMNS($K$35:K65)-1),"") ->  | J51: =IF(OFFSET(DE104_3!$L$35,ROWS($L$35:L65)-1,COLUMNS($L$35:L65)-1)<>"",OFFSET(DE104_3!$L$35,ROWS($L$35:L65)-1,COLUMNS($L$35:L65)-1),"") -> 1 | K51: =IF(OFFSET(DE104_3!$M$35,ROWS($M$35:M65)-1,COLUMNS($M$35:M65)-1)<>"",OFFSET(DE104_3!$M$35,ROWS($M$35:M65)-1,COLUMNS($M$35:M65)-1),"") ->  | L51: =IF(OFFSET(DE104_3!$N$35,ROWS($N$35:N65)-1,COLUMNS($N$35:N65)-1)<>"",OFFSET(DE104_3!$N$35,ROWS($N$35:N65)-1,COLUMNS($N$35:N65)-1),"") -> 1 | M51: =IF(OFFSET(DE104_3!$O$35,ROWS($O$35:O65)-1,COLUMNS($O$35:O65)-1)<>"",OFFSET(DE104_3!$O$35,ROWS($O$35:O65)-1,COLUMNS($O$35:O65)-1),"") ->  | N51: =IF(OFFSET(DE104_3!$P$35,ROWS($P$35:P65)-1,COLUMNS($P$35:P65)-1)<>"",OFFSET(DE104_3!$P$35,ROWS($P$35:P65)-1,COLUMNS($P$35:P65)-1),"") ->  | O51: =IF(OFFSET(DE104_3!$Q$35,ROWS($Q$35:Q65)-1,COLUMNS($Q$35:Q65)-1)<>"",OFFSET(DE104_3!$Q$35,ROWS($Q$35:Q65)-1,COLUMNS($Q$35:Q65)-1),"") ->  | P51: =IF(OFFSET(DE104_3!$R$35,ROWS($R$35:R65)-1,COLUMNS($R$35:R65)-1)<>"",OFFSET(DE104_3!$R$35,ROWS($R$35:R65)-1,COLUMNS($R$35:R65)-1),"") ->  | Q51: =IF(OFFSET(DE104_3!$S$35,ROWS($S$35:S65)-1,COLUMNS($S$35:S65)-1)<>"",OFFSET(DE104_3!$S$35,ROWS($S$35:S65)-1,COLUMNS($S$35:S65)-1),"") ->  | R51: =IF(OFFSET(DE104_3!$T$35,ROWS($T$35:T65)-1,COLUMNS($T$35:T65)-1)<>"",OFFSET(DE104_3!$T$35,ROWS($T$35:T65)-1,COLUMNS($T$35:T65)-1),"") -> C-3 | S51: =IF(OFFSET(DE104_3!$U$35,ROWS($U$35:U65)-1,COLUMNS($U$35:U65)-1)<>"",OFFSET(DE104_3!$U$35,ROWS($U$35:U65)-1,COLUMNS($U$35:U65)-1),"") -> 1 | T51: =IF(OFFSET(DE104_3!$V$35,ROWS($V$35:V65)-1,COLUMNS($V$35:V65)-1)<>"",OFFSET(DE104_3!$V$35,ROWS($V$35:V65)-1,COLUMNS($V$35:V65)-1),"") ->  | U51: =IF(OFFSET(DE104_3!$W$35,ROWS($W$35:W65)-1,COLUMNS($W$35:W65)-1)<>"",OFFSET(DE104_3!$W$35,ROWS($W$35:W65)-1,COLUMNS($W$35:W65)-1),"") ->  | V51: =IF(OFFSET(DE104_3!$X$35,ROWS($X$35:X65)-1,COLUMNS($X$35:X65)-1)<>"",OFFSET(DE104_3!$X$35,ROWS($X$35:X65)-1,COLUMNS($X$35:X65)-1),"") ->  | W51: =IF(OFFSET(DE104_3!$Y$35,ROWS($Y$35:Y65)-1,COLUMNS($Y$35:Y65)-1)<>"",OFFSET(DE104_3!$Y$35,ROWS($Y$35:Y65)-1,COLUMNS($Y$35:Y65)-1),"") -> 821.36 | X51: =IF(OFFSET(DE104_3!$Z$35,ROWS($Z$35:Z65)-1,COLUMNS($Z$35:Z65)-1)<>"",OFFSET(DE104_3!$Z$35,ROWS($Z$35:Z65)-1,COLUMNS($Z$35:Z65)-1),"") -> 819.5 | Y51: =IF(OFFSET(DE104_3!$AA$35,ROWS($AA$35:AA65)-1,COLUMNS($AA$35:AA65)-1)<>"",OFFSET(DE104_3!$AA$35,ROWS($AA$35:AA65)-1,COLUMNS($AA$35:AA65)-1),"") ->  | Z51: =IF(OFFSET(DE104_3!$AB$35,ROWS($AB$35:AB65)-1,COLUMNS($AB$35:AB65)-1)<>"",OFFSET(DE104_3!$AB$35,ROWS($AB$35:AB65)-1,COLUMNS($AB$35:AB65)-1),"") ->  | AA51: =IF(OFFSET(DE104_3!$AC$35,ROWS($AC$35:AC65)-1,COLUMNS($AC$35:AC65)-1)<>"",OFFSET(DE104_3!$AC$35,ROWS($AC$35:AC65)-1,COLUMNS($AC$35:AC65)-1),"") -> 39 | AB51: =IF(OFFSET(DE104_3!$AD$35,ROWS($AD$35:AD65)-1,COLUMNS($AD$35:AD65)-1)<>"",OFFSET(DE104_3!$AD$35,ROWS($AD$35:AD65)-1,COLUMNS($AD$35:AD65)-1),"") ->  | AC51: =IF(OFFSET(DE104_3!$AE$35,ROWS($AE$35:AE65)-1,COLUMNS($AE$35:AE65)-1)<>"",OFFSET(DE104_3!$AE$35,ROWS($AE$35:AE65)-1,COLUMNS($AE$35:AE65)-1),"") ->  | AD51: =IF(OFFSET(DE104_3!$AF$35,ROWS($AF$35:AF65)-1,COLUMNS($AF$35:AF65)-1)<>"",OFFSET(DE104_3!$AF$35,ROWS($AF$35:AF65)-1,COLUMNS($AF$35:AF65)-1),"") ->  | AE51: =IF(OFFSET(DE104_3!$AG$35,ROWS($AG$35:AG65)-1,COLUMNS($AG$35:AG65)-1)<>"",OFFSET(DE104_3!$AG$35,ROWS($AG$35:AG65)-1,COLUMNS($AG$35:AG65)-1),"") ->  | AF51: =IF(OFFSET(DE104_3!$AH$35,ROWS($AH$35:AH65)-1,COLUMNS($AH$35:AH65)-1)<>"",OFFSET(DE104_3!$AH$35,ROWS($AH$35:AH65)-1,COLUMNS($AH$35:AH65)-1),"") -> Med | AG51: =IF(OFFSET(DE104_3!$AI$35,ROWS($AI$35:AI65)-1,COLUMNS($AI$35:AI65)-1)<>"",OFFSET(DE104_3!$AI$35,ROWS($AI$35:AI65)-1,COLUMNS($AI$35:AI65)-1),"") -> 21825 | AH51: =IF(OFFSET(DE104_3!$AJ$35,ROWS($AJ$35:AJ65)-1,COLUMNS($AJ$35:AJ65)-1)<>"",OFFSET(DE104_3!$AJ$35,ROWS($AJ$35:AJ65)-1,COLUMNS($AJ$35:AJ65)-1),"") -> 823.33 | AI51: =IF(OFFSET(DE104_3!$AK$35,ROWS($AK$35:AK65)-1,COLUMNS($AK$35:AK65)-1)<>"",OFFSET(DE104_3!$AK$35,ROWS($AK$35:AK65)-1,COLUMNS($AK$35:AK65)-1),"") -> M | AJ51: =IF(OFFSET(DE104_3!$AL$35,ROWS($AL$35:AL65)-1,COLUMNS($AL$35:AL65)-1)<>"",OFFSET(DE104_3!$AL$35,ROWS($AL$35:AL65)-1,COLUMNS($AL$35:AL65)-1),"") -> N/A | AK51: =IF(OFFSET(DE104_3!$AM$35,ROWS($AM$35:AM65)-1,COLUMNS($AM$35:AM65)-1)<>"",OFFSET(DE104_3!$AM$35,ROWS($AM$35:AM65)-1,COLUMNS($AM$35:AM65)-1),"") -> N/A | AL51: =IF(OFFSET(DE104_3!$AN$35,ROWS($AN$35:AN65)-1,COLUMNS($AN$35:AN65)-1)<>"",OFFSET(DE104_3!$AN$35,ROWS($AN$35:AN65)-1,COLUMNS($AN$35:AN65)-1),"") -> N/A | AM51: =IF(OFFSET(DE104_3!$AO$35,ROWS($AO$35:AO65)-1,COLUMNS($AO$35:AO65)-1)<>"",OFFSET(DE104_3!$AO$35,ROWS($AO$35:AO65)-1,COLUMNS($AO$35:AO65)-1),"") -> N/A | AN51: =IF(OFFSET(DE104_3!$AP$35,ROWS($AP$35:AP65)-1,COLUMNS($AP$35:AP65)-1)<>"",OFFSET(DE104_3!$AP$35,ROWS($AP$35:AP65)-1,COLUMNS($AP$35:AP65)-1),"") -> N/A | AO51: =IF(OFFSET(DE104_3!$AQ$35,ROWS($AQ$35:AQ65)-1,COLUMNS($AQ$35:AQ65)-1)<>"",OFFSET(DE104_3!$AQ$35,ROWS($AQ$35:AQ65)-1,COLUMNS($AQ$35:AQ65)-1),"") -> -29
A52: =IF(OFFSET(DE104_3!$C$35,ROWS($C$35:C66)-1,COLUMNS($C$35:C66)-1)<>"",OFFSET(DE104_3!$C$35,ROWS($C$35:C66)-1,COLUMNS($C$35:C66)-1),"") ->  | B52: =IF(OFFSET(DE104_3!$D$35,ROWS($D$35:D66)-1,COLUMNS($D$35:D66)-1)<>"",OFFSET(DE104_3!$D$35,ROWS($D$35:D66)-1,COLUMNS($D$35:D66)-1),"") ->  | C52: =IF(OFFSET(DE104_3!$E$35,ROWS($E$35:E66)-1,COLUMNS($E$35:E66)-1)<>"",OFFSET(DE104_3!$E$35,ROWS($E$35:E66)-1,COLUMNS($E$35:E66)-1),"") -> 641 | D52: =IF(OFFSET(DE104_3!$F$35,ROWS($F$35:F66)-1,COLUMNS($F$35:F66)-1)<>"",OFFSET(DE104_3!$F$35,ROWS($F$35:F66)-1,COLUMNS($F$35:F66)-1),"") -> 24 | E52: =IF(OFFSET(DE104_3!$G$35,ROWS($G$35:G66)-1,COLUMNS($G$35:G66)-1)<>"",OFFSET(DE104_3!$G$35,ROWS($G$35:G66)-1,COLUMNS($G$35:G66)-1),"") -> CMP | F52: =IF(OFFSET(DE104_3!$H$35,ROWS($H$35:H66)-1,COLUMNS($H$35:H66)-1)<>"",OFFSET(DE104_3!$H$35,ROWS($H$35:H66)-1,COLUMNS($H$35:H66)-1),"") -> 56 | G52: =IF(OFFSET(DE104_3!$I$35,ROWS($I$35:I66)-1,COLUMNS($I$35:I66)-1)<>"",OFFSET(DE104_3!$I$35,ROWS($I$35:I66)-1,COLUMNS($I$35:I66)-1),"") ->  | H52: =IF(OFFSET(DE104_3!$J$35,ROWS($J$35:J66)-1,COLUMNS($J$35:J66)-1)<>"",OFFSET(DE104_3!$J$35,ROWS($J$35:J66)-1,COLUMNS($J$35:J66)-1),"") ->  | I52: =IF(OFFSET(DE104_3!$K$35,ROWS($K$35:K66)-1,COLUMNS($K$35:K66)-1)<>"",OFFSET(DE104_3!$K$35,ROWS($K$35:K66)-1,COLUMNS($K$35:K66)-1),"") ->  | J52: =IF(OFFSET(DE104_3!$L$35,ROWS($L$35:L66)-1,COLUMNS($L$35:L66)-1)<>"",OFFSET(DE104_3!$L$35,ROWS($L$35:L66)-1,COLUMNS($L$35:L66)-1),"") ->  | K52: =IF(OFFSET(DE104_3!$M$35,ROWS($M$35:M66)-1,COLUMNS($M$35:M66)-1)<>"",OFFSET(DE104_3!$M$35,ROWS($M$35:M66)-1,COLUMNS($M$35:M66)-1),"") -> 1 | L52: =IF(OFFSET(DE104_3!$N$35,ROWS($N$35:N66)-1,COLUMNS($N$35:N66)-1)<>"",OFFSET(DE104_3!$N$35,ROWS($N$35:N66)-1,COLUMNS($N$35:N66)-1),"") ->  | M52: =IF(OFFSET(DE104_3!$O$35,ROWS($O$35:O66)-1,COLUMNS($O$35:O66)-1)<>"",OFFSET(DE104_3!$O$35,ROWS($O$35:O66)-1,COLUMNS($O$35:O66)-1),"") ->  | N52: =IF(OFFSET(DE104_3!$P$35,ROWS($P$35:P66)-1,COLUMNS($P$35:P66)-1)<>"",OFFSET(DE104_3!$P$35,ROWS($P$35:P66)-1,COLUMNS($P$35:P66)-1),"") ->  | O52: =IF(OFFSET(DE104_3!$Q$35,ROWS($Q$35:Q66)-1,COLUMNS($Q$35:Q66)-1)<>"",OFFSET(DE104_3!$Q$35,ROWS($Q$35:Q66)-1,COLUMNS($Q$35:Q66)-1),"") ->  | P52: =IF(OFFSET(DE104_3!$R$35,ROWS($R$35:R66)-1,COLUMNS($R$35:R66)-1)<>"",OFFSET(DE104_3!$R$35,ROWS($R$35:R66)-1,COLUMNS($R$35:R66)-1),"") ->  | Q52: =IF(OFFSET(DE104_3!$S$35,ROWS($S$35:S66)-1,COLUMNS($S$35:S66)-1)<>"",OFFSET(DE104_3!$S$35,ROWS($S$35:S66)-1,COLUMNS($S$35:S66)-1),"") ->  | R52: =IF(OFFSET(DE104_3!$T$35,ROWS($T$35:T66)-1,COLUMNS($T$35:T66)-1)<>"",OFFSET(DE104_3!$T$35,ROWS($T$35:T66)-1,COLUMNS($T$35:T66)-1),"") ->  | S52: =IF(OFFSET(DE104_3!$U$35,ROWS($U$35:U66)-1,COLUMNS($U$35:U66)-1)<>"",OFFSET(DE104_3!$U$35,ROWS($U$35:U66)-1,COLUMNS($U$35:U66)-1),"") ->  | T52: =IF(OFFSET(DE104_3!$V$35,ROWS($V$35:V66)-1,COLUMNS($V$35:V66)-1)<>"",OFFSET(DE104_3!$V$35,ROWS($V$35:V66)-1,COLUMNS($V$35:V66)-1),"") ->  | U52: =IF(OFFSET(DE104_3!$W$35,ROWS($W$35:W66)-1,COLUMNS($W$35:W66)-1)<>"",OFFSET(DE104_3!$W$35,ROWS($W$35:W66)-1,COLUMNS($W$35:W66)-1),"") ->  | V52: =IF(OFFSET(DE104_3!$X$35,ROWS($X$35:X66)-1,COLUMNS($X$35:X66)-1)<>"",OFFSET(DE104_3!$X$35,ROWS($X$35:X66)-1,COLUMNS($X$35:X66)-1),"") -> 807 | W52: =IF(OFFSET(DE104_3!$Y$35,ROWS($Y$35:Y66)-1,COLUMNS($Y$35:Y66)-1)<>"",OFFSET(DE104_3!$Y$35,ROWS($Y$35:Y66)-1,COLUMNS($Y$35:Y66)-1),"") ->  | X52: =IF(OFFSET(DE104_3!$Z$35,ROWS($Z$35:Z66)-1,COLUMNS($Z$35:Z66)-1)<>"",OFFSET(DE104_3!$Z$35,ROWS($Z$35:Z66)-1,COLUMNS($Z$35:Z66)-1),"") -> 807.47 | Y52: =IF(OFFSET(DE104_3!$AA$35,ROWS($AA$35:AA66)-1,COLUMNS($AA$35:AA66)-1)<>"",OFFSET(DE104_3!$AA$35,ROWS($AA$35:AA66)-1,COLUMNS($AA$35:AA66)-1),"") -> 818.08 | Z52: =IF(OFFSET(DE104_3!$AB$35,ROWS($AB$35:AB66)-1,COLUMNS($AB$35:AB66)-1)<>"",OFFSET(DE104_3!$AB$35,ROWS($AB$35:AB66)-1,COLUMNS($AB$35:AB66)-1),"") -> 92.9 | AA52: =IF(OFFSET(DE104_3!$AC$35,ROWS($AC$35:AC66)-1,COLUMNS($AC$35:AC66)-1)<>"",OFFSET(DE104_3!$AC$35,ROWS($AC$35:AC66)-1,COLUMNS($AC$35:AC66)-1),"") ->  | AB52: =IF(OFFSET(DE104_3!$AD$35,ROWS($AD$35:AD66)-1,COLUMNS($AD$35:AD66)-1)<>"",OFFSET(DE104_3!$AD$35,ROWS($AD$35:AD66)-1,COLUMNS($AD$35:AD66)-1),"") ->  | AC52: =IF(OFFSET(DE104_3!$AE$35,ROWS($AE$35:AE66)-1,COLUMNS($AE$35:AE66)-1)<>"",OFFSET(DE104_3!$AE$35,ROWS($AE$35:AE66)-1,COLUMNS($AE$35:AE66)-1),"") ->  | AD52: =IF(OFFSET(DE104_3!$AF$35,ROWS($AF$35:AF66)-1,COLUMNS($AF$35:AF66)-1)<>"",OFFSET(DE104_3!$AF$35,ROWS($AF$35:AF66)-1,COLUMNS($AF$35:AF66)-1),"") ->  | AE52: =IF(OFFSET(DE104_3!$AG$35,ROWS($AG$35:AG66)-1,COLUMNS($AG$35:AG66)-1)<>"",OFFSET(DE104_3!$AG$35,ROWS($AG$35:AG66)-1,COLUMNS($AG$35:AG66)-1),"") ->  | AF52: =IF(OFFSET(DE104_3!$AH$35,ROWS($AH$35:AH66)-1,COLUMNS($AH$35:AH66)-1)<>"",OFFSET(DE104_3!$AH$35,ROWS($AH$35:AH66)-1,COLUMNS($AH$35:AH66)-1),"") ->  | AG52: =IF(OFFSET(DE104_3!$AI$35,ROWS($AI$35:AI66)-1,COLUMNS($AI$35:AI66)-1)<>"",OFFSET(DE104_3!$AI$35,ROWS($AI$35:AI66)-1,COLUMNS($AI$35:AI66)-1),"") ->  | AH52: =IF(OFFSET(DE104_3!$AJ$35,ROWS($AJ$35:AJ66)-1,COLUMNS($AJ$35:AJ66)-1)<>"",OFFSET(DE104_3!$AJ$35,ROWS($AJ$35:AJ66)-1,COLUMNS($AJ$35:AJ66)-1),"") ->  | AI52: =IF(OFFSET(DE104_3!$AK$35,ROWS($AK$35:AK66)-1,COLUMNS($AK$35:AK66)-1)<>"",OFFSET(DE104_3!$AK$35,ROWS($AK$35:AK66)-1,COLUMNS($AK$35:AK66)-1),"") ->  | AJ52: =IF(OFFSET(DE104_3!$AL$35,ROWS($AL$35:AL66)-1,COLUMNS($AL$35:AL66)-1)<>"",OFFSET(DE104_3!$AL$35,ROWS($AL$35:AL66)-1,COLUMNS($AL$35:AL66)-1),"") -> 82.96296296 | AK52: =IF(OFFSET(DE104_3!$AM$35,ROWS($AM$35:AM66)-1,COLUMNS($AM$35:AM66)-1)<>"",OFFSET(DE104_3!$AM$35,ROWS($AM$35:AM66)-1,COLUMNS($AM$35:AM66)-1),"") -> N/A | AL52: =IF(OFFSET(DE104_3!$AN$35,ROWS($AN$35:AN66)-1,COLUMNS($AN$35:AN66)-1)<>"",OFFSET(DE104_3!$AN$35,ROWS($AN$35:AN66)-1,COLUMNS($AN$35:AN66)-1),"") -> N/A | AM52: =IF(OFFSET(DE104_3!$AO$35,ROWS($AO$35:AO66)-1,COLUMNS($AO$35:AO66)-1)<>"",OFFSET(DE104_3!$AO$35,ROWS($AO$35:AO66)-1,COLUMNS($AO$35:AO66)-1),"") -> N/A | AN52: =IF(OFFSET(DE104_3!$AP$35,ROWS($AP$35:AP66)-1,COLUMNS($AP$35:AP66)-1)<>"",OFFSET(DE104_3!$AP$35,ROWS($AP$35:AP66)-1,COLUMNS($AP$35:AP66)-1),"") -> N/A | AO52: =IF(OFFSET(DE104_3!$AQ$35,ROWS($AQ$35:AQ66)-1,COLUMNS($AQ$35:AQ66)-1)<>"",OFFSET(DE104_3!$AQ$35,ROWS($AQ$35:AQ66)-1,COLUMNS($AQ$35:AQ66)-1),"") -> 
A53: =IF(OFFSET(DE104_3!$C$35,ROWS($C$35:C67)-1,COLUMNS($C$35:C67)-1)<>"",OFFSET(DE104_3!$C$35,ROWS($C$35:C67)-1,COLUMNS($C$35:C67)-1),"") -> MED | B53: =IF(OFFSET(DE104_3!$D$35,ROWS($D$35:D67)-1,COLUMNS($D$35:D67)-1)<>"",OFFSET(DE104_3!$D$35,ROWS($D$35:D67)-1,COLUMNS($D$35:D67)-1),"") -> 22075 | C53: =IF(OFFSET(DE104_3!$E$35,ROWS($E$35:E67)-1,COLUMNS($E$35:E67)-1)<>"",OFFSET(DE104_3!$E$35,ROWS($E$35:E67)-1,COLUMNS($E$35:E67)-1),"") -> 611 | D53: =IF(OFFSET(DE104_3!$F$35,ROWS($F$35:F67)-1,COLUMNS($F$35:F67)-1)<>"",OFFSET(DE104_3!$F$35,ROWS($F$35:F67)-1,COLUMNS($F$35:F67)-1),"") -> 18 | E53: =IF(OFFSET(DE104_3!$G$35,ROWS($G$35:G67)-1,COLUMNS($G$35:G67)-1)<>"",OFFSET(DE104_3!$G$35,ROWS($G$35:G67)-1,COLUMNS($G$35:G67)-1),"") -> RCP | F53: =IF(OFFSET(DE104_3!$H$35,ROWS($H$35:H67)-1,COLUMNS($H$35:H67)-1)<>"",OFFSET(DE104_3!$H$35,ROWS($H$35:H67)-1,COLUMNS($H$35:H67)-1),"") -> 106 | G53: =IF(OFFSET(DE104_3!$I$35,ROWS($I$35:I67)-1,COLUMNS($I$35:I67)-1)<>"",OFFSET(DE104_3!$I$35,ROWS($I$35:I67)-1,COLUMNS($I$35:I67)-1),"") ->  | H53: =IF(OFFSET(DE104_3!$J$35,ROWS($J$35:J67)-1,COLUMNS($J$35:J67)-1)<>"",OFFSET(DE104_3!$J$35,ROWS($J$35:J67)-1,COLUMNS($J$35:J67)-1),"") -> 5 | I53: =IF(OFFSET(DE104_3!$K$35,ROWS($K$35:K67)-1,COLUMNS($K$35:K67)-1)<>"",OFFSET(DE104_3!$K$35,ROWS($K$35:K67)-1,COLUMNS($K$35:K67)-1),"") ->  | J53: =IF(OFFSET(DE104_3!$L$35,ROWS($L$35:L67)-1,COLUMNS($L$35:L67)-1)<>"",OFFSET(DE104_3!$L$35,ROWS($L$35:L67)-1,COLUMNS($L$35:L67)-1),"") -> 1 | K53: =IF(OFFSET(DE104_3!$M$35,ROWS($M$35:M67)-1,COLUMNS($M$35:M67)-1)<>"",OFFSET(DE104_3!$M$35,ROWS($M$35:M67)-1,COLUMNS($M$35:M67)-1),"") -> 1 | L53: =IF(OFFSET(DE104_3!$N$35,ROWS($N$35:N67)-1,COLUMNS($N$35:N67)-1)<>"",OFFSET(DE104_3!$N$35,ROWS($N$35:N67)-1,COLUMNS($N$35:N67)-1),"") -> 1 | M53: =IF(OFFSET(DE104_3!$O$35,ROWS($O$35:O67)-1,COLUMNS($O$35:O67)-1)<>"",OFFSET(DE104_3!$O$35,ROWS($O$35:O67)-1,COLUMNS($O$35:O67)-1),"") ->  | N53: =IF(OFFSET(DE104_3!$P$35,ROWS($P$35:P67)-1,COLUMNS($P$35:P67)-1)<>"",OFFSET(DE104_3!$P$35,ROWS($P$35:P67)-1,COLUMNS($P$35:P67)-1),"") ->  | O53: =IF(OFFSET(DE104_3!$Q$35,ROWS($Q$35:Q67)-1,COLUMNS($Q$35:Q67)-1)<>"",OFFSET(DE104_3!$Q$35,ROWS($Q$35:Q67)-1,COLUMNS($Q$35:Q67)-1),"") ->  | P53: =IF(OFFSET(DE104_3!$R$35,ROWS($R$35:R67)-1,COLUMNS($R$35:R67)-1)<>"",OFFSET(DE104_3!$R$35,ROWS($R$35:R67)-1,COLUMNS($R$35:R67)-1),"") ->  | Q53: =IF(OFFSET(DE104_3!$S$35,ROWS($S$35:S67)-1,COLUMNS($S$35:S67)-1)<>"",OFFSET(DE104_3!$S$35,ROWS($S$35:S67)-1,COLUMNS($S$35:S67)-1),"") ->  | R53: =IF(OFFSET(DE104_3!$T$35,ROWS($T$35:T67)-1,COLUMNS($T$35:T67)-1)<>"",OFFSET(DE104_3!$T$35,ROWS($T$35:T67)-1,COLUMNS($T$35:T67)-1),"") ->  | S53: =IF(OFFSET(DE104_3!$U$35,ROWS($U$35:U67)-1,COLUMNS($U$35:U67)-1)<>"",OFFSET(DE104_3!$U$35,ROWS($U$35:U67)-1,COLUMNS($U$35:U67)-1),"") ->  | T53: =IF(OFFSET(DE104_3!$V$35,ROWS($V$35:V67)-1,COLUMNS($V$35:V67)-1)<>"",OFFSET(DE104_3!$V$35,ROWS($V$35:V67)-1,COLUMNS($V$35:V67)-1),"") ->  | U53: =IF(OFFSET(DE104_3!$W$35,ROWS($W$35:W67)-1,COLUMNS($W$35:W67)-1)<>"",OFFSET(DE104_3!$W$35,ROWS($W$35:W67)-1,COLUMNS($W$35:W67)-1),"") -> 817.76 | V53: =IF(OFFSET(DE104_3!$X$35,ROWS($X$35:X67)-1,COLUMNS($X$35:X67)-1)<>"",OFFSET(DE104_3!$X$35,ROWS($X$35:X67)-1,COLUMNS($X$35:X67)-1),"") -> 807 | W53: =IF(OFFSET(DE104_3!$Y$35,ROWS($Y$35:Y67)-1,COLUMNS($Y$35:Y67)-1)<>"",OFFSET(DE104_3!$Y$35,ROWS($Y$35:Y67)-1,COLUMNS($Y$35:Y67)-1),"") -> 817.76 | X53: =IF(OFFSET(DE104_3!$Z$35,ROWS($Z$35:Z67)-1,COLUMNS($Z$35:Z67)-1)<>"",OFFSET(DE104_3!$Z$35,ROWS($Z$35:Z67)-1,COLUMNS($Z$35:Z67)-1),"") -> 807.62 | Y53: =IF(OFFSET(DE104_3!$AA$35,ROWS($AA$35:AA67)-1,COLUMNS($AA$35:AA67)-1)<>"",OFFSET(DE104_3!$AA$35,ROWS($AA$35:AA67)-1,COLUMNS($AA$35:AA67)-1),"") ->  | Z53: =IF(OFFSET(DE104_3!$AB$35,ROWS($AB$35:AB67)-1,COLUMNS($AB$35:AB67)-1)<>"",OFFSET(DE104_3!$AB$35,ROWS($AB$35:AB67)-1,COLUMNS($AB$35:AB67)-1),"") -> 78.44 | AA53: =IF(OFFSET(DE104_3!$AC$35,ROWS($AC$35:AC67)-1,COLUMNS($AC$35:AC67)-1)<>"",OFFSET(DE104_3!$AC$35,ROWS($AC$35:AC67)-1,COLUMNS($AC$35:AC67)-1),"") -> 39.2 | AB53: =IF(OFFSET(DE104_3!$AD$35,ROWS($AD$35:AD67)-1,COLUMNS($AD$35:AD67)-1)<>"",OFFSET(DE104_3!$AD$35,ROWS($AD$35:AD67)-1,COLUMNS($AD$35:AD67)-1),"") ->  | AC53: =IF(OFFSET(DE104_3!$AE$35,ROWS($AE$35:AE67)-1,COLUMNS($AE$35:AE67)-1)<>"",OFFSET(DE104_3!$AE$35,ROWS($AE$35:AE67)-1,COLUMNS($AE$35:AE67)-1),"") ->  | AD53: =IF(OFFSET(DE104_3!$AF$35,ROWS($AF$35:AF67)-1,COLUMNS($AF$35:AF67)-1)<>"",OFFSET(DE104_3!$AF$35,ROWS($AF$35:AF67)-1,COLUMNS($AF$35:AF67)-1),"") ->  | AE53: =IF(OFFSET(DE104_3!$AG$35,ROWS($AG$35:AG67)-1,COLUMNS($AG$35:AG67)-1)<>"",OFFSET(DE104_3!$AG$35,ROWS($AG$35:AG67)-1,COLUMNS($AG$35:AG67)-1),"") ->  | AF53: =IF(OFFSET(DE104_3!$AH$35,ROWS($AH$35:AH67)-1,COLUMNS($AH$35:AH67)-1)<>"",OFFSET(DE104_3!$AH$35,ROWS($AH$35:AH67)-1,COLUMNS($AH$35:AH67)-1),"") ->  | AG53: =IF(OFFSET(DE104_3!$AI$35,ROWS($AI$35:AI67)-1,COLUMNS($AI$35:AI67)-1)<>"",OFFSET(DE104_3!$AI$35,ROWS($AI$35:AI67)-1,COLUMNS($AI$35:AI67)-1),"") ->  | AH53: =IF(OFFSET(DE104_3!$AJ$35,ROWS($AJ$35:AJ67)-1,COLUMNS($AJ$35:AJ67)-1)<>"",OFFSET(DE104_3!$AJ$35,ROWS($AJ$35:AJ67)-1,COLUMNS($AJ$35:AJ67)-1),"") ->  | AI53: =IF(OFFSET(DE104_3!$AK$35,ROWS($AK$35:AK67)-1,COLUMNS($AK$35:AK67)-1)<>"",OFFSET(DE104_3!$AK$35,ROWS($AK$35:AK67)-1,COLUMNS($AK$35:AK67)-1),"") ->  | AJ53: =IF(OFFSET(DE104_3!$AL$35,ROWS($AL$35:AL67)-1,COLUMNS($AL$35:AL67)-1)<>"",OFFSET(DE104_3!$AL$35,ROWS($AL$35:AL67)-1,COLUMNS($AL$35:AL67)-1),"") -> 108.1816889 | AK53: =IF(OFFSET(DE104_3!$AM$35,ROWS($AM$35:AM67)-1,COLUMNS($AM$35:AM67)-1)<>"",OFFSET(DE104_3!$AM$35,ROWS($AM$35:AM67)-1,COLUMNS($AM$35:AM67)-1),"") -> N/A | AL53: =IF(OFFSET(DE104_3!$AN$35,ROWS($AN$35:AN67)-1,COLUMNS($AN$35:AN67)-1)<>"",OFFSET(DE104_3!$AN$35,ROWS($AN$35:AN67)-1,COLUMNS($AN$35:AN67)-1),"") -> N/A | AM53: =IF(OFFSET(DE104_3!$AO$35,ROWS($AO$35:AO67)-1,COLUMNS($AO$35:AO67)-1)<>"",OFFSET(DE104_3!$AO$35,ROWS($AO$35:AO67)-1,COLUMNS($AO$35:AO67)-1),"") -> 5.332125926 | AN53: =IF(OFFSET(DE104_3!$AP$35,ROWS($AP$35:AP67)-1,COLUMNS($AP$35:AP67)-1)<>"",OFFSET(DE104_3!$AP$35,ROWS($AP$35:AP67)-1,COLUMNS($AP$35:AP67)-1),"") -> 5.332125926 | AO53: =IF(OFFSET(DE104_3!$AQ$35,ROWS($AQ$35:AQ67)-1,COLUMNS($AQ$35:AQ67)-1)<>"",OFFSET(DE104_3!$AQ$35,ROWS($AQ$35:AQ67)-1,COLUMNS($AQ$35:AQ67)-1),"") -> -30
A54: =IF(OFFSET(DE104_3!$C$35,ROWS($C$35:C68)-1,COLUMNS($C$35:C68)-1)<>"",OFFSET(DE104_3!$C$35,ROWS($C$35:C68)-1,COLUMNS($C$35:C68)-1),"") ->  | B54: =IF(OFFSET(DE104_3!$D$35,ROWS($D$35:D68)-1,COLUMNS($D$35:D68)-1)<>"",OFFSET(DE104_3!$D$35,ROWS($D$35:D68)-1,COLUMNS($D$35:D68)-1),"") -> 220+97.99, 173.03' Rt | C54: =IF(OFFSET(DE104_3!$E$35,ROWS($E$35:E68)-1,COLUMNS($E$35:E68)-1)<>"",OFFSET(DE104_3!$E$35,ROWS($E$35:E68)-1,COLUMNS($E$35:E68)-1),"") -> Existing | D54: =IF(OFFSET(DE104_3!$F$35,ROWS($F$35:F68)-1,COLUMNS($F$35:F68)-1)<>"",OFFSET(DE104_3!$F$35,ROWS($F$35:F68)-1,COLUMNS($F$35:F68)-1),"") ->  | E54: =IF(OFFSET(DE104_3!$G$35,ROWS($G$35:G68)-1,COLUMNS($G$35:G68)-1)<>"",OFFSET(DE104_3!$G$35,ROWS($G$35:G68)-1,COLUMNS($G$35:G68)-1),"") ->  | F54: =IF(OFFSET(DE104_3!$H$35,ROWS($H$35:H68)-1,COLUMNS($H$35:H68)-1)<>"",OFFSET(DE104_3!$H$35,ROWS($H$35:H68)-1,COLUMNS($H$35:H68)-1),"") ->  | G54: =IF(OFFSET(DE104_3!$I$35,ROWS($I$35:I68)-1,COLUMNS($I$35:I68)-1)<>"",OFFSET(DE104_3!$I$35,ROWS($I$35:I68)-1,COLUMNS($I$35:I68)-1),"") ->  | H54: =IF(OFFSET(DE104_3!$J$35,ROWS($J$35:J68)-1,COLUMNS($J$35:J68)-1)<>"",OFFSET(DE104_3!$J$35,ROWS($J$35:J68)-1,COLUMNS($J$35:J68)-1),"") ->  | I54: =IF(OFFSET(DE104_3!$K$35,ROWS($K$35:K68)-1,COLUMNS($K$35:K68)-1)<>"",OFFSET(DE104_3!$K$35,ROWS($K$35:K68)-1,COLUMNS($K$35:K68)-1),"") ->  | J54: =IF(OFFSET(DE104_3!$L$35,ROWS($L$35:L68)-1,COLUMNS($L$35:L68)-1)<>"",OFFSET(DE104_3!$L$35,ROWS($L$35:L68)-1,COLUMNS($L$35:L68)-1),"") ->  | K54: =IF(OFFSET(DE104_3!$M$35,ROWS($M$35:M68)-1,COLUMNS($M$35:M68)-1)<>"",OFFSET(DE104_3!$M$35,ROWS($M$35:M68)-1,COLUMNS($M$35:M68)-1),"") ->  | L54: =IF(OFFSET(DE104_3!$N$35,ROWS($N$35:N68)-1,COLUMNS($N$35:N68)-1)<>"",OFFSET(DE104_3!$N$35,ROWS($N$35:N68)-1,COLUMNS($N$35:N68)-1),"") ->  | M54: =IF(OFFSET(DE104_3!$O$35,ROWS($O$35:O68)-1,COLUMNS($O$35:O68)-1)<>"",OFFSET(DE104_3!$O$35,ROWS($O$35:O68)-1,COLUMNS($O$35:O68)-1),"") ->  | N54: =IF(OFFSET(DE104_3!$P$35,ROWS($P$35:P68)-1,COLUMNS($P$35:P68)-1)<>"",OFFSET(DE104_3!$P$35,ROWS($P$35:P68)-1,COLUMNS($P$35:P68)-1),"") ->  | O54: =IF(OFFSET(DE104_3!$Q$35,ROWS($Q$35:Q68)-1,COLUMNS($Q$35:Q68)-1)<>"",OFFSET(DE104_3!$Q$35,ROWS($Q$35:Q68)-1,COLUMNS($Q$35:Q68)-1),"") ->  | P54: =IF(OFFSET(DE104_3!$R$35,ROWS($R$35:R68)-1,COLUMNS($R$35:R68)-1)<>"",OFFSET(DE104_3!$R$35,ROWS($R$35:R68)-1,COLUMNS($R$35:R68)-1),"") ->  | Q54: =IF(OFFSET(DE104_3!$S$35,ROWS($S$35:S68)-1,COLUMNS($S$35:S68)-1)<>"",OFFSET(DE104_3!$S$35,ROWS($S$35:S68)-1,COLUMNS($S$35:S68)-1),"") ->  | R54: =IF(OFFSET(DE104_3!$T$35,ROWS($T$35:T68)-1,COLUMNS($T$35:T68)-1)<>"",OFFSET(DE104_3!$T$35,ROWS($T$35:T68)-1,COLUMNS($T$35:T68)-1),"") ->  | S54: =IF(OFFSET(DE104_3!$U$35,ROWS($U$35:U68)-1,COLUMNS($U$35:U68)-1)<>"",OFFSET(DE104_3!$U$35,ROWS($U$35:U68)-1,COLUMNS($U$35:U68)-1),"") ->  | T54: =IF(OFFSET(DE104_3!$V$35,ROWS($V$35:V68)-1,COLUMNS($V$35:V68)-1)<>"",OFFSET(DE104_3!$V$35,ROWS($V$35:V68)-1,COLUMNS($V$35:V68)-1),"") ->  | U54: =IF(OFFSET(DE104_3!$W$35,ROWS($W$35:W68)-1,COLUMNS($W$35:W68)-1)<>"",OFFSET(DE104_3!$W$35,ROWS($W$35:W68)-1,COLUMNS($W$35:W68)-1),"") ->  | V54: =IF(OFFSET(DE104_3!$X$35,ROWS($X$35:X68)-1,COLUMNS($X$35:X68)-1)<>"",OFFSET(DE104_3!$X$35,ROWS($X$35:X68)-1,COLUMNS($X$35:X68)-1),"") ->  | W54: =IF(OFFSET(DE104_3!$Y$35,ROWS($Y$35:Y68)-1,COLUMNS($Y$35:Y68)-1)<>"",OFFSET(DE104_3!$Y$35,ROWS($Y$35:Y68)-1,COLUMNS($Y$35:Y68)-1),"") ->  | X54: =IF(OFFSET(DE104_3!$Z$35,ROWS($Z$35:Z68)-1,COLUMNS($Z$35:Z68)-1)<>"",OFFSET(DE104_3!$Z$35,ROWS($Z$35:Z68)-1,COLUMNS($Z$35:Z68)-1),"") ->  | Y54: =IF(OFFSET(DE104_3!$AA$35,ROWS($AA$35:AA68)-1,COLUMNS($AA$35:AA68)-1)<>"",OFFSET(DE104_3!$AA$35,ROWS($AA$35:AA68)-1,COLUMNS($AA$35:AA68)-1),"") ->  | Z54: =IF(OFFSET(DE104_3!$AB$35,ROWS($AB$35:AB68)-1,COLUMNS($AB$35:AB68)-1)<>"",OFFSET(DE104_3!$AB$35,ROWS($AB$35:AB68)-1,COLUMNS($AB$35:AB68)-1),"") ->  | AA54: =IF(OFFSET(DE104_3!$AC$35,ROWS($AC$35:AC68)-1,COLUMNS($AC$35:AC68)-1)<>"",OFFSET(DE104_3!$AC$35,ROWS($AC$35:AC68)-1,COLUMNS($AC$35:AC68)-1),"") ->  | AB54: =IF(OFFSET(DE104_3!$AD$35,ROWS($AD$35:AD68)-1,COLUMNS($AD$35:AD68)-1)<>"",OFFSET(DE104_3!$AD$35,ROWS($AD$35:AD68)-1,COLUMNS($AD$35:AD68)-1),"") ->  | AC54: =IF(OFFSET(DE104_3!$AE$35,ROWS($AE$35:AE68)-1,COLUMNS($AE$35:AE68)-1)<>"",OFFSET(DE104_3!$AE$35,ROWS($AE$35:AE68)-1,COLUMNS($AE$35:AE68)-1),"") ->  | AD54: =IF(OFFSET(DE104_3!$AF$35,ROWS($AF$35:AF68)-1,COLUMNS($AF$35:AF68)-1)<>"",OFFSET(DE104_3!$AF$35,ROWS($AF$35:AF68)-1,COLUMNS($AF$35:AF68)-1),"") ->  | AE54: =IF(OFFSET(DE104_3!$AG$35,ROWS($AG$35:AG68)-1,COLUMNS($AG$35:AG68)-1)<>"",OFFSET(DE104_3!$AG$35,ROWS($AG$35:AG68)-1,COLUMNS($AG$35:AG68)-1),"") ->  | AF54: =IF(OFFSET(DE104_3!$AH$35,ROWS($AH$35:AH68)-1,COLUMNS($AH$35:AH68)-1)<>"",OFFSET(DE104_3!$AH$35,ROWS($AH$35:AH68)-1,COLUMNS($AH$35:AH68)-1),"") ->  | AG54: =IF(OFFSET(DE104_3!$AI$35,ROWS($AI$35:AI68)-1,COLUMNS($AI$35:AI68)-1)<>"",OFFSET(DE104_3!$AI$35,ROWS($AI$35:AI68)-1,COLUMNS($AI$35:AI68)-1),"") ->  | AH54: =IF(OFFSET(DE104_3!$AJ$35,ROWS($AJ$35:AJ68)-1,COLUMNS($AJ$35:AJ68)-1)<>"",OFFSET(DE104_3!$AJ$35,ROWS($AJ$35:AJ68)-1,COLUMNS($AJ$35:AJ68)-1),"") ->  | AI54: =IF(OFFSET(DE104_3!$AK$35,ROWS($AK$35:AK68)-1,COLUMNS($AK$35:AK68)-1)<>"",OFFSET(DE104_3!$AK$35,ROWS($AK$35:AK68)-1,COLUMNS($AK$35:AK68)-1),"") ->  | AJ54: =IF(OFFSET(DE104_3!$AL$35,ROWS($AL$35:AL68)-1,COLUMNS($AL$35:AL68)-1)<>"",OFFSET(DE104_3!$AL$35,ROWS($AL$35:AL68)-1,COLUMNS($AL$35:AL68)-1),"") -> N/A | AK54: =IF(OFFSET(DE104_3!$AM$35,ROWS($AM$35:AM68)-1,COLUMNS($AM$35:AM68)-1)<>"",OFFSET(DE104_3!$AM$35,ROWS($AM$35:AM68)-1,COLUMNS($AM$35:AM68)-1),"") -> N/A | AL54: =IF(OFFSET(DE104_3!$AN$35,ROWS($AN$35:AN68)-1,COLUMNS($AN$35:AN68)-1)<>"",OFFSET(DE104_3!$AN$35,ROWS($AN$35:AN68)-1,COLUMNS($AN$35:AN68)-1),"") -> N/A | AM54: =IF(OFFSET(DE104_3!$AO$35,ROWS($AO$35:AO68)-1,COLUMNS($AO$35:AO68)-1)<>"",OFFSET(DE104_3!$AO$35,ROWS($AO$35:AO68)-1,COLUMNS($AO$35:AO68)-1),"") -> N/A | AN54: =IF(OFFSET(DE104_3!$AP$35,ROWS($AP$35:AP68)-1,COLUMNS($AP$35:AP68)-1)<>"",OFFSET(DE104_3!$AP$35,ROWS($AP$35:AP68)-1,COLUMNS($AP$35:AP68)-1),"") -> N/A | AO54: =IF(OFFSET(DE104_3!$AQ$35,ROWS($AQ$35:AQ68)-1,COLUMNS($AQ$35:AQ68)-1)<>"",OFFSET(DE104_3!$AQ$35,ROWS($AQ$35:AQ68)-1,COLUMNS($AQ$35:AQ68)-1),"") -> -31
A55: =IF(OFFSET(DE104_3!$C$35,ROWS($C$35:C69)-1,COLUMNS($C$35:C69)-1)<>"",OFFSET(DE104_3!$C$35,ROWS($C$35:C69)-1,COLUMNS($C$35:C69)-1),"") -> 8 F | B55: =IF(OFFSET(DE104_3!$D$35,ROWS($D$35:D69)-1,COLUMNS($D$35:D69)-1)<>"",OFFSET(DE104_3!$D$35,ROWS($D$35:D69)-1,COLUMNS($D$35:D69)-1),"") -> 22098 | C55: =IF(OFFSET(DE104_3!$E$35,ROWS($E$35:E69)-1,COLUMNS($E$35:E69)-1)<>"",OFFSET(DE104_3!$E$35,ROWS($E$35:E69)-1,COLUMNS($E$35:E69)-1),"") -> 601 | D55: =IF(OFFSET(DE104_3!$F$35,ROWS($F$35:F69)-1,COLUMNS($F$35:F69)-1)<>"",OFFSET(DE104_3!$F$35,ROWS($F$35:F69)-1,COLUMNS($F$35:F69)-1),"") -> 48 | E55: =IF(OFFSET(DE104_3!$G$35,ROWS($G$35:G69)-1,COLUMNS($G$35:G69)-1)<>"",OFFSET(DE104_3!$G$35,ROWS($G$35:G69)-1,COLUMNS($G$35:G69)-1),"") -> RCP | F55: =IF(OFFSET(DE104_3!$H$35,ROWS($H$35:H69)-1,COLUMNS($H$35:H69)-1)<>"",OFFSET(DE104_3!$H$35,ROWS($H$35:H69)-1,COLUMNS($H$35:H69)-1),"") -> 224 | G55: =IF(OFFSET(DE104_3!$I$35,ROWS($I$35:I69)-1,COLUMNS($I$35:I69)-1)<>"",OFFSET(DE104_3!$I$35,ROWS($I$35:I69)-1,COLUMNS($I$35:I69)-1),"") ->  | H55: =IF(OFFSET(DE104_3!$J$35,ROWS($J$35:J69)-1,COLUMNS($J$35:J69)-1)<>"",OFFSET(DE104_3!$J$35,ROWS($J$35:J69)-1,COLUMNS($J$35:J69)-1),"") -> 10 | I55: =IF(OFFSET(DE104_3!$K$35,ROWS($K$35:K69)-1,COLUMNS($K$35:K69)-1)<>"",OFFSET(DE104_3!$K$35,ROWS($K$35:K69)-1,COLUMNS($K$35:K69)-1),"") ->  | J55: =IF(OFFSET(DE104_3!$L$35,ROWS($L$35:L69)-1,COLUMNS($L$35:L69)-1)<>"",OFFSET(DE104_3!$L$35,ROWS($L$35:L69)-1,COLUMNS($L$35:L69)-1),"") -> 1 | K55: =IF(OFFSET(DE104_3!$M$35,ROWS($M$35:M69)-1,COLUMNS($M$35:M69)-1)<>"",OFFSET(DE104_3!$M$35,ROWS($M$35:M69)-1,COLUMNS($M$35:M69)-1),"") -> 1 | L55: =IF(OFFSET(DE104_3!$N$35,ROWS($N$35:N69)-1,COLUMNS($N$35:N69)-1)<>"",OFFSET(DE104_3!$N$35,ROWS($N$35:N69)-1,COLUMNS($N$35:N69)-1),"") ->  | M55: =IF(OFFSET(DE104_3!$O$35,ROWS($O$35:O69)-1,COLUMNS($O$35:O69)-1)<>"",OFFSET(DE104_3!$O$35,ROWS($O$35:O69)-1,COLUMNS($O$35:O69)-1),"") ->  | N55: =IF(OFFSET(DE104_3!$P$35,ROWS($P$35:P69)-1,COLUMNS($P$35:P69)-1)<>"",OFFSET(DE104_3!$P$35,ROWS($P$35:P69)-1,COLUMNS($P$35:P69)-1),"") ->  | O55: =IF(OFFSET(DE104_3!$Q$35,ROWS($Q$35:Q69)-1,COLUMNS($Q$35:Q69)-1)<>"",OFFSET(DE104_3!$Q$35,ROWS($Q$35:Q69)-1,COLUMNS($Q$35:Q69)-1),"") ->  | P55: =IF(OFFSET(DE104_3!$R$35,ROWS($R$35:R69)-1,COLUMNS($R$35:R69)-1)<>"",OFFSET(DE104_3!$R$35,ROWS($R$35:R69)-1,COLUMNS($R$35:R69)-1),"") ->  | Q55: =IF(OFFSET(DE104_3!$S$35,ROWS($S$35:S69)-1,COLUMNS($S$35:S69)-1)<>"",OFFSET(DE104_3!$S$35,ROWS($S$35:S69)-1,COLUMNS($S$35:S69)-1),"") ->  | R55: =IF(OFFSET(DE104_3!$T$35,ROWS($T$35:T69)-1,COLUMNS($T$35:T69)-1)<>"",OFFSET(DE104_3!$T$35,ROWS($T$35:T69)-1,COLUMNS($T$35:T69)-1),"") ->  | S55: =IF(OFFSET(DE104_3!$U$35,ROWS($U$35:U69)-1,COLUMNS($U$35:U69)-1)<>"",OFFSET(DE104_3!$U$35,ROWS($U$35:U69)-1,COLUMNS($U$35:U69)-1),"") ->  | T55: =IF(OFFSET(DE104_3!$V$35,ROWS($V$35:V69)-1,COLUMNS($V$35:V69)-1)<>"",OFFSET(DE104_3!$V$35,ROWS($V$35:V69)-1,COLUMNS($V$35:V69)-1),"") ->  | U55: =IF(OFFSET(DE104_3!$W$35,ROWS($W$35:W69)-1,COLUMNS($W$35:W69)-1)<>"",OFFSET(DE104_3!$W$35,ROWS($W$35:W69)-1,COLUMNS($W$35:W69)-1),"") ->  | V55: =IF(OFFSET(DE104_3!$X$35,ROWS($X$35:X69)-1,COLUMNS($X$35:X69)-1)<>"",OFFSET(DE104_3!$X$35,ROWS($X$35:X69)-1,COLUMNS($X$35:X69)-1),"") -> 807 | W55: =IF(OFFSET(DE104_3!$Y$35,ROWS($Y$35:Y69)-1,COLUMNS($Y$35:Y69)-1)<>"",OFFSET(DE104_3!$Y$35,ROWS($Y$35:Y69)-1,COLUMNS($Y$35:Y69)-1),"") -> 805.5 | X55: =IF(OFFSET(DE104_3!$Z$35,ROWS($Z$35:Z69)-1,COLUMNS($Z$35:Z69)-1)<>"",OFFSET(DE104_3!$Z$35,ROWS($Z$35:Z69)-1,COLUMNS($Z$35:Z69)-1),"") ->  | Y55: =IF(OFFSET(DE104_3!$AA$35,ROWS($AA$35:AA69)-1,COLUMNS($AA$35:AA69)-1)<>"",OFFSET(DE104_3!$AA$35,ROWS($AA$35:AA69)-1,COLUMNS($AA$35:AA69)-1),"") ->  | Z55: =IF(OFFSET(DE104_3!$AB$35,ROWS($AB$35:AB69)-1,COLUMNS($AB$35:AB69)-1)<>"",OFFSET(DE104_3!$AB$35,ROWS($AB$35:AB69)-1,COLUMNS($AB$35:AB69)-1),"") -> 118 | AA55: =IF(OFFSET(DE104_3!$AC$35,ROWS($AC$35:AC69)-1,COLUMNS($AC$35:AC69)-1)<>"",OFFSET(DE104_3!$AC$35,ROWS($AC$35:AC69)-1,COLUMNS($AC$35:AC69)-1),"") -> 122 | AB55: =IF(OFFSET(DE104_3!$AD$35,ROWS($AD$35:AD69)-1,COLUMNS($AD$35:AD69)-1)<>"",OFFSET(DE104_3!$AD$35,ROWS($AD$35:AD69)-1,COLUMNS($AD$35:AD69)-1),"") ->  | AC55: =IF(OFFSET(DE104_3!$AE$35,ROWS($AE$35:AE69)-1,COLUMNS($AE$35:AE69)-1)<>"",OFFSET(DE104_3!$AE$35,ROWS($AE$35:AE69)-1,COLUMNS($AE$35:AE69)-1),"") ->  | AD55: =IF(OFFSET(DE104_3!$AF$35,ROWS($AF$35:AF69)-1,COLUMNS($AF$35:AF69)-1)<>"",OFFSET(DE104_3!$AF$35,ROWS($AF$35:AF69)-1,COLUMNS($AF$35:AF69)-1),"") ->  | AE55: =IF(OFFSET(DE104_3!$AG$35,ROWS($AG$35:AG69)-1,COLUMNS($AG$35:AG69)-1)<>"",OFFSET(DE104_3!$AG$35,ROWS($AG$35:AG69)-1,COLUMNS($AG$35:AG69)-1),"") ->  | AF55: =IF(OFFSET(DE104_3!$AH$35,ROWS($AH$35:AH69)-1,COLUMNS($AH$35:AH69)-1)<>"",OFFSET(DE104_3!$AH$35,ROWS($AH$35:AH69)-1,COLUMNS($AH$35:AH69)-1),"") ->  | AG55: =IF(OFFSET(DE104_3!$AI$35,ROWS($AI$35:AI69)-1,COLUMNS($AI$35:AI69)-1)<>"",OFFSET(DE104_3!$AI$35,ROWS($AI$35:AI69)-1,COLUMNS($AI$35:AI69)-1),"") ->  | AH55: =IF(OFFSET(DE104_3!$AJ$35,ROWS($AJ$35:AJ69)-1,COLUMNS($AJ$35:AJ69)-1)<>"",OFFSET(DE104_3!$AJ$35,ROWS($AJ$35:AJ69)-1,COLUMNS($AJ$35:AJ69)-1),"") ->  | AI55: =IF(OFFSET(DE104_3!$AK$35,ROWS($AK$35:AK69)-1,COLUMNS($AK$35:AK69)-1)<>"",OFFSET(DE104_3!$AK$35,ROWS($AK$35:AK69)-1,COLUMNS($AK$35:AK69)-1),"") ->  | AJ55: =IF(OFFSET(DE104_3!$AL$35,ROWS($AL$35:AL69)-1,COLUMNS($AL$35:AL69)-1)<>"",OFFSET(DE104_3!$AL$35,ROWS($AL$35:AL69)-1,COLUMNS($AL$35:AL69)-1),"") -> 500 | AK55: =IF(OFFSET(DE104_3!$AM$35,ROWS($AM$35:AM69)-1,COLUMNS($AM$35:AM69)-1)<>"",OFFSET(DE104_3!$AM$35,ROWS($AM$35:AM69)-1,COLUMNS($AM$35:AM69)-1),"") -> N/A | AL55: =IF(OFFSET(DE104_3!$AN$35,ROWS($AN$35:AN69)-1,COLUMNS($AN$35:AN69)-1)<>"",OFFSET(DE104_3!$AN$35,ROWS($AN$35:AN69)-1,COLUMNS($AN$35:AN69)-1),"") -> 589.5625185 | AM55: =IF(OFFSET(DE104_3!$AO$35,ROWS($AO$35:AO69)-1,COLUMNS($AO$35:AO69)-1)<>"",OFFSET(DE104_3!$AO$35,ROWS($AO$35:AO69)-1,COLUMNS($AO$35:AO69)-1),"") -> 24.41703704 | AN55: =IF(OFFSET(DE104_3!$AP$35,ROWS($AP$35:AP69)-1,COLUMNS($AP$35:AP69)-1)<>"",OFFSET(DE104_3!$AP$35,ROWS($AP$35:AP69)-1,COLUMNS($AP$35:AP69)-1),"") -> 613.9795556 | AO55: =IF(OFFSET(DE104_3!$AQ$35,ROWS($AQ$35:AQ69)-1,COLUMNS($AQ$35:AQ69)-1)<>"",OFFSET(DE104_3!$AQ$35,ROWS($AQ$35:AQ69)-1,COLUMNS($AQ$35:AQ69)-1),"") -> -32
A56: =IF(OFFSET(DE104_3!$C$35,ROWS($C$35:C70)-1,COLUMNS($C$35:C70)-1)<>"",OFFSET(DE104_3!$C$35,ROWS($C$35:C70)-1,COLUMNS($C$35:C70)-1),"") -> MED | B56: =IF(OFFSET(DE104_3!$D$35,ROWS($D$35:D70)-1,COLUMNS($D$35:D70)-1)<>"",OFFSET(DE104_3!$D$35,ROWS($D$35:D70)-1,COLUMNS($D$35:D70)-1),"") -> 23400 | C56: =IF(OFFSET(DE104_3!$E$35,ROWS($E$35:E70)-1,COLUMNS($E$35:E70)-1)<>"",OFFSET(DE104_3!$E$35,ROWS($E$35:E70)-1,COLUMNS($E$35:E70)-1),"") -> 611 | D56: =IF(OFFSET(DE104_3!$F$35,ROWS($F$35:F70)-1,COLUMNS($F$35:F70)-1)<>"",OFFSET(DE104_3!$F$35,ROWS($F$35:F70)-1,COLUMNS($F$35:F70)-1),"") -> 24 | E56: =IF(OFFSET(DE104_3!$G$35,ROWS($G$35:G70)-1,COLUMNS($G$35:G70)-1)<>"",OFFSET(DE104_3!$G$35,ROWS($G$35:G70)-1,COLUMNS($G$35:G70)-1),"") -> RCP | F56: =IF(OFFSET(DE104_3!$H$35,ROWS($H$35:H70)-1,COLUMNS($H$35:H70)-1)<>"",OFFSET(DE104_3!$H$35,ROWS($H$35:H70)-1,COLUMNS($H$35:H70)-1),"") -> 82 | G56: =IF(OFFSET(DE104_3!$I$35,ROWS($I$35:I70)-1,COLUMNS($I$35:I70)-1)<>"",OFFSET(DE104_3!$I$35,ROWS($I$35:I70)-1,COLUMNS($I$35:I70)-1),"") ->  | H56: =IF(OFFSET(DE104_3!$J$35,ROWS($J$35:J70)-1,COLUMNS($J$35:J70)-1)<>"",OFFSET(DE104_3!$J$35,ROWS($J$35:J70)-1,COLUMNS($J$35:J70)-1),"") -> 3.5 | I56: =IF(OFFSET(DE104_3!$K$35,ROWS($K$35:K70)-1,COLUMNS($K$35:K70)-1)<>"",OFFSET(DE104_3!$K$35,ROWS($K$35:K70)-1,COLUMNS($K$35:K70)-1),"") ->  | J56: =IF(OFFSET(DE104_3!$L$35,ROWS($L$35:L70)-1,COLUMNS($L$35:L70)-1)<>"",OFFSET(DE104_3!$L$35,ROWS($L$35:L70)-1,COLUMNS($L$35:L70)-1),"") -> 1 | K56: =IF(OFFSET(DE104_3!$M$35,ROWS($M$35:M70)-1,COLUMNS($M$35:M70)-1)<>"",OFFSET(DE104_3!$M$35,ROWS($M$35:M70)-1,COLUMNS($M$35:M70)-1),"") -> 1 | L56: =IF(OFFSET(DE104_3!$N$35,ROWS($N$35:N70)-1,COLUMNS($N$35:N70)-1)<>"",OFFSET(DE104_3!$N$35,ROWS($N$35:N70)-1,COLUMNS($N$35:N70)-1),"") -> 1 | M56: =IF(OFFSET(DE104_3!$O$35,ROWS($O$35:O70)-1,COLUMNS($O$35:O70)-1)<>"",OFFSET(DE104_3!$O$35,ROWS($O$35:O70)-1,COLUMNS($O$35:O70)-1),"") ->  | N56: =IF(OFFSET(DE104_3!$P$35,ROWS($P$35:P70)-1,COLUMNS($P$35:P70)-1)<>"",OFFSET(DE104_3!$P$35,ROWS($P$35:P70)-1,COLUMNS($P$35:P70)-1),"") ->  | O56: =IF(OFFSET(DE104_3!$Q$35,ROWS($Q$35:Q70)-1,COLUMNS($Q$35:Q70)-1)<>"",OFFSET(DE104_3!$Q$35,ROWS($Q$35:Q70)-1,COLUMNS($Q$35:Q70)-1),"") ->  | P56: =IF(OFFSET(DE104_3!$R$35,ROWS($R$35:R70)-1,COLUMNS($R$35:R70)-1)<>"",OFFSET(DE104_3!$R$35,ROWS($R$35:R70)-1,COLUMNS($R$35:R70)-1),"") ->  | Q56: =IF(OFFSET(DE104_3!$S$35,ROWS($S$35:S70)-1,COLUMNS($S$35:S70)-1)<>"",OFFSET(DE104_3!$S$35,ROWS($S$35:S70)-1,COLUMNS($S$35:S70)-1),"") ->  | R56: =IF(OFFSET(DE104_3!$T$35,ROWS($T$35:T70)-1,COLUMNS($T$35:T70)-1)<>"",OFFSET(DE104_3!$T$35,ROWS($T$35:T70)-1,COLUMNS($T$35:T70)-1),"") ->  | S56: =IF(OFFSET(DE104_3!$U$35,ROWS($U$35:U70)-1,COLUMNS($U$35:U70)-1)<>"",OFFSET(DE104_3!$U$35,ROWS($U$35:U70)-1,COLUMNS($U$35:U70)-1),"") ->  | T56: =IF(OFFSET(DE104_3!$V$35,ROWS($V$35:V70)-1,COLUMNS($V$35:V70)-1)<>"",OFFSET(DE104_3!$V$35,ROWS($V$35:V70)-1,COLUMNS($V$35:V70)-1),"") ->  | U56: =IF(OFFSET(DE104_3!$W$35,ROWS($W$35:W70)-1,COLUMNS($W$35:W70)-1)<>"",OFFSET(DE104_3!$W$35,ROWS($W$35:W70)-1,COLUMNS($W$35:W70)-1),"") ->  | V56: =IF(OFFSET(DE104_3!$X$35,ROWS($X$35:X70)-1,COLUMNS($X$35:X70)-1)<>"",OFFSET(DE104_3!$X$35,ROWS($X$35:X70)-1,COLUMNS($X$35:X70)-1),"") -> 804.6 | W56: =IF(OFFSET(DE104_3!$Y$35,ROWS($Y$35:Y70)-1,COLUMNS($Y$35:Y70)-1)<>"",OFFSET(DE104_3!$Y$35,ROWS($Y$35:Y70)-1,COLUMNS($Y$35:Y70)-1),"") -> 808.59 | X56: =IF(OFFSET(DE104_3!$Z$35,ROWS($Z$35:Z70)-1,COLUMNS($Z$35:Z70)-1)<>"",OFFSET(DE104_3!$Z$35,ROWS($Z$35:Z70)-1,COLUMNS($Z$35:Z70)-1),"") -> 807.58 | Y56: =IF(OFFSET(DE104_3!$AA$35,ROWS($AA$35:AA70)-1,COLUMNS($AA$35:AA70)-1)<>"",OFFSET(DE104_3!$AA$35,ROWS($AA$35:AA70)-1,COLUMNS($AA$35:AA70)-1),"") ->  | Z56: =IF(OFFSET(DE104_3!$AB$35,ROWS($AB$35:AB70)-1,COLUMNS($AB$35:AB70)-1)<>"",OFFSET(DE104_3!$AB$35,ROWS($AB$35:AB70)-1,COLUMNS($AB$35:AB70)-1),"") -> 55.9 | AA56: =IF(OFFSET(DE104_3!$AC$35,ROWS($AC$35:AC70)-1,COLUMNS($AC$35:AC70)-1)<>"",OFFSET(DE104_3!$AC$35,ROWS($AC$35:AC70)-1,COLUMNS($AC$35:AC70)-1),"") -> 38.2 | AB56: =IF(OFFSET(DE104_3!$AD$35,ROWS($AD$35:AD70)-1,COLUMNS($AD$35:AD70)-1)<>"",OFFSET(DE104_3!$AD$35,ROWS($AD$35:AD70)-1,COLUMNS($AD$35:AD70)-1),"") ->  | AC56: =IF(OFFSET(DE104_3!$AE$35,ROWS($AE$35:AE70)-1,COLUMNS($AE$35:AE70)-1)<>"",OFFSET(DE104_3!$AE$35,ROWS($AE$35:AE70)-1,COLUMNS($AE$35:AE70)-1),"") ->  | AD56: =IF(OFFSET(DE104_3!$AF$35,ROWS($AF$35:AF70)-1,COLUMNS($AF$35:AF70)-1)<>"",OFFSET(DE104_3!$AF$35,ROWS($AF$35:AF70)-1,COLUMNS($AF$35:AF70)-1),"") ->  | AE56: =IF(OFFSET(DE104_3!$AG$35,ROWS($AG$35:AG70)-1,COLUMNS($AG$35:AG70)-1)<>"",OFFSET(DE104_3!$AG$35,ROWS($AG$35:AG70)-1,COLUMNS($AG$35:AG70)-1),"") ->  | AF56: =IF(OFFSET(DE104_3!$AH$35,ROWS($AH$35:AH70)-1,COLUMNS($AH$35:AH70)-1)<>"",OFFSET(DE104_3!$AH$35,ROWS($AH$35:AH70)-1,COLUMNS($AH$35:AH70)-1),"") -> Med | AG56: =IF(OFFSET(DE104_3!$AI$35,ROWS($AI$35:AI70)-1,COLUMNS($AI$35:AI70)-1)<>"",OFFSET(DE104_3!$AI$35,ROWS($AI$35:AI70)-1,COLUMNS($AI$35:AI70)-1),"") -> 23425 | AH56: =IF(OFFSET(DE104_3!$AJ$35,ROWS($AJ$35:AJ70)-1,COLUMNS($AJ$35:AJ70)-1)<>"",OFFSET(DE104_3!$AJ$35,ROWS($AJ$35:AJ70)-1,COLUMNS($AJ$35:AJ70)-1),"") -> 810.34 | AI56: =IF(OFFSET(DE104_3!$AK$35,ROWS($AK$35:AK70)-1,COLUMNS($AK$35:AK70)-1)<>"",OFFSET(DE104_3!$AK$35,ROWS($AK$35:AK70)-1,COLUMNS($AK$35:AK70)-1),"") -> G | AJ56: =IF(OFFSET(DE104_3!$AL$35,ROWS($AL$35:AL70)-1,COLUMNS($AL$35:AL70)-1)<>"",OFFSET(DE104_3!$AL$35,ROWS($AL$35:AL70)-1,COLUMNS($AL$35:AL70)-1),"") -> 32.52588889 | AK56: =IF(OFFSET(DE104_3!$AM$35,ROWS($AM$35:AM70)-1,COLUMNS($AM$35:AM70)-1)<>"",OFFSET(DE104_3!$AM$35,ROWS($AM$35:AM70)-1,COLUMNS($AM$35:AM70)-1),"") -> 12.10997037 | AL56: =IF(OFFSET(DE104_3!$AN$35,ROWS($AN$35:AN70)-1,COLUMNS($AN$35:AN70)-1)<>"",OFFSET(DE104_3!$AN$35,ROWS($AN$35:AN70)-1,COLUMNS($AN$35:AN70)-1),"") -> 58.09016296 | AM56: =IF(OFFSET(DE104_3!$AO$35,ROWS($AO$35:AO70)-1,COLUMNS($AO$35:AO70)-1)<>"",OFFSET(DE104_3!$AO$35,ROWS($AO$35:AO70)-1,COLUMNS($AO$35:AO70)-1),"") -> 7.212292593 | AN56: =IF(OFFSET(DE104_3!$AP$35,ROWS($AP$35:AP70)-1,COLUMNS($AP$35:AP70)-1)<>"",OFFSET(DE104_3!$AP$35,ROWS($AP$35:AP70)-1,COLUMNS($AP$35:AP70)-1),"") -> 65.30245556 | AO56: =IF(OFFSET(DE104_3!$AQ$35,ROWS($AQ$35:AQ70)-1,COLUMNS($AQ$35:AQ70)-1)<>"",OFFSET(DE104_3!$AQ$35,ROWS($AQ$35:AQ70)-1,COLUMNS($AQ$35:AQ70)-1),"") -> -33
A57: =IF(OFFSET(DE104_3!$C$35,ROWS($C$35:C71)-1,COLUMNS($C$35:C71)-1)<>"",OFFSET(DE104_3!$C$35,ROWS($C$35:C71)-1,COLUMNS($C$35:C71)-1),"") -> 47 F | B57: =IF(OFFSET(DE104_3!$D$35,ROWS($D$35:D71)-1,COLUMNS($D$35:D71)-1)<>"",OFFSET(DE104_3!$D$35,ROWS($D$35:D71)-1,COLUMNS($D$35:D71)-1),"") -> 23425 | C57: =IF(OFFSET(DE104_3!$E$35,ROWS($E$35:E71)-1,COLUMNS($E$35:E71)-1)<>"",OFFSET(DE104_3!$E$35,ROWS($E$35:E71)-1,COLUMNS($E$35:E71)-1),"") -> 601 | D57: =IF(OFFSET(DE104_3!$F$35,ROWS($F$35:F71)-1,COLUMNS($F$35:F71)-1)<>"",OFFSET(DE104_3!$F$35,ROWS($F$35:F71)-1,COLUMNS($F$35:F71)-1),"") -> 48 | E57: =IF(OFFSET(DE104_3!$G$35,ROWS($G$35:G71)-1,COLUMNS($G$35:G71)-1)<>"",OFFSET(DE104_3!$G$35,ROWS($G$35:G71)-1,COLUMNS($G$35:G71)-1),"") -> RCP | F57: =IF(OFFSET(DE104_3!$H$35,ROWS($H$35:H71)-1,COLUMNS($H$35:H71)-1)<>"",OFFSET(DE104_3!$H$35,ROWS($H$35:H71)-1,COLUMNS($H$35:H71)-1),"") -> 178 | G57: =IF(OFFSET(DE104_3!$I$35,ROWS($I$35:I71)-1,COLUMNS($I$35:I71)-1)<>"",OFFSET(DE104_3!$I$35,ROWS($I$35:I71)-1,COLUMNS($I$35:I71)-1),"") ->  | H57: =IF(OFFSET(DE104_3!$J$35,ROWS($J$35:J71)-1,COLUMNS($J$35:J71)-1)<>"",OFFSET(DE104_3!$J$35,ROWS($J$35:J71)-1,COLUMNS($J$35:J71)-1),"") -> 3 | I57: =IF(OFFSET(DE104_3!$K$35,ROWS($K$35:K71)-1,COLUMNS($K$35:K71)-1)<>"",OFFSET(DE104_3!$K$35,ROWS($K$35:K71)-1,COLUMNS($K$35:K71)-1),"") ->  | J57: =IF(OFFSET(DE104_3!$L$35,ROWS($L$35:L71)-1,COLUMNS($L$35:L71)-1)<>"",OFFSET(DE104_3!$L$35,ROWS($L$35:L71)-1,COLUMNS($L$35:L71)-1),"") -> 1 | K57: =IF(OFFSET(DE104_3!$M$35,ROWS($M$35:M71)-1,COLUMNS($M$35:M71)-1)<>"",OFFSET(DE104_3!$M$35,ROWS($M$35:M71)-1,COLUMNS($M$35:M71)-1),"") -> 1 | L57: =IF(OFFSET(DE104_3!$N$35,ROWS($N$35:N71)-1,COLUMNS($N$35:N71)-1)<>"",OFFSET(DE104_3!$N$35,ROWS($N$35:N71)-1,COLUMNS($N$35:N71)-1),"") ->  | M57: =IF(OFFSET(DE104_3!$O$35,ROWS($O$35:O71)-1,COLUMNS($O$35:O71)-1)<>"",OFFSET(DE104_3!$O$35,ROWS($O$35:O71)-1,COLUMNS($O$35:O71)-1),"") ->  | N57: =IF(OFFSET(DE104_3!$P$35,ROWS($P$35:P71)-1,COLUMNS($P$35:P71)-1)<>"",OFFSET(DE104_3!$P$35,ROWS($P$35:P71)-1,COLUMNS($P$35:P71)-1),"") ->  | O57: =IF(OFFSET(DE104_3!$Q$35,ROWS($Q$35:Q71)-1,COLUMNS($Q$35:Q71)-1)<>"",OFFSET(DE104_3!$Q$35,ROWS($Q$35:Q71)-1,COLUMNS($Q$35:Q71)-1),"") ->  | P57: =IF(OFFSET(DE104_3!$R$35,ROWS($R$35:R71)-1,COLUMNS($R$35:R71)-1)<>"",OFFSET(DE104_3!$R$35,ROWS($R$35:R71)-1,COLUMNS($R$35:R71)-1),"") ->  | Q57: =IF(OFFSET(DE104_3!$S$35,ROWS($S$35:S71)-1,COLUMNS($S$35:S71)-1)<>"",OFFSET(DE104_3!$S$35,ROWS($S$35:S71)-1,COLUMNS($S$35:S71)-1),"") ->  | R57: =IF(OFFSET(DE104_3!$T$35,ROWS($T$35:T71)-1,COLUMNS($T$35:T71)-1)<>"",OFFSET(DE104_3!$T$35,ROWS($T$35:T71)-1,COLUMNS($T$35:T71)-1),"") ->  | S57: =IF(OFFSET(DE104_3!$U$35,ROWS($U$35:U71)-1,COLUMNS($U$35:U71)-1)<>"",OFFSET(DE104_3!$U$35,ROWS($U$35:U71)-1,COLUMNS($U$35:U71)-1),"") ->  | T57: =IF(OFFSET(DE104_3!$V$35,ROWS($V$35:V71)-1,COLUMNS($V$35:V71)-1)<>"",OFFSET(DE104_3!$V$35,ROWS($V$35:V71)-1,COLUMNS($V$35:V71)-1),"") ->  | U57: =IF(OFFSET(DE104_3!$W$35,ROWS($W$35:W71)-1,COLUMNS($W$35:W71)-1)<>"",OFFSET(DE104_3!$W$35,ROWS($W$35:W71)-1,COLUMNS($W$35:W71)-1),"") ->  | V57: =IF(OFFSET(DE104_3!$X$35,ROWS($X$35:X71)-1,COLUMNS($X$35:X71)-1)<>"",OFFSET(DE104_3!$X$35,ROWS($X$35:X71)-1,COLUMNS($X$35:X71)-1),"") -> 804.52 | W57: =IF(OFFSET(DE104_3!$Y$35,ROWS($Y$35:Y71)-1,COLUMNS($Y$35:Y71)-1)<>"",OFFSET(DE104_3!$Y$35,ROWS($Y$35:Y71)-1,COLUMNS($Y$35:Y71)-1),"") -> 804.4 | X57: =IF(OFFSET(DE104_3!$Z$35,ROWS($Z$35:Z71)-1,COLUMNS($Z$35:Z71)-1)<>"",OFFSET(DE104_3!$Z$35,ROWS($Z$35:Z71)-1,COLUMNS($Z$35:Z71)-1),"") ->  | Y57: =IF(OFFSET(DE104_3!$AA$35,ROWS($AA$35:AA71)-1,COLUMNS($AA$35:AA71)-1)<>"",OFFSET(DE104_3!$AA$35,ROWS($AA$35:AA71)-1,COLUMNS($AA$35:AA71)-1),"") ->  | Z57: =IF(OFFSET(DE104_3!$AB$35,ROWS($AB$35:AB71)-1,COLUMNS($AB$35:AB71)-1)<>"",OFFSET(DE104_3!$AB$35,ROWS($AB$35:AB71)-1,COLUMNS($AB$35:AB71)-1),"") -> 96.5 | AA57: =IF(OFFSET(DE104_3!$AC$35,ROWS($AC$35:AC71)-1,COLUMNS($AC$35:AC71)-1)<>"",OFFSET(DE104_3!$AC$35,ROWS($AC$35:AC71)-1,COLUMNS($AC$35:AC71)-1),"") -> 97.5 | AB57: =IF(OFFSET(DE104_3!$AD$35,ROWS($AD$35:AD71)-1,COLUMNS($AD$35:AD71)-1)<>"",OFFSET(DE104_3!$AD$35,ROWS($AD$35:AD71)-1,COLUMNS($AD$35:AD71)-1),"") ->  | AC57: =IF(OFFSET(DE104_3!$AE$35,ROWS($AE$35:AE71)-1,COLUMNS($AE$35:AE71)-1)<>"",OFFSET(DE104_3!$AE$35,ROWS($AE$35:AE71)-1,COLUMNS($AE$35:AE71)-1),"") ->  | AD57: =IF(OFFSET(DE104_3!$AF$35,ROWS($AF$35:AF71)-1,COLUMNS($AF$35:AF71)-1)<>"",OFFSET(DE104_3!$AF$35,ROWS($AF$35:AF71)-1,COLUMNS($AF$35:AF71)-1),"") ->  | AE57: =IF(OFFSET(DE104_3!$AG$35,ROWS($AG$35:AG71)-1,COLUMNS($AG$35:AG71)-1)<>"",OFFSET(DE104_3!$AG$35,ROWS($AG$35:AG71)-1,COLUMNS($AG$35:AG71)-1),"") ->  | AF57: =IF(OFFSET(DE104_3!$AH$35,ROWS($AH$35:AH71)-1,COLUMNS($AH$35:AH71)-1)<>"",OFFSET(DE104_3!$AH$35,ROWS($AH$35:AH71)-1,COLUMNS($AH$35:AH71)-1),"") ->  | AG57: =IF(OFFSET(DE104_3!$AI$35,ROWS($AI$35:AI71)-1,COLUMNS($AI$35:AI71)-1)<>"",OFFSET(DE104_3!$AI$35,ROWS($AI$35:AI71)-1,COLUMNS($AI$35:AI71)-1),"") ->  | AH57: =IF(OFFSET(DE104_3!$AJ$35,ROWS($AJ$35:AJ71)-1,COLUMNS($AJ$35:AJ71)-1)<>"",OFFSET(DE104_3!$AJ$35,ROWS($AJ$35:AJ71)-1,COLUMNS($AJ$35:AJ71)-1),"") ->  | AI57: =IF(OFFSET(DE104_3!$AK$35,ROWS($AK$35:AK71)-1,COLUMNS($AK$35:AK71)-1)<>"",OFFSET(DE104_3!$AK$35,ROWS($AK$35:AK71)-1,COLUMNS($AK$35:AK71)-1),"") ->  | AJ57: =IF(OFFSET(DE104_3!$AL$35,ROWS($AL$35:AL71)-1,COLUMNS($AL$35:AL71)-1)<>"",OFFSET(DE104_3!$AL$35,ROWS($AL$35:AL71)-1,COLUMNS($AL$35:AL71)-1),"") -> 227.1237037 | AK57: =IF(OFFSET(DE104_3!$AM$35,ROWS($AM$35:AM71)-1,COLUMNS($AM$35:AM71)-1)<>"",OFFSET(DE104_3!$AM$35,ROWS($AM$35:AM71)-1,COLUMNS($AM$35:AM71)-1),"") -> 37.97257778 | AL57: =IF(OFFSET(DE104_3!$AN$35,ROWS($AN$35:AN71)-1,COLUMNS($AN$35:AN71)-1)<>"",OFFSET(DE104_3!$AN$35,ROWS($AN$35:AN71)-1,COLUMNS($AN$35:AN71)-1),"") -> 234.5409185 | AM57: =IF(OFFSET(DE104_3!$AO$35,ROWS($AO$35:AO71)-1,COLUMNS($AO$35:AO71)-1)<>"",OFFSET(DE104_3!$AO$35,ROWS($AO$35:AO71)-1,COLUMNS($AO$35:AO71)-1),"") -> 19.76888889 | AN57: =IF(OFFSET(DE104_3!$AP$35,ROWS($AP$35:AP71)-1,COLUMNS($AP$35:AP71)-1)<>"",OFFSET(DE104_3!$AP$35,ROWS($AP$35:AP71)-1,COLUMNS($AP$35:AP71)-1),"") -> 254.3098074 | AO57: =IF(OFFSET(DE104_3!$AQ$35,ROWS($AQ$35:AQ71)-1,COLUMNS($AQ$35:AQ71)-1)<>"",OFFSET(DE104_3!$AQ$35,ROWS($AQ$35:AQ71)-1,COLUMNS($AQ$35:AQ71)-1),"") -> -34
